Workbook

Sheet TITLES & CONSTANTS
A1: =PERIOD -> FOR THE FORECAST PERIOD ENDING 12/31/14 | L1: "CONSTANTS"
A7: STANDARD TITLES
A9: PERIOD | B9: PERIOD OF STUDY | D9: FOR THE FORECAST PERIOD ENDING 12/31/14 | H9: FOR THE PERIOD ENDING 12/31/06
A11: YEAR | B11: YEAR OF STUDY | D11: 2014
A13: HIST_YEAR | B13: MOST RECENT ACTUAL YEAR | D13: 2012
A15: GENER_FOOTNOTE | B15: FOOTNOTE FOR SOURCE | D15: * Source: Unit Capacity Memo or TYSP, when available. Updated Annually.Use Winter Ratings for Big Bend & Polk 1; Summer Ratings for all other Units/Stations.
A20: CONSTANTS
E21: DEPENDENT CELL | F21: these factors stay consistent between rate cases* | M21: Mirrors MFR C44 methodology (from 2013 rate case DOCKET 130040)
A22: FED_TAX | B22: FederalTaxRate | D22: 0.35 | F22: * | M22: 1 | O22: 100
A23: STATE_TAX | B23: StateTaxRate | D23: 0.055 | F23: * | M23: 2 | O23: =reg_assess_fee*100 -> 0.072 | P23: reg assess fee * 100
A24: ROE | B24: ROE | C24: tec proforma | D24: =proforma!S135 -> 0.1025 | E24: RPTS!F80 | F24: * | G24: source is schedule 4, line Common Equity, column Cost Rate, under mid point | M24: 3 | O24: =bad_debt_rate*100 -> 0.185 | P24: bad debt rate * 100
A25: EXP_FACTOR | B25: Expansion Factor | D25: =O38 -> 1.6322 | E25: RPTS!F87 | F25: * | G25: calc'd over to the right, this tab, cells M21:Q44 | M25: 4 | N25: line 1 - line 2&3 | O25: =O22-O23-O24 -> 99.743
M26: 5 | O26: =STATE_TAX -> 0.055 | P26: state inc tax rate
A27: FOR ADD'L REV CALCS | B27: BAD DEBT % | C27: updated 2014 | D27: 0.00185 | E27: RPTS!J1820:Q1829 | F27: * | G27: MFR C44 | M27: 6
M28: 7 | N28: line 4* line 5 | O28: =O25*O26 -> 5.485865 | P28: state income tax
A29: FOR ADD'L REV CALCS | B29: REG ASSESS. FEE % | C29: updated 2014 | D29: 0.00072 | E29: RPTS!J1820:Q1829 | F29: * | G29: comes from s rpt surv inputs (at top of schedule) desc is "Reg Tax" | M29: 8
M30: 9 | N30: line 4 - line 7 | O30: =O25-O28 -> 94.257135 | P30: net before federal inc tax
C31: added 7/10/13 | D31: updated 2014 -9/4/13 | M31: 10
B32: Capital Structure Items: | C32: Cost Rates % | D32: Wtd Cost % | M32: 11 | O32: =FED_TAX -> 0.35 | P32: fed income tax rate
A33: LTD_RATE | B33: Long Term Debt | C33: 0.054 | D33: 0.019 | E33: RPTS!F64 | G33: source is schedule 4, for cost rates % and wtd cost % | M33: 12
A34: STD_RATE | B34: Short Term Debt | C34: 0.0147 | D34: 0.0001 | E34: RPTS!F65 | G34: Cost Rates %: pick from surv report, Sch 4, Mid Point column (col dx) | M34: 13 | N34: line 9 * line 11 | O34: =O30*O32 -> 32.98999725 | P34: federal income tax
A35: DEF_REV_RATE | B35: Deferred Revenue | C35: 0 | D35: 0 | E35: RPTS!F66 | G35: Wtd cost %: pick from surv report, Sch 4, Mid Point column (col dz) | M35: 14
A36: CUST_DEP_RATE | B36: Customer Deposits | C36: 0.022 | D36: 0.0006 | E36: RPTS!F67 | H36: added cost rates 7/10/13 | M36: 15 | N36: line 9 - line 13 | O36: =O30-O34 -> 61.26713775 | P36: revenue expansion factors
A37: PS_RATE | B37: Preferred Stock | C37: 0 | D37: 0 | E37: RPTS!F68 | M37: 16
A38: TAX_CR_RATE | B38: Tax Credits | C38: 0.0854 | D38: 0.0001 | E38: RPTS!F69 | M38: 17 | N38: (1/line 15)*100 | O38: =ROUND((1/O36)*100,4) -> 1.6322 | P38: Net Oper Income Multiplier
P39: called the "Expansion Factor"
A40: EQUITY_RATIO | B40: Equity Ratio | D40: =42.23%*0+0.4226 -> 0.4226 | E40: RPTS!F74 | G40: source is schedule 4, see line labeled Common Equity, col Ratio % | P40: in the cost of service
G41: EQUITY RATIO: BE SURE TO ENTER AS XX.XX | P41: DA called "Gross Up Factor"
P42: but it different
M44: bs check on expansion factor
N45: line
N46: 1 | O46: 100
N47: 2 | O47: 0.257 | P47: % for bad debt & reg assess fee
N48: 3 | O48: =O46-O47 -> 99.743 | P48: line 1 - line 2
N49: 4 | O49: 0.38575 | P49: combined tax rate
N50: 5 | O50: =O48*O49 -> 38.47586225 | P50: line 3 * line 4
N51: 6 | O51: =O48-O50 -> 61.26713775 | P51: line 3 - line 5
N52: 7 | O52: =100/O51 -> 1.632196373 | P52: 100/line 6

Sheet COC
A7: didn't use this section | F7: TAMPA ELECTRIC COMPANY
B8: Comes from Sch 4 | F8: DOCKET NO. 130040-EI
A9: 2013-08-02 | B9: Surv Report | F9: 13-MONTH AVERAGE CAPITAL STRUCTURE
B10: As filed, 2014 | F10: DECEMBER 2014 TEST YEAR
B11: from mfr D-1a, col 7 | C11: created this ratio to apply
B12: inputs | C12: ratio of new rate base | E12: calculated | F12: inputs
A13: Company As Filed | C13: to original rate base | D13: ($) | F13: Cost | G13: Weighted
B14: Total System Adjusted | C14: Jurisdictional Factor | D14: Total System Adjusted (revised) | E14: New Ratio | F14: Rate | G14: Cost
A15: Common Equity | B15: 1837269 | C15: =B24/$B$23 -> 0.9941399058 | D15: =B15*C15 -> 1826502.431 | E15: =D15/$D$23 -> 0.422559827 | F15: 0.105 | G15: =ROUND(E15*F15,4) -> 0.0444 | K15: =B24 -> 4322470.603 | L15: new revised rate base, after Calpine change
A16: Long-term Debt | B16: 1528197 | C16: =$C$15 -> 0.9941399058 | D16: =B16*C16 -> 1519241.622 | E16: =D16/$D$23 -> 0.351475293 | F16: ='TITLES & CONSTANTS'!C33 -> 0.054 | G16: =ROUND(E16*F16,4) -> 0.019 | K16: 0.0643 | L16: desired COC
A17: Short-term Debt | B17: 24691 | C17: =$C$15 -> 0.9941399058 | D17: 24546.30841 | E17: 0.005678768155 | F17: ='TITLES & CONSTANTS'!C34 -> 0.0147 | G17: 0.0001 | K17: =K15*K16 -> 277934.8598 | L17: desired noi
A18: Preferred Stock | B18: 0 | C18: 0.9941399058 | D18: 0 | E18: 0 | F18: 0 | G18: 0
A19: Customer Deposits | B19: 113071 | C19: 0.9941399058 | D19: 112408.3933 | E19: 0.02600558884 | F19: ='TITLES & CONSTANTS'!C36 -> 0.022 | G19: 0.0006 | K19: =-REPORTS!J31 -> -272728.5282 | L19: achieved NOI, present, after O&M reduction
A20: Deferred Income Taxes | B20: 836708 | C20: 0.9941399058 | D20: 831804.8123 | E20: 0.1924373555 | F20: 0 | G20: 0 | K20: =K17+K19 -> 5206.331625 | L20: add'l rev required
A21: Tax Credits - Zero Cost | B21: 0 | C21: 0.9941399058 | D21: 0 | E21: 0 | F21: 0 | G21: 0 | K21: =EXP_FACTOR -> 1.6322 | L21: expansion factor
A22: Tax Credits - Weighted Cost | B22: 8014 | C22: 0.9941399058 | D22: 7967.037205 | E22: 0.00184316747 | F22: =F30 -> 0.08 | G22: 0.0001 | K22: =K20*K21 -> 8497.774478 | L22: revenue increase required
A23: Total (cap structure = rate base) | B23: =SUM(B15:B22) -> 4347950 | D23: =SUM(D15:D22) -> 4322470.603 | E23: =SUM(E15:E22) -> 1 | G23: =SUM(G15:G22) -> 0.0642
A24: revised Rate Base (RETAIL) | B24: =REPORTS!J41 -> 4322470.603
A26: Recalc of Wtd Cost Tax Credits | D26: Total System Adjusted (revised) | E26: Ratio | F26: Wtd Cost Rate
A27: Long-term Debt | D27: =D16 -> 1519241.622 | E27: =D27/$D$30 -> 0.4522359463 | F27: 0.02
A28: Short-term Debt | D28: =D17 -> 24546.30841 | E28: =D28/$D$30 -> 0.007306752827 | F28: 0
A29: Common Equity | D29: =D15 -> 1826502.431 | E29: 0.5436989373 | F29: 0.06
D30: 3359400.406 | E30: 1 | F30: =SUM(F27:F29) -> 0.08

Sheet Command_Center
A1: 0
A2: You must be sure that all are set to appropriate status, many of the preview & print macros are using these toggles or even changing them to get different results
A4: YOU CAN NOT DELETE ANY ITEMS BELOW AND COUNT ON USING ANY OF THE MACROS ACCURATELY
A7: add'l IMPORTANT toggles set elsewhere in model | G7: just need to be aware of how these are set, they are independent of the toggles below
C8: MDS | D8: =mds_on -> 1 | E8: in distribution tab
C10: DO NOT CHG HERE
J12: =+REPORTS!C2 -> SETTLEMENT RATE STRUCTURE
J13: =+REPORTS!C3 -> PROD. CAP. ALLOC. METHOD: 12CP & 1/13th AD
A15: PRODUCTION DEMAND METHODOLOGY | H15: Version
B16: range name for factor | C16: "prod_factor" | D16: 1 | F16: 1= | G16: Factor 122 | H16: Present | I16: Required | J16: PROD. CAP. ALLOC. METHOD: 12CP & 1/13th AD | L16: METHDOLOGY: 12 CP & 1/13th AD; MINIMUM DISTRIBUTION SYSTEM NOT USED
C17: 2 is default | F17: 2= | G17: Factor 124 | H17: Present | I17: Approved | J17: PROD. CAP. ALLOC. METHOD: 12CP & 25% AD | L17: METHDOLOGY: 12 CP & 25% AD; MINIMUM DISTRIBUTION SYSTEM USED
F18: 3= | G18: Factor 125 | H18: Present | I18: Proposed | J18: PROD. CAP. ALLOC. METHOD: 12CP & 50% AD | L18: Add'l proposed methodology, but under present rate structure
F19: 4= | G19: Factor 126 | H19: Proposed | I19: Proposed | J19: PROD. CAP. ALLOC. METHOD: 12CP & 25% AD
F20: 5= | G20: Factor 128 | H20: Proposed | I20: Proposed | J20: PROD. CAP. ALLOC. METHOD: 12CP & 50% AD
A22: Critical Indicator | C22: "Version" | D22: =IF(OR(D16=1,D16=2,D16=3,D16=4),"Present","Proposed") -> Present
A23: linked to allocators (use of loadstar factors and meters & services allocators (that combined classes) | J23: Allocators [105,106,117,201,204,401,402,403,404,408,410] &
A24: linked to titles of reports, see cell C3, reports tab | J24: Allocators [502/512; 308/318;307/317] & [501]
A25: linked to revenues, alloc 501
H27: rpt type | I27: prod_factor
A28: REPORT_TITLE [1]: | C28: PROD. CAP. ALLOC. METHOD: 12CP | H28: 1 | I28: blank | J28: "title_juris" | K28: [required juris is 12 cp]
A29: **do not erase** | C29: PROD. CAP. ALLOC. METHOD: 12CP & 1/13th AD | H29: 0 | I29: 1 | J29: "title_required" | K29: [required filing in rate case]
C30: PROD. CAP. ALLOC. METHOD: 12CP & 25% AD | H30: 0 | I30: 2, 4 | J30: "title_default" | K30: [default, approved method, 2008 rate case]
C31: PROD. CAP. ALLOC. METHOD: 12CP & 50% AD | H31: 0 | I31: 3, 5 | J31: "title_proposed" | K31: [new methdology, proposed 2013 rate case]
F35: these factors affect titles on the reports tab and also the allocators applied
A37: SWITCH FOR JURIS FORMULA IN HEADING
B38: range name for factor | C38: "report_type" | D38: 0 | F38: 0= Retail; 1 = Jurisdictional
F39: IMPORTANT TO CHANGE IF YOU WANT JURISDICTIONAL REPORT
F40: there is a data validation set on this input: this changes the alloc factors used in reports output
A44: SWITCH FOR RATE OF RETURN
B45: range name for factor | C45: "ror_switch" | D45: 3 | E45: 1= | F45: Retail Juris ROR
E46: 2= | F46: Class ROR (did not use in 2008 rate case)
E47: 3= | F47: Proposed ROR
F48: 3 is the default, only modify during rate case process
F49: there is a data validation on this input

Sheet RR_$57.5_Increase
A1: Rates Effective November, 2013 | D1: Tampa Electric | L1: RETAIL
A2: Target:$57.5M | D2: Retail Base Revenue | F2: Actual Formulas | J2: System | K2: Retail | L2: Revenue Expansion
D3: (000's) | J3: A&g | K3: 0.995871 | L3: 1.00257
J4: G&I Plant | K4: 0.996108
A5: "As-Filed" Revenue Increase | D5: 134841 | F5: 134841 | G5: input from original filed
A8: Revenue Requirement Adjustments:
A10: 1. | B10: Calpine/APP Update Adjustment | D10: -5691 | F10: -5691 | G10: input from calpine chg
A12: 2. | B12: ROE: Reduce 11.25% to 10.25% | D12: =-4308506*(0.0674-0.0631)*1.6322 -> -30239.07702 | F12: =-4308506*(0.0674-0.0631)*1.6322 | G12: RB*(ori COC - revised COC)*tax expansion factor
G13: COC is from page 2, line 38
A14: 3. | B14: O&M Reduction | D14: =-28680*0.995871*1.00257-6 -> -28640.98354 | F14: =-28680*0.995871*1.00257-6 | G14: amount is the direct input to the proforma tab (system #) | J14: =D14 -> -28640.98354 | K14: =D14*$K$3 -> -28522.72492 | L14: =K14*$L$3 -> -28596.02832
G15: times the bad debt and reg fee less small rounding
A16: 4. | B16: Software Amortization Adj. (15 year) Eff. 1/1/13
B17: a. Amortization Expense | D17: =-6197*0.995871*1.00257 -> -6187.273117 | F17: =-6197*0.995871*1.00257 | G17: amount is the direct input to the proforma tab (system #) | J17: =D17 -> -6187.273117 | K17: =D17*$K$4 -> -6163.19225 | L17: =K17*$L$3 -> -6179.031654
B18: b. Accumulated Reserve | D18: =+((10003)*0.0631*1.6322)*0.995871 -> 1025.973367 | F18: =+((10003)*0.0631*1.6322)*0.995871 | G18: times the separation factor for depreciation expense times the | J18: =D18 -> 1025.973367 | K18: =(-K17/2)*0.0643*1.6322 -> 323.4149309 | L18: =K18*$L$3 -> 324.2461072
A20: 5. | B20: Storm Damage
B21: a. Storm Accrual expense | D21: =-8000*1.00257 -> -8020.56 | F21: =-8000*1.00257 | J21: =D21 -> -8020.56 | K21: -8000 | L21: =K21*$L$3 -> -8020.56
B22: b. Working Capital | D22: =8000/2*0.0631*1.6322 -> 411.96728 | F22: =8000/2*0.0631*1.6322 | J22: =D22 -> 411.96728 | K22: =D22*$K$3 -> 410.2662671 | L22: =K22*$L$3 -> 411.3206514
J23: =D23 -> 0 | K23: =D23*$K$3 -> 0 | L23: =K23*$L$3 -> 0
B25: Total Adjustments | D25: =SUM(D10:D23) -> -77340.95303 | F25: =SUM(D10:D23) | L25: =SUM(L10:L23) -> -42060.05322
A28: Adjusted Revenue Increase | D28: =D5+D25 -> 57500.04697 | F28: =D5+D25
A31: Note:
A32: Adjustments reflect revenue/return expansion factors were applicable.

Sheet proforma
G22: (1) | I22: (2) | K22: (3) | M22: (4) | O22: (5) | Q22: (6) | S22: this is a toggle for | T22: 0 = NO ADJUSTMENTS
S23: adjustments | T23: 1 = ORI PROFORMA, TST YR
C24: do not remove | G24: manual | I24: manual | K24: manual | M24: manual | O24: manual | Q24: manual | S24: FORMULA BASED | T24: 2 = Settlement tst
C25: this column feeds | E25: this column just helps you | G25: input this | I25: input this | K25: input this | M25: input this | O25: input this | Q25: input this | S25: ON CELL L8 | T25: 3= INTERIM ADJ
C26: sumif formulas | E26: identify where the adj. | G26: column | I26: column | K26: column | M26: column | O26: column | Q26: column | T26: 4= INTERIM ADJ
C27: buried within COS | E27: is going in model | T27: 5= INTERIM ADJ
G28: Company | T28: 6= FINAL ADJ
G29: proforma's | I29: tst settlement | K29: interim | M29: interim | O29: interim | Q29: final | S29: see legend on side
G30: original tst yr | I30: Calpine & others | K30: adjustments | M30: adjustments | O30: adjustments | Q30: adjustments | S30: 2 | T30: "proforma_status"
A31: (000's) | B31: ISSUE NO. | D31: FERC | E31: Area of Input | G31: TOTAL ADJ (000's) or % | Q31: FINAL ORDER | S31: =IF(S30=0,"Off","On") -> On | T31: "proforma_version" alloc 117 is dependent on this toggle
T32: Comments/File locations for proforma's
A33: REVENUES CO'S INITIAL PROFORMA
A34: RS | C34: RS | D34: 440 | E34: Revenues, cell C24 | G34: -3350.52215 | I34: =G34 -> -3350.52215 | S34: =IF(proforma_status=0,0,IF(proforma_status=1,G34,IF(proforma_status=2,I34,IF(proforma_status=3,K34,IF(proforma_status=4,M34,IF(proforma_status=5,O34,IF(proforma_status=6,Q34))))))) -> -3350.52215
A35: GS&TS | C35: GS | E35: Revenues, cell C25 | G35: 0.06770000001 | I35: =G35 -> 0.06770000001 | S35: 0.06770000001
A36: GSD & SBF | C36: GSD | E36: Revenues, cell C26 | G36: 38.5895835 | I36: 38.5895835 | S36: 38.5895835
A37: IS & SBI | C37: IS | E37: Revenues, cell C27 | G37: -147.3162107 | I37: -147.3162107 | S37: -147.3162107
A38: LS EGY | C38: LS EGY | E38: Revenues, cell C28 | G38: 27.4677812 | I38: 27.4677812 | S38: 27.4677812
A39: LS FACILITIES | C39: LS FAC | E39: Revenues, cell C29 | G39: -27.69081971 | I39: -27.69081971 | S39: -27.69081971
G40: =SUM(G34:G39) -> -3459.404116 | I40: -3459.404116
A42: REVENUES FINAL SETTLEMENT
A43: RS | C43: RS | D43: 440 | E43: Revenues, cell D24 | G43: 0 | I43: 530949 | S43: =IF(proforma_status=0,0,IF(proforma_status=1,G43,IF(proforma_status=2,I43,IF(proforma_status=3,K43,IF(proforma_status=4,M43,IF(proforma_status=5,O43,IF(proforma_status=6,Q43))))))) -> 530949
A44: GS&TS | C44: GS | E44: Revenues, cell D25 | G44: 0 | I44: 64492 | S44: 64492
A45: GSD & SBF | C45: GSD | E45: Revenues, cell D26 | G45: 0 | I45: 299110 | S45: 299110
A46: IS & SBI | C46: IS | E46: Revenues, cell D27 | G46: 0 | I46: 28538 | S46: 28538
A47: LS EGY | C47: LS EGY | E47: Revenues, cell D28 | G47: 0 | I47: 5467 | S47: 5467
A48: LS FACILITIES | C48: LS FAC | E48: Revenues, cell D29 | G48: 0 | I48: 35484 | S48: 35484
A49: WHSL SEP SALES | C49: WS | E49: Revenues, cell D32 | G49: 0 | I49: 0 | S49: 0
A51: Unbilled Revenues
A52: RS | G52: 22.75144509 | I52: =G52 -> 22.75144509 | S52: =IF(proforma_status=0,0,IF(proforma_status=1,G52,IF(proforma_status=2,I52,IF(proforma_status=3,K52,IF(proforma_status=4,M52,IF(proforma_status=5,O52,IF(proforma_status=6,Q52))))))) -> 22.75144509
A53: GS&TS | G53: 2.606936416 | I53: 2.606936416 | S53: 2.606936416
A54: GSD & SBF | G54: 15.40462428 | I54: 15.40462428 | S54: 15.40462428
A55: IS & SBI | G55: 0 | I55: 0 | S55: 0
A56: LS EGY | G56: 0.2369942197 | I56: 0.2369942197 | S56: 0.2369942197
A57: LS FACILITIES | G57: 0 | I57: 0 | S57: 0
D58: 456 | E58: Revenues, cell h11 | G58: =SUM(G52:G57) -> 41 | I58: 41
A61: Other Operating Revenues
A62: Calpine, Firm Jan-May | D62: 456 | E62: Revenues, cell i11 | G62: =-793.734*5 -> -3968.67 | I62: 959 | S62: =IF(proforma_status=0,0,IF(proforma_status=1,G62,IF(proforma_status=2,I62,IF(proforma_status=3,K62,IF(proforma_status=4,M62,IF(proforma_status=5,O62,IF(proforma_status=6,Q62))))))) -> 959
A63: APP Wheeling, Jan-Dec | D63: 456 | E63: Revenues, cell j11 | G63: -3540 | I63: =G63 -> -3540 | S63: =IF(proforma_status=0,0,IF(proforma_status=1,G63,IF(proforma_status=2,I63,IF(proforma_status=3,K63,IF(proforma_status=4,M63,IF(proforma_status=5,O63,IF(proforma_status=6,Q63))))))) -> -3540
A68: O&M
A70: Production O&M | D70: prorota | E70: Prod O&M, cell d64 | I70: 0 | S70: =IF(proforma_status=0,0,IF(proforma_status=1,G70,IF(proforma_status=2,I70,IF(proforma_status=3,K70,IF(proforma_status=4,M70,IF(proforma_status=5,O70,IF(proforma_status=6,Q70))))))) -> 0
A72: Fuel/Interchange O&M | D72: 501 | E72: Fuel_interchg cell d47 | I72: 0 | S72: =IF(proforma_status=0,0,IF(proforma_status=1,G72,IF(proforma_status=2,I72,IF(proforma_status=3,K72,IF(proforma_status=4,M72,IF(proforma_status=5,O72,IF(proforma_status=6,Q72))))))) -> 0 | T72: whole number in sch will multiply times 1000
A74: Transmission O&M | D74: prorota | E74: Transm O&M, cell b27 | I74: 0 | S74: =IF(proforma_status=0,0,IF(proforma_status=1,G74,IF(proforma_status=2,I74,IF(proforma_status=3,K74,IF(proforma_status=4,M74,IF(proforma_status=5,O74,IF(proforma_status=6,Q74))))))) -> 0
A76: Distribution O&M | D76: prorota | E76: Distri O&M, cell d27 | I76: 0 | S76: =IF(proforma_status=0,0,IF(proforma_status=1,G76,IF(proforma_status=2,I76,IF(proforma_status=3,K76,IF(proforma_status=4,M76,IF(proforma_status=5,O76,IF(proforma_status=6,Q76))))))) -> 0
A78: Customer Exp O&M | D78: prorota | E78: Other & A&G O&M, cell D29 | I78: 0 | S78: =IF(proforma_status=0,0,IF(proforma_status=1,G78,IF(proforma_status=2,I78,IF(proforma_status=3,K78,IF(proforma_status=4,M78,IF(proforma_status=5,O78,IF(proforma_status=6,Q78))))))) -> 0
A80: A&G Exp O&M | D80: prorota | E80: Other & A&G O&M, cell D79 | I80: =-28686*1+5 -> -28681 | S80: =IF(proforma_status=0,0,IF(proforma_status=1,G80,IF(proforma_status=2,I80,IF(proforma_status=3,K80,IF(proforma_status=4,M80,IF(proforma_status=5,O80,IF(proforma_status=6,Q80))))))) -> -28681
A83: A&G | C83: Bad Debt | D83: 904 | E83: Other & A&G O&M, cell E35 | G83: 0 | I83: 0 | S83: =IF(proforma_status=0,0,IF(proforma_status=1,G83,IF(proforma_status=2,I83,IF(proforma_status=3,K83,IF(proforma_status=4,M83,IF(proforma_status=5,O83,IF(proforma_status=6,Q83))))))) -> 0
A84: A&G | C84: Meter Read | D84: 902 | E84: Other & A&G O&M, cell E33 | G84: 0 | I84: 0 | S84: 0
A85: A&G | C85: Cust Serv | D85: 908 | E85: Other & A&G O&M, cell E43 | G85: 0 | I85: 0 | S85: 0
A86: A&G | C86: Storm | D86: 924.12 | E86: Prop Insurance, cell c30 | G86: 0 | I86: =-8000*1 -> -8000 | S86: -8000
A87: A&G | C87: Rate_Case | D87: 928.15 | E87: Other & A&G O&M, cell E99 | G87: 0 | I87: 0 | S87: 0
A88: A&G | C88: Payroll | D88: 920 | E88: Other & A&G O&M, cell E93 | G88: 0 | I88: 0 | S88: 0
A89: A&G | C89: Benefits | D89: 926 | E89: Other & A&G O&M, cell E98 | G89: 0 | I89: 0 | S89: 0
A90: A&G | C90: Allocation | D90: 930 | E90: Other & A&G O&M, cell E101 | G90: 0 | I90: 0 | S90: 0
A94: PLANT IN SERVICE
A95: General Plant | C95: GP_Plant | E95: General Plant!D28 | G95: 0 | I95: 0 | S95: =IF(proforma_status=0,0,IF(proforma_status=1,G95,IF(proforma_status=2,I95,IF(proforma_status=3,K95,IF(proforma_status=4,M95,IF(proforma_status=5,O95,IF(proforma_status=6,Q95))))))) -> 0
A98: ACCUM RESERVES
A99: General Plant | C99: GP_Rsrvs | E99: General Plant!D29 | G99: 0 | I99: -10003 | S99: =IF(proforma_status=0,0,IF(proforma_status=1,G99,IF(proforma_status=2,I99,IF(proforma_status=3,K99,IF(proforma_status=4,M99,IF(proforma_status=5,O99,IF(proforma_status=6,Q99))))))) -> -10003
A102: DEPRECIATION
A103: General Plant | C103: GP_Depre | E103: General Plant!D30 | G103: 0 | I103: =-6197*1 -> -6197 | S103: =IF(proforma_status=0,0,IF(proforma_status=1,G103,IF(proforma_status=2,I103,IF(proforma_status=3,K103,IF(proforma_status=4,M103,IF(proforma_status=5,O103,IF(proforma_status=6,Q103))))))) -> -6197
A107: PHFFU | C107: PHFFU Adj. | D107: 105 | E107: PHFFU!C28 | G107: 0 | I107: 0 | S107: =IF(proforma_status=0,0,IF(proforma_status=1,G107,IF(proforma_status=2,I107,IF(proforma_status=3,K107,IF(proforma_status=4,M107,IF(proforma_status=5,O107,IF(proforma_status=6,Q107))))))) -> 0
A110: CWIP | C110: CWIP Adj. | D110: 107 | E110: CWIP!C30 | G110: 0 | I110: 0 | S110: =IF(proforma_status=0,0,IF(proforma_status=1,G110,IF(proforma_status=2,I110,IF(proforma_status=3,K110,IF(proforma_status=4,M110,IF(proforma_status=5,O110,IF(proforma_status=6,Q110))))))) -> 0
A113: WORKING CAPITAL
A114: ADDITIONS | C114: WC Additions Adj. | D114: varies | E114: Working Capital!C34 | G114: 0 | I114: =4033*1 -> 4033 | S114: =IF(proforma_status=0,0,IF(proforma_status=1,G114,IF(proforma_status=2,I114,IF(proforma_status=3,K114,IF(proforma_status=4,M114,IF(proforma_status=5,O114,IF(proforma_status=6,Q114))))))) -> 4033
A115: DEDUCTIONS | C115: WC Deductions Adj. | D115: varies | E115: Working Capital!C36 | G115: 0 | I115: 0 | S115: =IF(proforma_status=0,0,IF(proforma_status=1,G115,IF(proforma_status=2,I115,IF(proforma_status=3,K115,IF(proforma_status=4,M115,IF(proforma_status=5,O115,IF(proforma_status=6,Q115))))))) -> 0
A122: TAXES OTHER
A124: Property | D124: 408 | E124: Taxes_Other!D31 | G124: 0 | I124: 0 | S124: =IF(proforma_status=0,0,IF(proforma_status=1,G124,IF(proforma_status=2,I124,IF(proforma_status=3,K124,IF(proforma_status=4,M124,IF(proforma_status=5,O124,IF(proforma_status=6,Q124))))))) -> 0
A126: INCOME TAX
A128: Interest Expense Sync | D128: 427 | E128: Inc_Taxes!D29 | G128: 0 | I128: =G128 -> 0 | S128: =IF(proforma_status=0,0,IF(proforma_status=1,G128,IF(proforma_status=2,I128,IF(proforma_status=3,K128,IF(proforma_status=4,M128,IF(proforma_status=5,O128,IF(proforma_status=6,Q128))))))) -> 0
A130: True-Up | D130: 409 | E130: Inc_Taxes!D49 | G130: =-1230*0 -> 0 | I130: =G130 -> 0 | S130: =IF(proforma_status=0,0,IF(proforma_status=1,G130,IF(proforma_status=2,I130,IF(proforma_status=3,K130,IF(proforma_status=4,M130,IF(proforma_status=5,O130,IF(proforma_status=6,Q130))))))) -> 0
A132: Deferred | D132: 410 | E132: Inc_Taxes!D47 | G132: =2758*0 -> 0 | I132: =G132 -> 0 | S132: =IF(proforma_status=0,0,IF(proforma_status=1,G132,IF(proforma_status=2,I132,IF(proforma_status=3,K132,IF(proforma_status=4,M132,IF(proforma_status=5,O132,IF(proforma_status=6,Q132))))))) -> 0
A134: CAPITAL STRUCTURE
A135: Return on Equity | C135: ROE | D135: Direct | E135: titles & constants, cell D24 | G135: 0.1125 | I135: 0.1025 | S135: =IF(proforma_status=0,0,IF(proforma_status=1,G135,IF(proforma_status=2,I135,IF(proforma_status=3,K135,IF(proforma_status=4,M135,IF(proforma_status=5,O135,IF(proforma_status=6,Q135))))))) -> 0.1025
A139: the section below has no dependents (nd), it is simply for tracking if there are changes in these items
B141: IF THIS CHANGES, MUST CHANGE IN
A142: EXPANSION FACTOR | B142: TITLES & CONSTANTS TAB, CELL D25 | G142: =EXP_FACTOR -> 1.6322 | I142: =G142 -> 1.6322 | S142: =IF(proforma_status=0,0,IF(proforma_status=1,G142,IF(proforma_status=2,I142,IF(proforma_status=3,K142,IF(proforma_status=4,M142,IF(proforma_status=5,O142,IF(proforma_status=6,Q142))))))) -> 1.6322 | T142: nd
A144: BAD DEBT % | B144: IF THIS CHANGES, MUST CHANGE IN | E144: FOR ADD'L REV CALCS | G144: =bad_debt_rate -> 0.00185 | I144: =G144 -> 0.00185 | S144: =IF(proforma_status=0,0,IF(proforma_status=1,G144,IF(proforma_status=2,I144,IF(proforma_status=3,K144,IF(proforma_status=4,M144,IF(proforma_status=5,O144,IF(proforma_status=6,Q144))))))) -> 0.00185 | T144: nd
B145: TITLES & CONSTANTS TAB, CELL D27 | E145: REPORTS TAB: C1820:Q1829
A146: REG ASSESS. FEE % | B146: IF THIS CHANGES, MUST CHANGE IN | E146: FOR ADD'L REV CALCS | G146: =reg_assess_fee -> 0.00072 | I146: =G146 -> 0.00072 | S146: =IF(proforma_status=0,0,IF(proforma_status=1,G146,IF(proforma_status=2,I146,IF(proforma_status=3,K146,IF(proforma_status=4,M146,IF(proforma_status=5,O146,IF(proforma_status=6,Q146))))))) -> 0.00072 | T146: nd
B147: TITLES & CONSTANTS TAB, CELL D29 | E147: REPORTS TAB: C1820:Q1829
A149: FINANCING | E149: Long Term Debt | G149: 0.026 | I149: =G149 -> 0.026 | S149: =IF(proforma_status=0,0,IF(proforma_status=1,G149,IF(proforma_status=2,I149,IF(proforma_status=3,K149,IF(proforma_status=4,M149,IF(proforma_status=5,O149,IF(proforma_status=6,Q149))))))) -> 0.026 | T149: nd
E150: Short Term Debt | G150: 0.0001 | I150: 0.0001 | S150: 0.0001 | T150: nd
E151: Deferred Revenue | G151: 0 | I151: 0 | S151: 0 | T151: nd
E152: Customer Deposits | G152: 0.0017 | I152: 0.0017 | S152: 0.0017 | T152: nd
E153: Preferred Stock | G153: 0 | I153: 0 | S153: 0 | T153: nd
E154: Tax Credits | G154: 0.0002 | I154: 0.0002 | S154: 0.0002 | T154: nd
B156: IF THIS CHANGES, MUST CHANGE IN | E156: Equity Ratio | G156: 0.502 | I156: 0.502 | S156: =IF(proforma_status=0,0,IF(proforma_status=1,G156,IF(proforma_status=2,I156,IF(proforma_status=3,K156,IF(proforma_status=4,M156,IF(proforma_status=5,O156,IF(proforma_status=6,Q156))))))) -> 0.502 | T156: nd
B157: TITLES & CONSTANTS TAB, CELL D24

Sheet STEP_THRU
C5: RETAIL
C6: DESIRED O&M IMPACT
A7: TARGETS | C7: TO REV REQ
G8: SYSTEM NUMBER
A9: 60 | C9: 30989 | D9: 1.00257 | E9: 0.995871 | G9: =C9/D9/E9 -> 31037.71716
A10: 65 | C10: 25989 | D10: 1.00257 | E10: 0.995871 | G10: 26029.85676
A11: 70 | C11: 20989 | D11: 1.00257 | E11: 0.995871 | G11: 21021.99637
A12: 75 | C12: 15989 | D12: 1.00257 | E12: 0.995871 | G12: 16014.13597
A13: 80 | C13: 10997 | D13: 1.00257 | E13: 0.995871 | G13: 11014.28815
A14: 85 | C14: 5988 | D14: 1.00257 | E14: 0.995871 | G14: 5997.41361

Sheet ACQ_ADJ
K5: "ACQ_ADJ"
A6: FROM STATEMENT OF PLANT | C6: (000's) | D6: updated 2012, 2/2/12
A7: =PERIOD -> FOR THE FORECAST PERIOD ENDING 12/31/14
A9: OUC adjustments to Surveillance Report: | E9: All of OUC dollars are removed from Transmission Plant (per FPSC)
A10: Plant | C10: =JLH_SR_Sch2_PG1!C30 -> -1635114 | D10: no dependents | E10: REAL ADJ as reduction to Plant, 356, s rpt to transm tab directly
A11: Accum Depreciation | C11: =JLH_SR_Sch2_PG1!E31 -> 1461384 | D11: no dependents | E11: REAL ADJ as reduction to accum reserve, 356, s rpt to transm tab directly
A12: Depreciation Expense* | C12: =C23 -> 58848 | D12: no dependents | E12: *adj as reduction to depre, 356 but is included below, on s rpt, it is
E13: grouped with acq adj depreciation amounts
A15: Plant Acquisition Adjustment $'s (Transmission) | C15: 13 MO AVG
A16: OUC | B16: 114.01 | C16: 6166190 | D16: has dependents | E16: gross plant less accum reserve for each acq adj
A17: FP&L | B17: 114.02 | C17: 957106.71 | D17: has dependents | E17: this is basically a balancing summary item, not completely necessary
A18: UNION | B18: 114.03 | C18: 341971.88 | D18: has dependents
C19: =SUM(C16:C18) -> 7465268.59 | E19: = s rpt adj, balsheet, col 1
E20: all are removed from rate base (they are in sys per books totals)
E21: but I don't bring into the model so reconcile but don't really remove
A22: Depre Expense Acquisition Adjustment $'s (Transmission) incl's OUC depre exp on plant
A23: OUC PLANT DEPRECIATION | B23: 403 | C23: 58848 | D23: no dependents | E23: AT provided schedule for this
A24: OUC ACQ ADJ DEPRECIATION | B24: 406.01 | C24: -185749.2 | D24: has dependents | E24: sop wksheet
C25: =SUM(C23:C24) -> -126901.2 | D25: no dependents | E25: = s rpt adj, inc stmt, col 4
A27: Acquisition Adjust (below the line) are not incl in s rpt | E27: these are incl in SOP & component file
A28: FP&L ACQ ADJ DEPRE | B28: 425.02 | C28: 41901 | D28: no dependents | E28: sop wksheet
A29: UNION ACQ ADJ DEPRE | B29: 425.03 | C29: 9059 | D29: no dependents | E29: sop wksheet
C30: =SUM(C28:C29) -> 50960 | D30: no dependents | E30: will be variance between SOP & S. RPT
E31: the 425's are not incl in her sys per books #'s
A33: Sebring acquisition adj to Production Plant:
A34: Adjustment to Accum Reserve | B34: 108.04 | C34: 128358 | D34: no dependents | E34: mfr summary, sop | F34: adds to prod accum rsrv on sebring
A35: Annual Depre Expense | B35: 406.04 | C35: -507789.57 | D35: no dependents | E35: mfr summary, sop | F35: credits (reduces) prod depre exp on sebring

Sheet JLH_OOR_RECON_DATA
A1: THIS TAB HAS UNBILLED AND OOR DATA DUMP | I1: "OOR_DATA"
A3: FROM IS ACCTS | D3: 000's
A4: Unbilled Revenue | B4: 45671 | C4: 4560900 | D4: =SUMIF($D$14:$D$70,C4,$G$14:$G$70) -> -215.4 | E4: has dependents | G4: positive if we overbilled
A5: this is in tab: is accts | G5: negative if we underbilled
A6: enter sign as is in EE pkg (per 2014)
A10: UPDATED WITH 2014 BUDGET 3/5/2013
A11: THIS SECTION COMES FROM EE PKG, TAB: I create a template in Revenue Recon file, it is tab: OOR_COS_shell
A13: REFERENCE | B13: legacy | C13: text | D13: sap acct | E13: sap_roll | F13: TITLE | G13: (000's) $'s | J13: Acct | L13: 000's
A14: SVC | B14: 45100 | C14: 45100 | D14: 451 | E14: 451 | F14: MISC SVC REV | G14: 21594.7 | J14: 451 | L14: =SUMIF($E$14:$E$71,J14,$G$14:$G$71) -> 21594.7
A15: Trans | B15: 45400 | C15: 45400 | D15: 4540010 | E15: 454 | F15: Rental Revenue - Commercial Property | G15: 592.4 | J15: 454 | L15: =SUMIF($E$14:$E$71,J15,$G$14:$G$71) -> 9852.4
A16: Distri | B16: 45401 | C16: 45401 | D16: 4540030 | E16: 454 | F16: Rental Revenue - Electric Equipment | G16: 132.3 | J16: 455 | L16: =SUMIF($E$14:$E$71,J16,$G$14:$G$71) -> 387.6
A17: Trans | B17: 45402 | C17: 45402 | D17: 4540020 | E17: 454 | F17: Rental Revenue - Agricultural Property | G17: 32.9 | J17: 456 | L17: =SUMIF($E$14:$E$71,J17,$G$14:$G$71) -> 19674.9
A18: Distri | B18: 45403 | C18: 45403 | D18: 4540080 | E18: 454 | F18: Pole Attachments | G18: 6.3
A19: Distri | B19: 45404 | C19: 45404 | F19: Plaza Meeting Room | G19: 0 | J19: total oor | L19: =SUM(L14:L18) -> 51509.6
A20: Distri | B20: 45405 | C20: 45405 | D20: 4540800 | E20: 454 | F20: Rental Revenue - MetroLink | G20: 2115.2 | J20: add back unbilled | L20: =-D4 -> 215.4
A21: Distri | B21: 45406 | C21: 45406 | D21: 4540081 | E21: 454 | F21: Rental Revenue - Pole Attachments - Distribution | G21: 6384.1 | J21: ck to ee pkg "revenue" tab | L21: =L19+L20 -> 51725
A22: Prod | B22: 45407 | C22: 45407 | D22: 4540040 | E22: 454 | F22: Rental Revenue - Big Bend Station | G22: 42
A23: Prod | B23: 45408 | C23: 45408 | F23: Bayside Dock Rental | G23: 0 | J23: 456 | L23: =L17 -> 19674.9
A24: Distri | B24: 45410 | C24: 45410 | D24: 4540700 | E24: 454 | F24: Rental Revenue - Intercompany | G24: 547.2 | J24: add back unbilled (inverse) | L24: =-D4 -> 215.4
A25: RENT | B25: 45510 | C25: 45510 | D25: 4550000 | E25: 455 | F25: Interdepartmental Rents | G25: 387.6 | J25: 456 tie to ee revenue tab | L25: =L23+L24 -> 19890.3
A26: EGY | B26: 45601 | C26: 45601 | D26: 4560800 | E26: 456 | F26: MISC REV | G26: 1404.4 | J26: because she excl unbilled
A27: EGY | B27: 45602 | C27: 45602 | F27: STEAM | G27: 0 | J27: her, she embeds in base revenues
A28: TRANS | B28: 45603 | C28: 45603 | D28: 4560020 | E28: 456 | F28: COST PLUS JOs | G28: 0
A29: EGY | B29: 456XX | C29: 456XX | D29: 4560025 | E29: 456 | F29: MGMT CHALLENGE | G29: 0
A30: TAX | B30: 45604 | C30: 45604 | D30: 4560030 | E30: 456 | F30: SALES TAX | G30: 75.6
A31: PLANT | B31: 45605 | C31: 45605 | D31: 4560040 | E31: 456 | F31: SAP REV - AFFIL | G31: 0
A32: PLANT | B32: 45606 | C32: 45606 | D32: 4560045 | E32: 456 | F32: SAP REV - DIVISION | G32: 0
A33: TRANS | B33: 45607 | C33: 45607 | D33: 4560050 | E33: 456 | F33: TRAINING MODULES | G33: 0
A34: PLANT | B34: 45609 | C34: 45609 | F34: COMM / IND AUDIT | G34: 0
A35: PLANT | B35: 45610 | C35: 45610 | D35: 4560060 | E35: 456 | F35: PARKING | G35: 50.8
A36: PLANT | B36: 45611 | C36: 45611 | F36: AT COST JOs | G36: 0
A37: PLANT | B37: 45612 | C37: 45612 | F37: BERS BLDG EGY AUDIT | G37: 0
A38: WHEELING | B38: 45614 | C38: 45614 | D38: 4560100 | E38: 456 | F38: WHEELING | G38: 3540
A39: TRANS | B39: 45615 | C39: 45615 | D39: 4560081 | E39: 456 | F39: COGEN MTCE | G39: 519.6
A40: PLANT | B40: 45616 | C40: 45616 | F40: METROLINK JOs | G40: 0
A41: PLANT | B41: 45621 | C41: 45621 | D41: 4560110 | E41: 456 | F41: METROLINK JOs | G41: 0
A42: EGY | B42: 45622 | C42: 45622 | D42: 4560690 | E42: 456 | F42: BENEFICIATED ASH | G42: 816
A43: EGY | B43: 45623 | C43: 45623 | D43: 4560660 | E43: 456 | F43: Other Revenue - Gypsum Excluding ECRC | G43: 2289
A44: EGY | B44: 45623 | C44: 45623 | D44: 4560661 | E44: 456 | F44: Other Revenue - Gypsum ECRC | G44: 932
A45: EGY | B45: 45624 | C45: 45624 | D45: 4560650 | E45: 456 | F45: SULFURIC ACID | G45: 2790
A46: PLANT | B46: 45625 | C46: 45625 | D46: 4560120 | E46: 456 | F46: GREEN POWER | G46: 244.8
A47: EGY | B47: 45626 | C47: 45626 | F47: EXHAUST | G47: 0
A48: PLANT | B48: 45627 | C48: 45627 | F48: WATER HEATER LEASE | G48: 0
A49: PLANT | B49: 45628 | C49: 45628 | F49: MANATEE VIEW CTR | G49: 0
A50: PLANT | B50: 45629 | C50: 45629 | D50: 4560140 | E50: 456 | F50: TRANSLOADING-BB | G50: 0
A51: TRANS | B51: 45630 | C51: 45630 | D51: 4560200 | E51: 456 | F51: OATT | G51: 4983.8
A52: TRANS | B52: 45631 | C52: 45631 | D52: 4560210 | E52: 456 | F52: OATT | G52: 105.9
A53: TRANS | B53: 45632 | C53: 45632 | D53: 4560220 | E53: 456 | F53: OATT | G53: 0
A54: EGY | B54: 45633 | C54: 45633 | D54: 4560230 | E54: 456 | F54: OATT GSI Penalty rev. | G54: 0
A55: TRANS | B55: 45634 | C55: 45634 | D55: 4560300 | E55: 456 | F55: Pt To Pt Trans- Sep. sales | G55: 0
A56: TRANS | B56: 45635 | C56: 45635 | D56: 4560310 | E56: 456 | F56: Ancillary Scheduling- Sep. sales | G56: 0
A57: TRANS | B57: 45636 | C57: 45636 | F57: Ancillary Scheduling- Sep. sales | G57: 0
A58: TRANS | B58: 45639 | C58: 45639 | F58: Pt To Pt Trans- Non Sep. sales | G58: 0
A59: TRANS | B59: 45640 | C59: 45640 | F59: Ancillary Scheduling- Non Sep. sales | G59: 0
A60: PLANT | B60: 45641 | C60: 45641 | F60: AT COST JOs | G60: 0
A61: PLANT | B61: 45642 | C61: 45642 | F61: AT COST JOs | G61: 0
A62: PLANT | B62: 45651 | C62: 45651 | F62: AT COST JOs | G62: 0
A63: PLANT | B63: 45652 | C63: 45652 | F63: AT COST JOs | G63: 0
A64: PLANT | B64: 45670 | C64: 45670 | D64: 4560150 | E64: 456 | F64: FGT PHASE VIII PROJECT SALE | G64: 2128.8
A65: UNBILLED | B65: 45671 | C65: 45671 | D65: 4560900 | E65: 456 | F65: UNBILLED REV | G65: -215.4
A66: TRANS | B66: 45680 | C66: 45680 | F66: RETAIL TRANS NON-SEP | G66: 0
A67: TRANS | B67: 45681 | C67: 45681 | F67: WHSL TRANS NON-SEP | G67: 0
A68: TRANS | B68: 45682 | C68: 45682 | F68: TRANSM. NON -SEPARATED | G68: 0
A69: TRANS | B69: 45683 | C69: 45683 | F69: UNUSED RESERVATION PNT TO PNT | G69: 0
A70: TRANS | B70: 45684 | C70: 45684 | F70: UNUSED RESERVATION ANCILLARY | G70: 0
A71: PLANT | B71: 45690 | C71: 45690 | D71: 4560160 | E71: 456 | F71: FGT WALKER RD & BAYSIDE (PIG | G71: 9.6
F73: Subtotal OOR | G73: =SUM(G13:G71) -> 51509.6

Sheet Labor
C4: labor | D4: 2014 | E4: Projected
C5: updated 2/27/13 | J5: DATA DUMP 2014 budget, 2/27/2013
L7: =SUM(L10:L99) -> 131879879.1
F9: Total | J9: JLH_VALUE | K9: txt
B10: value | C10: txt | D10: Expr1 | E10: TXT_NM_FERC_PNT | J10: 500 | K10: =TEXT(J10,0) -> 500 | L10: 4140385.171
A11: Prod | B11: 500 | C11: =TEXT(B11,0) -> 500 | D11: =C11&"LABOR" -> 500LABOR | E11: OPERATION SUPERVISION & ENGINEERING | F11: =SUMIF($J$10:$J$99,C11,$L$10:$L$99) -> 4140385.171 | J11: 501 | K11: =TEXT(J11,0) -> 501 | L11: 6596974.319
A12: Fuel | B12: 501 | C12: =TEXT(B12,0) -> 501 | D12: =C12&"LABOR" -> 501LABOR | E12: FUEL | F12: 6596974.319 | G12: production | J12: 502 | K12: 502 | L12: 3883206.956
A13: Prod | B13: 502 | C13: 502 | D13: 502LABOR | E13: STEAM EXPENSES | F13: 3883206.956 | G13: 500-557 | J13: 503 | K13: 503 | L13: 0
A14: Prod | B14: 503 | C14: 503 | D14: 503LABOR | E14: STEAM TRANSFERRED-CREDIT-OPERATION | F14: 0 | G14: =SUM(F11:F35) -> 60651013.89 | J14: 505 | K14: 505 | L14: 2894699.144
A15: Prod | B15: 505 | C15: 505 | D15: 505LABOR | E15: ELECTRIC EXPENSES | F15: 2894699.144 | J15: 506 | K15: 506 | L15: 3081039.267
A16: Prod | B16: 506 | C16: 506 | D16: 506LABOR | E16: MISC STEAM POWER EXPENSES | F16: 3081039.267 | G16: less nrfuel | J16: 507 | K16: 507 | L16: 0
A17: Prod | B17: 507 | C17: 507 | D17: 507LABOR | E17: RENTS | F17: 0 | G17: =SUMIF($B$11:$B$93,501,$F$11:$F$93)+SUMIF($B$11:$B$93,547,$F$11:$F$93)+SUMIF($B$11:$B$93,555,$F$11:$F$93) -> 6881501.844 | J17: 509 | K17: 509 | L17: 0
A18: Prod | B18: 509 | C18: 509 | D18: 509LABOR | E18: ALLOWANCES-OPERATION | F18: 0 | J18: 510 | K18: 510 | L18: 490779.6509
A19: Prod | B19: 510 | C19: 510 | D19: 510LABOR | E19: MAINTENANCE SUPERVISION & ENGINEERING | F19: 490779.6509 | G19: net production | J19: 511 | K19: 511 | L19: 4338887.944
A20: Prod | B20: 511 | C20: 511 | D20: 511LABOR | E20: MAINTENANCE OF STRUCTURES | F20: 4338887.944 | G20: =G14-G17 -> 53769512.05 | J20: 512 | K20: 512 | L20: 11196098.76
A21: Prod | B21: 512 | C21: 512 | D21: 512LABOR | E21: MAINTENANCE OF BOILER PLANT | F21: 11196098.76 | G21: =G46 -> 833.5283284 | H21: ADD GSU | J21: 513 | K21: 513 | L21: 3015373.261
A22: Prod | B22: 513 | C22: 513 | D22: 513LABOR | E22: MAINTENANCE OF ELECTRIC PLANT | F22: 3015373.261 | G22: =G21+G20 -> 53770345.58 | H22: TOTAL PROD | J22: 514 | K22: 514 | L22: 172176.7384
A23: Prod | B23: 514 | C23: 514 | D23: 514LABOR | E23: MAINTENANCE OF MISC STEAM PLANT | F23: 172176.7384 | J23: 546 | K23: 546 | L23: 1101864.109
A24: Prod | B24: 546 | C24: 546 | D24: 546LABOR | E24: OPERATION SUPERVISION & ENGINEERING-OPERATION | F24: 1101864.109 | J24: 547 | K24: 547 | L24: 284527.5244
A25: Fuel | B25: 547 | C25: 547 | D25: 547LABOR | E25: FUEL | F25: 284527.5244 | G25: the gsu labor is added | J25: 548 | K25: 548 | L25: 7877924.676
A26: Prod | B26: 548 | C26: 548 | D26: 548LABOR | E26: GENERATION EXPENSES | F26: 7877924.676 | G26: to production and | J26: 549 | K26: 549 | L26: 3385042.733
A27: Prod | B27: 549 | C27: 549 | D27: 549LABOR | E27: MISC OTHER POWER GENERATION EXPENSES | F27: 3385042.733 | G27: removed from transm | J27: 550 | K27: 550 | L27: 0
A28: Prod | B28: 550 | C28: 550 | D28: 550LABOR | E28: RENTS-OPERATION | F28: 0 | G28: in the labor o&M tab | J28: 551 | K28: 551 | L28: 1132957.412
A29: Prod | B29: 551 | C29: 551 | D29: 551LABOR | E29: MAINTENANCE SUPERVISION & ENGINEERING-MAINTENANCE | F29: 1132957.412 | G29: 2013-01-11 | J29: 552 | K29: 552 | L29: 2353175.186
A30: Prod | B30: 552 | C30: 552 | D30: 552LABOR | E30: MAINTENANCE OF STRUCTURES | F30: 2353175.186 | J30: 553 | K30: 553 | L30: 3760678.832
A31: Prod | B31: 553 | C31: 553 | D31: 553LABOR | E31: MAINT OF GENERATION AND ELECTRIC EQP | F31: 3760678.832 | J31: 554 | K31: 554 | L31: 75150.65878
A32: Prod | B32: 554 | C32: 554 | D32: 554LABOR | E32: MAINT OF MISC OTHER POWER GENERATION | F32: 75150.65878 | J32: 555 | K32: 555 | L32: 0
A33: Fuel | B33: 555 | C33: 555 | D33: 555LABOR | E33: PURCHASED POWER | F33: 0 | J33: 556 | K33: 556 | L33: 870071.5558
A34: Prod | B34: 556 | C34: 556 | D34: 556LABOR | E34: SYSTEM CONTROL & LOAD DISPATCHING-OTHER | F34: 870071.5558 | J34: 557 | K34: 557 | L34: 0
A35: Prod | B35: 557 | C35: 557 | D35: 557LABOR | E35: OTHER EXPENSES-OTHER | F35: 0 | J35: 560 | K35: 560 | L35: 599395.7284
A36: Transm | B36: 560 | C36: 560 | D36: 560LABOR | E36: OPERATION SUPERVISION AND ENGINEERNG | F36: 599395.7284 | J36: 561 | K36: 561 | L36: 1749109.818
A37: Transm | B37: 561 | C37: 561 | D37: 561LABOR | E37: LOAD DISPATCHING | F37: 1749109.818 | J37: 562 | K37: 562 | L37: 307645.3368
A38: Transm | B38: 562 | C38: 562 | D38: 562LABOR | E38: STATION EXPENSES | F38: 307645.3368 | J38: 563 | K38: 563 | L38: 45723.25652
A39: Transm | B39: 563 | C39: 563 | D39: 563LABOR | E39: OVERHEAD LINE EXPENSES | F39: 45723.25652 | J39: 564 | K39: 564 | L39: 0
A40: Transm | B40: 564 | C40: 564 | D40: 564LABOR | E40: UNDERGROUNG LINE EXPENSES | F40: 0 | J40: 565 | K40: 565 | L40: 0
A41: Transm | B41: 565 | C41: 565 | D41: 565LABOR | E41: TRANSMISSION OF ELECTRICITY BY OTHERS-OPERATION | F41: 0 | J41: 566 | K41: 566 | L41: 635305.4628
A42: Transm | B42: 566 | C42: 566 | D42: 566LABOR | E42: MISC TRANSMISSION EXPENSES | F42: 635305.4628 | J42: 567 | K42: 567 | L42: 0
A43: Transm | B43: 567 | C43: 567 | D43: 567LABOR | E43: RENTS | F43: =SUMIF($J$10:$J$99,C43,$L$10:$L$99) -> 0 | G43: transmission | J43: 568 | K43: 568 | L43: 0
A44: Transm | B44: 568 | C44: 568 | D44: 568LABOR | E44: MAINTENANCE SUPERVISION & ENGINEERNG | F44: 0 | G44: 560-574 | J44: 569 | K44: 569 | L44: 777280.9938
A45: Transm | B45: 569 | C45: 569 | D45: 569LABOR | E45: MAINTENANCE OF STRUCTURES | F45: 777280.9938 | G45: =SUM(F36:F50) -> 5770462.785 | J45: 570 | K45: 570 | L45: 803508.5713
A46: Transm | B46: 570 | C46: 570 | D46: 570LABOR | E46: MAINTENANCE OF STATION EQUIPMENT | F46: 803508.5713 | G46: ='Labor_O&M'!M116 -> 833.5283284 | H46: remove GSU | J46: 571 | K46: 571 | L46: 852493.6171
A47: Transm | B47: 571 | C47: 571 | D47: 571LABOR | E47: MAINTENANCE OF OVERHEAD LINES | F47: 852493.6171 | G47: =G45-G46 -> 5769629.256 | H47: NET OF GSU | J47: 572 | K47: 572 | L47: 0
A48: Transm | B48: 572 | C48: 572 | D48: 572LABOR | E48: MAINTENANCE OF UNDERGROUND LINES | F48: 0 | J48: 573 | K48: 573 | L48: 0
A49: Transm | B49: 573 | C49: 573 | D49: 573LABOR | E49: MAINT OF MISC TRANSMISSION PLANT | F49: 0 | J49: 574 | K49: 574 | L49: 0
A50: Transm | B50: 574 | C50: 574 | D50: 574LABOR | E50: DESCRIPTION UNKNOWN | F50: 0 | J50: 580 | K50: 580 | L50: 296480.6832
A51: Dist | B51: 580 | C51: 580 | D51: 580LABOR | E51: OPERATION SUPERVISION & ENGINEERING | F51: 296480.6832 | J51: 581 | K51: 581 | L51: 113033.8679
A52: Dist | B52: 581 | C52: 581 | D52: 581LABOR | E52: LOAD DISPATCHING | F52: 113033.8679 | J52: 582 | K52: 582 | L52: 809243.4824
A53: Dist | B53: 582 | C53: 582 | D53: 582LABOR | E53: STATION EXPENSES | F53: 809243.4824 | J53: 583 | K53: 583 | L53: 2608367.775
A54: Dist | B54: 583 | C54: 583 | D54: 583LABOR | E54: OVERHEAD LINE EXPENSES | F54: 2608367.775 | J54: 584 | K54: 584 | L54: 142318.8728
A55: Dist | B55: 584 | C55: 584 | D55: 584LABOR | E55: UNDERGROUND LINE EXPENSES | F55: 142318.8728 | J55: 585 | K55: 585 | L55: 213783.4857
A56: Dist | B56: 585 | C56: 585 | D56: 585LABOR | E56: STREET LIGHTING & SIGNAL SYS EXPENSES | F56: 213783.4857 | G56: distribution | J56: 586 | K56: 586 | L56: 1893174.973
A57: Dist | B57: 586 | C57: 586 | D57: 586LABOR | E57: METER EXPENSES | F57: 1893174.973 | G57: 580-598 | J57: 587 | K57: 587 | L57: 491357.8184
A58: Dist | B58: 587 | C58: 587 | D58: 587LABOR | E58: CUSTOMER INSTALLATION EXPENSES | F58: 491357.8184 | G58: =SUM(F51:F69) -> 22151187.01 | J58: 588 | K58: 588 | L58: 1509903.503
A59: Dist | B59: 588 | C59: 588 | D59: 588LABOR | E59: MISC DISTRIBUTION EXPENSES | F59: 1509903.503 | J59: 589 | K59: 589 | L59: 0
A60: Dist | B60: 589 | C60: 589 | D60: 589LABOR | E60: RENTS | F60: 0 | J60: 590 | K60: 590 | L60: 0
A61: Dist | B61: 590 | C61: =TEXT(B61,0) -> 590 | D61: 590LABOR | E61: MAINT SUPERVISION & ENGINEERING | F61: 0 | J61: 591 | K61: 591 | L61: 259247.3268
A62: Dist | B62: 591 | C62: 591 | D62: 591LABOR | E62: MAINTENANCE OF STRUCTURES | F62: 259247.3268 | J62: 592 | K62: 592 | L62: 961708.3627
A63: Dist | B63: 592 | C63: 592 | D63: 592LABOR | E63: MAINTENANCE OF STATION EQUIPMENT | F63: 961708.3627 | J63: 593 | K63: 593 | L63: 8593861.91
A64: Dist | B64: 593 | C64: 593 | D64: 593LABOR | E64: MAINTENANCE OF OVERHEAD LINES | F64: 8593861.91 | J64: 594 | K64: 594 | L64: 2361101.496
A65: Dist | B65: 594 | C65: 594 | D65: 594LABOR | E65: MAINTENANCE OF UNDERGROUND LINES | F65: 2361101.496 | J65: 595 | K65: 595 | L65: 210982.0462
A66: Dist | B66: 595 | C66: 595 | D66: 595LABOR | E66: MAINTENANCE OF LINE TRANSFORMERS | F66: 210982.0462 | J66: 596 | K66: 596 | L66: 1067541.19
A67: Dist | B67: 596 | C67: 596 | D67: 596LABOR | E67: MAINT OF STREET LIGHTING & SIGNAL SYS | F67: 1067541.19 | J67: 597 | K67: 597 | L67: 619080.213
A68: Dist | B68: 597 | C68: 597 | D68: 597LABOR | E68: MAINTENANCE OF METERS | F68: 619080.213 | J68: 598 | K68: 598 | L68: 0
A69: Dist | B69: 598 | C69: 598 | D69: 598LABOR | E69: MAINT OF MISC DISTRIBUTION PLANT | F69: 0
A70: Cust | B70: 901 | C70: 901 | D70: 901LABOR | E70: SUPERVISION | F70: 0
A71: Cust | B71: 902 | C71: =TEXT(B71,0) -> 902 | D71: 902LABOR | E71: METER READING EXPENSES | F71: 1983032.269 | G71: 901-916
A72: Cust | B72: 903 | C72: 903 | D72: 903LABOR | E72: CUSTOMER RECORDS | F72: 13359829.88 | G72: =SUM(F70:F79) -> 20754157.84
A73: Cust | B73: 904 | C73: 904 | D73: 904LABOR | E73: UNCOLLECTIBLE ACCOUNTS | F73: 0
A74: Cust | B74: 908 | C74: 908 | D74: 908LABOR | E74: CUSTOMER ASSISTANCE EXPENSES | F74: 4540991.205 | J74: updated 2014 budget
A75: Cust | B75: 909 | C75: 909 | D75: 909LABOR | E75: INFORMATION & INSTRUCTION ADVERTISE EX | F75: =SUMIF($J$10:$J$99,C75,$L$10:$L$99) -> 0 | J75: VALUE | K75: TXT
A76: Cust | B76: 911 | C76: =TEXT(B76,0) -> 911 | D76: =C76&"LABOR" -> 911LABOR | E76: SUPERVISION-SALES ACTVITIES | F76: 0 | J76: 901 | K76: =TEXT(J76,0) -> 901 | L76: 0
A77: Cust | B77: 912 | C77: 912 | D77: 912LABOR | E77: DEMONSTRATION & SELLING EXPENSES | F77: 870304.4766 | J77: 902 | K77: 902 | L77: 1983032.269
A78: Cust | B78: 913 | C78: 913 | D78: 913LABOR | E78: ADVERTISING EXPENSES | F78: 0 | J78: 903 | K78: 903 | L78: 13359829.88
A79: Cust | B79: 916 | C79: 916 | D79: 916LABOR | E79: MISCELLANEOUS SALES EXPENSES | F79: 0 | J79: 904 | K79: 904 | L79: 0
A80: A&G | B80: 920 | C80: 920 | D80: 920LABOR | E80: ADMIN & GENERAL SALARIES | F80: 20045607.7 | J80: 908 | K80: 908 | L80: 4540991.205
A81: A&G | B81: 921 | C81: 921 | D81: 921LABOR | E81: OFFICE SUPPLIES AND EXPENSES | F81: 0 | J81: 909 | K81: 909 | L81: 0
A82: A&G | B82: 922 | C82: 922 | D82: 922LABOR | E82: ADMIN EXP TRANSFERRED-CREDIT | F82: 0 | J82: 911 | K82: 911 | L82: 0
A83: A&G | B83: 923 | C83: 923 | D83: 923LABOR | E83: OUTSIDE SERVICES EMPLOYED | F83: 0 | J83: 912 | K83: 912 | L83: 870304.4766
A84: A&G | B84: 924 | C84: 924 | D84: 924LABOR | E84: PROPERTY INSURANCE | F84: 0 | J84: 913 | K84: 913 | L84: 0
A85: A&G | B85: 925 | C85: 925 | D85: 925LABOR | E85: INJURIES & DAMAGES | F85: 0 | J85: 916 | K85: 916 | L85: 0
A86: A&G | B86: 926 | C86: 926 | D86: 926LABOR | E86: EMPLOYEE PENSION & BENEFITS | F86: 0 | G86: 920-935 | J86: 920 | K86: 920 | L86: 20045607.7
A87: A&G | B87: 928 | C87: 928 | D87: 928LABOR | E87: REGULATORY COMMISSION EXPENSES | F87: 0 | G87: =SUM(F80:F93) -> 22553057.53 | J87: 921 | K87: 921 | L87: 0
A88: A&G | B88: 929 | C88: 929 | D88: 929LABOR | E88: FRINGE ALLOCATION | F88: 0 | J88: 922 | K88: 922 | L88: 0
A89: A&G | B89: 930 | C89: 930 | D89: 930LABOR | E89: GENERAL ADVERTISING EXPENSES | F89: 1630947.007 | J89: 923 | K89: 923 | L89: 0
A90: A&G | B90: 931 | C90: 931 | D90: 931LABOR | E90: RENTS | F90: 0 | J90: 924 | K90: 924 | L90: 0
A91: A&G | B91: 932 | C91: 932 | D91: 932LABOR | E91: MAINTENANCE OF GENERAL PLANT | F91: 0 | J91: 925 | K91: 925 | L91: 0
A92: A&G | B92: 935 | C92: 935 | D92: 935LABOR | E92: MAINTENANCE OF GENERAL PLANT | F92: 876502.8206 | J92: 926 | K92: 926 | L92: 0
A93: A&G | B93: 999 | C93: 999 | D93: 999LABOR | E93: DESCRIPTION UNKNOWN | F93: 0 | J93: 928 | K93: 928 | L93: 0
J94: 929 | K94: 929 | L94: 0
J95: 930 | K95: 930 | L95: 1630947.007
E96: TOTAL LABOR | F96: =SUM(F11:F95) -> 131879879.1 | J96: 931 | K96: 931 | L96: 0
E97: excl non-recoverable fuel (accts 501 & 547) | F97: =G17 -> 6881501.844 | J97: 932 | K97: 932 | L97: 0
E98: less a&g labor (accts 920-935) | F98: =G87 -> 22553057.53 | J98: 935 | K98: 935 | L98: 876502.8206
J99: 999 | K99: 999 | L99: 0
F100: 000's
E101: final labor for labor O&M tab | F101: =(F96-F97-F98)/1000 -> 102445.3197
E102: O&M labor balance | F102: =labor_excl_ag -> 102445.3197
E103: variance s/b zero | F103: =F101-F102 -> 0

Sheet Data
A1: ALWAYS CK RANGES FOR LOOKUP | D1: ColNumber | E1: 4
D2: DescColNumber | E2: 2
A3: 100 & 200 (3 DIGIT ONLY) | D3: PeriodTitle | E3: 13 Month Average
A4: 300 & 500 & 900 (3 DIGIT & 5 DIGIT) | D4: PeriodDate | E4: 2012-12-01
A6: updates: | B6: when
A7: 100, 200 | B7: 2013-02-27 | C7: from ee pkg_shell that I create
A8: 300 | B8: 2013-02-08 | C8: from components file I create
A9: 500 | B9: 2013-02-27 | C9: comes from download file; tab "ferc"
A10: 900 | B10: 2013-01-27 | C10: comes from download file; tab "ferc"
A15: updated goto's on 2/8/13
C16: 3 DIGIT | D16: 5 DIGIT
A19: 500
A20: 900
A21: 301 BAL
A22: 301 RES
A23: 301 EXP
A26: updated with 2014 budget,2/27/13
B27: Acc | D27: Year End | E27: 13 Month Average
B28: Num | C28: Description | D28: 2014-12-01 | E28: =D28 -> 2014-12-01
B29: 101 | C29: Util Plant In Svc Classified | D29: 7043235600 | E29: 6887844946
B30: 102 | C30: Electric Plant Purchased or Sold | D30: 0 | E30: 0
B31: 105 | C31: Property Held For Future Use | D31: 35858700 | E31: 35858700
B32: 106 | C32: Util Plant In Svc Not Classif | D32: 171858800 | E32: 172217746.2
B33: 107 | C33: Construction Work In Progress | D33: 486667700 | E33: 381262561.5
B34: 108 | C34: Accumulated Depreciation | D34: -2606081100 | E34: -2550577615
B35: 111 | C35: Accumulated Amortization | D35: -24245700 | E35: -27108607.69
B36: 114 | C36: Acquisition Adjustment | D36: 7465300 | E36: 7465300
B37: 121 | C37: Non-Utility Property | D37: 8424500 | E37: 8375784.615
B38: 122 | C38: Accum Depr Non-Utility Prop | D38: -3524800 | E38: -3368423.077
B39: 123 | C39: Investment In Assoc Company | D39: 0 | E39: 0
B40: 124 | C40: Advance- RTO | D40: 0 | E40: 0
B41: 128 | D41: 0 | E41: 0
B42: 129 | C42: Special Funds (Restricted cash) | D42: 0 | E42: 0
B43: 131 | C43: Cash | D43: 0 | E43: 0
B44: 134 | C44: Other Special Deposits | D44: 185200 | E44: 185200
B45: 135 | C45: Working Fund | D45: 57000 | E45: 57038.46154
B46: 136 | C46: Temporary Investments | D46: 1000000 | E46: 4148384.615
B47: 141 | C47: Notes Receivable | D47: 0 | E47: 0
B48: 142 | C48: Customer Receivables | D48: 120793800 | E48: 132688307.7
B49: 143 | C49: Total Accounts Receivable | D49: 17800000 | E49: 18600000
B50: 144 | C50: Accum Prov Uncollect Accts | D50: -414600 | E50: -412438.4615
B51: 146 | C51: Accts Receivable-Assoc Co & Others | D51: 4665200 | E51: 4665200
B52: 151 | C52: Fuel Stock | D52: 108223000 | E52: 106507615.4
B53: 152 | C53: Fuel Stock Expense | D53: 0 | E53: 0
B54: 153 | D54: 0 | E54: 0
B55: 154 | C55: Materials & Supplies (153, 154) | D55: 65123000 | E55: 65746000
B56: 158 | C56: CAAA Allowances | D56: 0 | E56: 0
B57: 163 | C57: Stores Clearing | D57: 0 | E57: 0
B58: 165 | C58: Prepayments | D58: 5915400 | E58: 9357961.538
B59: 171 | C59: Interest Receivable | D59: 0 | E59: 0
B60: 173 | C60: Unbilled Revenue Rec (17301,17303 GTE) | D60: 34466400 | E60: 38928469.23
B61: 176 | C61: Derivative | D61: 0 | E61: 77538.46154
B62: 181 | C62: Unamortized Debt Expense | D62: 14452500 | E62: 14502800
B63: 182 | C63: Regulatory Assets | D63: 335037500 | E63: 333330938.5
B64: 183 | C64: Preliminary Survey & Investigation | D64: 0 | E64: 0
B65: 184 | C65: Clearing Accounts | D65: 0 | E65: 0
B66: 186 | C66: Deferred Debits | D66: 0 | E66: 0
B67: 188 | C67: Deferred Debits | D67: 0 | E67: 0
B68: 190 | C68: Deferred Income Taxes | D68: 306272100 | E68: 300081107.7
B69: 201 | C69: Common Stock | D69: 119696800 | E69: 119696800
B70: 211 | C70: End Bal Misc Paid In Capital | D70: 1905840200 | E70: 1795070969
B71: 214 | C71: Capital Stock Expense | D71: -700900 | E71: -700900
B72: 216 | C72: Unappropr Retained Earnings | D72: 181756681.3 | E72: 177000540
B73: 219 | C73: OCI - Derivative | D73: -5356900 | E73: -5666923.077
B74: 221 | C74: Bonds Payable | D74: 1819197000 | E74: 1783299554
B75: 225 | C75: Unamortized Bond Premium | D75: 1138400 | E75: 1307069.231
B76: 226 | C76: Unamortized Bond Discount | D76: -2760400 | E76: -2829676.923
B77: 228 | C77: Misc Current Liabilities | D77: 344603400 | E77: 346823830.8
B78: 230 | C78: Asset Retirement Obligation | D78: 8587600 | E78: 7687600
B79: 231 | C79: Notes Payable | D79: 86048000 | E79: 31025000
B80: 232 | C80: Accounts Payable | D80: 130477100 | E80: 127129992.3
B81: 234 | C81: Accts Payable-Assoc Co | D81: 7879900 | E81: 7879900
B82: 235 | C82: Customer Deposits | D82: 131398000 | E82: 129515384.6
B83: 236 | C83: Accrued Taxes | D83: -13587100 | E83: 11273669.23
B84: 237 | C84: Interest Accrued | D84: 16373818.75 | E84: 25279644.13
B85: 238 | C85: Dividends Payable | D85: 0 | E85: 13421642.7
B86: 241 | C86: Tax Collections Payable | D86: 4105000 | E86: 5127769.231
B87: 242 | C87: Current & Accrued Liabilities | D87: 27280200 | E87: 26909969.23
B88: 245 | C88: Derivative | D88: 0 | E88: 71538.46154
B89: 246 | C89: Sales Taxes | D89: 0 | E89: 0
B90: 253 | C90: Other Deferred Credits | D90: 5992600 | E90: 5942369.231
B91: 254 | C91: Regulatory Liabilities | D91: 20242700 | E91: 19063369.23
B92: 255 | C92: Deferred ITC | D92: 9012700 | E92: 9184461.538
B93: 256 | C93: Deferred Credit PHFFU | D93: 0 | E93: -80146.15385
B94: 257 | C94: Unamortized Gain on LTD | D94: 0 | E94: 0
B95: 281 | C95: Accumulated Deferred Taxes | D95: 51073600 | E95: 47874407.69
B96: 282 | C96: Accumulated Deferred Taxes | D96: 1181365400 | E96: 1158495038
B97: 283 | C97: Accumulated Deferred Taxes | D97: 106275900 | E97: 103838700
B98: 299 | C98: NET INCOME FOR PERIOD | D98: 0 | E98: 0
C99: Total
B104: updated 2014 budget 2/27/13 | D104: paste to this column | F104: =E167 -> 1026869629 | G104: 500
F105: =SUM(E174:E197) -> 216245797 | G105: 900
D106: Total | E106: Total | F106: =F104+F105 -> 1243115426
B107: Expr1 | C107: TXT_NM_FERC_PNT
A108: Prod | B108: 500 | C108: OPERATION SUPERVISION & ENGINEERING | D108: 4875567.882 | E108: =D108 -> 4875567.882
A109: Fuel | B109: 501 | C109: FUEL | D109: 349273685.7 | E109: =D109 -> 349273685.7 | F109: =VLOOKUP(G109,$B$108:$D$166,3,FALSE) -> 349273685.7 | G109: 501
A110: Prod | B110: 502 | C110: STEAM EXPENSES | D110: 26863932.18 | E110: 26863932.18 | F110: =VLOOKUP(G110,$B$108:$D$166,3,FALSE) -> 409890672.7 | G110: 547
A111: Prod | B111: 503 | C111: STEAM TRANSFERRED-CREDIT-OPERATION | D111: 0 | E111: 0 | F111: 48409691.7 | G111: 555
A112: Prod | B112: 505 | C112: ELECTRIC EXPENSES | D112: 2953001.365 | E112: 2953001.365 | F112: =SUM(F109:F111) -> 807574050.1
A113: Prod | B113: 506 | C113: MISC STEAM POWER EXPENSES | D113: 10390855.02 | E113: 10390855.02
A114: Prod | B114: 507 | C114: RENTS | D114: 0 | E114: 0
A115: Prod | B115: 509 | C115: ALLOWANCES-OPERATION | D115: 0 | E115: 0 | F115: =F104-F112 -> 219295579.2 | G115: excl fuel & nfruel
A116: Fuel | B116: 510 | C116: MAINTENANCE SUPERVISION & ENGINEERING | D116: 541689.6111 | E116: 541689.6111
A117: Prod | B117: 511 | C117: MAINTENANCE OF STRUCTURES | D117: 5519027.897 | E117: 5519027.897
A118: Prod | B118: 512 | C118: MAINTENANCE OF BOILER PLANT | D118: 44780326.54 | E118: 44780326.54
A119: Prod | B119: 513 | C119: MAINTENANCE OF ELECTRIC PLANT | D119: 5257633.22 | E119: 5257633.22
A120: Prod | B120: 514 | C120: MAINTENANCE OF MISC STEAM PLANT | D120: 2101049.056 | E120: 2101049.056
A121: Prod | B121: 546 | C121: OPERATION SUPERVISION & ENGINEERING-OPERATION | D121: 2688379.109 | E121: 2688379.109
A122: Fuel | B122: 547 | C122: FUEL | D122: 409890672.7 | E122: 409890672.7 | F122: =SUM(E108:E131) -> 961836994.9 | G122: production
A123: Prod | B123: 548 | C123: GENERATION EXPENSES | D123: 17767322.02 | E123: 17767322.02 | F123: =F112 -> 807574050.1
A124: Prod | B124: 549 | C124: MISC OTHER POWER GENERATION EXPENSES | D124: 6388607.489 | E124: 6388607.489 | F124: =F122-F123 -> 154262944.8 | G124: tie number for production
A125: Prod | B125: 550 | C125: RENTS-OPERATION | D125: 0 | E125: 0 | G125: except for nrfuel
A126: Prod | B126: 551 | C126: MAINTENANCE SUPERVISION & ENGINEERING-MAINTENANCE | D126: 1132957.412 | E126: 1132957.412
A127: Prod | B127: 552 | C127: MAINTENANCE OF STRUCTURES | D127: 9055795.186 | E127: 9055795.186
A128: Prod | B128: 553 | C128: MAINT OF GENERATION AND ELECTRIC EQP | D128: 12461657.89 | E128: 12461657.89
A129: Prod | B129: 554 | C129: MAINT OF MISC OTHER POWER GENERATION | D129: 530363.6588 | E129: 530363.6588
A130: Fuel | B130: 555 | C130: PURCHASED POWER | D130: 48409691.7 | E130: 48409691.7
A131: Prod | B131: 556 | C131: SYSTEM CONTROL & LOAD DISPATCHING-OTHER | D131: 954779.2228 | E131: 954779.2228 | F131: =SUM(E133:E147) -> 13748717.37 | G131: transmission
A132: Prod | B132: 557 | C132: OTHER EXPENSES-OTHER | D132: 0 | E132: 0 | G132: tie number for transmission
A133: Transm | B133: 560 | C133: OPERATION SUPERVISION AND ENGINEERNG | D133: 671668.3026 | E133: 671668.3026
A134: Transm | B134: 561 | C134: LOAD DISPATCHING | D134: 2311691.339 | E134: 2311691.339
A135: Transm | B135: 562 | C135: STATION EXPENSES | D135: 1125289.399 | E135: 1125289.399
A136: Transm | B136: 563 | C136: OVERHEAD LINE EXPENSES | D136: 515429.0193 | E136: 515429.0193
A137: Transm | B137: 564 | C137: UNDERGROUNG LINE EXPENSES | D137: 0 | E137: 0
A138: Transm | B138: 565 | C138: TRANSMISSION OF ELECTRICITY BY OTHERS-OPERATION | D138: 0 | E138: 0
A139: Transm | B139: 566 | C139: MISC TRANSMISSION EXPENSES | D139: 1179088.562 | E139: 1179088.562
A140: Transm | B140: 567 | C140: RENTS | D140: 107034.952 | E140: 107034.952
A141: Transm | B141: 568 | C141: MAINTENANCE SUPERVISION & ENGINEERNG | D141: 0 | E141: 0
A142: Transm | B142: 569 | C142: MAINTENANCE OF STRUCTURES | D142: 3597271.808 | E142: 3597271.808
A143: Transm | B143: 570 | C143: MAINTENANCE OF STATION EQUIPMENT | D143: 1459680.743 | E143: 1459680.743
A144: Transm | B144: 571 | C144: MAINTENANCE OF OVERHEAD LINES | D144: 2781563.249 | E144: 2781563.249
A145: Transm | B145: 572 | C145: MAINTENANCE OF UNDERGROUND LINES | D145: 0 | E145: 0
A146: Transm | B146: 573 | C146: MAINT OF MISC TRANSMISSION PLANT | D146: 0 | E146: 0
A147: Transm | B147: 574 | C147: DESCRIPTION UNKNOWN | D147: 0 | E147: 0
A148: Dist | B148: 580 | C148: OPERATION SUPERVISION & ENGINEERING | D148: 438186.7121 | E148: 438186.7121 | F148: =SUM(E148:E166) -> 51283917.04 | G148: distribution
A149: Dist | B149: 581 | C149: LOAD DISPATCHING | D149: 497864.7114 | E149: 497864.7114 | G149: tie number for distribution
A150: Dist | B150: 582 | C150: STATION EXPENSES | D150: 1117639.3 | E150: 1117639.3
A151: Dist | B151: 583 | C151: OVERHEAD LINE EXPENSES | D151: 5532649.613 | E151: 5532649.613
A152: Dist | B152: 584 | C152: UNDERGROUND LINE EXPENSES | D152: 522821.1339 | E152: 522821.1339 | F152: =F124+F131+F148 -> 219295579.2
A153: Dist | B153: 585 | C153: STREET LIGHTING & SIGNAL SYS EXPENSES | D153: 309881.2507 | E153: 309881.2507 | F153: =F115-F152 -> 2.682209015e-07 | G153: VARIANCE CK TOTAL, S/B ZERO
A154: Dist | B154: 586 | C154: METER EXPENSES | D154: 2877268.545 | E154: 2877268.545
A155: Dist | B155: 587 | C155: CUSTOMER INSTALLATION EXPENSES | D155: 584706.4882 | E155: 584706.4882
A156: Dist | B156: 588 | C156: MISC DISTRIBUTION EXPENSES | D156: 10329920.12 | E156: 10329920.12
A157: Dist | B157: 589 | C157: RENTS | D157: 503058.8469 | E157: 503058.8469
A158: Dist | B158: 590 | C158: MAINT SUPERVISION & ENGINEERING | D158: 0 | E158: 0
A159: Dist | B159: 591 | C159: MAINTENANCE OF STRUCTURES | D159: 377161.1659 | E159: 377161.1659
A160: Dist | B160: 592 | C160: MAINTENANCE OF STATION EQUIPMENT | D160: 1232560.287 | E160: 1232560.287
A161: Dist | B161: 593 | C161: MAINTENANCE OF OVERHEAD LINES | D161: 19790369.47 | E161: 19790369.47
A162: Dist | B162: 594 | C162: MAINTENANCE OF UNDERGROUND LINES | D162: 3740886.602 | E162: 3740886.602
A163: Dist | B163: 595 | C163: MAINTENANCE OF LINE TRANSFORMERS | D163: 347459.6868 | E163: 347459.6868
A164: Dist | B164: 596 | C164: MAINT OF STREET LIGHTING & SIGNAL SYS | D164: 2149583.449 | E164: 2149583.449
A165: Dist | B165: 597 | C165: MAINTENANCE OF METERS | D165: 931899.6572 | E165: 931899.6572
A166: Dist | B166: 598 | C166: MAINT OF MISC DISTRIBUTION PLANT | D166: 0 | E166: 0
D167: =SUM(D108:D166) -> 1026869629 | E167: =SUM(E108:E166) -> 1026869629
B172: updated 2014 budget 02/27/13 | D172: paste to this column | E172: TOTAL
B173: Expr1 | C173: TXT_NM_FERC_PNT
B174: 901 | C174: SUPERVISION | D174: 4854384 | E174: =D174 -> 4854384
A175: Cust | B175: 902 | C175: METER READING EXPENSES | D175: 2685207.331 | E175: =D175 -> 2685207.331
A176: Cust | B176: 903 | C176: CUSTOMER RECORDS | D176: 20069673.45 | E176: 20069673.45
A177: Cust | B177: 904 | C177: UNCOLLECTIBLE ACCOUNTS | D177: 3622566 | E177: 3622566
A178: Cust | B178: 908 | C178: CUSTOMER ASSISTANCE EXPENSES | D178: 50921947.22 | E178: 50921947.22
A179: Cust | B179: 909 | C179: INFORMATION & INSTRUCTION ADVERTISE EX | D179: 1076008 | E179: 1076008
A180: Cust | B180: 911 | C180: SUPERVISION-SALES ACTVITIES | D180: 0 | E180: 0
A181: Cust | B181: 912 | C181: DEMONSTRATION & SELLING EXPENSES | D181: 1370776.259 | E181: 1370776.259
A182: Cust | B182: 913 | C182: ADVERTISING EXPENSES | D182: 0 | E182: 0
A183: Cust | B183: 916 | C183: MISCELLANEOUS SALES EXPENSES | D183: 0 | E183: 0 | F183: =SUM(E174:E183) -> 84600562.25 | G183: customer expense
A184: A&G | B184: 920 | C184: ADMIN & GENERAL SALARIES | D184: 20045607.7 | E184: 20045607.7
A185: A&G | B185: 921 | C185: OFFICE SUPPLIES AND EXPENSES | D185: 7139690.264 | E185: 7139690.264
A186: A&G | B186: 922 | C186: ADMIN EXP TRANSFERRED-CREDIT | D186: -4756500 | E186: -4756500
A187: A&G | B187: 923 | C187: OUTSIDE SERVICES EMPLOYED | D187: 2101749 | E187: 2101749
A188: A&G | B188: 924 | C188: PROPERTY INSURANCE | D188: 16535406 | E188: 16535406
A189: A&G | B189: 925 | C189: INJURIES & DAMAGES | D189: 8355468 | E189: 8355468
A190: A&G | B190: 926 | C190: EMPLOYEE PENSION & BENEFITS | D190: 46889892 | E190: 46889892
A191: A&G | B191: 928 | C191: REGULATORY COMMISSION EXPENSES | D191: 3248040 | E191: 3248040
A192: A&G | B192: 929 | C192: FRINGE ALLOCATION | D192: -4781201 | E192: -4781201
A193: A&G | B193: 930 | C193: GENERAL ADVERTISING EXPENSES | D193: 33001096.3 | E193: 33001096.3
A194: A&G | B194: 931 | C194: RENTS | D194: 1179600 | E194: 1179600
A195: A&G | B195: 932 | C195: MAINTENANCE OF GENERAL PLANT | D195: 0 | E195: 0
A196: A&G | B196: 935 | C196: MAINTENANCE OF GENERAL PLANT | D196: 2686386.523 | E196: 2686386.523 | F196: =SUM(E184:E197) -> 131645234.8 | G196: a&g expense
A197: A&G | B197: 999 | C197: DESCRIPTION UNKNOWN | D197: 0 | E197: 0
D198: =SUM(D174:D197) -> 216245797 | E198: =SUM(E174:E197) -> 216245797 | F198: =F196+F183 -> 216245797
F199: =E198-F198 -> 0 | G199: var ck s/b zero
A204: update 2014 budget, 2/8/13 from tab 3_digit_roll_up in components file
B205: Expr1 | C205: TXT_NM_FERC_PNT
A206: =MID(B206,1,3) -> 301 | B206: 301BAL | C206: NONE | D206: 0 | E206: 0
A207: =MID(B207,1,3) -> 302 | B207: 302BAL | C207: NONE | D207: 0 | E207: 0
A208: 303 | B208: 303BAL | C208: MISCELLANEOUS INTANGIBLE PLANT | D208: 61670872.2 | E208: 61670872.2
A209: 305 | B209: 305BAL | C209: NONE | D209: 0 | E209: 0
A210: 310 | B210: 310BAL | C210: LAND AND LAND RIGHTS | D210: 5981510.4 | E210: 5981510.4
A211: 311 | B211: 311BAL | C211: STRUCTURES AND IMPROVEMENTS | D211: 356323190.4 | E211: 356323190.4
A212: 312 | B212: 312BAL | C212: BOILER PLANT EQUIPMENT | D212: 1169950639 | E212: 1169950639
A213: 314 | B213: 314BAL | C213: TURBOGENERATOR UNITS | D213: 273014051.6 | E213: 273014051.6
A214: 315 | B214: 315BAL | C214: ACCESSORY ELECTRIC EQUIPMENT | D214: 232274296.5 | E214: 232274296.5
A215: 316 | B215: 316BAL | C215: MISCELLANEOUS POWER PLANT EQUIPMENT | D215: 35393030.38 | E215: 35393030.38
A216: 340 | B216: 340BAL | C216: LAND AND LAND RIGHTS-OTHER PRODUCTION | D216: 19969455.52 | E216: 19969455.52
A217: 341 | B217: 341BAL | C217: STRUCTURES AND IMPROVEMENTS-OTHER PRODUCTION | D217: 270885127.4 | E217: 270885127.4
A218: 342 | B218: 342BAL | C218: FUEL HOLDERS, PRODUCERS & ACCESSORIES-OTHER PRODUCTION | D218: 557236608.9 | E218: 557236608.9
A219: 343 | B219: 343BAL | C219: PRIME MOVERS-OTHER PRODUCTION | D219: 883329808.6 | E219: 883329808.6
A220: 344 | B220: 344BAL | C220: GENERATORS-OTHER PRODUCTION | D220: 0 | E220: 0
A221: 345 | B221: 345BAL | C221: ACCESSORY ELECTRIC EQUIPMENT-OTHER PRODUCTION | D221: 257865809 | E221: 257865809
... 782 more rows

Sheet GEN_LAND
G2: "LAND"
A6: TAMPA ELECTRIC COMPANY
A7: PRODUCTION LAND INVESTMENT
A8: PROJECTED PERIOD ENDING 12/31/2014
B10: UPDATED 2/4/13
A12: ASSET COST | C12: Production | D12: 13-mth
A13: ACCOUNT | B13: DESCRIPTION | C13: Land YE | D13: Average
A14: 31040 | B14: Big Bend Power Station | C14: 5981510.4 | D14: 5981510.4
A15: 34030 | B15: Bayside Power Station | C15: 1592891.05 | D15: 1592891.05
A16: 34081 | B16: Polk Power Station | C16: 18197341.47 | D16: 18197341.47
A17: 34028 | B17: Phillips - Sebring Station | C17: 179223 | D17: 179223
A18: 340XX | B18: City of Tampa | C18: 0 | D18: 0
A19: 31001 | B19: Miscellaneous | C19: 0 | D19: 0
B20: TOTAL ASSET COST | C20: =SUM(C14:C19) -> 25950965.92 | D20: =SUM(D14:D19) -> 25950965.92 | E20: Ties to ASR
A24: RESERVE | C24: Production | D24: 13-mth
A25: ACCOUNT | B25: DESCRIPTION | C25: Land | D25: Average
A26: 31040 | B26: Big Bend Power Station | C26: 0 | D26: 0
A27: 34030 | B27: Bayside Power Station | C27: =IF(ISNA(VLOOKUP($A27,$B$73:$H$85,7,FALSE)),0,(VLOOKUP($A27,$B$73:$H$85,7,FALSE))) -> 0 | D27: =IF(ISNA(VLOOKUP($A27,$B$73:$H$85,3,FALSE)),0,(VLOOKUP($A27,$B$73:$H$85,3,FALSE))) -> 0
A28: 34081 | B28: Polk Power Station | C28: 0 | D28: 0
A29: 34028 | B29: Phillips - Sebring Station | C29: 0 | D29: 0
A30: 340XX | B30: City of Tampa | C30: 0 | D30: 0
A31: 31001 | B31: Miscellaneous | C31: 0 | D31: 0
B32: TOTAL RESERVE | C32: =SUM(C26:C31) -> 0 | D32: =SUM(D26:D31) -> 0 | E32: Ties to ASR
D35: we use 13 month avg
A36: NET BOOK | C36: Production | D36: 13-mth
A37: ACCOUNT | B37: DESCRIPTION | C37: Land | D37: Average
A38: 31040 | B38: Big Bend Power Station | C38: =C14-C26 -> 5981510.4 | D38: 5981510.4
A39: 34030 | B39: Bayside Power Station | C39: 1592891.05 | D39: 1592891.05
A40: 34081 | B40: Polk Power Station | C40: 18197341.47 | D40: 18197341.47
A41: 34028 | B41: Phillips - Sebring Station | C41: 179223 | D41: 179223
A42: 340XX | B42: City of Tampa | C42: 0 | D42: 0
A43: 31001 | B43: Miscellaneous | C43: 0 | D43: 0
B44: TOTAL NBV | C44: =SUM(C38:C43) -> 25950965.92 | D44: =SUM(D38:D43) -> 25950965.92
A46: 2014 Projected Steam Prod | B46: MFR | C46: 5981510 | D46: 5981510
A47: 2014 Projected Other Prod | B47: MFR | C47: 19969456 | D47: 19969456
C48: =SUM(C46:C47) -> 25950966 | D48: =SUM(D46:D47) -> 25950966
A50: this variance is based on 2014 13 mo avg. (S/B ZERO) | D50: =D48-D44 -> 0.07999999821

Sheet ECRC_ADJ_GEN
K1: "ECRC"
A6: updated 2014 budget 02/6/13
A10: Plant & Reserve TOTAL COMPANY ECRC | E10: Depreciation Expense
B11: 13 mo | C11: 13 mo | E11: 12 mo
A12: Table for COS | B12: PIS | C12: Accum_Rsrv | E12: Depre_Exp
A13: ENERGY
A14: BB1 | B14: 151419677.4 | C14: 41729012.55 | E14: 5859870
A15: BB2 | B15: 158698078.4 | C15: 43557597.55 | E15: 5749242
A16: BB3 | B16: 121678940.4 | C16: 26514928.55 | E16: 4087320
A17: BB4 | B17: 92320198.4 | C17: 20146692.55 | E17: 2987568
A18: Polk | B18: 1861514.4 | C18: 590716.8 | E18: 61740
A19: DEMAND
A20: BB1 | B20: 497578 | C20: 214732 | E20: 16920
A21: BB2 | B21: 818401 | C21: 353194 | E21: 27828
A22: Phillips | B22: 0 | C22: 0 | E22: 0
B23: 527294388 | C23: 133106874 | E23: 18790488
A25: ACCT TOTALS | B25: 527294388 | C25: 133106874 | E25: 18790488
E26: 0

Sheet LOAD_RESEARCH
B2: FACTORS FROM LOAD RESEARCH | O2: "LOADSTAR"
B3: =PERIOD -> FOR THE FORECAST PERIOD ENDING 12/31/14
B4: "LOADSTAR_PRESENT"
B5: EXTRACT FROM LOAD RESEARCH FILE: | D5: TOTAL COMPANY | E5: REQ | F5: FL JURIS | H5: FL JURIS | I5: RS | J5: GS | K5: GSD | L5: IS | M5: LS
A6: load research | B6: 101 | C6: 12 Coincident Peak (output to line) | D6: 3411287.418 | E6: 0 | F6: 3411287.418 | H6: 3411287.418 | I6: 1910087.219 | J6: 201364.8306 | K6: 1234660.772 | L6: 61861.30669 | M6: 3313.290389
A7: load research | B7: 105 | C7: Distr. Primary - NCP | D7: 4134944.802 | E7: 0 | F7: 4134944.802 | H7: 4134944.802 | I7: 2447348.966 | J7: 234490.5186 | K7: 1372103.108 | L7: 22347.7471 | M7: 58654.46239
A8: load research | B8: 106 | C8: Customer Max Demands @ secondary | D8: 6726008.674 | E8: 0 | F8: 6726008.674 | H8: 6726008.674 | I8: 4718090.494 | J8: 470263.2187 | K8: 1485053.254 | L8: 0 | M8: 52601.70657
A9: load research | B9: =IF(proforma_version="off",B30,IF(AND(proforma_version="on",version="Present"),B33,IF(AND(proforma_version="on",version="Proposed"),B34))) -> 118 | C9: 12 CP - Transmission (Incl IS) | D9: =E9+F9 -> 3801333.333 | E9: =307000*1+58000*0 -> 307000 | F9: =IF(proforma_version="off",F30,IF(AND(proforma_version="on",version="Present"),F33,IF(AND(proforma_version="on",version="Proposed"),F34))) -> 3494333.333 | H9: =IF(proforma_version="off",H30,IF(AND(proforma_version="on",version="Present"),H33,IF(AND(proforma_version="on",version="Proposed"),H34))) -> 3494333.333 | I9: 1936398.412 | J9: 212780.5438 | K9: 1251468.83 | L9: 90372.25712 | M9: 3313.290389
A10: load research | B10: 122 | C10: Weighted 12 CP & 1/13th AD | D10: 1 | E10: 0 | F10: 1 | H10: 1 | I10: 0.5475005584 | J10: 0.06051577264 | K10: 0.3627865855 | L10: 0.02739360516 | M10: 0.001803478254
A11: load research | B11: 124 | C11: Weighted 12 CP & 25% AD | D11: 1 | E11: 0 | F11: 1 | H11: 1 | I11: 0.532530561 | J11: 0.05966694405 | K11: 0.3732360648 | L11: 0.03083855229 | M11: 0.003727877813
A12: load research | B12: 125 | C12: Weighted 12 CP & 50% AD | D12: 1 | E12: 0 | F12: 1 | H12: 1 | I12: 0.5109072314 | J12: 0.05844085831 | K12: 0.3883297572 | L12: 0.03581458705 | M12: 0.006507566066
A13: load research | B13: 201 | C13: MWH at Generation | D13: =F13 -> 19342060.89 | E13: 0 | F13: =H13 -> 19342060.89 | H13: =SUM(I13:M13) -> 19342060.89 | I13: 9045529.755 | J13: 1082937.846 | K13: 8094971 | L13: 885222.4846 | M13: 233399.8087
A14: load research | B14: 203 | C14: MWH at Meter | D14: 18369718.06 | E14: 0 | F14: 18369718.06 | H14: 18369718.06 | I14: 8563002.343 | J14: 1025183.848 | K14: 7691465.234 | L14: 869117.373 | M14: 220949.2603
A15: load research | B15: 204 | C15: MWH at Generation (No Resale) | D15: =F15 -> 19342060.89 | E15: 0 | F15: =H15 -> 19342060.89 | H15: =SUM(I15:M15) -> 19342060.89 | I15: 9045529.755 | J15: 1082937.846 | K15: 8094971 | L15: 885222.4846 | M15: 233399.8087
B18: 400 Allocators from Billing Determinant file: Retail Only
A19: external file | B19: 401 | C19: Prod. & Transm. Power Supply Factor (Mwh/kw) | H19: 31738468.2 | I19: 8563002.343 | J19: 1025183.848 | K19: 19819299.29 | L19: 2110033.456 | M19: 220949.2603
A20: external file | B20: 402 | C20: Primary Billing Determinant (Mwh/kw) | H20: 30267161.42 | I20: 8563002.343 | J20: 1025183.848 | K20: 19860200.61 | L20: 597825.36 | M20: 220949.2603
A21: external file | B21: 403 | C21: Secondary Billing Determinant (Mwh/kw) | H21: 27303904.44 | I21: 8563002.343 | J21: 1025183.848 | K21: 17494768.99 | L21: 0 | M21: 220949.2603
A22: load research | B22: 404 | C22: Production Energy - MWh | H22: 18341914.62 | I22: 8563002.343 | J22: 1025183.848 | K22: 7678642.446 | L22: 854136.7212 | M22: 220949.2603
A23: load research | B23: 405 | C23: Distribution Primary - Mwh | H23: 17716602.21 | I23: 8563002.343 | J23: 1025183.848 | K23: 7669698.888 | L23: 237767.8745 | M23: 220949.2603
A24: load research | B24: 406 | C24: Distribution Secondary - Mwh | H24: 16378078.91 | I24: 8563002.343 | J24: 1025183.848 | K24: 6568943.46 | L24: 0 | M24: 220949.2603
C26: Factor 405 is built internally
A28: moved here to work with proforma allocator
B29: Transmission Original Allocator
A30: load research | B30: 117 | C30: 12 CP - Transmission (Incl IS) | D30: 3903500 | E30: 409166.6667 | F30: 3494333.333 | H30: 3494333.333 | I30: 1936398.412 | J30: 212780.5438 | K30: 1251468.83 | L30: 90372.25712 | M30: 3313.290389
B32: Transmission Proforma Load Allocators*
A33: load research | B33: 118 | C33: Proforma - 12 CP - Transmission (Present Structure) | D33: 3552333.333 | E33: 58000 | F33: 3494333.333 | H33: 3494333.333 | I33: 1936398.412 | J33: 212780.5438 | K33: 1251468.83 | L33: 90372.25712 | M33: 3313.290389
A34: load research | B34: 119 | C34: Proforma - 12 CP - Transmission (Proposed Structure) | D34: 3552333.333 | E34: 58000 | F34: 3494333.333 | H34: 3494333.333 | I34: 1936398.412 | J34: 212780.5438 | K34: 1341841.087 | L34: 0 | M34: 3313.290389
B36: *Proforma for 2014 removes the Calpine (Jan - May) and APP (Jan - Dec) | E36: =E34/D33 -> 0.01632729661
B40: DEMAND
C41: FACTORS 401 & 402 & 403, CUSTOMER CLASS GSD/GSLD & IS
B45: updated with 2014 budget data, 2/14/13
B46: This data is in loadstar file, but only need in rate case, it provides MFR data, MFR E-9
B48: Schedule E-9 | D48: at output to line | E48: at output to line | F48: at output to line | G48: at output to line
D49: (5) | E49: (6) | F49: (7) | G49: (8) | H49: (9)
D50: Class | E50: CP | F50: CP | G50: Average | H50: Average
B51: Line | D51: NCP | E51: Winter | F51: Summer | G51: 12 CP | H51: Demand
B52: No. | C52: Rate Class | D52: KW | E52: KW | F52: KW | G52: KW | H52: KW
B53: 1 | C53: RS | D53: 2589772.421 | E53: 2589605.535 | F53: 2195963.906 | G53: 1936398.412 | H53: 1032594.721
B55: 3 | C55: GS & TS | D55: 247098.1602 | E55: 211501.7659 | F55: 238943.2521 | G55: 212780.5438 | H55: 123623.0418
B57: 5 | C57: GSD | D57: 1446411.373 | E57: 1091257.122 | F57: 1417851.495 | G57: 1251468.83 | H57: 924086.0081
B59: 7 | C59: IS & SBI | D59: 147899.1299 | E59: 94380.79255 | F59: 75241.34702 | G59: 90372.25712 | H59: 101052.795
B61: 9 | C61: LS | D61: 61104.07851 | E61: 12254.78476 | F61: 0 | G61: 3313.290389 | H61: 26643.81378
B63: 11 | C63: WHOLESALE | D63: 0 | E63: 0 | F63: 0 | G63: 0 | H63: 0

Sheet PROPOSED_LOAD RESEARCH
A1: ***DO NOT MOVE ANY OF THE LINES FROM ROW 6 TO ROW 23, THEY MUST BE EXACTLY SAME CELL LOCATION
A2: AS THE FACTORS IN THE "LOAD RESEARCH" TAB | O2: "LOADSTAR"
A3: PROPOSED FACTORS FROM LOADSTAR (THESE FACTORS BASED ON ORIGINAL FACTORS BUT HAVE COMBINED THE IS & GSD CLASS
A4: =PERIOD -> FOR THE FORECAST PERIOD ENDING 12/31/14 | K4: gsd & is are combined
A5: "LOADSTAR_PROPOSED" | B5: EXTRACT FROM LOAD RESEARCH FILE: | D5: TOTAL COMPANY | E5: REQ | F5: FL JURIS | H5: FL JURIS | I5: RS | J5: GS | K5: GSD | L5: IS | M5: LS
A6: load research | B6: 101 | C6: 12 Coincident Peak (output to line) | D6: =LOAD_RESEARCH!D6 -> 3411287.418 | E6: =LOAD_RESEARCH!E6 -> 0 | F6: =LOAD_RESEARCH!F6 -> 3411287.418 | H6: =LOAD_RESEARCH!H6 -> 3411287.418 | I6: =LOAD_RESEARCH!I6 -> 1910087.219 | J6: =LOAD_RESEARCH!J6 -> 201364.8306 | K6: =LOAD_RESEARCH!K6+LOAD_RESEARCH!L6 -> 1296522.079 | L6: 0 | M6: =LOAD_RESEARCH!M6 -> 3313.290389
A7: load research | B7: 105 | C7: Distr. Primary - NCP | D7: =LOAD_RESEARCH!D7 -> 4134944.802 | E7: =LOAD_RESEARCH!E7 -> 0 | F7: =LOAD_RESEARCH!F7 -> 4134944.802 | H7: =LOAD_RESEARCH!H7 -> 4134944.802 | I7: =LOAD_RESEARCH!I7 -> 2447348.966 | J7: =LOAD_RESEARCH!J7 -> 234490.5186 | K7: =LOAD_RESEARCH!K7+LOAD_RESEARCH!L7 -> 1394450.855 | L7: 0 | M7: =LOAD_RESEARCH!M7 -> 58654.46239
A8: load research | B8: 106 | C8: Customer Max Demands @ secondary | D8: =LOAD_RESEARCH!D8 -> 6726008.674 | E8: =LOAD_RESEARCH!E8 -> 0 | F8: =LOAD_RESEARCH!F8 -> 6726008.674 | H8: =LOAD_RESEARCH!H8 -> 6726008.674 | I8: =LOAD_RESEARCH!I8 -> 4718090.494 | J8: =LOAD_RESEARCH!J8 -> 470263.2187 | K8: =LOAD_RESEARCH!K8+LOAD_RESEARCH!L8 -> 1485053.254 | L8: 0 | M8: =LOAD_RESEARCH!M8 -> 52601.70657
A9: load research | B9: 117 | C9: 12 CP - Transmission (Incl IS) | D9: =LOAD_RESEARCH!D9 -> 3801333.333 | E9: =LOAD_RESEARCH!E9 -> 307000 | F9: =LOAD_RESEARCH!F9 -> 3494333.333 | H9: =LOAD_RESEARCH!H9 -> 3494333.333 | I9: =LOAD_RESEARCH!I9 -> 1936398.412 | J9: =LOAD_RESEARCH!J9 -> 212780.5438 | K9: =LOAD_RESEARCH!K9+LOAD_RESEARCH!L9 -> 1341841.087 | L9: 0 | M9: =LOAD_RESEARCH!M9 -> 3313.290389
A10: load research | B10: 122 | C10: Weighted 12 CP & 1/13th AD | D10: =LOAD_RESEARCH!D10 -> 1 | E10: =LOAD_RESEARCH!E10 -> 0 | F10: =LOAD_RESEARCH!F10 -> 1 | H10: =LOAD_RESEARCH!H10 -> 1 | I10: =LOAD_RESEARCH!I10 -> 0.5475005584 | J10: =LOAD_RESEARCH!J10 -> 0.06051577264 | K10: =LOAD_RESEARCH!K10+LOAD_RESEARCH!L10 -> 0.3901801907 | L10: 0 | M10: =LOAD_RESEARCH!M10 -> 0.001803478254
A11: load research | B11: 126 | C11: Proposed - Weighted 12CP & 25% | D11: =LOAD_RESEARCH!D11 -> 1 | E11: =LOAD_RESEARCH!E11 -> 0 | F11: =LOAD_RESEARCH!F11 -> 1 | H11: =LOAD_RESEARCH!H11 -> 1 | I11: =LOAD_RESEARCH!I11 -> 0.532530561 | J11: =LOAD_RESEARCH!J11 -> 0.05966694405 | K11: =LOAD_RESEARCH!K11+LOAD_RESEARCH!L11 -> 0.4040746171 | L11: 0 | M11: =LOAD_RESEARCH!M11 -> 0.003727877813
A12: load research | B12: 128 | C12: Proposed - Weighted 12CP & 50% | D12: =LOAD_RESEARCH!D12 -> 1 | E12: =LOAD_RESEARCH!E12 -> 0 | F12: =LOAD_RESEARCH!F12 -> 1 | H12: =LOAD_RESEARCH!H12 -> 1 | I12: =LOAD_RESEARCH!I12 -> 0.5109072314 | J12: =LOAD_RESEARCH!J12 -> 0.05844085831 | K12: =LOAD_RESEARCH!K12+LOAD_RESEARCH!L12 -> 0.4241443442 | L12: 0 | M12: =LOAD_RESEARCH!M12 -> 0.006507566066
A13: load research | B13: 201 | C13: MWH at Generation | D13: =LOAD_RESEARCH!D13 -> 19342060.89 | E13: =LOAD_RESEARCH!E13 -> 0 | F13: =LOAD_RESEARCH!F13 -> 19342060.89 | H13: =LOAD_RESEARCH!H13 -> 19342060.89 | I13: =LOAD_RESEARCH!I13 -> 9045529.755 | J13: =LOAD_RESEARCH!J13 -> 1082937.846 | K13: =LOAD_RESEARCH!K13+LOAD_RESEARCH!L13 -> 8980193.485 | L13: 0 | M13: =LOAD_RESEARCH!M13 -> 233399.8087
A14: load research | B14: 203 | C14: MWH at Meter | D14: =LOAD_RESEARCH!D14 -> 18369718.06 | E14: =LOAD_RESEARCH!E14 -> 0 | F14: =LOAD_RESEARCH!F14 -> 18369718.06 | H14: =LOAD_RESEARCH!H14 -> 18369718.06 | I14: =LOAD_RESEARCH!I14 -> 8563002.343 | J14: =LOAD_RESEARCH!J14 -> 1025183.848 | K14: =LOAD_RESEARCH!K14+LOAD_RESEARCH!L14 -> 8560582.607 | L14: 0 | M14: =LOAD_RESEARCH!M14 -> 220949.2603
A15: load research | B15: 204 | C15: MWH at Generation (No Resale) | D15: =LOAD_RESEARCH!D15 -> 19342060.89 | E15: =LOAD_RESEARCH!E15 -> 0 | F15: =LOAD_RESEARCH!F15 -> 19342060.89 | H15: =LOAD_RESEARCH!H15 -> 19342060.89 | I15: =LOAD_RESEARCH!I15 -> 9045529.755 | J15: =LOAD_RESEARCH!J15 -> 1082937.846 | K15: =LOAD_RESEARCH!K15+LOAD_RESEARCH!L15 -> 8980193.485 | L15: 0 | M15: =LOAD_RESEARCH!M15 -> 233399.8087
B18: 400 Allocators from Billing Determinant file: Retail Only
A19: external file | B19: 401 | C19: Prod. & Transm. Power Supply Factor (Mwh/kw) | H19: =LOAD_RESEARCH!H19 -> 31738468.2 | I19: =LOAD_RESEARCH!I19 -> 8563002.343 | J19: =LOAD_RESEARCH!J19 -> 1025183.848 | K19: =LOAD_RESEARCH!K19+LOAD_RESEARCH!L19 -> 21929332.75 | L19: 0 | M19: =LOAD_RESEARCH!M19 -> 220949.2603
A20: external file | B20: 402 | C20: Primary Billing Determinant (Mwh/kw) | H20: =LOAD_RESEARCH!H20 -> 30267161.42 | I20: =LOAD_RESEARCH!I20 -> 8563002.343 | J20: =LOAD_RESEARCH!J20 -> 1025183.848 | K20: =LOAD_RESEARCH!K20+LOAD_RESEARCH!L20 -> 20458025.97 | L20: 0 | M20: =LOAD_RESEARCH!M20 -> 220949.2603
A21: external file | B21: 403 | C21: Secondary Billing Determinant (Mwh/kw) | H21: =LOAD_RESEARCH!H21 -> 27303904.44 | I21: =LOAD_RESEARCH!I21 -> 8563002.343 | J21: =LOAD_RESEARCH!J21 -> 1025183.848 | K21: =LOAD_RESEARCH!K21+LOAD_RESEARCH!L21 -> 17494768.99 | L21: 0 | M21: =LOAD_RESEARCH!M21 -> 220949.2603
A22: load research | B22: 404 | C22: Production Energy - MWh | H22: =LOAD_RESEARCH!H22 -> 18341914.62 | I22: =LOAD_RESEARCH!I22 -> 8563002.343 | J22: =LOAD_RESEARCH!J22 -> 1025183.848 | K22: =LOAD_RESEARCH!K22+LOAD_RESEARCH!L22 -> 8532779.167 | L22: 0 | M22: =LOAD_RESEARCH!M22 -> 220949.2603
A23: load research | B23: 405 | C23: Distribution Primary - Mwh | H23: =LOAD_RESEARCH!H23 -> 17716602.21 | I23: =LOAD_RESEARCH!I23 -> 8563002.343 | J23: =LOAD_RESEARCH!J23 -> 1025183.848 | K23: =LOAD_RESEARCH!K23+LOAD_RESEARCH!L23 -> 7907466.763 | L23: 0 | M23: =LOAD_RESEARCH!M23 -> 220949.2603
A24: load research | B24: 406 | C24: Distribution Secondary - Mwh | H24: =LOAD_RESEARCH!H24 -> 16378078.91 | I24: =LOAD_RESEARCH!I24 -> 8563002.343 | J24: =LOAD_RESEARCH!J24 -> 1025183.848 | K24: =LOAD_RESEARCH!K24+LOAD_RESEARCH!L24 -> 6568943.46 | L24: 0 | M24: =LOAD_RESEARCH!M24 -> 220949.2603
A29: DEMAND
B30: FACTORS 401 & 402 & 403, CUSTOMER CLASS GSD/GSLD & IS

Sheet JLH_SR_Sch2_PG1
A1: paste value sch 2_1 from surveillance report into cell a3 below
A2: updated 2014 budget, 3/5/13
I4: TAMPA ELECTRIC COMPANY | S4: SCHEDULE 2
I5: AVERAGE RATE OF RETURN | S5: PAGE 1 OF 3
G6: RATE BASE
G7: Forecasted 2014 Year End
C10: (1) | E10: (2) | G10: (3) | I10: (4) | K10: (5) | M10: (6) | O10: (7) | Q10: (8) | S10: (9)
E11: Accumulated | G11: Net | K11: Construction
C12: Plant In | E12: Depreciation & | G12: Plant In | I12: Property Held | K12: Work In | M12: Nuclear Fuel | O12: Net | Q12: Working | S12: Total
C13: Service | E13: Amortization | G13: Service | I13: For Future Use | K13: Progress | M13: (Net) | O13: Utility Plant | Q13: Capital | S13: Rate Base
C14: - | E14: - | G14: - | I14: - | K14: - | M14: - | O14: - | Q14: - | S14: -
A15: System Per Books | B15: $ | C15: 7067527992 | D15: $ | E15: -2582064585 | F15: $ | G15: 4485463407 | H15: $ | I15: 35858700 | J15: $ | K15: 381262562 | L15: $ | M15: 0 | N15: $ | O15: 4902584669 | P15: $ | Q15: 71396182.53 | R15: $ | S15: 4973980852
C16: - | E16: - | G16: - | I16: - | K16: - | M16: - | O16: - | Q16: - | S16: -
A18: Jurisdictional Per Books | C18: 7067527992 | E18: -2582064585 | G18: 4485463407 | I18: 35858700 | K18: 381262562 | M18: 0 | O18: 4902584669 | Q18: 71396183 | S18: 4973980852
C19: = | E19: = | G19: = | I19: = | K19: = | M19: = | O19: = | Q19: = | S19: =
A21: FPSC Adjustments
A22: -
A23: Fuel and ECCR | C23: -14690000 | E23: 3182842 | G23: -11507158 | O23: -11507158 | Q23: -7581446 | S23: -19088604
A24: Other | Q24: 4412365 | S24: 4412365
A25: ECRC | C25: -527294388 | E25: 133106874 | G25: -394187514 | O25: -394187514 | Q25: -704777 | S25: -394892291
A26: Fuel Inventory | Q26: -6469736 | S26: -6469736
A27: CWIP | K27: -381262562 | O27: -381262562 | S27: -381262562
A28: CWIP in Rate Base | K28: 174528708 | O28: 174528708 | S28: 174528708
A29: Job Order Receivables | Q29: 0 | S29: 0
A30: Acquisition Book Values | C30: -1635114 | G30: -1635114 | O30: -1635114 | S30: -1635114
A31: Acquisition Accumulated Amortizations | E31: 1461384 | G31: 1461384 | O31: 1461384 | S31: 1461384
A32: Acquisition Adjustments - Net | C32: -7465269 | E32: 4378371 | G32: -3086898 | O32: -3086898 | S32: -3086898
C34: - | E34: - | G34: - | I34: - | K34: - | M34: - | O34: - | Q34: - | S34: -
A35: Total FPSC Adjustments | C35: -551084771 | E35: 142129471 | G35: -408955300 | I35: 0 | K35: -206733854 | M35: 0 | O35: -615689154 | Q35: -10343594 | S35: -626032748
C36: - | E36: - | G36: - | I36: - | K36: - | M36: - | O36: - | Q36: - | S36: -
A37: FPSC Adjusted | C37: 6516443221 | E37: -2439935114 | G37: 4076508107 | I37: 35858700 | K37: 174528708 | M37: 0 | O37: 4286895515 | Q37: 61052589 | S37: 4347948104
C38: - | E38: - | G38: - | I38: - | K38: - | M38: - | O38: - | Q38: - | S38: -
C44: - | E44: - | G44: - | I44: - | K44: - | M44: - | O44: - | Q44: - | S44: -
C45: 0 | E45: 0 | G45: 0 | I45: 0 | K45: 0 | M45: 0 | O45: 0 | Q45: 0 | S45: 0
C46: - | E46: - | G46: - | I46: - | K46: - | M46: - | O46: - | Q46: - | S46: -
C47: 6652255765 | D47: $ | E47: -2481736844 | F47: $ | G47: 4170518921 | H47: $ | I47: 35858700 | J47: $ | K47: 197512229 | L47: $ | M47: 0 | N47: $ | O47: 4403889850 | P47: $ | Q47: 61052589 | R47: $ | S47: 4464942439
C48: = | E48: = | G48: = | I48: = | K48: = | M48: = | O48: = | Q48: = | S48: =
A54: The calculations on this schedule were made in direct response to and according to methodology prescribed in Order No. PSC-93-0165-FOF-EI, Order No. PSC-09-0283-FOF-EI, and decisions made at the
A55: July 14, 2009, agenda conference under Docket No. 080317-EI by the Florida Public Service Commission and for that reason only. Tampa Electric Company takes the position that certain portions of these
A56: prescribed calculations may not present fairly the company's current financial status and that they should not be used for that purpose.

Sheet JLH_SR_SCH2_PG2
A1: paste value sch 2_2 (income statement) from TC 100% S. RPT into cell a3
A2: updated with 2014 budget 03/5/13
I3: TAMPA ELECTRIC COMPANY | W3: SCHEDULE 2
I4: AVERAGE RATE OF RETURN | W4: PAGE 2 OF 3
I5: INCOME STATEMENT
I6: Forecasted 2014 Year End
C9: (1) | E9: (2) | G9: (3) | I9: (4) | K9: (5) | M9: (6) | O9: (7) | Q9: (8) | S9: (9) | U9: (10) | W9: (11)
E10: O & M | O10: Deferred | Q10: Investment Tax | U10: Total | W10: Net
C11: Operating | E11: Fuel & | G11: O & M | I11: Depreciation & | K11: Taxes Other | M11: Income Taxes | O11: Income Taxes | Q11: Credit | S11: Gain/Loss | U11: Operating | W11: Operating
C12: Revenues | E12: Net Interchange | G12: Other | I12: Amortization | K12: Than Income | M12: Current | O12: (Net) | Q12: (Net) | S12: On Disposition | U12: Expenses | W12: Income
C13: - | E13: - | G13: - | I13: - | K13: - | M13: - | O13: - | Q13: - | S13: - | U13: - | W13: -
A14: System Per Books | B14: $ | C14: 1973504300 | D14: $ | E14: 790966358.4 | F14: $ | G14: 434323741.6 | H14: $ | I14: 256150500 | J14: $ | K14: 150005100 | L14: $ | M14: 55030200 | N14: $ | O14: 41531400 | P14: $ | Q14: -343200 | R14: $ | S14: -132000 | T14: $ | U14: 1727532100 | V14: $ | W14: 245972200
C16: - | E16: - | G16: - | I16: - | K16: - | M16: - | O16: - | Q16: - | S16: - | U16: - | W16: -
A17: Jurisdictional Per Books | C17: 1973504300 | E17: 790966358.4 | G17: 434323742 | I17: 256150500 | K17: 150005100 | M17: 55030200 | O17: 41531400 | Q17: -343200 | S17: -132000 | U17: 1727532100 | W17: 245972199.6
C18: = | E18: = | G18: = | I18: = | K18: = | M18: = | O18: = | Q18: = | S18: = | U18: = | W18: =
A19: FPSC Adjustments
A20: -
A21: Recoverable Fuel | C21: -785917902 | E21: -781644664 | G21: -769000 | I21: -2938008 | K21: -566230 | M21: -5012.82125 | U21: -785922914.8 | W21: 5012.82125
A22: Recoverable Fuel - ROI | C22: -1313036 | K22: -935 | M22: -506143 | U22: -507078 | W22: -805958
A23: GPIF Revenues/Penalties | C23: -1500990 | K23: -990 | M23: -578625 | U23: -579615 | W23: -921375
A24: Recoverable ECCR | C24: -50658799 | G24: -50619840 | K24: -38959 | M24: 2912.02675 | U24: -50655886.97 | W24: -2912.02675
A25: Recoverable ECCR - ROI | C25: -399121 | K25: -287 | M25: -153850 | U25: -154137 | W25: -244984
A26: Recoverable ECRC | C26: -45721740 | E26: -20159 | G26: -26873126 | I26: -18790488 | K26: -37969 | M26: -1003.493 | U26: -45722745.49 | W26: 1005.493
A27: Recoverable ECRC - ROI | C27: -41996999 | K27: -30178 | M27: -16188701 | U27: -16218879 | W27: -25778120
A28: Industry Association Dues | G28: -53530.88 | M28: 20650 | U28: -32880.88 | W28: 32880.88
A29: Solaris and Waterfall | G29: -5963 | M29: 2300 | U29: -3663 | W29: 3663
A30: Stockholder Relations | G30: -219045.56 | M30: 84497 | U30: -134548.56 | W30: 134548.56
A31: Civic Club Meals | G31: 0 | M31: 0 | U31: 0 | W31: 0
A32: Franchise Fee Revenue and Expense | C32: -36266100 | K32: -36301000 | M32: 13463 | U32: -36287537 | W32: 21437
A33: Gross Receipts Tax | C33: -46991900 | K33: -47046000 | M33: 20869 | U33: -47025131 | W33: 33231
A34: Income Tax True-up | M34: 2292255 | U34: 2292255 | W34: -2292255
A35: Parent Debt Adjustment | M35: 0 | U35: 0 | W35: 0
A36: Opt Prov Revenue and Third Party Purchase | C36: 0 | E36: 0 | M36: 0 | U36: 0 | W36: 0
A37: Job Order Revenues | C37: 0 | M37: 0 | U37: 0 | W37: 0
A38: Economic Development | G38: -10537 | M38: 4065 | U38: -6472 | W38: 6472
A39: Interest on Tax Issues | G39: 0 | M39: 0 | U39: 0 | W39: 0
A40: Acquisition Amortizations | I40: -244597 | K40: -97133.52 | M40: 131823 | U40: -209907.52 | W40: 209907.52
A41: Incentive Compensation Plan | G41: -947000 | M41: 365305 | U41: -581695 | W41: 581695
C43: - | E43: - | G43: - | I43: - | K43: - | M43: - | O43: - | Q43: - | S43: - | U43: - | W43: -
A44: Total FPSC Adjustments | C44: -1010766587 | E44: -781664823 | G44: -79498042.44 | I44: -21973093 | K44: -84119681.52 | M44: -14495196.29 | O44: 0 | Q44: 0 | S44: 0 | U44: -981750836.2 | W44: -29015750.75
C45: - | E45: - | G45: - | I45: - | K45: - | M45: - | O45: - | Q45: - | S45: - | U45: - | W45: -
A46: FPSC Adjusted | C46: 962737713 | E46: 9301535.416 | G46: 354825699.6 | I46: 234177407 | K46: 65885418.48 | M46: 40535003.71 | O46: 41531400 | Q46: -343200 | S46: -132000 | U46: 745781264.2 | W46: 216956448.8
C48: - | E48: - | G48: - | I48: - | K48: - | M48: - | O48: - | Q48: - | S48: - | U48: - | W48: -
C52: 0 | M52: 0 | U52: 0 | W52: 0
C53: - | E53: - | G53: - | I53: - | K53: - | M53: - | O53: - | Q53: - | S53: - | U53: - | W53: -
C54: 0 | E54: 0 | G54: 0 | I54: 0 | K54: 0 | M54: 0 | O54: 0 | Q54: 0 | S54: 0 | U54: 0 | W54: 0
C55: - | E55: - | G55: - | I55: - | K55: - | M55: - | O55: - | Q55: - | S55: - | U55: - | W55: -
C56: 962737713 | D56: $ | E56: 9301535.416 | F56: $ | G56: 354825699.6 | H56: $ | I56: 234177407 | J56: $ | K56: 65885418.48 | L56: $ | M56: 40535003.71 | N56: $ | O56: 41531400 | P56: $ | Q56: -343200 | R56: $ | S56: -132000 | T56: $ | U56: 745781264.2 | V56: $ | W56: 216956448.8

Sheet JLH_SR_SCH2_PG2_SUPPLEMENT
A1: paste value sch 2_supplement (income statement) from (AS FILED) surveillance report into cell A2
A2: updated with the 2014 budget, 3/5/13 | W2: SCHEDULE 2 SUPPLEMENT
W3: SCHEDULE 2 SUPPLEMENT
A4: SCHEDULE 2 SUPPLEMENT | W4: (11)
A5: AVERAGE INCOME STATEMENT | C5: (1) | E5: (2) | G5: (3) | I5: (4) | K5: (5) | M5: (6) | O5: (7) | Q5: (8) | S5: (9) | U5: (10) | W5: Net
A6: WORKSHEET | E6: O & M | O6: Deferred | Q6: Investment Tax | U6: Total | W6: Operating
C7: Operating | E7: Fuel & | G7: O & M | I7: Depreciation & | K7: Taxes Other | M7: Income Taxes | O7: Income Taxes | Q7: Credit | S7: Gain/Loss | U7: Operating | W7: Income
C8: Revenues | E8: Net Interchange | G8: Other | I8: Amortization | K8: Than Income | M8: Current | O8: (Net) | Q8: (Net) | S8: On Disposition | U8: Expenses
C9: - | E9: - | G9: - | I9: - | K9: - | M9: - | O9: - | Q9: - | S9: - | U9: - | W9: -
A10: System Per Books | C10: 1973504300 | E10: 790966358.4 | G10: 434323741.6 | I10: 256150500 | K10: 150005100 | M10: 55030200 | O10: 41531400 | Q10: -343200 | S10: -132000 | U10: 1727532100 | W10: 245972200
C11: - | E11: - | G11: - | I11: - | K11: - | M11: - | O11: - | Q11: - | S11: - | U11: - | W11: -
A12: Franchise Fee Revenue and Expense | C12: -36266100 | K12: -36301000 | M12: 13463 | U12: -36287537 | W12: 21437
A13: Gross Receipts Tax | C13: -46991900 | K13: -47046000 | M13: 20869 | U13: -47025131 | W13: 33231
A14: Opt Prov Rev and Third Party Purch | C14: 0 | E14: 0 | M14: 0 | U14: 0 | W14: 0
A15: Job Order Revenues | C15: 0 | M15: 0 | U15: 0 | W15: 0
C16: - | E16: - | G16: - | I16: - | K16: - | M16: - | O16: - | Q16: - | S16: - | U16: - | W16: -
A17: Total Non-Allocated | C17: -83258000 | E17: 0 | G17: 0 | I17: 0 | K17: -83347000 | M17: 34332 | O17: 0 | Q17: 0 | S17: 0 | U17: -83312668 | W17: 54668
C18: - | E18: - | G18: - | I18: - | K18: - | M18: - | O18: - | Q18: - | S18: - | U18: - | W18: -
A19: Sub-Total | C19: 1890246300 | E19: 790966358.4 | G19: 434323741.6 | I19: 256150500 | K19: 66658100 | M19: 55064532 | O19: 41531400 | Q19: -343200 | S19: -132000 | U19: 1644219432 | W19: 246026868
A20: Less: Sales for Resales - P/R | C20: 0 | U20: 0 | W20: 0
A21: Separated Sch D Sales | C21: 0 | U21: 0 | W21: 0
A22: BB4/HPP | C22: 0 | U22: 0 | W22: 0 | X22: (a)
A23: Non-fuel Interchange(SALE/PURC) | C23: 0 | E23: 0 | U23: 0 | W23: 0
A24: Nonrecoverable Gen Fuel Exp | E24: 0 | G24: 0 | U24: 0 | W24: 0 | X24: (a)
A25: Nonrecoverable ECRC- Whsl | C25: 0 | E25: 0 | G25: 0 | I25: 0 | U25: 0 | W25: 0
A26: Sales from Purch Pwr/Purch Pwr for Resale | C26: 0 | E26: 0 | U26: 0 | W26: 0
A27: Provision for Rate Refund (Acc 449.08 & 09) | C27: 0 | U27: 0 | W27: 0
A28: Whlse Rate Case expenses (Acc 928.17) | G28: 0 | U28: 0 | W28: 0
A29: Market Based Pricing | C29: 0 | E29: 0 | U29: 0 | W29: 0
A30: Other Revenues-Pt to Pt Transmission | C30: -5089700 | W30: -5089700
A31: Other Revenues-Wheeling | C31: -3484422 | U31: 0 | W31: -3484422
C32: - | E32: - | G32: - | I32: - | K32: - | M32: - | O32: - | Q32: - | S32: - | U32: - | W32: -
C33: 1881672178 | E33: 790966358.4 | G33: 434323741.6 | I33: 256150500 | K33: 66658100 | M33: 55064532 | O33: 41531400 | Q33: -343200 | S33: -132000 | U33: 1644219432 | W33: 237452746
C34: = | E34: = | G34: = | I34: = | K34: = | M34: = | O34: = | Q34: = | S34: = | U34: = | W34: =
A35: Adjusted for allocation | C35: 1881672178 | E35: 790966358.4 | G35: 433961352 | I35: 255825809 | K35: 66560470 | M35: 52188388 | O35: 41469549 | Q35: -342689 | S35: -131792 | U35: 1640497445 | W35: 241174732.6
A36: Add: Non-Allocated | C36: 83258000 | E36: 0 | G36: 0 | I36: 0 | K36: 83347000 | M36: -34332 | O36: 0 | Q36: 0 | S36: 0 | U36: 83312668 | W36: -54668
A37: Wheeling Revenues-Allocated | U37: 0 | W37: 0
A38: Recoverable Fuel | G38: 641.6362542 | K38: 829.3220872 | M38: -567 | U38: 903.9583414 | W38: -903.9583414
A39: GPIF Revenues/Penalties | K39: 1.449991817 | M39: -1 | U39: 0.4499918166 | W39: -0.4499918166
A40: ECRC Juris allocation | G40: 22422.33018 | I40: 23818.39582 | K40: 57.48119074 | M40: -17860 | U40: 28438.20718 | W40: -28438.20718
A41: ECCR Juris allocation | G41: 42236.0527 | K41: 99.81069932 | M41: -16331 | U41: 26004.8634 | W41: -26004.8634
C42: - | E42: - | G42: - | I42: - | K42: - | M42: - | O42: - | Q42: - | S42: - | U42: - | W42: -
A43: Jurisdictional Per Books | C43: 1964930178 | E43: 790966358.4 | G43: 434026652 | I43: 255849627.4 | K43: 149908458.1 | M43: 52119297 | O43: 41469549 | Q43: -342689 | S43: -131792 | U43: 1723865461 | W43: 241064717.1
C44: = | E44: = | G44: = | I44: = | K44: = | M44: = | O44: = | Q44: = | S44: = | U44: = | W44: =

Sheet JLH_MFR_DATA
A1: DUMP MFR DATA INTO B12 | H1: =SUM(H358:H359) -> 0
A2: the upper portion, range c5:f27 is a summary only, it is not feeding COS
A3: the COS is being fed by the codes in col A as lookups in generation tab, there were significant chgs for 2012 budget with BB scr
A4: UPDATED 2014, 2/7/13 (added the toggle for transp depre until acct fixes) then remove
H5: 0 | I5: 1=toggle on; 0 = toggle off (0 would be normal)
D6: B-7 | E6: B-9 | F6: B-9
D7: Whole $'s | E7: Whole $'s | F7: Whole $'s
D8: PLANT EXP | E8: DEPRE EXP | F8: RESERVE
C9: SUMMARY OF TOTALS FROM BELOW | D9: 13 MO AVG | E9: 12 MO TOT | F9: 13 MO AVG
C11: TOTAL STEAM PRODUCTION | D11: 2066955208 | E11: 67181358 | F11: 667252878.1
C12: TOTAL OTHER PRODUCTION | D12: 1993104500 | E12: 68964101.63 | F12: 659959601
C13: TOTAL PRODUCTION PLANT | D13: 4060059707 | E13: 136145459.6 | F13: 1327212479 | H13: =E13+E16+E19 -> 137331553.7 | I13: prod
C14: TOTAL TRANSMISSION PLANT | D14: 647390796.4 | E14: 18085275.21 | F14: 196343244.1 | H14: =E14+E20 -> 18271024.53 | I14: tranms
C15: TOTAL DISTRIBUTION PLANT | D15: 2053427300 | E15: 76507698.32 | F15: 831640731.7 | H15: =E15 -> 76507698.32 | I15: distri
A16: Sebring written off as of ye 2011 | C16: SEBRING ACQUISITION ADJUSTMENT | D16: 0 | E16: 0 | F16: -2.328306437e-10
C17: TOTAL GENERAL PLANT | D17: 184116791.3 | E17: 13914212.85 | F17: 97286313.27
C18: TOTAL DEPRECIABLE PLT BALANCE | D18: 6944994595 | E18: 244652646 | F18: 2452482768
C19: DISMANTLEMENT | D19: 0 | E19: 1186094.04 | F19: 97270468.74
C20: ACQUISITION ADJUST. (OUC,FPL & UNION) | D20: 7465268.59 | E20: 185749.32 | F20: 4378371.08 | H20: the depre exp for acq adj is added to retail cos (on the transmission tab) and then removed in combination with 403 depreciation
C21: TOTAL NON-DEPRECIABLES | D21: 53397233.96 | E21: 0 | F21: 0 | H21: then we also are removing acct 403 depre associated, I don't have that detail, we take
C22: TOTAL MISCELLANEOUS INTANGIBLES | D22: 58865680.56 | E22: 10126229.75 | F22: 27108609.83 | H22: the total adjustment from surveillance report and remove the total, it is $244k for 2014
C23: ASSET RETIREMENT COSTS | D23: 2805191.64 | E23: 0 | F23: 824404.7394
C24: Property Held Future Use | D24: 35858738.44
C25: TOTAL ELECTRIC PLANT IN SERVICE | D25: 7103386708 | E25: 256150719.1 | F25: 2582064622
A27: CK TOTALS | C27: MFR B7 TOTAL ELEC UTIL PLANT | D27: 7103386708 | H27: this difference is included
C28: MFR B9 TOTAL ELEC DEPRE & ACCUM RES | E28: 256201678.6 | F28: 2582064622 | H28: the 425 accts associated with 114 accts
C29: VAR S/B ZERO | D29: 9.536743164e-07 | E29: -50959.44 | F29: 0 | H29: for FPL&Union, they are below line and
H30: we don't want to pick them up, I've
H31: modified the formula in cell E20
B32: Account/Sub-account | C32: Account/Sub-account | D32: PLANT EXP | E32: DEPRE EXP | F32: RESERVE | H32: to zero those out
B33: Number | C33: Title | D33: 13 MO AVG | E33: 12 MO TOT | F33: 13 MO AVG
C35: BIG BEND COMMON
A36: BBC | B36: 31140 | C36: Structures and Improvements | D36: 142059994.6 | E36: 4119739.842 | F36: 41493901.31
A37: BBC | B37: 31240 | C37: Boiler Plant Equipment | D37: 177221729.2 | E37: 5962618.001 | F37: 19936886.59
A38: BBC | B38: 31440 | C38: Turbogenerator Units | D38: 27804296.98 | E38: 631379.6325 | F38: -4278900.247
A39: BBC | B39: 31540 | C39: Accessory Electric Equipment | D39: 37262821.25 | E39: 1378724.386 | F39: 13381395.35
A40: BBC | B40: 31640 | C40: Misc. Power Plant Equipment | D40: 18070551.23 | E40: 758963.1517 | F40: 4331234.377
C41: TOTAL BIG BEND COMMON | D41: 402419393.2 | E41: 12851425.01 | F41: 74864517.39
C43: BIG BEND UNIT 1
A44: BB1 | B44: 31141 | C44: Structures and Improvements | D44: 7985861.51 | E44: 159717.2302 | F44: 4484738.885
A45: BB1 | B45: 31241 | C45: Boiler Plant Equipment | D45: 101864115 | E45: 4071539.181 | F45: 27437275.14
A46: BB1 | B46: 31441 | C46: Turbogenerator Units | D46: 33628627.97 | E46: 1174354.739 | F46: 14642444.81
A47: BB1 | B47: 31541 | C47: Accessory Electric Equipment | D47: 15685203.32 | E47: 548982.1162 | F47: 5889683.154
A48: BB1 | B48: 31641 | C48: Misc. Power Plant Equipment | D48: 1058729.2 | E48: 30703.1468 | F48: 433653.3602
C49: TOTAL BIG BEND UNIT 1 | D49: 160222537 | E49: 5985296.413 | F49: 52887795.35
C51: BIG BEND UNIT 1, SCR
A52: BB1SCR | B52: 31151 | C52: Structures and Improvements | D52: 23136622.99 | E52: 948601.5426 | F52: 3793643.354
A53: BB1SCR | B53: 31251 | C53: Boiler Plant Equipment | D53: 45351660.03 | E53: 1950121.381 | F53: 9079572.032
A54: BB1SCR | B54: 31551 | C54: Accessory Electric Equipment | D54: 14606212.59 | E54: 701098.2043 | F54: 2811353.106
A55: BB1SCR | B55: 31651 | C55: Misc. Power Plant Equipment | D55: 879814.74 | E55: 36072.40434 | F55: 149493.8465
C57: TOTAL BIG BEND UNIT 1 SCR | D57: 83974310.35 | E57: 3635893.533 | F57: 15834062.34 | H57: =F57+F49 -> 68721857.69 | J57: =H57 -> 68721857.69
H58: 29874865.57
C59: BIG BEND UNIT 2 | H59: =SUM(H57:H58) -> 98596723.26
A60: BB2 | B60: 31142 | C60: Structures and Improvements | D60: 7776318.36 | E60: 155526.3672 | F60: 4227319.411
A61: BB2 | B61: 31242 | C61: Boiler Plant Equipment | D61: 95267892.01 | E61: 3524461.419 | F61: 26056832.41
A62: BB2 | B62: 31442 | C62: Turbogenerator Units | D62: 47856890.9 | E62: 1818099.09 | F62: 21561120.39
A63: BB2 | B63: 31542 | C63: Accessory Electric Equipment | D63: 16017610.51 | E63: 528581.1468 | F63: 6189860.55
A64: BB2 | B64: 31642 | C64: Misc. Power Plant Equipment | D64: 546950.39 | E64: 16408.5117 | F64: 378757.1875
C65: TOTAL BIG BEND UNIT 2 | D65: 167465662.2 | E65: 6043076.535 | F65: 58413889.95 | H65: =F65+F73 -> 76297413.86 | J65: =H65 -> 76297413.86
H66: =I58 -> 0
C67: BIG BEND UNIT 2, SCR | H67: =H65+H66 -> 76297413.86
A68: BB2SCR | B68: 31152 | C68: Structures and Improvements | D68: 25208869.3 | E68: 882310.4255 | F68: 4410909.518
A69: BB2SCR | B69: 31252 | C69: Boiler Plant Equipment | D69: 50864325.91 | E69: 2034573.036 | F69: 10018160.79
A70: BB2SCR | B70: 31552 | C70: Accessory Electric Equipment | D70: 15914426.86 | E70: 652491.5013 | F70: 3278068.572
A71: BB2SCR | B71: 31652 | C71: Misc. Power Plant Equipment | D71: 958615.89 | E71: 35468.78793 | F71: 176385.0219
C73: TOTAL BIG BEND UNIT 2 SCR | D73: 92946237.96 | E73: 3604843.751 | F73: 17883523.91
C75: BIG BEND UNIT 3
A76: BB3 | B76: 31143 | C76: Structures and Improvements | D76: 15210735.9 | E76: 273793.2462 | F76: 9088380.099
A77: BB3 | B77: 31243 | C77: Boiler Plant Equipment | D77: 160213190.7 | E77: 5607224.682 | F77: 48330211.21
A78: BB3 | B78: 31443 | C78: Turbogenerator Units | D78: 67840151.81 | E78: 2170668.178 | F78: 8922829.306
A79: BB3 | B79: 31543 | C79: Accessory Electric Equipment | D79: 23793112.68 | E79: 856552.0565 | F79: 14356440.78
A80: BB3 | B80: 31643 | C80: Misc. Power Plant Equipment | D80: 1499946.54 | E80: 44998.3962 | F80: 644803.9843
C81: TOTAL BIG BEND UNIT 3 | D81: 268557137.7 | E81: 8953236.559 | F81: 81342665.39 | H81: =F81+F89 -> 98832119.99
C83: BIG BEND UNIT 3, SCR
A84: BB3SCR | B84: 31153 | C84: Structures and Improvements | D84: 21689421.57 | E84: 672372.0687 | F84: 4029778.183
A85: BB3SCR | B85: 31253 | C85: Boiler Plant Equipment | D85: 43960027.96 | E85: 1714441.09 | F85: 10016253.36
A86: BB3SCR | B86: 31553 | C86: Accessory Electric Equipment | D86: 13690954.04 | E86: 547638.1616 | F86: 3274294.322
A87: BB3SCR | B87: 31653 | C87: Misc. Power Plant Equipment | D87: 824683.51 | E87: 28039.23934 | F87: 169128.739
C89: TOTAL BIG BEND UNIT 3 SCR | D89: 80165087.08 | E89: 2962490.56 | F89: 17489454.6
C91: BIG BEND UNIT 4
A92: BB4 | B92: 31144 | C92: Structures and Improvements | D92: 62503562.7 | E92: 1125064.129 | F92: 29065149.87
A93: BB4 | B93: 31244 | C93: Boiler Plant Equipment | D93: 235912070 | E93: 7029348.153 | F93: 107099964.7
A94: BB4 | B94: 31444 | C94: Turbogenerator Units | D94: 95884083.93 | E94: 2639941.333 | F94: 34571478.98
A95: BB4 | B95: 31544 | C95: Accessory Electric Equipment | D95: 44185264.85 | E95: 1413928.475 | F95: 24972074.75
A96: BB4 | B96: 31644 | C96: Misc. Power Plant Equipment | D96: 5821484.52 | E96: 145537.113 | F96: 3163154.709 | H96: =F97+F105 -> 213520679
C97: TOTAL BIG BEND UNIT 4 | D97: 444306466 | E97: 12353819.2 | F97: 198871823 | H97: bb | I97: =E97 -> 12353819.2
C99: BIG BEND UNIT 4, SCR
A100: BB4SCR | B100: 31154 | C100: Structures and Improvements | D100: 16857249.89 | E100: 404573.9974 | F100: 2839871.996
A101: BB4SCR | B101: 31254 | C101: Boiler Plant Equipment | D101: 32996130.14 | E101: 1253852.945 | F101: 8737688.418
A102: BB4SCR | B102: 31554 | C102: Accessory Electric Equipment | D102: 10642026.83 | E102: 415039.0464 | F102: 2913562.29
A103: BB4SCR | B103: 31654 | C103: Misc. Power Plant Equipment | D103: 687934.36 | E103: 22701.83388 | F103: 157733.3108
C105: TOTAL BIG BEND UNIT 4 SCR | D105: 61183341.22 | E105: 2096167.823 | F105: 14648856.01
B107: Account/Sub-account | C107: Account/Sub-account | D107: PLANT EXP | E107: DEPRE EXP | F107: RESERVE | I107: =E107 -> DEPRE EXP
B108: Number | C108: Title | D108: 13 MO AVG | E108: 12 MO TOT | F108: 13 MO AVG
C111: BIG BEND UNIT 4 FGD
A112: BB4FGD | B112: 31145 | C112: Structures and Improvements | D112: 21318450.74 | E112: 426369.0148 | F112: 10443575.78
A113: BB4FGD | B113: 31245 | C113: Boiler Plant Equipment | D113: 164203839.3 | E113: 4095565.575 | F113: 79191921.28
A114: BB4FGD | B114: 31445 | C114: Turbogenerator Units | D114: 0 | E114: 0 | F114: 0
A115: BB4FGD | B115: 31545 | C115: Accessory Electric Equipment | D115: 29622549.01 | E115: 906481.3142 | F115: 9659453.101
A116: BB4FGD | B116: 31645 | C116: Misc. Power Plant Equipment | D116: 752024.22 | E116: 24064.77504 | F116: 649028.2326
C117: TOTAL BIG BEND UNIT 4 FGD | D117: 215896863.3 | E117: 5452480.679 | F117: 99943978.4
C119: BIG BEND UNIT #1 & #2 FGD
A120: BBFGD | B120: 31146 | C120: Structures and Improvements | D120: 12576102.89 | E120: 364706.9838 | F120: 5275737.896
A121: BBFGD | B121: 31246 | C121: Boiler Plant Equipment | D121: 62095658.47 | E121: 2048069.391 | F121: 23367774.93
A122: BBFGD | B122: 31446 | C122: Turbogenerator Units | D122: 0 | E122: 0 | F122: 0
A123: BBFGD | B123: 31546 | C123: Accessory Electric Equipment | D123: 10854114.53 | E123: 378740.7702 | F123: 4020916.712
A124: BBFGD | B124: 31646 | C124: Misc. Power Plant Equipment | D124: 1790500.46 | E124: 51924.51334 | F124: 730301.99
C125: TOTAL BIG BEND UNIT #1 & #2 FGD | D125: 87316376.35 | E125: 2843441.658 | F125: 33394731.53 | J125: =F125 -> 33394731.53
A127: BBT | B127: 31647 | C127: BIG BEND TOOLS AMORTIZATION | D127: 2501795.325 | E127: 399186.2702 | F127: 1677580.217
J128: =SUM(J51:J125) -> 178414003.1 | K128: unit 1 & 2 total reserves
C129: TOTAL BIG BEND STATION | D129: 2066955208 | E129: 67181358 | F129: 667252878.1
C131: MISC COMMON
A132: STC | B132: 31100 | C132: STRUCTURES & IMPROVEMENTS | D132: 0 | E132: 0 | F132: 0
A133: STC | B133: 31101 | C133: STRUCTURES & IMPROVEMENTS - Misc | D133: 0 | E133: 0 | F133: 0
A134: STC | B134: 31601 | C134: MISC. POWER PLANT EQUIPMENT | D134: 0 | E134: 0 | F134: 0
A135: STC | B135: 31617 | C135: MISC. POWER PLANT EQUIPMENT AMORT | D135: 0 | E135: 0 | F135: 0
A136: BPC | B136: 31130 | C136: Str & Improvments (Bayside, formerly Gannon) | D136: 0 | E136: 0 | F136: 0
A137: BPC | B137: 31630 | C137: Misc Power Plant (Bayside, formerly Gannon) | D137: 0 | E137: 0 | F137: 0
C139: TOTAL COMMON | D139: 0 | E139: 0 | F139: 0
C141: TOTAL STEAM STATION
C142: BIG BEND STATION | D142: 2066955208 | E142: 67181358 | F142: 667252878.1
C143: COMMON | D143: 0 | E143: 0 | F143: 0
C145: TOTAL STEAM PRODUCTION | D145: 2066955208 | E145: 67181358 | F145: 667252878.1
I146: =E146 -> 0
B148: Account/Sub-account | C148: Account/Sub-account | D148: PLANT EXP | E148: DEPRE EXP | F148: RESERVE
B149: Number | C149: Title | D149: 13 MO AVG | E149: 12 MO TOT | F149: 13 MO AVG
B151: BIG BEND STATION
C152: COMBUSTION TURBINE #1
A153: BBCT1 | B153: 34141 | C153: Structures and Improvements | D153: 0 | E153: 0 | F153: 0
A154: BBCT1 | B154: 34241 | C154: Boiler Plant Equipment | D154: 0 | E154: 0 | F154: 0
A155: BBCT1 | B155: 34341 | C155: Turbogenerator Units | D155: 0 | E155: 0 | F155: 0
A156: BBCT1 | B156: 34541 | C156: Accessory Electric Equipment | D156: 0 | E156: 0 | F156: 0
A157: BBCT1 | B157: 34641 | C157: Misc. Power Plant Equipment | D157: 0 | E157: 0 | F157: 0
C158: TOTAL COMBUSTION TURBINE #1 | D158: 0 | E158: 0 | F158: 0
C161: COMBUSTION TURBINE #2
A162: BBCT2 | B162: 34142 | C162: Structures and Improvements | D162: 0 | E162: 0 | F162: 0
A163: BBCT2 | B163: 34242 | C163: Boiler Plant Equipment | D163: 0 | E163: 0 | F163: 0
A164: BBCT2 | B164: 34342 | C164: Turbogenerator Units | D164: 0 | E164: 0 | F164: 0
A165: BBCT2 | B165: 34542 | C165: Accessory Electric Equipment | D165: 0 | E165: 0 | F165: 0
A166: BBCT2 | B166: 34642 | C166: Misc. Power Plant Equipment | D166: 0 | E166: 0 | F166: 0 | I166: =E166+E208 -> 0
C167: TOTAL COMBUSTION TURBINE #2 | D167: 0 | E167: 0 | F167: 0
C170: COMBUSTION TURBINE #4
A171: BBCT4 | B171: 34144 | C171: Structures and Improvements | D171: 3299243.57 | E171: 85780.33282 | F171: 67981.42923
A172: BBCT4 | B172: 34244 | C172: Boiler Plant Equipment | D172: 2327201.314 | E172: 83779.2473 | F172: 251099.3635
A173: BBCT4 | B173: 34344 | C173: Turbogenerator Units | D173: 19043176.34 | E173: 761727.0537 | F173: 5301976.464
A174: BBCT4 | B174: 34544 | C174: Accessory Electric Equipment | D174: 14867440.64 | E174: 594697.6256 | F174: 1986111.038
A175: BBCT4 | B175: 34644 | C175: Misc. Power Plant Equipment | D175: 493852.95 | E175: 0 | F175: 31560.07
C176: TOTAL COMBUSTION TURBINE #4 | D176: 40030914.82 | E176: 1525984.259 | F176: 7638728.365
C178: TOTAL BIG BEND STATION ct's | D178: 40030914.82 | E178: 1525984.259 | F178: 7638728.365
C181: PHILLIPS STATION
A182: PH | B182: 34128 | C182: Structures and Improvements | D182: 9481579.7 | E182: 0 | F182: 9481579.7
A183: PH | B183: 34228 | C183: Boiler Plant Equipment | D183: 23435863.2 | E183: 0 | F183: 23435863.2
A184: PH | B184: 34328 | C184: Turbogenerator Units | D184: 20870850.26 | E184: 0 | F184: 20870850.26
A185: PH | B185: 34528 | C185: Accessory Electric Equipment | D185: 5887393.93 | E185: 0 | F185: 5887393.93
A186: PH | B186: 34628 | C186: Misc. Power Plant Equipment | D186: 653047.13 | E186: 0 | F186: 653047.13
C187: TOTAL PHILLIPS STATION | D187: 60328734.22 | E187: 0 | F187: 60328734.22
B189: Account/Sub-account | C189: Account/Sub-account | D189: PLANT EXP | E189: DEPRE EXP | F189: RESERVE
B190: Number | C190: Title | D190: 13 MO AVG | E190: 12 MO TOT | F190: 13 MO AVG
C192: POLK POWER COMMON
A193: PKC | B193: 34180 | C193: Structures and Improvements | D193: 65055319.33 | E193: 1431217.025 | F193: 24554413.62
A194: PKC | B194: 34280 | C194: Boiler Plant Equipment | D194: 71537864.93 | E194: 2617727.862 | F194: 3113977.766
A195: PKC | B195: 34380 | C195: Turbogenerator Units | D195: 3081658.415 | E195: 65735.9343 | F195: 668135.2826
A196: PKC | B196: 34580 | C196: Accessory Electric Equipment | D196: 2406426.28 | E196: 69786.36212 | F196: 797829.4032
A197: PKC | B197: 34680 | C197: Misc. Power Plant Equipment | D197: 1206003.23 | E197: 28944.07752 | F197: 322958.9963
C198: TOTAL POLK POWER COMMON | D198: 143287272.2 | E198: 4213411.261 | F198: 29457315.07
C200: POLK POWER UNIT #1
A201: PK1 | B201: 34181 | C201: Structures and Improvements | D201: 46896850.67 | E201: 1172421.267 | F201: 18214889.72
A202: PK1 | B202: 34281 | C202: Boiler Plant Equipment | D202: 246154020.4 | E202: 8363794.118 | F202: 113380379.8
A203: PK1 | B203: 34381 | C203: Turbogenerator Units | D203: 150610495.8 | E203: 6768265.411 | F203: 69720730.95
A204: PK1 | B204: 34581 | C204: Accessory Electric Equipment | D204: 58646049.61 | E204: 1935319.637 | F204: 31967836.68
A205: PK1 | B205: 34681 | C205: Misc. Power Plant Equipment | D205: 5151959.01 | E205: 159710.7293 | F205: 2227333.434
C206: TOTAL POLK POWER UNIT #1 | D206: 507459375.5 | E206: 18399511.16 | F206: 235511170.6
C208: POLK POWER UNIT #2
A209: PK2 | B209: 34182 | C209: Structures and Improvements | D209: 2149071.24 | E209: 58024.92348 | F209: 782138.4152
A210: PK2 | B210: 34282 | C210: Boiler Plant Equipment | D210: 3987701.234 | E210: 131594.1407 | F210: -333917.9591
A211: PK2 | B211: 34382 | C211: Turbogenerator Units | D211: 32593748.7 | E211: 1425074.932 | F211: 12905101.4
A212: PK2 | B212: 34582 | C212: Accessory Electric Equipment | D212: 16569847.32 | E212: 463955.725 | F212: 6208329.927
A213: PK2 | B213: 34682 | C213: Misc. Power Plant Equipment | D213: 173209.91 | E213: 6062.34685 | F213: 84402.71027
C214: TOTAL POLK POWER UNIT #2 | D214: 55473578.4 | E214: 2084712.068 | F214: 19646054.49
C216: POLK POWER UNIT #3
A217: PK3 | B217: 34183 | C217: Structures and Improvements | D217: 10337092.03 | E217: 268764.3928 | F217: 3152122.869
A218: PK3 | B218: 34283 | C218: Boiler Plant Equipment | D218: 1162799.73 | E218: 33721.19217 | F218: 395930.4483
A219: PK3 | B219: 34383 | C219: Turbogenerator Units | D219: 42675703.3 | E219: 1963082.352 | F219: 20130186.45
A220: PK3 | B220: 34583 | C220: Accessory Electric Equipment | D220: 9093177.39 | E220: 272795.3217 | F220: 3115605.673
A221: PK3 | B221: 34683 | C221: Misc. Power Plant Equipment | D221: 432910.42 | E221: 13420.22302 | F221: 154473.0545
C222: TOTAL POLK POWER UNIT #3 | D222: 63701682.87 | E222: 2551783.481 | F222: 26948318.49
C224: POLK POWER UNIT #4
A225: PK4 | B225: 34184 | C225: Structures and Improvements | D225: 5583542.24 | E225: 134005.0138 | F225: 948532.7106
A226: PK4 | B226: 34284 | C226: Boiler Plant Equipment | D226: 2123924.378 | E226: 67965.58008 | F226: 293384.0834
A227: PK4 | B227: 34384 | C227: Turbogenerator Units | D227: 22337964.55 | E227: 915856.5464 | F227: 5966454.084
A228: PK4 | B228: 34584 | C228: Accessory Electric Equipment | D228: 5087893.08 | E228: 198427.8301 | F228: 1375164.595
A229: PK4 | B229: 34684 | C229: Misc. Power Plant Equipment | D229: 0 | E229: 0 | F229: 0
C230: TOTAL POLK POWER UNIT #4 | D230: 35133324.25 | E230: 1316254.97 | F230: 8583535.473
C232: POLK POWER UNIT #5
A233: PK5 | B233: 34185 | C233: Structures and Improvements | D233: 5594194.68 | E233: 134260.6723 | F233: 950338.7085
A234: PK5 | B234: 34285 | C234: Boiler Plant Equipment | D234: 2031487.54 | E234: 69070.57636 | F234: 279301.2445
A235: PK5 | B235: 34385 | C235: Turbogenerator Units | D235: 20723274.93 | E235: 808207.7223 | F235: 5603002.223
A236: PK5 | B236: 34585 | C236: Accessory Electric Equipment | D236: 5034919.34 | E236: 196361.8543 | F236: 1360657.171
A237: PK5 | B237: 34685 | C237: Misc. Power Plant Equipment | D237: 0 | E237: 0 | F237: 0
C238: TOTAL POLK POWER UNIT #5 | D238: 33383876.49 | E238: 1207900.825 | F238: 8193299.348
... 143 more rows

Sheet Revenues
A1: =PERIOD -> FOR THE FORECAST PERIOD ENDING 12/31/14 | L1: CK TO REVENUE RECON FOR OOR
E2: Prints All (data & summary) | L2: Service Revenue | M2: =SUMIF($L$31:$L$74,45100,$O$31:$O$74) -> 22788.7
L3: Rent Revenue | M3: =O87 -> 10240
L4: Other = 456.01 to 456.65 | M4: =SUM(O44:O71) -> 17309.3
L5: TOTAL OOR (excl. Unbilled) | M5: =M4+M3+M2 -> 50338
A7: REQUIRED INPUTS:
A8: Period | B8: 2014 bud (based on 2012 actuals) | C8: 2014 bud | D8: 2014 bud | E8: 2014 bud | F8: 2014 bud | H8: 2014 bud | I8: 2014 bud | J8: 2014 bud | K8: 2014 bud | L8: S. RPT REVENUES | M8: =JLH_SR_SCH2_PG2!C46/1000 -> 962737.713
A9: Line Desc | B9: TRANSMISSION POLE ATTACHMENTS | C9: NON-RECOV CLAUSE ITEMS | D9: NON-RECOV CLAUSE ITEMS ECRC SO2 GAINS WHSL | E9: NON-RECOV CLAUSE ITEMS | F9: I/CHG NON-SEPARATED MARGIN | H9: Revenue Proforma Adjustment | I9: Revenue Proforma Adjustment | J9: Revenue Proforma Adjustment | K9: Settlement Proforma Adjustment | L9: Summary Below | M9: =O151 -> 961391.549
A10: Source | B10: E mail, in 000's | C10: REVENUE RECON (NR CLAUSE FUEL & GPIF) enter as is | D10: REVENUE RECON (NR CLAUSE ECCR)enter as is | E10: REVENUE RECON (NR CLAUSE ECRC) Reverse sign | F10: EE PKG TAB REVENUE (reverse sign) | H10: Adjusted to Unbilled | I10: Remove Calpine (oatt) | J10: Remove Wheeling | K10: Add Srvc chgs Rev | L10: VARIANCE s/b zero | M10: =M8-M9 -> 1346.164
A11: Input Value | B11: 196.683 | C11: =1*0 -> 0 | D11: 0 | E11: 0 | F11: 0 | H11: =SUM(proforma!S52:S57) -> 41 | I11: =proforma!S62 -> 959 | J11: =proforma!S63 -> -3540 | K11: 1194
A12: Cell | B12: M78 | C12: M66 | D12: M65 | F12: M63 | H12: o74 | I12: o61 | J12: o52 | K12: o52
B13: updated 1/9/2013 | C13: updated 2/28/2013 | D13: updated 2/28/2013 | E13: updated 2/28/2013 | F13: updated 2/28/2013 | H13: updated 2/14/2013 | I13: updated 2/14/2013 | J13: updated 2/14/2013 | K13: updated 9/6/2013
A15: COMMENTS: | B15: See range b23:b33 for revenue input, see A39 oatt & wheeling
B16: Wheeling & Oatt Revenues created in external files, pro-rata will be split on "actuals" basis
B17: Lighting revenues are a total, lighting dept provides a energy/facilities split, I input total in facilities, and then subtract the energy portion provided
A21: =PERIOD -> FOR THE FORECAST PERIOD ENDING 12/31/14 | D21: FPSC Settlement | J21: "rev_sum_header"
A22: FACTOR 501 | B22: updated 12/30/2012 | C22: CO. Proforma's | D22: Input Proforma's | E22: Revised Proposed
A23: REVENUES INPUT | B23: 2014 OB | C23: Initial Proforma | D23: Base Revenues | E23: Revenues below | J23: TAMPA ELECTRIC COMPANY
A24: RS | B24: 493000 | C24: =SUMIF(proforma!$C$34:$C$39,"RS",proforma!$S$34:$S$39) -> -3350.52215 | D24: =SUMIF(proforma!$C$43:$C$48,"RS",proforma!$S$43:$S$48) -> 530949 | E24: =D24 -> 530949 | J24: FUNCTIONALIZATION & CLASSIFICATION OF OTHER OPERATING REVENUE ($000)
A25: GS & TS | B25: 57954 | C25: =SUMIF(proforma!$C$34:$C$39,"GS",proforma!$S$34:$S$39) -> 0.06770000001 | D25: =SUMIF(proforma!$C$43:$C$48,"GS",proforma!$S$43:$S$48) -> 64492 | E25: =D25 -> 64492 | J25: =PERIOD -> FOR THE FORECAST PERIOD ENDING 12/31/14
A26: GSD/GSLD & SBF | B26: 290637 | C26: =SUMIF(proforma!$C$34:$C$39,"GSD",proforma!$S$34:$S$39) -> 38.5895835 | D26: =SUMIF(proforma!$C$43:$C$48,"GSD",proforma!$S$43:$S$48) -> 299110 | E26: 299110
A27: IS & SBI | B27: 28685 | C27: =SUMIF(proforma!$C$34:$C$39,"IS",proforma!$S$34:$S$39) -> -147.3162107 | D27: =SUMIF(proforma!$C$43:$C$48,"IS",proforma!$S$43:$S$48) -> 28538 | E27: 28538 | F27: proposed will combine IS with GSD in reports tab, factor 501 | J27: 1 | K27: 2 | L27: 3 | N27: 4 | O27: 5
A28: SL EGY | B28: 5439.771 | C28: =SUMIF(proforma!$C$34:$C$39,"LS EGY",proforma!$S$34:$S$39) -> 27.4677812 | D28: =SUMIF(proforma!$C$43:$C$48,"LS EGY",proforma!$S$43:$S$48) -> 5467 | E28: 5467 | K28: (1) G/L OTHER OPERATING REVENUE ACCOUNTS
A29: SL FACILITIES | B29: =40951.949-B28 -> 35512.178 | C29: =SUMIF(proforma!$C$34:$C$39,"LS FAC",proforma!$S$34:$S$39) -> -27.69081971 | D29: =SUMIF(proforma!$C$43:$C$48,"LS FAC",proforma!$S$43:$S$48) -> 35484 | E29: 35484
A30: SUBTOTAL BASE REV | B30: =SUM(B24:B29) -> 911227.949 | C30: =SUM(C24:C29) -> -3459.404116 | D30: =SUM(D24:D29) -> 964040 | E30: =SUM(E24:E29) -> 964040 | H30: SVC Revenues | J30: LINE | K30: REFERENCE | L30: LEGACY ACCT | M30: SAP ACCT | N30: TITLE | O30: AMOUNT
H31: =O31 -> 22788.7 | J31: 1 | K31: SVC | L31: 45100 | M31: =IF(ISNA(VLOOKUP(L31,JLH_OOR_RECON_DATA!$B$14:$G$70,3,FALSE)),0,(VLOOKUP(L31,JLH_OOR_RECON_DATA!$B$14:$G$70,3,FALSE))) -> 451 | N31: MISC SVC REV | O31: =IF(ISNA(VLOOKUP(M31,JLH_OOR_RECON_DATA!$D$14:$G$71,4,FALSE)),0,(VLOOKUP(M31,JLH_OOR_RECON_DATA!$D$14:$G$71,4,FALSE)))+K11 -> 22788.7
A32: PR REQUIREMENTS | B32: 0 | C32: 0 | D32: =SUMIF(proforma!$C$43:$C$48,"WS",proforma!$S$43:$S$48) -> 0 | E32: =B32+C32+D32 -> 0 | J32: =J31+1 -> 2 | K32: RENT_TRANSM | L32: 45400 | M32: =IF(ISNA(VLOOKUP(L32,JLH_OOR_RECON_DATA!$B$14:$G$70,3,FALSE)),0,(VLOOKUP(L32,JLH_OOR_RECON_DATA!$B$14:$G$70,3,FALSE))) -> 4540010 | N32: COMMERCIAL PROPERTY | O32: =IF(ISNA(VLOOKUP(M32,JLH_OOR_RECON_DATA!$D$14:$G$71,4,FALSE)),0,(VLOOKUP(M32,JLH_OOR_RECON_DATA!$D$14:$G$71,4,FALSE))) -> 592.4
J33: =J32+1 -> 3 | K33: RENT_DS | L33: 45401 | M33: =IF(ISNA(VLOOKUP(L33,JLH_OOR_RECON_DATA!$B$14:$G$70,3,FALSE)),0,(VLOOKUP(L33,JLH_OOR_RECON_DATA!$B$14:$G$70,3,FALSE))) -> 4540030 | N33: ELECTRIC EQUIPMENT | O33: =IF(ISNA(VLOOKUP(M33,JLH_OOR_RECON_DATA!$D$14:$G$71,4,FALSE)),0,(VLOOKUP(M33,JLH_OOR_RECON_DATA!$D$14:$G$71,4,FALSE))) -> 132.3
A34: TOTAL COMPANY | B34: =SUM(B30:B32) -> 911227.949 | C34: =SUM(C30:C32) -> -3459.404116 | D34: =SUM(D30:D32) -> 964040 | E34: =SUM(E30:E32) -> 964040 | J34: =J33+1 -> 4 | K34: RENT_TRANSM | L34: 45402 | M34: =IF(ISNA(VLOOKUP(L34,JLH_OOR_RECON_DATA!$B$14:$G$70,3,FALSE)),0,(VLOOKUP(L34,JLH_OOR_RECON_DATA!$B$14:$G$70,3,FALSE))) -> 4540020 | N34: AGRICULTURAL PROPERTY | O34: =IF(ISNA(VLOOKUP(M34,JLH_OOR_RECON_DATA!$D$14:$G$71,4,FALSE)),0,(VLOOKUP(M34,JLH_OOR_RECON_DATA!$D$14:$G$71,4,FALSE))) -> 32.9
H35: Rent | J35: 5 | K35: RENT_DP | L35: 45403 | M35: =IF(ISNA(VLOOKUP(L35,JLH_OOR_RECON_DATA!$B$14:$G$70,3,FALSE)),0,(VLOOKUP(L35,JLH_OOR_RECON_DATA!$B$14:$G$70,3,FALSE))) -> 4540080 | N35: POLE ATTACHMENTS | O35: =IF(ISNA(VLOOKUP(M35,JLH_OOR_RECON_DATA!$D$14:$G$71,4,FALSE)),0,(VLOOKUP(M35,JLH_OOR_RECON_DATA!$D$14:$G$71,4,FALSE))) -> 6.3
H36: Revenues | J36: 6 | K36: RENT_DP | L36: 45404 | M36: =IF(ISNA(VLOOKUP(L36,JLH_OOR_RECON_DATA!$B$14:$G$70,3,FALSE)),0,(VLOOKUP(L36,JLH_OOR_RECON_DATA!$B$14:$G$70,3,FALSE))) -> 0 | N36: PLAZA MEETING ROOM | O36: =IF(ISNA(VLOOKUP(M36,JLH_OOR_RECON_DATA!$D$14:$G$71,4,FALSE)),0,(VLOOKUP(M36,JLH_OOR_RECON_DATA!$D$14:$G$71,4,FALSE))) -> 0
H37: =SUM(O32:O43) -> 10240 | J37: 7 | K37: RENT_DP | L37: 45405 | M37: =IF(ISNA(VLOOKUP(L37,JLH_OOR_RECON_DATA!$B$14:$G$70,3,FALSE)),0,(VLOOKUP(L37,JLH_OOR_RECON_DATA!$B$14:$G$70,3,FALSE))) -> 4540800 | N37: METRO LINK | O37: =IF(ISNA(VLOOKUP(M37,JLH_OOR_RECON_DATA!$D$14:$G$71,4,FALSE)),0,(VLOOKUP(M37,JLH_OOR_RECON_DATA!$D$14:$G$71,4,FALSE))) -> 2115.2
J38: 8 | K38: RENT_DP | L38: 45406 | M38: =IF(ISNA(VLOOKUP(L38,JLH_OOR_RECON_DATA!$B$14:$G$70,3,FALSE)),0,(VLOOKUP(L38,JLH_OOR_RECON_DATA!$B$14:$G$70,3,FALSE))) -> 4540081 | N38: MTLK-POLE ATTACHMENTS | O38: =IF(ISNA(VLOOKUP(M38,JLH_OOR_RECON_DATA!$D$14:$G$71,4,FALSE)),0,(VLOOKUP(M38,JLH_OOR_RECON_DATA!$D$14:$G$71,4,FALSE))) -> 6384.1
J39: 9 | K39: RENT_PROD | L39: 45407 | M39: =IF(ISNA(VLOOKUP(L39,JLH_OOR_RECON_DATA!$B$14:$G$70,3,FALSE)),0,(VLOOKUP(L39,JLH_OOR_RECON_DATA!$B$14:$G$70,3,FALSE))) -> 4540040 | N39: BARGE CLEANING BB | O39: =IF(ISNA(VLOOKUP(M39,JLH_OOR_RECON_DATA!$D$14:$G$71,4,FALSE)),0,(VLOOKUP(M39,JLH_OOR_RECON_DATA!$D$14:$G$71,4,FALSE))) -> 42
J40: 10 | K40: RENT_PROD | L40: 45408 | M40: =IF(ISNA(VLOOKUP(L40,JLH_OOR_RECON_DATA!$B$14:$G$70,3,FALSE)),0,(VLOOKUP(L40,JLH_OOR_RECON_DATA!$B$14:$G$70,3,FALSE))) -> 0 | N40: Bayside Dock Rental | O40: =IF(ISNA(VLOOKUP(M40,JLH_OOR_RECON_DATA!$D$14:$G$71,4,FALSE)),0,(VLOOKUP(M40,JLH_OOR_RECON_DATA!$D$14:$G$71,4,FALSE))) -> 0
A41: Wheeling (Grandfathered APP contract, prior to OATT) | C41: Total 2014 Budget | D41: % Split | J41: 11 | K41: RENT_DP | L41: 45409 | M41: =IF(ISNA(VLOOKUP(L41,JLH_OOR_RECON_DATA!$B$14:$G$70,3,FALSE)),0,(VLOOKUP(L41,JLH_OOR_RECON_DATA!$B$14:$G$70,3,FALSE))) -> 0 | N41: Das Antenna Pole Attachments | O41: =IF(ISNA(VLOOKUP(M41,JLH_OOR_RECON_DATA!$D$14:$G$71,4,FALSE)),0,(VLOOKUP(M41,JLH_OOR_RECON_DATA!$D$14:$G$71,4,FALSE))) -> 0
A42: Capacity | B42: Transmission | C42: =3540000-C43-C44 -> 3485513 | D42: =C42/$C$45 -> 0.9846081921 | J42: 12 | K42: RENT_DP | L42: 45410 | M42: =IF(ISNA(VLOOKUP(L42,JLH_OOR_RECON_DATA!$B$14:$G$70,3,FALSE)),0,(VLOOKUP(L42,JLH_OOR_RECON_DATA!$B$14:$G$70,3,FALSE))) -> 4540700 | N42: RENTAL INCOME - AFFILIATES | O42: =IF(ISNA(VLOOKUP(M42,JLH_OOR_RECON_DATA!$D$14:$G$71,4,FALSE)),0,(VLOOKUP(M42,JLH_OOR_RECON_DATA!$D$14:$G$71,4,FALSE))) -> 547.2
A43: Regulating Charge | B43: Production | C43: 53196 | J43: =J42+1 -> 13 | K43: RENT_DP | L43: 45510 | M43: =IF(ISNA(VLOOKUP(L43,JLH_OOR_RECON_DATA!$B$14:$G$70,3,FALSE)),0,(VLOOKUP(L43,JLH_OOR_RECON_DATA!$B$14:$G$70,3,FALSE))) -> 4550000 | N43: RENTAL INC-AFFIL | O43: =IF(ISNA(VLOOKUP(M43,JLH_OOR_RECON_DATA!$D$14:$G$71,4,FALSE)),0,(VLOOKUP(M43,JLH_OOR_RECON_DATA!$D$14:$G$71,4,FALSE))) -> 387.6
A44: Regular Level Chg | B44: Production | C44: 1291 | D44: =SUM(C43:C44)/$C$45 -> 0.01539180791 | J44: 14 | K44: EGY | L44: 45601 | M44: =IF(ISNA(VLOOKUP(L44,JLH_OOR_RECON_DATA!$B$14:$G$70,3,FALSE)),0,(VLOOKUP(L44,JLH_OOR_RECON_DATA!$B$14:$G$70,3,FALSE))) -> 4560800 | N44: MISC REV | O44: =IF(ISNA(VLOOKUP(M44,JLH_OOR_RECON_DATA!$D$14:$G$71,4,FALSE)),0,(VLOOKUP(M44,JLH_OOR_RECON_DATA!$D$14:$G$71,4,FALSE))) -> 1404.4
C45: =SUM(C42:C44) -> 3540000 | D45: =SUM(D42:D44) -> 1 | J45: 15 | K45: PLANT | L45: 45603 | M45: =IF(ISNA(VLOOKUP(L45,JLH_OOR_RECON_DATA!$B$14:$G$70,3,FALSE)),0,(VLOOKUP(L45,JLH_OOR_RECON_DATA!$B$14:$G$70,3,FALSE))) -> 4560020 | N45: COST PLUS JOS | O45: =IF(ISNA(VLOOKUP(M45,JLH_OOR_RECON_DATA!$D$14:$G$71,4,FALSE)),0,(VLOOKUP(M45,JLH_OOR_RECON_DATA!$D$14:$G$71,4,FALSE))) -> 0
A46: note we do not include short-term power chg in these ratios | J46: 16 | K46: TAX | L46: 45604 | M46: =IF(ISNA(VLOOKUP(L46,JLH_OOR_RECON_DATA!$B$14:$G$70,3,FALSE)),0,(VLOOKUP(L46,JLH_OOR_RECON_DATA!$B$14:$G$70,3,FALSE))) -> 4560030 | N46: SALES TAX | O46: =IF(ISNA(VLOOKUP(M46,JLH_OOR_RECON_DATA!$D$14:$G$71,4,FALSE)),0,(VLOOKUP(M46,JLH_OOR_RECON_DATA!$D$14:$G$71,4,FALSE))) -> 75.6
A47: verified APP is still obligation to pay regulating charges, since their contract is pre-OATT | J47: 17 | K47: PLANT | L47: 45605 | M47: =IF(ISNA(VLOOKUP(L47,JLH_OOR_RECON_DATA!$B$14:$G$70,3,FALSE)),0,(VLOOKUP(L47,JLH_OOR_RECON_DATA!$B$14:$G$70,3,FALSE))) -> 4560040 | N47: SAP REV - AFFIL | O47: =IF(ISNA(VLOOKUP(M47,JLH_OOR_RECON_DATA!$D$14:$G$71,4,FALSE)),0,(VLOOKUP(M47,JLH_OOR_RECON_DATA!$D$14:$G$71,4,FALSE))) -> 0
J48: 18 | K48: PLANT | L48: 45606 | M48: =IF(ISNA(VLOOKUP(L48,JLH_OOR_RECON_DATA!$B$14:$G$70,3,FALSE)),0,(VLOOKUP(L48,JLH_OOR_RECON_DATA!$B$14:$G$70,3,FALSE))) -> 4560045 | N48: SAP REV - DIVISION | O48: =IF(ISNA(VLOOKUP(M48,JLH_OOR_RECON_DATA!$D$14:$G$71,4,FALSE)),0,(VLOOKUP(M48,JLH_OOR_RECON_DATA!$D$14:$G$71,4,FALSE))) -> 0
J49: 19 | K49: PLANT | L49: 45607 | M49: =IF(ISNA(VLOOKUP(L49,JLH_OOR_RECON_DATA!$B$14:$G$70,3,FALSE)),0,(VLOOKUP(L49,JLH_OOR_RECON_DATA!$B$14:$G$70,3,FALSE))) -> 4560050 | N49: TRAINING MODULES | O49: =IF(ISNA(VLOOKUP(M49,JLH_OOR_RECON_DATA!$D$14:$G$71,4,FALSE)),0,(VLOOKUP(M49,JLH_OOR_RECON_DATA!$D$14:$G$71,4,FALSE))) -> 0
J50: 20 | K50: PLANT | L50: 45610 | M50: =IF(ISNA(VLOOKUP(L50,JLH_OOR_RECON_DATA!$B$14:$G$70,3,FALSE)),0,(VLOOKUP(L50,JLH_OOR_RECON_DATA!$B$14:$G$70,3,FALSE))) -> 4560060 | N50: PARKING | O50: =IF(ISNA(VLOOKUP(M50,JLH_OOR_RECON_DATA!$D$14:$G$71,4,FALSE)),0,(VLOOKUP(M50,JLH_OOR_RECON_DATA!$D$14:$G$71,4,FALSE))) -> 50.8
J51: 21 | K51: PLANT | L51: 45611 | M51: =IF(ISNA(VLOOKUP(L51,JLH_OOR_RECON_DATA!$B$14:$G$70,3,FALSE)),0,(VLOOKUP(L51,JLH_OOR_RECON_DATA!$B$14:$G$70,3,FALSE))) -> 0 | N51: AT COST JOS | O51: =IF(ISNA(VLOOKUP(M51,JLH_OOR_RECON_DATA!$D$14:$G$71,4,FALSE)),0,(VLOOKUP(M51,JLH_OOR_RECON_DATA!$D$14:$G$71,4,FALSE))) -> 0
H52: 456 | J52: 22 | K52: WHEELING | L52: 45614 | M52: =IF(ISNA(VLOOKUP(L52,JLH_OOR_RECON_DATA!$B$14:$G$70,3,FALSE)),0,(VLOOKUP(L52,JLH_OOR_RECON_DATA!$B$14:$G$70,3,FALSE))) -> 4560100 | N52: WHEELING | O52: =IF(ISNA(VLOOKUP(M52,JLH_OOR_RECON_DATA!$D$14:$G$71,4,FALSE)),0,(VLOOKUP(M52,JLH_OOR_RECON_DATA!$D$14:$G$71,4,FALSE)))+J11 -> 0
A53: Established Unbilled allocator from MFR E12 (will hold static between rate cases) (created by BB & BS) | H53: misc other op | J53: 23 | K53: COGEN | L53: 45615 | M53: =IF(ISNA(VLOOKUP(L53,JLH_OOR_RECON_DATA!$B$14:$G$70,3,FALSE)),0,(VLOOKUP(L53,JLH_OOR_RECON_DATA!$B$14:$G$70,3,FALSE))) -> 4560081 | N53: COGEN MTCE | O53: =IF(ISNA(VLOOKUP(M53,JLH_OOR_RECON_DATA!$D$14:$G$71,4,FALSE)),0,(VLOOKUP(M53,JLH_OOR_RECON_DATA!$D$14:$G$71,4,FALSE))) -> 519.6
A54: this unbilled differs from the 2014 budgeted unbilled, we have acknowledged that difference | H54: revenues | J54: 24 | K54: RENT_DP | L54: 45621 | M54: =IF(ISNA(VLOOKUP(L54,JLH_OOR_RECON_DATA!$B$14:$G$70,3,FALSE)),0,(VLOOKUP(L54,JLH_OOR_RECON_DATA!$B$14:$G$70,3,FALSE))) -> 4560110 | N54: TELECOM/METROLINK/JO | O54: =IF(ISNA(VLOOKUP(M54,JLH_OOR_RECON_DATA!$D$14:$G$71,4,FALSE)),0,(VLOOKUP(M54,JLH_OOR_RECON_DATA!$D$14:$G$71,4,FALSE))) -> 0
A55: in a proforma adjustment | H55: =SUM(O44:O71) -> 17309.3 | J55: 25 | K55: EGY | L55: 45622 | M55: =IF(ISNA(VLOOKUP(L55,JLH_OOR_RECON_DATA!$B$14:$G$70,3,FALSE)),0,(VLOOKUP(L55,JLH_OOR_RECON_DATA!$B$14:$G$70,3,FALSE))) -> 4560690 | N55: BENEFICIATED ASH | O55: =IF(ISNA(VLOOKUP(M55,JLH_OOR_RECON_DATA!$D$14:$G$71,4,FALSE)),0,(VLOOKUP(M55,JLH_OOR_RECON_DATA!$D$14:$G$71,4,FALSE))) -> 816
J56: 26 | K56: EGY | L56: 45623 | M56: =IF(ISNA(VLOOKUP(L56,JLH_OOR_RECON_DATA!$B$14:$G$70,3,FALSE)),0,(VLOOKUP(L56,JLH_OOR_RECON_DATA!$B$14:$G$70,3,FALSE))) -> 4560660 | N56: GYPSUM (EXCL ECRC) | O56: =IF(ISNA(VLOOKUP(M56,JLH_OOR_RECON_DATA!$D$14:$G$71,4,FALSE)),0,(VLOOKUP(M56,JLH_OOR_RECON_DATA!$D$14:$G$71,4,FALSE))) -> 2289
A57: pasted here directly from the MFR-E12 (there will also be a proposed revenue adjustment) | J57: 27 | K57: EGY | M57: 4560661 | N57: GYPSUM (ECRC) | O57: =IF(ISNA(VLOOKUP(M57,JLH_OOR_RECON_DATA!$D$14:$G$71,4,FALSE)),0,(VLOOKUP(M57,JLH_OOR_RECON_DATA!$D$14:$G$71,4,FALSE))) -> 932
J58: 28 | K58: EGY | L58: 45624 | M58: =IF(ISNA(VLOOKUP(L58,JLH_OOR_RECON_DATA!$B$14:$G$70,3,FALSE)),0,(VLOOKUP(L58,JLH_OOR_RECON_DATA!$B$14:$G$70,3,FALSE))) -> 4560650 | N58: SULFURIC ACID | O58: =IF(ISNA(VLOOKUP(M58,JLH_OOR_RECON_DATA!$D$14:$G$71,4,FALSE)),0,(VLOOKUP(M58,JLH_OOR_RECON_DATA!$D$14:$G$71,4,FALSE))) -> 2790
H59: TOTAL OOR REVENUES | J59: 29 | K59: PLANT | L59: 45625 | M59: =IF(ISNA(VLOOKUP(L59,JLH_OOR_RECON_DATA!$B$14:$G$70,3,FALSE)),0,(VLOOKUP(L59,JLH_OOR_RECON_DATA!$B$14:$G$70,3,FALSE))) -> 4560120 | N59: GREEN POWER | O59: =IF(ISNA(VLOOKUP(M59,JLH_OOR_RECON_DATA!$D$14:$G$71,4,FALSE)),0,(VLOOKUP(M59,JLH_OOR_RECON_DATA!$D$14:$G$71,4,FALSE))) -> 244.8
C60: Unbilled | D60: Unbilled | H60: =H55+H37+H31 -> 50338 | J60: 30 | K60: PLANT | L60: 45629 | M60: =IF(ISNA(VLOOKUP(L60,JLH_OOR_RECON_DATA!$B$14:$G$70,3,FALSE)),0,(VLOOKUP(L60,JLH_OOR_RECON_DATA!$B$14:$G$70,3,FALSE))) -> 4560140 | N60: TRANSLOADING - BB | O60: =IF(ISNA(VLOOKUP(M60,JLH_OOR_RECON_DATA!$D$14:$G$71,4,FALSE)),0,(VLOOKUP(M60,JLH_OOR_RECON_DATA!$D$14:$G$71,4,FALSE))) -> 0
B61: Rate | C61: Revenue | D61: MWH | J61: 31 | K61: TRANS | L61: 45630 | M61: =IF(ISNA(VLOOKUP(L61,JLH_OOR_RECON_DATA!$B$14:$G$70,3,FALSE)),0,(VLOOKUP(L61,JLH_OOR_RECON_DATA!$B$14:$G$70,3,FALSE))) -> 4560200 | N61: OATT | O61: =IF(ISNA(VLOOKUP(M61,JLH_OOR_RECON_DATA!$D$14:$G$71,4,FALSE)),0,(VLOOKUP(M61,JLH_OOR_RECON_DATA!$D$14:$G$71,4,FALSE)))+I11 -> 5942.8
B62: Class | C62: $000 | D62: Sales | H62: =SUM(H60:H61) -> 50338 | J62: 32 | K62: TRANS | L62: 45631 | M62: =IF(ISNA(VLOOKUP(L62,JLH_OOR_RECON_DATA!$B$14:$G$70,3,FALSE)),0,(VLOOKUP(L62,JLH_OOR_RECON_DATA!$B$14:$G$70,3,FALSE))) -> 4560210 | N62: OATT | O62: =IF(ISNA(VLOOKUP(M62,JLH_OOR_RECON_DATA!$D$14:$G$71,4,FALSE)),0,(VLOOKUP(M62,JLH_OOR_RECON_DATA!$D$14:$G$71,4,FALSE))) -> 105.9
J63: 33 | K63: TRANS | L63: 45632 | M63: =IF(ISNA(VLOOKUP(L63,JLH_OOR_RECON_DATA!$B$14:$G$70,3,FALSE)),0,(VLOOKUP(L63,JLH_OOR_RECON_DATA!$B$14:$G$70,3,FALSE))) -> 4560220 | N63: OATT | O63: =IF(ISNA(VLOOKUP(M63,JLH_OOR_RECON_DATA!$D$14:$G$71,4,FALSE)),0,(VLOOKUP(M63,JLH_OOR_RECON_DATA!$D$14:$G$71,4,FALSE))) -> 0
B64: RS | C64: -95.85455159 | D64: -1994 | J64: 34 | K64: EGY | L64: 45633 | M64: =IF(ISNA(VLOOKUP(L64,JLH_OOR_RECON_DATA!$B$14:$G$70,3,FALSE)),0,(VLOOKUP(L64,JLH_OOR_RECON_DATA!$B$14:$G$70,3,FALSE))) -> 4560230 | N64: GSI PENALTY | O64: =IF(ISNA(VLOOKUP(M64,JLH_OOR_RECON_DATA!$D$14:$G$71,4,FALSE)),0,(VLOOKUP(M64,JLH_OOR_RECON_DATA!$D$14:$G$71,4,FALSE))) -> 0
B65: GS, TS | C65: -11.45012291 | D65: -238 | J65: 35 | K65: TRANS_SEP | L65: 45634 | M65: =IF(ISNA(VLOOKUP(L65,JLH_OOR_RECON_DATA!$B$14:$G$70,3,FALSE)),0,(VLOOKUP(L65,JLH_OOR_RECON_DATA!$B$14:$G$70,3,FALSE))) -> 4560300 | N65: PNT TO PNT - SEPARATED SALES | O65: =IF(ISNA(VLOOKUP(M65,JLH_OOR_RECON_DATA!$D$14:$G$71,4,FALSE)),0,(VLOOKUP(M65,JLH_OOR_RECON_DATA!$D$14:$G$71,4,FALSE))) -> 0
B66: Total Class I +II | C66: -107.3046745 | D66: =SUM(D64:D65) -> -2232 | J66: 36 | K66: TRANS_SEP | L66: 45635 | M66: =IF(ISNA(VLOOKUP(L66,JLH_OOR_RECON_DATA!$B$14:$G$70,3,FALSE)),0,(VLOOKUP(L66,JLH_OOR_RECON_DATA!$B$14:$G$70,3,FALSE))) -> 4560310 | N66: SCH 1 - SEPARATED SALES | O66: =IF(ISNA(VLOOKUP(M66,JLH_OOR_RECON_DATA!$D$14:$G$71,4,FALSE)),0,(VLOOKUP(M66,JLH_OOR_RECON_DATA!$D$14:$G$71,4,FALSE))) -> 0
J67: 37 | K67: TRANS_SEP | L67: 45636 | M67: =IF(ISNA(VLOOKUP(L67,JLH_OOR_RECON_DATA!$B$14:$G$70,3,FALSE)),0,(VLOOKUP(L67,JLH_OOR_RECON_DATA!$B$14:$G$70,3,FALSE))) -> 0 | N67: ANCILLIARY - SEPARATED SALES | O67: =IF(ISNA(VLOOKUP(M67,JLH_OOR_RECON_DATA!$D$14:$G$71,4,FALSE)),0,(VLOOKUP(M67,JLH_OOR_RECON_DATA!$D$14:$G$71,4,FALSE))) -> 0
J68: 38 | K68: PLANT | L68: 45651 | M68: =IF(ISNA(VLOOKUP(L68,JLH_OOR_RECON_DATA!$B$14:$G$70,3,FALSE)),0,(VLOOKUP(L68,JLH_OOR_RECON_DATA!$B$14:$G$70,3,FALSE))) -> 0 | N68: REVENUE -JOB ORDER-COST | O68: =IF(ISNA(VLOOKUP(M68,JLH_OOR_RECON_DATA!$D$14:$G$71,4,FALSE)),0,(VLOOKUP(M68,JLH_OOR_RECON_DATA!$D$14:$G$71,4,FALSE))) -> 0
J69: 39 | K69: PLANT | L69: 45670 | M69: =IF(ISNA(VLOOKUP(L69,JLH_OOR_RECON_DATA!$B$14:$G$70,3,FALSE)),0,(VLOOKUP(L69,JLH_OOR_RECON_DATA!$B$14:$G$70,3,FALSE))) -> 4560150 | N69: FGT PHASE VIII PROJECT | O69: =IF(ISNA(VLOOKUP(M69,JLH_OOR_RECON_DATA!$D$14:$G$71,4,FALSE)),0,(VLOOKUP(M69,JLH_OOR_RECON_DATA!$D$14:$G$71,4,FALSE))) -> 2128.8
H70: these are actually adj to above accts: | J70: 40 | K70: TRANS_INTERCHG | L70: 45682 | M70: =IF(ISNA(VLOOKUP(L70,JLH_OOR_RECON_DATA!$B$14:$G$70,3,FALSE)),0,(VLOOKUP(L70,JLH_OOR_RECON_DATA!$B$14:$G$70,3,FALSE))) -> 0 | N70: TRANSM. NON -SEPARATED | O70: =IF(ISNA(VLOOKUP(M70,JLH_OOR_RECON_DATA!$D$14:$G$71,4,FALSE)),0,(VLOOKUP(M70,JLH_OOR_RECON_DATA!$D$14:$G$71,4,FALSE))) -> 0
B71: GSD, SBF | C71: -65.33490622 | D71: -1789 | H71: ENDS UP ROLLED TO PROD EGY | J71: 41 | K71: PLANT | L71: 45690 | M71: 4560160 | N71: FGT WALKER RD & BAYSIDE | O71: =IF(ISNA(VLOOKUP(M71,JLH_OOR_RECON_DATA!$D$14:$G$71,4,FALSE)),0,(VLOOKUP(M71,JLH_OOR_RECON_DATA!$D$14:$G$71,4,FALSE))) -> 9.6
B72: IS,SBI | C72: 0 | D72: 0 | H72: reduction to plant related revenues | J72: 42 | K72: TOTAL OTHER OPERATING REVENUES | O72: =SUM(O31:O71) -> 50338
B73: Total Class III + IV | C73: -65.33490622 | D73: =SUM(D71:D72) -> -1789 | H73: this is an adj to 456 acct | J73: 43 | K73: OTHER REVENUE (Adjust. to existing dollars)
H74: this is budget adj | J74: 44 | K74: UNBILLED | L74: 45671 | M74: 4560900 | N74: UNBILLED REV | O74: =JLH_OOR_RECON_DATA!D4+H11 -> -174.4
H75: this is an adj to 456 acct | J75: 45 | K75: PLANT | L75: JO REVENUE | N75: SURV RPT ADJ | O75: =SUMIF(JLH_SR_SCH2_PG2!A14:A48,"Job Order Revenues",JLH_SR_SCH2_PG2!C14:C48)/1000 -> 0
J76: 46 | K76: PWR | L76: I/CHG NON-SEPARATED | N76: EE PKG SUPPLE.SCH REV | O76: =F11*1 -> 0
B77: Lighting Service | H77: this is an adj to egy 456 acct | J77: 47 | K77: EGY | L77: CLAUSE ADJ. MGMT,456xx | N77: EE PKG SUPPLE.SCH REV | O77: =G11 -> 0
B78: a. Electricity Sales | C78: -1.2620212 | D78: -51 | J78: 48 | K78: WHSL_EGY | L78: NON-RECOV CLAUSE ITEMS | N78: SO 2 GAINS, WHSL(ecrc) | O78: =D11 -> 0
B79: b. Facilities | C79: 0 | D79: 0 | J79: 49 | K79: PLANT | L79: NON-RECOV CLAUSE ITEMS | N79: Conservation | O79: =E11 -> 0
C80: -1.2620212 | D80: =SUM(D78:D79) -> -51 | J80: 50 | K80: EGY | L80: NON-RECOV CLAUSE ITEMS | N80: REVEN RECON (FUEL) | O80: =C11 -> 0
J81: 51 | N81: Adj. to 456 revenues | O81: =SUM(O74:O80) -> -174.4
J82: 52 | K82: TOTAL OOR Adjusted | O82: =O72+O81 -> 50163.6
B83: Total | C83: -173.9016019 | D83: =D80+D73+D66 -> -4072 | J83: 53 | K83: DESCRIPTIONS | L83: SUMMING CODES | O83: AMOUNT $
J84: 54 | K84: (2) MISC SERVICE REVENUE (OOR)
J85: 55 | K85: TOTAL MISC SVC REVENUES | L85: SVC | O85: =SUMIF($K$31:$K$80,"SVC",$O$31:$O$80) -> 22788.7
J86: 56 | K86: (3) RENT REVENUE (OOR)
J87: 57 | K87: RENT REVENUES | O87: =SUM(O88:O92) -> 10240
J88: 58 | K88: PROD - DEMAND | L88: RENT_PROD | O88: =SUMIF($K$31:$K$83,L88,$O$31:$O$83) -> 42
J89: 59 | K89: TRANS - DEMAND | L89: RENT_TRANSM | O89: =SUMIF($K$31:$K$83,L89,$O$31:$O$83) -> 625.3
J90: 60 | K90: SUBTRANS - DEMAND | L90: TXPOLE | O90: =B11 -> 196.683
J91: 61 | K91: DIST PRI - DEMAND | L91: RENT_DP | O91: =SUMIF($K$31:$K$83,L91,$O$31:$O$83)-O90 -> 9243.717
J92: 62 | K92: DIST SEC - DEMAND | L92: RENT_DS | O92: =SUMIF($K$31:$K$83,L92,$O$31:$O$83) -> 132.3
J93: 63 | K93: TOTAL RENT REVENUES | O93: =SUM(O88:O92) -> 10240
J94: 64 | K94: (4) PLANT-RELATED FUNCTIONALIZATION BASED ON PLANT IN SERVICE (OOR)
J95: 65 | K95: PLANT-RELATED | L95: Plant | N95: PIS RATIO % | O95: =SUMIF(K44:K80,L95,O44:O80) -> 2434
J96: 66 | K96: PROD-DEMAND | L96: =+REPORTS!$F979 -> 3102692.76 | N96: =L96/$L$104 -> 0.4761328635 | O96: =+$O$95*N96 -> 1158.90739
J97: 67 | K97: PROD-ENERGY | L97: =+REPORTS!$F980 -> 609093.1712 | N97: =L97/$L$104 -> 0.09347018804 | O97: 227.5064377
J98: 68 | K98: TRANS - DEMAND | L98: =+REPORTS!$F981 -> 210800.0609 | N98: 0.03234894473 | O98: 78.73733146
J99: 69 | K99: SUBTRANS - DEMAND | L99: =+REPORTS!$F982 -> 416928.0374 | N99: 0.06398092098 | O99: 155.7295617
J100: 70 | K100: DIST PRI - DEMAND | L100: =+REPORTS!$F983 -> 760841.187 | N100: 0.1167571271 | O100: 284.1868474
J101: 71 | K101: DIST SEC - DEMAND | L101: =+REPORTS!$F984 -> 531265.2512 | N101: 0.08152687517 | O101: 198.4364142
J102: 72 | K102: DIST - CUST | L102: =+REPORTS!$F985 -> 832992.7295 | N102: 0.1278293548 | O102: 311.1366495
J103: 73 | K103: OTH - CUST | L103: =+REPORTS!$F986 -> 51830.00207 | N103: 0.00795372575 | O103: 19.35936847
J104: 74 | K104: TOTAL OOR PLANT RELATED REVENUES | L104: =SUM(L96:L103) -> 6516443.199 | N104: =SUM(N96:N103) -> 1 | O104: =SUM(O96:O103) -> 2434
J105: 75 | K105: (5) OATT TRANSMISSION REVENUES (OOR) (NO ENERGY SALES ASSOCIATED)
H106: FOR ACTUALS, WOULD NEED TO | J106: 76 | K106: TRANSM-OATT | L106: TRANS | O106: =SUMIF($K$31:$K$80,"TRANS",$O$31:$O$80) -> 6048.7
H107: SEPARATE FIRM & NON-FIRM OATT | J107: 77 | K107: TRANSM - OATT "NON-FIRM" | L107: 1 | N107: 0
H108: TRANSACTIONS | J108: =J107+1 -> 78 | K108: TRANSM - OATT 100% WHSL | L108: 1 | N108: =L108*O106 -> 6048.7
J109: 79 | L109: =SUM(L107:L108) -> 2 | N109: =SUM(N107:N108) -> 6048.7
J110: 80 | K110: (6) WHEELING REVENUES (OOR)
H111: transm wheeling is combined with | J111: 81 | K111: GRANDFATHERED WHEELING - (APP) | L111: WHEELING | O111: =SUMIF($K$31:$K$80,"WHEELING",$O$31:$O$80) -> 0
H112: sales revenues on Reports tab & is | J112: 82 | K112: PROD-DEMAND | L112: =$D$44 -> 0.01539180791 | N112: =$D$44*O111 -> 0
H113: 100% wholesale | J113: 83 | K113: TRANSM - WHEELING 100% WHSL | L113: =$D$42 -> 0.9846081921 | N113: =$D$42*$O$111 -> 0
J114: 84 | L114: =SUM(L112:L113) -> 1 | N114: =SUM(N112:N113) -> 0
J115: 85 | K115: (7) OATT REVENUES ASSOCIATED WITH SEPARATED ENERGY SALES (UNBUNDLED 3/1/11)
J116: 86 | K116: TRANSM-OATT | L116: TRANS_SEP | O116: =SUMIF($K$31:$K$80,"TRANS_SEP",$O$31:$O$80) -> 0
H117: This has retail/whsl split | J117: 87 | K117: TRANSM - OATT 100% WHSL | L117: 1 | N117: =$L$117*O116 -> 0
H118: Interchg non-separated Sales | J118: 88 | K118: (8) CO-GENERATION MAINTENANCE & NON-SEPARATED TRANSMISSION REVENUES (OOR)
J119: 89 | K119: TRANS - DEMAND | L119: COGEN | O119: =SUMIF($K$31:$K$80,"COGEN",$O$31:$O$80) -> 519.6
J120: 90 | K120: TRANS - DEMAND | N120: TRANS_INTERCHG | O120: =SUMIF($K$31:$K$80,"TRANS_INTERCHG",$O$31:$O$80) -> 0
J121: 91 | K121: (9) TOTAL FUNCTIONALIZED [Sum items (4) to (8) above]
J122: 92 | K122: PROD-DEMAND | O122: =+O96+N112 -> 1158.90739
J123: 93 | K123: PROD-ENERGY | O123: =+O97 -> 227.5064377
J124: 94 | K124: TRANS - DEMAND | O124: =+O98+O119+O120+N107 -> 598.3373315
J125: 95 | K125: TRANS - FIRM WHSL | N125: 100% WHSL | O125: =(N113+N108+N117) -> 6048.7
J126: 96 | K126: SUBTRANS - DEMAND | O126: =+O99 -> 155.7295617
J127: 97 | K127: DIST PRI - DEMAND | O127: =+O100 -> 284.1868474
J128: 98 | K128: DIST SEC - DEMAND | O128: =+O101 -> 198.4364142
J129: 99 | K129: DIST - CUST | O129: =+O102 -> 311.1366495
J130: 100 | K130: OTH - CUST | O130: =+O103 -> 19.35936847
J131: 101 | K131: TOTAL | O131: =SUM(O122:O130) -> 9002.3
J132: 102 | K132: (10) DIRECT ASSIGNED TO SPECIFIC LINE ITEMS OF REVENUE REPORT
J133: 103 | K133: STEAM & MISC | L133: EGY | O133: =SUMIF($K$31:$K$80,"EGY",$O$31:$O$80) -> 8231.4
J134: 104 | K134: CLAUSE REVENUE TIMING | L134: WHSL_EGY | O134: =SUMIF($K$31:$K$80,"WHSL_EGY",$O$31:$O$80) -> 0
J135: 105 | K135: COLLECT FEE / SALES TAX | L135: TAX | O135: =SUMIF($K$31:$K$80,"TAX",$O$31:$O$80) -> 75.6
J136: 106 | K136: ENERGY POWER SALES | L136: PWR | O136: =SUMIF($K$31:$K$80,"PWR",$O$31:$O$80)*1 -> 0
J137: 107 | K137: UNBILLED REVENUE | L137: UNBILLED | O137: =SUMIF($K$31:$K$80,"UNBILLED",$O$31:$O$80) -> -174.4
J138: 108 | K138: TOTAL | O138: =SUM(O133:O137) -> 8132.6
J139: 109 | K139: (11) TOTAL REVENUES RECAP
J140: 110 | K140: TOTAL SALES REVENUE (BASE & PR SALES) | O140: =B34 -> 911227.949
J141: 111 | K141: PLUS: TRANSM OATT & GRANDFATHERED WHEELING | N141: 100% WHSL | O141: =O125 -> 6048.7
J142: 112 | K142: TOTAL COMPANY SALES REV. & TRANSM. WHSL | O142: =SUM(O140:O141) -> 917276.649
J143: 113 | K143: OTHER OPERATING REVENUES:
J144: =J143+1 -> 114 | K144: MISC SRVC REVENUES | O144: =O85 -> 22788.7
J145: 115 | K145: MISC RENT REVENUES | O145: =O93 -> 10240
J146: 116 | K146: MISC OOR REVENUES, incl Unbilled | O146: =O131+O138 -> 17134.9
J147: 117 | K147: SUBTOTAL Adjusted OOR | O147: =SUM(O144:O146) -> 50163.6
J148: 118 | K148: LESS: TRANSM OATT & GRANDFATHERED WHEELING (ABOVE) | O148: =-O141 -> -6048.7
J149: 119 | K149: TOTAL COMPANY NET OOR REVENUES (excl. OATT & Wheeling) | O149: =O147+O148 -> 44114.9
J150: 120
J151: 121 | K151: TOTAL COMPANY SALES AND OTHER OPERATING REVENUE | O151: =O149+O142 -> 961391.549

Sheet Generation
A1: =PERIOD -> FOR THE FORECAST PERIOD ENDING 12/31/14 | I1: THIS INFO FEEDS GENERATION & PROD O&M TAB | T1: "range names"
E2: Prints Data Section Only, [col A to E] & Inputs Section A1:j19 | I2: Production: 'For the Gasifier & BB4 Scrubber | T2: gen_inputs | U2: =Generation!$A$1:$K$18
K3: Energy | T3: gen_depre_data | U3: =Generation!$A$143:$F$202
I4: Scrubber Plant & O&M | K4: 1 | T4: gen_plant_data | U4: =Generation!$A$23:$F$78
E5: Prints Generation Summaries Only | I5: Gasifier Plant & O&M | K5: 1 | T5: gen_reserves_data | U5: =Generation!$A$84:$F$140
I6: Prod Other O&M [CSA's, Acct 553] | K6: 1 | T6: gen_depre | U6: =Generation!$H$142:$T$198
A7: REQUIRED INPUTS: | I7: Toggle for the shift of $'s to Energy | T7: gen_plant | U7: =Generation!$H$21:$T$76
A8: Period | C8: 2014 Unit Capacity Memo | D8: Plant Values, Rate Case | E8: Plant Values, Rate Case | F8: Plant Values, Rate Case | I8: Chg to 0 if you want dollars back to Demand | T8: gen_reserves | U8: =Generation!$H$81:$T$137
A9: Desc | C9: Net Capability | D9: Total Gasifier | E9: Polk Common | F9: Polk Unit 1
A10: Source | C10: 10 Year Site Plan, Sch 1 | D10: bill arcand/jlh SS | E10: jlh SS | F10: jlh SS
A11: Input Value | C11: Column J, by unit | D11: =E11+F11 -> 289948173.1 | E11: 9793772.243 | F11: 280154400.9
A12: Cell location | C12: Col I, Rows 35:70 | D12: rate case values | E12: rate case values | F12: rate case values
C13: UPDATED 11/26/12 | D13: updated 12/24/12 | E13: updated 12/24/12 | F13: updated 12/24/12
A15: COMMENTS: | C15: Phillips is on Long Term Standby, did not include MW capability on schedule
C16: Gasifier update for rate case is based on October, 2012 plant in service values
H21: TAMPA ELECTRIC COMPANY
H22: PRODUCTION PLANT COST ($000)
A23: PRODUCTION PLANT (13 MO AVG) | H23: =+'TITLES & CONSTANTS'!$D$9 -> FOR THE FORECAST PERIOD ENDING 12/31/14
A24: =PERIOD -> FOR THE FORECAST PERIOD ENDING 12/31/14
B26: LAND NOW AUTOMATED | E26: NOW AUTOMATED | J26: Net | K26: 13-Mo Avg | L26: Tools & | N26: =IF(version="Present",LOAD_RESEARCH!E6/LOAD_RESEARCH!D6,'PROPOSED_LOAD RESEARCH'!E6/'PROPOSED_LOAD RESEARCH'!D6) -> 0 | P26: Scrubber & Gasifier have diff split
D27: PLANT ACCTG | E27: SURV RPT | F27: TOTAL NET | J27: Capability | K27: Plant | L27: Steam | M27: TOTAL | N27: REQ | O27: FL | P27: FL JURIS DEMAND/ENERGY SPLIT
A28: Station/Unit Desc. | B28: LAND | C28: ADJ. OTHER | D28: COMPONENTS ACCTS | E28: ADJUSTMENTS | F28: PLANT COST | H28: Line Number | I28: Description | J28: (MW) * | K28: Cost | L28: Common | M28: COMPANY | N28: SALES | O28: JURIS | P28: Demand | Q28: Energy | R28: Total
D29: (includes land from left) | H29: 1 | I29: 2 | J29: 3 | K29: 4 | L29: 5 | M29: 6 | N29: 7 | O29: 8 | P29: 9 | Q29: 10 | R29: 11
A30: =I30 -> Steam Production | H30: 1 | I30: Steam Production
A31: =I31 -> Big Bend Common | B31: =SUMIF(GEN_LAND!$A$38:$A$44,"31040",GEN_LAND!$D$38:$D$44)/1000 -> 5981.5104 | D31: =(SUMIF(JLH_MFR_DATA!$A$7:$A$410,"BBC",JLH_MFR_DATA!$D$7:$D$410)/1000)+$B$31 -> 408400.9036 | E31: 0 | F31: =+D31+E31 -> 408400.9036 | H31: =+H30+1 -> 2 | I31: Big Bend Common | K31: =+F31 -> 408400.9036 | L31: =-K31 -> -408400.9036 | M31: =SUM(K31:L31) -> 0 | N31: 0 | O31: =M31-N31 -> 0
C32: FGD 1&2 | H32: =+H31+1 -> 3
A33: =I33 -> Big Bend Unit 1 | C33: =SUMIF(JLH_MFR_DATA!$A$7:$A$380,"BBFGD",JLH_MFR_DATA!$D$7:$D$380)/1000 -> 87316.37635 | D33: =(SUMIF(JLH_MFR_DATA!$A$7:$A$410,"BB1",JLH_MFR_DATA!$D$7:$D$410)/1000+($C33*$J$33/SUM($J$33:$J$34)))+(SUMIF(JLH_MFR_DATA!$A$7:$A$410,"BB1SCR",JLH_MFR_DATA!$D$7:$D$410)/1000) -> 287855.0355 | E33: =-SUMIF(ECRC_ADJ_GEN!$A$14:$A$22,"BB1",ECRC_ADJ_GEN!$B$14:$B$22)/1000 -> -151917.2554 | F33: =+D33+E33 -> 135937.7801 | H33: 4 | I33: Big Bend Unit 1 | J33: 395 | K33: =+F33 -> 135937.7801 | L33: =+J33/$J$40*($K$31+$K$38) -> 103248.4517 | M33: =SUM(K33:L33) -> 239186.2318 | N33: =+M33*$N$26 -> 0 | O33: =M33-N33 -> 239186.2318 | P33: =O33 -> 239186.2318 | Q33: 0 | R33: =+P33+Q33 -> 239186.2318
A34: Big Bend Unit 2 | C34: modified for SCR, 2012 | D34: =(SUMIF(JLH_MFR_DATA!$A$7:$A$410,"BB2",JLH_MFR_DATA!$D$7:$D$410)/1000+($C33*$J$34/SUM($J$33:$J$34)))+(SUMIF(JLH_MFR_DATA!$A$7:$A$410,"BB2SCR",JLH_MFR_DATA!$D$7:$D$410)/1000) -> 304070.0883 | E34: =-SUMIF(ECRC_ADJ_GEN!$A$14:$A$22,"BB2",ECRC_ADJ_GEN!$B$14:$B$22)/1000 -> -159516.4794 | F34: 144553.6089 | H34: 5 | I34: Big Bend Unit 2 | J34: 395 | K34: =+F34 -> 144553.6089 | L34: =+J34/$J$40*($K$31+$K$38) -> 103248.4517 | M34: 247802.0606 | N34: 0 | O34: 247802.0606 | P34: =O34 -> 247802.0606 | Q34: 0 | R34: 247802.0606
A35: Big Bend Unit 3 | D35: =(SUMIF(JLH_MFR_DATA!$A$7:$A$410,"BB3",JLH_MFR_DATA!$D$7:$D$410)/1000)+(SUMIF(JLH_MFR_DATA!$A$7:$A$410,"BB3SCR",JLH_MFR_DATA!$D$7:$D$410)/1000) -> 348722.2248 | E35: =-SUMIF(ECRC_ADJ_GEN!$A$14:$A$22,"BB3",ECRC_ADJ_GEN!$B$14:$B$22)/1000 -> -121678.9404 | F35: 227043.2844 | H35: 6 | I35: Big Bend Unit 3 | J35: 365 | K35: =+F35 -> 227043.2844 | L35: =+J35/$J$40*($K$31+$K$38) -> 95406.79715 | M35: 322450.0815 | N35: 0 | O35: 322450.0815 | P35: =O35 -> 322450.0815 | Q35: 0 | R35: 322450.0815
A36: Big Bend Unit 4 | D36: =(SUMIF(JLH_MFR_DATA!$A$7:$A$410,"BB4",JLH_MFR_DATA!$D$7:$D$410)/1000)+(SUMIF(JLH_MFR_DATA!$A$7:$A$410,"BB4SCR",JLH_MFR_DATA!$D$7:$D$410)/1000) -> 505489.8072 | E36: =-SUMIF(ECRC_ADJ_GEN!$A$14:$A$22,"BB4",ECRC_ADJ_GEN!$B$14:$B$22)/1000 -> -92320.1984 | F36: 413169.6088 | H36: 7 | I36: Big Bend Unit 4 | J36: 417 | K36: =F36 -> 413169.6088 | L36: =+J36/$J$40*($K$31+$K$38) -> 108998.9984 | M36: 522168.6072 | N36: 0 | O36: 522168.6072 | P36: =O36 -> 522168.6072 | Q36: 0 | R36: 522168.6072
A37: Big Bend Unit 4 FGD | D37: =(SUMIF(JLH_MFR_DATA!$A$7:$A$410,"BB4FGD",JLH_MFR_DATA!$D$7:$D$410)/1000) -> 215896.8633 | F37: 215896.8633 | H37: 8 | I37: Big Bend Unit 4 FGD | K37: =F37 -> 215896.8633 | M37: 215896.8633 | N37: 0 | O37: 215896.8633 | P37: =IF(Generation!$K$4=1,0,$O$37) -> 0 | Q37: =IF(Generation!$K$4=1,O37,0) -> 215896.8633 | R37: 215896.8633
A38: Big Bend Tools | D38: =(SUMIF(JLH_MFR_DATA!$A$7:$A$410,"BBT",JLH_MFR_DATA!$D$7:$D$410)/1000) -> 2501.795325 | F38: 2501.795325 | H38: 9 | I38: Big Bend Tools | K38: =+F38 -> 2501.795325 | L38: =-K38 -> -2501.795325 | M38: 0 | N38: 0 | O38: 0 | P38: =O38 -> 0 | Q38: 0 | R38: 0
H39: 10
H40: 11 | I40: Total Big Bend | J40: =SUM(J33:J38) -> 1572 | K40: =SUM(K31:K38) -> 1547503.844 | L40: =SUM(L31:L38) -> 2.273736754e-11 | M40: =SUM(M32:M38) -> 1547503.844 | N40: =SUM(N32:N38) -> 0 | O40: =SUM(O31:O38) -> 1547503.844 | P40: =SUM(P32:P38) -> 1331606.981 | Q40: =SUM(Q32:Q38) -> 215896.8633 | R40: =SUM(R32:R38) -> 1547503.844
H41: 12
A42: =I42 -> Steam Prod Dismantling | D42: =(SUMIF(JLH_MFR_DATA!$A$7:$A$410,"SPD",JLH_MFR_DATA!$D$7:$D$410)/1000) -> 0 | F42: =D42+E42 -> 0 | H42: 13 | I42: Steam Prod Dismantling | K42: =F42 -> 0 | L42: 0 | M42: =L42+K42 -> 0 | N42: =M42*N26 -> 0 | O42: =M42-N42 -> 0 | P42: =O42 -> 0 | Q42: 0 | R42: =Q42+P42 -> 0
H43: 14
H44: 15 | I44: TOTAL STEAM | J44: =J40 -> 1572 | K44: =K40 -> 1547503.844 | L44: 2.273736754e-11 | M44: 1547503.844 | N44: 0 | O44: 1547503.844 | P44: 1331606.981 | Q44: 215896.8633 | R44: 1547503.844
H45: 16
A46: =I46 -> Other Production | H46: 17 | I46: Other Production
A47: =I47 -> Big Bend CT4 | D47: =(SUMIF(JLH_MFR_DATA!$A$7:$A$410,"BBCT4",JLH_MFR_DATA!$D$7:$D$410)/1000)+$B$47 -> 40030.91482 | F47: =+D47+E47 -> 40030.91482 | H47: 18 | I47: Big Bend CT4 | J47: 56 | K47: =+F47 -> 40030.91482 | L47: 0 | M47: =SUM(K47:L47) -> 40030.91482 | N47: =+M47*$N$26 -> 0 | O47: =M47-N47 -> 40030.91482 | P47: =O47 -> 40030.91482 | Q47: 0 | R47: =+P47+Q47 -> 40030.91482
A48: =I48 -> Phillips Station | B48: =SUMIF(GEN_LAND!$A$38:$A$44,"34028",GEN_LAND!$D$38:$D$44)/1000 -> 179.223 | D48: =(SUMIF(JLH_MFR_DATA!$A$7:$A$410,"PH",JLH_MFR_DATA!$D$7:$D$410)/1000)+$B$48 -> 60507.95722 | E48: =-SUMIF(ECRC_ADJ_GEN!$A$14:$A$22,"Phillips",ECRC_ADJ_GEN!$B$14:$B$22)/1000 -> 0 | F48: =+D48+E48 -> 60507.95722 | H48: 19 | I48: Phillips Station | J48: 0 | K48: =+F48 -> 60507.95722 | L48: 0 | M48: =SUM(K48:L48) -> 60507.95722 | N48: =+M48*$N$26 -> 0 | O48: =M48-N48 -> 60507.95722 | P48: 60507.95722 | Q48: 0 | R48: =+P48+Q48 -> 60507.95722
A49: =I49 -> Cty of Tpa Prime Mvrs | D49: =(SUMIF(JLH_MFR_DATA!$A$7:$A$410,"COT",JLH_MFR_DATA!$D$7:$D$410)/1000) -> 6498.54822 | F49: =+D49+E49 -> 6498.54822 | H49: 20 | I49: Cty of Tpa Prime Mvrs | J49: 6 | K49: =+F49 -> 6498.54822 | L49: 0 | M49: =SUM(K49:L49) -> 6498.54822 | N49: =+M49*$N$26 -> 0 | O49: =M49-N49 -> 6498.54822 | P49: 6498.54822 | Q49: 0 | R49: =+P49+Q49 -> 6498.54822
H50: 21 | P50: 0 | Q50: 0
A51: =I51 -> Bayside Unit 1 | D51: =(SUMIF(JLH_MFR_DATA!$A$7:$A$410,"BAY1",JLH_MFR_DATA!$D$7:$D$410)/1000) -> 325694.4887 | F51: =+D51+E51 -> 325694.4887 | H51: 22 | I51: Bayside Unit 1 | J51: 701 | K51: =+F51 -> 325694.4887 | L51: 0 | M51: =SUM(K51:L51) -> 325694.4887 | N51: =+M51*$N$26 -> 0 | O51: =M51-N51 -> 325694.4887 | P51: 325694.4887 | Q51: 0 | R51: =+P51+Q51 -> 325694.4887
A52: Bayside Unit 2 | D52: =(SUMIF(JLH_MFR_DATA!$A$7:$A$410,"BAY2",JLH_MFR_DATA!$D$7:$D$410)/1000) -> 440638.1923 | F52: 440638.1923 | H52: 23 | I52: Bayside Unit 2 | J52: 929 | K52: 440638.1923 | L52: 0 | M52: 440638.1923 | N52: 0 | O52: 440638.1923 | P52: 440638.1923 | Q52: 0 | R52: 440638.1923
A53: Bayside Unit 3 | D53: =(SUMIF(JLH_MFR_DATA!$A$7:$A$410,"BAY3",JLH_MFR_DATA!$D$7:$D$410)/1000) -> 31262.126 | F53: 31262.126 | H53: 24 | I53: Bayside Unit 3 | J53: 56 | K53: 31262.126 | L53: 0 | M53: 31262.126 | N53: 0 | O53: 31262.126 | P53: 31262.126 | Q53: 0 | R53: 31262.126
A54: Bayside Unit 4 | D54: =(SUMIF(JLH_MFR_DATA!$A$7:$A$410,"BAY4",JLH_MFR_DATA!$D$7:$D$410)/1000) -> 22525.17998 | F54: 22525.17998 | H54: 25 | I54: Bayside Unit 4 | J54: 56 | K54: 22525.17998 | L54: 0 | M54: 22525.17998 | N54: 0 | O54: 22525.17998 | P54: 22525.17998 | Q54: 0 | R54: 22525.17998
A55: Bayside Unit 5 | D55: =(SUMIF(JLH_MFR_DATA!$A$7:$A$410,"BAY5",JLH_MFR_DATA!$D$7:$D$410)/1000) -> 30467.09293 | F55: 30467.09293 | H55: 26 | I55: Bayside Unit 5 | J55: 56 | K55: 30467.09293 | L55: 0 | M55: 30467.09293 | N55: 0 | O55: 30467.09293 | P55: 30467.09293 | Q55: 0 | R55: 30467.09293
A56: Bayside Unit 6 | D56: =(SUMIF(JLH_MFR_DATA!$A$7:$A$410,"BAY6",JLH_MFR_DATA!$D$7:$D$410)/1000) -> 35703.62045 | F56: 35703.62045 | H56: 27 | I56: Bayside Unit 6 | J56: 56 | K56: 35703.62045 | L56: 0 | M56: 35703.62045 | N56: 0 | O56: =M56-N56 -> 35703.62045 | P56: 35703.62045 | Q56: 0 | R56: =+P56+Q56 -> 35703.62045
A57: Bayside Common | B57: =SUMIF(GEN_LAND!$A$38:$A$44,"34030",GEN_LAND!$D$38:$D$44)/1000 -> 1592.89105 | D57: =+(SUMIF(JLH_MFR_DATA!$A$7:$A$410,"BAYC",JLH_MFR_DATA!$D$7:$D$410)/1000)+$B$57+(SUMIF(JLH_MFR_DATA!$A$7:$A$410,"BPC",JLH_MFR_DATA!$D$7:$D$410)/1000) -> 162072.3632 | F57: 162072.3632 | H57: 28 | I57: Bayside Common | K57: 162072.3632 | L57: 0 | M57: 162072.3632 | N57: 0 | O57: 162072.3632 | P57: 162072.3632 | Q57: 0 | R57: 162072.3632
H58: 29
A59: =I59 -> Polk 1 | B59: =SUMIF(GEN_LAND!$A$38:$A$44,"34081",GEN_LAND!$D$38:$D$44)/1000 -> 18197.34147 | C59: Fuel and ECCR | D59: =(SUMIF(JLH_MFR_DATA!$A$7:$A$410,"PK1",JLH_MFR_DATA!$D$7:$D$410)/1000)+$B$59 -> 525656.7169 | E59: =-SUMIF(ECRC_ADJ_GEN!$A$14:$A$22,"Polk",ECRC_ADJ_GEN!$B$14:$B$22)/1000+SUMIF(JLH_SR_Sch2_PG1!$A$15:$A$37,C59,JLH_SR_Sch2_PG1!$C$15:$C$37)/1000 -> -16551.5144 | F59: =+D59+E59 -> 509105.2025 | H59: 30 | I59: Polk 1 | J59: 220 | K59: =+F59 -> 509105.2025 | L59: 0 | M59: =SUM(K59:L59) -> 509105.2025 | N59: =+M59*$N$26 -> 0 | O59: =M59-N59 -> 509105.2025 | P59: =IF(Generation!$K$5=1,O59-Q59,O59) -> 228950.8017 | Q59: =IF(Generation!$K$5=1,$F$11/1000,0) -> 280154.4009 | R59: =+P59+Q59 -> 509105.2025
A60: Polk 2 | D60: =(SUMIF(JLH_MFR_DATA!$A$7:$A$410,"PK2",JLH_MFR_DATA!$D$7:$D$410)/1000) -> 55473.5784 | F60: 55473.5784 | H60: 31 | I60: Polk 2 | J60: 151 | K60: 55473.5784 | L60: 0 | M60: 55473.5784 | N60: 0 | O60: 55473.5784 | P60: =O60 -> 55473.5784 | Q60: 0 | R60: 55473.5784
A61: Polk 3 | D61: =(SUMIF(JLH_MFR_DATA!$A$7:$A$410,"PK3",JLH_MFR_DATA!$D$7:$D$410)/1000) -> 63701.68287 | F61: 63701.68287 | H61: 32 | I61: Polk 3 | J61: 151 | K61: 63701.68287 | L61: 0 | M61: 63701.68287 | N61: 0 | O61: 63701.68287 | P61: =O61 -> 63701.68287 | Q61: 0 | R61: 63701.68287
A62: Polk 4 | D62: =(SUMIF(JLH_MFR_DATA!$A$7:$A$410,"PK4",JLH_MFR_DATA!$D$7:$D$410)/1000) -> 35133.32425 | F62: 35133.32425 | H62: 33 | I62: Polk 4 | J62: 151 | K62: 35133.32425 | L62: 0 | M62: 35133.32425 | N62: 0 | O62: 35133.32425 | P62: =O62 -> 35133.32425 | Q62: 0 | R62: 35133.32425
A63: Polk 5 | D63: =(SUMIF(JLH_MFR_DATA!$A$7:$A$410,"PK5",JLH_MFR_DATA!$D$7:$D$410)/1000) -> 33383.87649 | F63: 33383.87649 | H63: 34 | I63: Polk 5 | J63: 151 | K63: 33383.87649 | L63: 0 | M63: 33383.87649 | N63: 0 | O63: 33383.87649 | P63: =O63 -> 33383.87649 | Q63: 0 | R63: 33383.87649
A64: Polk Common | D64: =(SUMIF(JLH_MFR_DATA!$A$7:$A$410,"PKC",JLH_MFR_DATA!$D$7:$D$410)/1000)+(SUMIF(JLH_MFR_DATA!$A$7:$A$410,"PPT",JLH_MFR_DATA!$D$7:$D$410)/1000) -> 144324.2924 | F64: 144324.2924 | H64: 35 | I64: Polk Common | K64: 144324.2924 | L64: 0 | M64: 144324.2924 | N64: 0 | O64: 144324.2924 | P64: =IF(Generation!$K$5=1,O64-Q64,O64) -> 134530.5202 | Q64: =IF(Generation!$K$5=1,$E$11/1000,0) -> 9793.772243 | R64: 144324.2924
H65: 36
A66: =I66 -> Other Prod Dismantling | D66: =(SUMIF(JLH_MFR_DATA!$A$7:$A$410,"OPD",JLH_MFR_DATA!$D$7:$D$410)/1000) -> 0 | E66: 0 | F66: =D66+E66 -> 0 | H66: 37 | I66: Other Prod Dismantling | K66: =F66 -> 0 | L66: 0 | M66: =SUM(K66:L66) -> 0 | N66: =+M66*$N$26 -> 0 | O66: =M66-N66 -> 0 | P66: =O66 -> 0 | Q66: 0 | R66: =P66+Q66 -> 0
H67: 38
H68: 39 | I68: TOTAL OTHER | J68: =SUM(J47:J64) -> 2740 | K68: 1996522.441 | L68: 0 | M68: 1996522.441 | N68: 0 | O68: 1996522.441 | P68: 1706574.268 | Q68: 289948.1731 | R68: 1996522.441
H69: 40
A70: TOTAL GENERATION | B70: =SUM(B31:B64) -> 25950.96592 | C70: TOTAL PIS | D70: =SUM(D31:D64) -> 4086010.673 | E70: =SUM(E31:E64) -> -541984.388 | F70: =SUM(F31:F64) -> 3544026.285 | H70: 41 | I70: Total Steam & Other Gen | J70: =+J68+J44 -> 4312 | K70: 3544026.285 | L70: 2.273736754e-11 | M70: 3544026.285 | N70: 0 | O70: 3544026.285 | P70: 3038181.249 | Q70: 505845.0364 | R70: 3544026.285
C71: MFR SUMMARY TOTAL | F71: =JLH_MFR_DATA!D13/1000 -> 4060059.707
C72: VARIANCE B/TWN DATA & MFR | F72: =D70-F71 -> 25950.96592 | I72: =+'TITLES & CONSTANTS'!$D$15 -> * Source: Unit Capacity Memo or TYSP, when available. Updated Annually.Use Winter Ratings for Big Bend & Polk 1; Summer Ratings for all other Units/Stations.
C73: MFR EXCLUDE'S LAND | F73: =B70 -> 25950.96592 | I73: =+'TITLES & CONSTANTS'!$D$16 -> 
C74: Final Variance (s/b zero) | F74: =F72-F73 -> -1.273292582e-10
M75: Total
H78: TAMPA ELECTRIC COMPANY
H79: PRODUCTION PLANT ACCUM RESERVE FOR DEPREC ($000)
H80: =+'TITLES & CONSTANTS'!$D$9 -> FOR THE FORECAST PERIOD ENDING 12/31/14
A81: PRODUCTION PLANT ACCUM RESERVE FOR DEPREC (13 MO AVG)
A82: =PERIOD -> FOR THE FORECAST PERIOD ENDING 12/31/14
J83: Net | K83: 13-Mo Avg | L83: Tools &
D84: PLANT ACCTG | E84: SURV RPT | F84: TOTAL NET | J84: Capability | K84: Plant | L84: Steam | M84: TOTAL | N84: REQ | O84: FL | P84: FL JURIS DEMAND/ENERGY SPLIT
A85: Station/Unit Desc. | B85: LAND | C85: ADJ. OTHER | D85: COMPONENTS ACCTS | E85: ADJUSTMENTS | F85: DEPREC RESV | H85: Line Number | I85: Description | J85: (MW) * | K85: Reserve | L85: Common | M85: COMPANY | N85: SALES | O85: JURIS | P85: Demand | Q85: Energy | R85: Total
H86: 1 | I86: 2 | J86: 3 | K86: 4 | L86: 5 | M86: 6 | N86: 7 | O86: 8 | P86: 9 | Q86: 10 | R86: 11
A87: =I87 -> Steam Production | H87: 1 | I87: Steam Production
A88: =I88 -> Big Bend Common | C88: =SUMIF(JLH_MFR_DATA!$A$7:$A$450,"BBCT1",JLH_MFR_DATA!$F$7:$F$450)/1000*1 -> 0 | D88: =(SUMIF(JLH_MFR_DATA!$A$7:$A$410,"BBC",JLH_MFR_DATA!$F$7:$F$410))/1000+C88 -> 74864.51739 | F88: =+D88+E88 -> 74864.51739 | H88: =+H87+1 -> 2 | I88: Big Bend Common | K88: =F88 -> 74864.51739 | L88: =-K88 -> -74864.51739 | M88: =SUM(K88:L88) -> 0 | N88: =0 -> 0 | O88: =M88-N88 -> 0 | P88: =O88 -> 0 | Q88: 0 | R88: =+P88+Q88 -> 0
C89: FGD 1&2 | H89: =+H88+1 -> 3
A90: =I90 -> Big Bend Unit 1 | C90: =SUMIF(JLH_MFR_DATA!$A$7:$A$354,"BBFGD",JLH_MFR_DATA!$F$7:$F$354)/1000 -> 33394.73153 | D90: =(SUMIF(JLH_MFR_DATA!$A$7:$A$410,"BB1",JLH_MFR_DATA!$F$7:$F$410)/1000+($C90*$J$33/SUM($J$33:$J$34)))+(SUMIF(JLH_MFR_DATA!$A$7:$A$410,"BB1SCR",JLH_MFR_DATA!$F$7:$F$410)/1000) -> 85419.22345 | E90: =-SUMIF(ECRC_ADJ_GEN!$A$14:$A$22,"BB1",ECRC_ADJ_GEN!$C$14:$C$22)/1000 -> -41943.74455 | F90: =+D90+E90 -> 43475.4789 | H90: 4 | I90: Big Bend Unit 1 | J90: =+J33 -> 395 | K90: =+F90 -> 43475.4789 | L90: =+J90/$J$97*($K$88+$K$95) -> 19232.9062 | M90: =SUM(K90:L90) -> 62708.38511 | N90: =+M90*$N$26 -> 0 | O90: =M90-N90 -> 62708.38511 | P90: =O90 -> 62708.38511 | Q90: 0 | R90: =+P90+Q90 -> 62708.38511
A91: Big Bend Unit 2 | D91: =(SUMIF(JLH_MFR_DATA!$A$7:$A$410,"BB2",JLH_MFR_DATA!$F$7:$F$410)/1000+($C90*$J$34/SUM($J$33:$J$34)))+(SUMIF(JLH_MFR_DATA!$A$7:$A$410,"BB2SCR",JLH_MFR_DATA!$F$7:$F$410)/1000) -> 92994.77962 | E91: =-SUMIF(ECRC_ADJ_GEN!$A$14:$A$22,"BB2",ECRC_ADJ_GEN!$C$14:$C$22)/1000 -> -43910.79155 | F91: 49083.98807 | H91: 5 | I91: Big Bend Unit 2 | J91: =+J34 -> 395 | K91: 49083.98807 | L91: =+J91/$J$97*($K$88+$K$95) -> 19232.9062 | M91: 68316.89428 | N91: 0 | O91: 68316.89428 | P91: 68316.89428 | Q91: 0 | R91: 68316.89428
A92: Big Bend Unit 3 | D92: =(SUMIF(JLH_MFR_DATA!$A$7:$A$410,"BB3",JLH_MFR_DATA!$F$7:$F$410)/1000)+(SUMIF(JLH_MFR_DATA!$A$7:$A$410,"BB3SCR",JLH_MFR_DATA!$F$7:$F$410)/1000) -> 98832.11999 | E92: =-SUMIF(ECRC_ADJ_GEN!$A$14:$A$22,"BB3",ECRC_ADJ_GEN!$C$14:$C$22)/1000 -> -26514.92855 | F92: 72317.19144 | H92: 6 | I92: Big Bend Unit 3 | J92: =+J35 -> 365 | K92: 72317.19144 | L92: =+J92/$J$97*($K$88+$K$95) -> 17772.17915 | M92: 90089.37059 | N92: 0 | O92: 90089.37059 | P92: 90089.37059 | Q92: 0 | R92: 90089.37059
A93: Big Bend Unit 4 | D93: =(SUMIF(JLH_MFR_DATA!$A$7:$A$410,"BB4",JLH_MFR_DATA!$F$7:$F$410)/1000)+(SUMIF(JLH_MFR_DATA!$A$7:$A$410,"BB4SCR",JLH_MFR_DATA!$F$7:$F$410)/1000) -> 213520.679 | E93: =-SUMIF(ECRC_ADJ_GEN!$A$14:$A$22,"BB4",ECRC_ADJ_GEN!$C$14:$C$22)/1000 -> -20146.69255 | F93: 193373.9865 | H93: 7 | I93: Big Bend Unit 4 | J93: =+J36 -> 417 | K93: =F93 -> 193373.9865 | L93: =+J93/$J$97*($K$88+$K$95) -> 20304.10604 | M93: 213678.0925 | N93: 0 | O93: 213678.0925 | P93: 213678.0925 | Q93: 0 | R93: 213678.0925
A94: Big Bend Unit 4 FGD | D94: =(SUMIF(JLH_MFR_DATA!$A$7:$A$410,"BB4FGD",JLH_MFR_DATA!$F$7:$F$410)/1000) -> 99943.9784 | F94: 99943.9784 | H94: 8 | I94: Big Bend Unit 4 FGD | K94: =F94 -> 99943.9784 | M94: 99943.9784 | N94: 0 | O94: 99943.9784 | P94: =IF(Generation!$K$4=1,0,O94) -> 0 | Q94: =IF(Generation!$K$4=1,O94,0) -> 99943.9784 | R94: 99943.9784
A95: Big Bend Tools Amort. | D95: =(SUMIF(JLH_MFR_DATA!$A$7:$A$410,"BBT",JLH_MFR_DATA!$F$7:$F$410)/1000) -> 1677.580217 | F95: 1677.580217 | H95: 9 | I95: Big Bend Tools Amort. | K95: 1677.580217 | L95: =-K95 -> -1677.580217 | M95: 0 | N95: 0 | O95: 0 | P95: 0 | Q95: 0 | R95: 0
H96: 10
H97: 11 | I97: Total Big Bend | J97: =SUM(J90:J95) -> 1572 | K97: =SUM(K89:K95) -> 459872.2035 | L97: 74864.51739 | M97: 534736.7209 | N97: 0 | O97: 534736.7209 | P97: 434792.7425 | Q97: 99943.9784 | R97: 534736.7209
H98: 12
A99: =I99 -> Steam Prod Dismantling | D99: =(SUMIF(JLH_MFR_DATA!$A$7:$A$410,"SPD",JLH_MFR_DATA!$F$7:$F$410)/1000) -> 79947.74474 | F99: =+D99+E99 -> 79947.74474 | H99: 13 | I99: Steam Prod Dismantling | K99: =+F99 -> 79947.74474 | L99: 0 | M99: =SUM(K99:L99) -> 79947.74474 | N99: =+M99*$N$26 -> 0 | O99: =M99-N99 -> 79947.74474 | P99: =O99 -> 79947.74474 | Q99: 0 | R99: =+P99+Q99 -> 79947.74474
H100: 14
H101: 15 | I101: TOTAL STEAM | J101: =SUM(J99:J100)+J97 -> 1572 | K101: 539819.9482 | L101: 74864.51739 | M101: 614684.4656 | N101: 0 | O101: 614684.4656 | P101: 514740.4872 | Q101: 99943.9784 | R101: 614684.4656
H102: 16
A103: =I103 -> Other Production | H103: 17 | I103: Other Production
A104: Big Bend CT4 | D104: =(SUMIF(JLH_MFR_DATA!$A$7:$A$410,"BBCT4",JLH_MFR_DATA!$F$7:$F$410)/1000) -> 7638.728365 | F104: =+D104+E104 -> 7638.728365 | H104: 18 | I104: Big Bend CT4 | J104: =+J47 -> 56 | K104: =+F104 -> 7638.728365 | L104: 0 | M104: =SUM(K104:L104) -> 7638.728365 | N104: =+M104*$N$26 -> 0 | O104: =M104-N104 -> 7638.728365 | P104: =O104 -> 7638.728365 | Q104: 0 | R104: =+P104+Q104 -> 7638.728365
A105: Phillips Station | D105: =(SUMIF(JLH_MFR_DATA!$A$7:$A$410,"PH",JLH_MFR_DATA!$F$7:$F$410)/1000)+(SUMIF(JLH_MFR_DATA!$A$7:$A$410,"SBACQ",JLH_MFR_DATA!$F$7:$F$410)/1000)*1 -> 60328.73422 | E105: =-SUMIF(ECRC_ADJ_GEN!$A$14:$A$22,"Phillips",ECRC_ADJ_GEN!$C$14:$C$22)/1000 -> 0 | F105: =+D105+E105 -> 60328.73422 | H105: 19 | I105: Phillips Station | J105: =+J48 -> 0 | K105: =+F105 -> 60328.73422 | L105: 0 | M105: =SUM(K105:L105) -> 60328.73422 | N105: =+M105*$N$26 -> 0 | O105: 60328.73422 | P105: 60328.73422 | Q105: 0 | R105: =+P105+Q105 -> 60328.73422
A106: Cty of Tpa Prim Mvrs | D106: =(SUMIF(JLH_MFR_DATA!$A$7:$A$410,"COT",JLH_MFR_DATA!$F$7:$F$410)/1000) -> 3911.80235 | F106: =+D106+E106 -> 3911.80235 | H106: 20 | I106: Cty of Tpa Prim Mvrs | J106: =+J49 -> 6 | K106: =+F106 -> 3911.80235 | L106: 0 | M106: =SUM(K106:L106) -> 3911.80235 | N106: =+M106*$N$26 -> 0 | O106: 3911.80235 | P106: 3911.80235 | Q106: 0 | R106: =+P106+Q106 -> 3911.80235
H107: 21 | O107: 0 | P107: 0 | Q107: 0
A108: Bayside Unit 1 | D108: =(SUMIF(JLH_MFR_DATA!$A$7:$A$410,"BAY1",JLH_MFR_DATA!$F$7:$F$410)/1000) -> 88716.83187 | F108: =+D108+E108 -> 88716.83187 | H108: 22 | I108: Bayside Unit 1 | J108: =+J51 -> 701 | K108: =+F108 -> 88716.83187 | L108: 0 | M108: =SUM(K108:L108) -> 88716.83187 | N108: =+M108*$N$26 -> 0 | O108: 88716.83187 | P108: 88716.83187 | Q108: 0 | R108: =+P108+Q108 -> 88716.83187
A109: Bayside Unit 2 | D109: =(SUMIF(JLH_MFR_DATA!$A$7:$A$410,"BAY2",JLH_MFR_DATA!$F$7:$F$410)/1000) -> 100061.7874 | F109: 100061.7874 | H109: 23 | I109: Bayside Unit 2 | J109: 929 | K109: 100061.7874 | L109: 0 | M109: 100061.7874 | N109: 0 | O109: 100061.7874 | P109: 100061.7874 | Q109: 0 | R109: 100061.7874
A110: Bayside Unit 3 | D110: =(SUMIF(JLH_MFR_DATA!$A$7:$A$410,"BAY3",JLH_MFR_DATA!$F$7:$F$410)/1000) -> 5626.658105 | F110: 5626.658105 | H110: 24 | I110: Bayside Unit 3 | J110: 56 | K110: 5626.658105 | L110: 0 | M110: 5626.658105 | N110: 0 | O110: 5626.658105 | P110: 5626.658105 | Q110: 0 | R110: =+P110+Q110 -> 5626.658105
A111: Bayside Unit 4 | D111: =(SUMIF(JLH_MFR_DATA!$A$7:$A$410,"BAY4",JLH_MFR_DATA!$F$7:$F$410)/1000) -> 4546.47997 | F111: 4546.47997 | H111: 25 | I111: Bayside Unit 4 | J111: 56 | K111: 4546.47997 | L111: 0 | M111: 4546.47997 | N111: 0 | O111: 4546.47997 | P111: 4546.47997 | Q111: 0 | R111: =+P111+Q111 -> 4546.47997
A112: Bayside Unit 5 | D112: =(SUMIF(JLH_MFR_DATA!$A$7:$A$410,"BAY5",JLH_MFR_DATA!$F$7:$F$410)/1000) -> 6416.568469 | F112: 6416.568469 | H112: 26 | I112: Bayside Unit 5 | J112: 56 | K112: 6416.568469 | L112: 0 | M112: 6416.568469 | N112: 0 | O112: 6416.568469 | P112: 6416.568469 | Q112: 0 | R112: =+P112+Q112 -> 6416.568469
A113: Bayside Unit 6 | D113: =(SUMIF(JLH_MFR_DATA!$A$7:$A$410,"BAY6",JLH_MFR_DATA!$F$7:$F$410)/1000) -> 7047.298246 | F113: 7047.298246 | H113: 27 | I113: Bayside Unit 6 | J113: 56 | K113: =+F113 -> 7047.298246 | L113: 0 | M113: 7047.298246 | N113: 0 | O113: =M113-N113 -> 7047.298246 | P113: 7047.298246 | Q113: 0 | R113: =+P113+Q113 -> 7047.298246
A114: Bayside Common | D114: =+(SUMIF(JLH_MFR_DATA!$A$7:$A$410,"BAYC",JLH_MFR_DATA!$F$7:$F$410)/1000)+(SUMIF(JLH_MFR_DATA!$A$7:$A$410,"BPC",JLH_MFR_DATA!$F$7:$F$410)/1000) -> 46726.77453 | F114: 46726.77453 | H114: 28 | I114: Bayside Common | K114: 46726.77453 | L114: 0 | M114: 46726.77453 | N114: 0 | O114: 46726.77453 | P114: 46726.77453 | Q114: 0 | R114: 46726.77453
H115: 29 | P115: 0 | Q115: 0
A116: Polk 1 | C116: Fuel and ECCR | D116: =(SUMIF(JLH_MFR_DATA!$A$7:$A$410,"PK1",JLH_MFR_DATA!$F$7:$F$410)/1000) -> 235511.1706 | E116: =-SUMIF(ECRC_ADJ_GEN!$A$14:$A$22,"Polk",ECRC_ADJ_GEN!$C$14:$C$22)/1000+-SUMIF(JLH_SR_Sch2_PG1!$A$23:$A$37,Generation!C116,JLH_SR_Sch2_PG1!$E$23:$E$37)/1000 -> -3773.5588 | F116: =+D116+E116 -> 231737.6118 | H116: 30 | I116: Polk 1 | J116: =+J59 -> 220 | K116: =+F116 -> 231737.6118 | L116: 0 | M116: =SUM(K116:L116) -> 231737.6118 | N116: =+M116*$N$26 -> 0 | O116: =M116-N116 -> 231737.6118 | P116: =(P$59/$O$59)*O116 -> 104215.2226 | Q116: =(Q$59/$O$59)*O116 -> 127522.3892 | R116: 231737.6118
A117: Polk 2 | D117: =(SUMIF(JLH_MFR_DATA!$A$7:$A$410,"PK2",JLH_MFR_DATA!$F$7:$F$410)/1000) -> 19646.05449 | F117: 19646.05449 | H117: 31 | I117: Polk 2 | J117: =+J60 -> 151 | K117: 19646.05449 | L117: 0 | M117: 19646.05449 | N117: 0 | O117: 19646.05449 | P117: =O117 -> 19646.05449 | Q117: 0 | R117: 19646.05449
A118: Polk 3 | D118: =(SUMIF(JLH_MFR_DATA!$A$7:$A$410,"PK3",JLH_MFR_DATA!$F$7:$F$410)/1000) -> 26948.31849 | F118: 26948.31849 | H118: 32 | I118: Polk 3 | J118: =+J61 -> 151 | K118: 26948.31849 | L118: 0 | M118: 26948.31849 | N118: 0 | O118: 26948.31849 | P118: =O118 -> 26948.31849 | Q118: 0 | R118: 26948.31849
A119: Polk 4 | D119: =(SUMIF(JLH_MFR_DATA!$A$7:$A$410,"PK4",JLH_MFR_DATA!$F$7:$F$410)/1000) -> 8583.535473 | F119: 8583.535473 | H119: 33 | I119: Polk 4 | J119: =+J62 -> 151 | K119: 8583.535473 | L119: 0 | M119: 8583.535473 | N119: 0 | O119: 8583.535473 | P119: =O119 -> 8583.535473 | Q119: 0 | R119: =+P119+Q119 -> 8583.535473
A120: Polk 5 | D120: =(SUMIF(JLH_MFR_DATA!$A$7:$A$410,"PK5",JLH_MFR_DATA!$F$7:$F$410)/1000) -> 8193.299348 | F120: 8193.299348 | H120: 34 | I120: Polk 5 | J120: =+J63 -> 151 | K120: 8193.299348 | L120: 0 | M120: 8193.299348 | N120: 0 | O120: 8193.299348 | P120: =O120 -> 8193.299348 | Q120: 0 | R120: =+P120+Q120 -> 8193.299348
A121: Polk Common | D121: =(SUMIF(JLH_MFR_DATA!$A$7:$A$410,"PKC",JLH_MFR_DATA!$F$7:$F$410)/1000)+(SUMIF(JLH_MFR_DATA!$A$7:$A$410,"PPT",JLH_MFR_DATA!$F$7:$F$410)/1000) -> 30055.55903 | F121: 30055.55903 | H121: 35 | I121: Polk Common | K121: 30055.55903 | L121: 0 | M121: 30055.55903 | N121: 0 | O121: 30055.55903 | P121: =(P$64/$O$64)*O121 -> 28016.00425 | Q121: =(Q$64/$O$64)*O121 -> 2039.554775 | R121: 30055.55903
F122: 0 | H122: 36 | P122: =O122 -> 0 | Q122: 0
A123: Other Prod Dismantling | D123: =(SUMIF(JLH_MFR_DATA!$A$7:$A$410,"OPD",JLH_MFR_DATA!$F$7:$F$410)/1000) -> 17322.724 | F123: 17322.724 | H123: 37 | I123: Other Prod Dismantling | K123: =+F123 -> 17322.724 | L123: 0 | M123: =SUM(K123:L123) -> 17322.724 | N123: =+M123*$N$26 -> 0 | O123: =M123-N123 -> 17322.724 | P123: =O123 -> 17322.724 | Q123: 0 | R123: =+P123+Q123 -> 17322.724
H124: 38
C125: TOTAL ACCUM RSRV | D125: =SUM(D88:D123) -> 1424482.948 | E125: =SUM(E88:E121) -> -136289.716 | F125: =+D125+E125 -> 1288193.232 | H125: 39 | I125: TOTAL OTHER PROD | J125: =SUM(J104:J123) -> 2740 | K125: 673508.7662 | L125: 0 | M125: 673508.7662 | N125: 0 | O125: 673508.7662 | P125: 543946.8222 | Q125: 129561.944 | R125: 673508.7662
C126: PROD RESERVE MFR BAL. | D126: =JLH_MFR_DATA!F13/1000 -> 1327212.479 | H126: 40
C127: variance | D127: =D125-D126 -> 97270.46874 | E127: see below for items related to variance | H127: 41 | I127: Total Steam & Other Gen | J127: =+J125+J101 -> 4312 | K127: 1213328.714 | L127: 74864.51739 | M127: 1288193.232 | N127: 0 | O127: 1288193.232 | P127: 1058687.309 | Q127: 229505.9224 | R127: 1288193.232
B128: 2014 OB | C128: Land | D128: 0
C129: Sebring Acquisition | D129: 0
C130: Dismantlement Steam & Other | D130: =SUMIF(JLH_MFR_DATA!$A$403:$A$404,"SPD",JLH_MFR_DATA!$F$403:$F$405)/1000+SUMIF(JLH_MFR_DATA!$A$403:$A$404,"OPD",JLH_MFR_DATA!$F$403:$F$405)/1000 -> 97270.46874
C131: = Variance Above | D131: =SUM(D128:D130) -> 97270.46874 | E131: these items are incl in generation above , but items are listed
D132: =D131-D127 -> -1.600710675e-10 | E132: below the generation totals on mfr (so have to input to ck variance here)
H133: TAMPA ELECTRIC COMPANY
A134: PRODUCTION PLANT DEPRECIATION EXPENSE (ANNUAL EXPENSE) | H134: PRODUCTION PLANT DEPRECIATION EXPENSE ($000)
A135: =PERIOD -> FOR THE FORECAST PERIOD ENDING 12/31/14 | H135: =+'TITLES & CONSTANTS'!$D$9 -> FOR THE FORECAST PERIOD ENDING 12/31/14
J138: Net | K138: 13-Mo Avg | L138: Tools &
D139: PLANT ACCTG | E139: SURV RPT | F139: TOTAL NET | J139: Capability | K139: Plant | L139: Steam | M139: TOTAL | N139: REQ | O139: FL | P139: FL JURIS DEMAND/ENERGY SPLIT
A140: Station/Unit Desc. | B140: LAND | C140: ADJ. OTHER | D140: COMPONENTS ACCTS | E140: ADJUSTMENTS | F140: DEPREC EXP | H140: Line Number | I140: Description | J140: (MW) * | K140: Cost | L140: Common | M140: COMPANY | N140: SALES | O140: JURIS | P140: Demand | Q140: Energy | R140: Total
H141: 1 | I141: 2 | J141: 3 | K141: 4 | L141: 5 | M141: 6 | N141: 7 | O141: 8 | P141: 9 | Q141: 10 | R141: 11
A142: =I142 -> Steam Production | H142: 1 | I142: Steam Production
A143: =I143 -> Big Bend Common | D143: =(SUMIF(JLH_MFR_DATA!$A$7:$A$410,"BBC",JLH_MFR_DATA!$E$7:$E$410))/1000 -> 12851.42501 | F143: =+D143+E143 -> 12851.42501 | H143: =+H142+1 -> 2 | I143: Big Bend Common | K143: =+F143 -> 12851.42501 | L143: =-K143 -> -12851.42501
C144: FGD 1&2 | H144: =+H143+1 -> 3
A145: Big Bend Unit 1 | C145: =SUMIF(JLH_MFR_DATA!$A$7:$A$354,"BBFGD",JLH_MFR_DATA!$E$7:$E$354)/1000 -> 2843.441658 | D145: =(SUMIF(JLH_MFR_DATA!$A$7:$A$410,"BB1",JLH_MFR_DATA!$E$7:$E$410)/1000+($C145*$J$33/SUM($J$33:$J$34)))+(SUMIF(JLH_MFR_DATA!$A$7:$A$410,"BB1SCR",JLH_MFR_DATA!$E$7:$E$410)/1000) -> 11042.91077 | E145: =-SUMIF(ECRC_ADJ_GEN!$A$14:$A$22,"BB1",ECRC_ADJ_GEN!$E$14:$E$22)/1000 -> -5876.79 | F145: =+D145+E145 -> 5166.120775 | H145: 4 | I145: Big Bend Unit 1 | J145: =+J33 -> 395 | K145: =+F145 -> 5166.120775 | L145: =+J145/$J$152*($K$143+$K$150) -> 3329.511105 | M145: =SUM(K145:L145) -> 8495.63188 | N145: =+M145*$N$26 -> 0 | O145: =M145-N145 -> 8495.63188 | P145: =O145 -> 8495.63188 | Q145: 0 | R145: =+P145+Q145 -> 8495.63188
A146: Big Bend Unit 2 | D146: =(SUMIF(JLH_MFR_DATA!$A$7:$A$410,"BB2",JLH_MFR_DATA!$E$7:$E$410)/1000+($C145*$J$34/SUM($J$33:$J$34)))+(SUMIF(JLH_MFR_DATA!$A$7:$A$410,"BB2SCR",JLH_MFR_DATA!$E$7:$E$410)/1000) -> 11069.64111 | E146: =-SUMIF(ECRC_ADJ_GEN!$A$14:$A$22,"BB2",ECRC_ADJ_GEN!$E$14:$E$22)/1000 -> -5777.07 | F146: 5292.571115 | H146: 5 | I146: Big Bend Unit 2 | J146: =+J34 -> 395 | K146: 5292.571115 | L146: =+J146/$J$152*($K$143+$K$150) -> 3329.511105 | M146: 8622.08222 | N146: 0 | O146: 8622.08222 | P146: =O146 -> 8622.08222 | Q146: 0 | R146: 8622.08222
A147: Big Bend Unit 3 | D147: =(SUMIF(JLH_MFR_DATA!$A$7:$A$410,"BB3",JLH_MFR_DATA!$E$7:$E$410)/1000)+(SUMIF(JLH_MFR_DATA!$A$7:$A$410,"BB3SCR",JLH_MFR_DATA!$E$7:$E$410)/1000) -> 11915.72712 | E147: =-SUMIF(ECRC_ADJ_GEN!$A$14:$A$22,"BB3",ECRC_ADJ_GEN!$E$14:$E$22)/1000 -> -4087.32 | F147: 7828.407119 | H147: 6 | I147: Big Bend Unit 3 | J147: =+J35 -> 365 | K147: 7828.407119 | L147: 3076.636844 | M147: 10905.04396 | N147: 0 | O147: 10905.04396 | P147: =O147 -> 10905.04396 | Q147: 0 | R147: 10905.04396
A148: Big Bend Unit 4 | D148: =(SUMIF(JLH_MFR_DATA!$A$7:$A$410,"BB4",JLH_MFR_DATA!$E$7:$E$410)/1000)+(SUMIF(JLH_MFR_DATA!$A$7:$A$410,"BB4SCR",JLH_MFR_DATA!$E$7:$E$410)/1000) -> 14449.98703 | E148: =-SUMIF(ECRC_ADJ_GEN!$A$14:$A$22,"BB4",ECRC_ADJ_GEN!$E$14:$E$22)/1000 -> -2987.568 | F148: 11462.41903 | H148: 7 | I148: Big Bend Unit 4 | J148: =+J36 -> 417 | K148: =F148 -> 11462.41903 | L148: 3514.95223 | M148: 14977.37126 | N148: 0 | O148: 14977.37126 | P148: =O148 -> 14977.37126 | Q148: 0 | R148: 14977.37126
A149: Big Bend Unit 4 FGD | D149: =(SUMIF(JLH_MFR_DATA!$A$7:$A$410,"BB4FGD",JLH_MFR_DATA!$E$7:$E$410)/1000) -> 5452.480679 | F149: 5452.480679 | H149: 8 | I149: Big Bend Unit 4 FGD | K149: =F149 -> 5452.480679 | M149: 5452.480679 | N149: 0 | O149: 5452.480679 | P149: =IF(Generation!$K$4=1,0,O149) -> 0 | Q149: =IF(Generation!$K$4=1,O149,0) -> 5452.480679 | R149: 5452.480679
A150: Big Bend Tools Amort. | D150: =(SUMIF(JLH_MFR_DATA!$A$7:$A$410,"BBT",JLH_MFR_DATA!$E$7:$E$410)/1000) -> 399.1862702 | F150: 399.1862702 | H150: 9 | I150: Big Bend Tools Amort. | K150: 399.1862702 | L150: =-K150 -> -399.1862702 | M150: 0 | N150: 0 | O150: 0 | P150: =O150 -> 0 | Q150: 0 | R150: 0
H151: 10
H152: 11 | I152: Total Big Bend | J152: =SUM(J145:J150) -> 1572 | K152: =SUM(K143:K150) -> 48452.61 | L152: 0 | M152: 48452.61 | N152: 0 | O152: 48452.61 | P152: 43000.12932 | Q152: 5452.480679 | R152: 48452.61
H153: 12
A154: =I154 -> Steam Prod Dismantling | D154: =(SUMIF(JLH_MFR_DATA!$A$7:$A$410,"SPD",JLH_MFR_DATA!$E$7:$E$410)/1000) -> 1088.01004 | F154: =+D154+E154 -> 1088.01004 | H154: 13 | I154: Steam Prod Dismantling | K154: =+F154 -> 1088.01004 | L154: 0 | M154: =SUM(K154:L154) -> 1088.01004 | N154: =+M154*$N$26 -> 0 | O154: =M154-N154 -> 1088.01004 | P154: =O154 -> 1088.01004 | Q154: 0 | R154: =+P154+Q154 -> 1088.01004
H155: 14 | P155: =O155 -> 0 | Q155: 0
H156: 15 | I156: TOTAL STEAM | J156: =SUM(J154:J155)+J152 -> 1572 | K156: 49540.62004 | L156: 0 | M156: 49540.62004 | N156: 0 | O156: 49540.62004 | P156: 44088.13936 | Q156: 5452.480679 | R156: 49540.62004
H157: 16
A158: =I158 -> Other Production | H158: 17 | I158: Other Production
A159: Big Bend CT4 | D159: =(SUMIF(JLH_MFR_DATA!$A$7:$A$410,"BBCT4",JLH_MFR_DATA!$E$7:$E$410)/1000) -> 1525.984259 | F159: =+D159+E159 -> 1525.984259 | H159: 18 | I159: Big Bend CT4 | J159: =+J47 -> 56 | K159: =+F159 -> 1525.984259 | L159: 0 | M159: =SUM(K159:L159) -> 1525.984259 | N159: =+M159*$N$26 -> 0 | O159: =M159-N159 -> 1525.984259 | P159: =O159 -> 1525.984259 | Q159: 0 | R159: =+P159+Q159 -> 1525.984259
A160: Phillips Station | D160: =(SUMIF(JLH_MFR_DATA!$A$7:$A$420,"PH",JLH_MFR_DATA!$E$7:$E$420)/1000)+(SUMIF(JLH_MFR_DATA!$A$7:$A$420,"SBACQ",JLH_MFR_DATA!$E$7:$E$420)/1000)*1 -> 0 | E160: =-SUMIF(ECRC_ADJ_GEN!$A$14:$A$22,"Phillips",ECRC_ADJ_GEN!$E$14:$E$22)/1000 -> 0 | F160: =+D160+E160 -> 0 | H160: 19 | I160: Phillips Station | J160: =+J48 -> 0 | K160: =+F160 -> 0 | L160: 0 | M160: =SUM(K160:L160) -> 0 | N160: =+M160*$N$26 -> 0 | O160: =M160-N160 -> 0 | P160: 0 | Q160: 0 | R160: =+P160+Q160 -> 0
A161: Cty of Tpa Prim Mvrs | D161: =(SUMIF(JLH_MFR_DATA!$A$7:$A$410,"COT",JLH_MFR_DATA!$E$7:$E$410)/1000) -> 279.4375735 | F161: =+D161+E161 -> 279.4375735 | H161: 20 | I161: Cty of Tpa Prim Mvrs | J161: =+J49 -> 6 | K161: =+F161 -> 279.4375735 | L161: 0 | M161: =SUM(K161:L161) -> 279.4375735 | N161: =+M161*$N$26 -> 0 | O161: =M161-N161 -> 279.4375735 | P161: 279.4375735 | Q161: 0 | R161: =+P161+Q161 -> 279.4375735
H162: 21 | P162: 0 | Q162: 0
A163: Bayside Unit 1 | D163: =(SUMIF(JLH_MFR_DATA!$A$7:$A$410,"BAY1",JLH_MFR_DATA!$E$7:$E$410)/1000) -> 11974.37032 | F163: =+D163+E163 -> 11974.37032 | H163: 22 | I163: Bayside Unit 1 | J163: =+J51 -> 701 | K163: =+F163 -> 11974.37032 | L163: 0 | M163: =SUM(K163:L163) -> 11974.37032 | N163: =+M163*$N$26 -> 0 | O163: =M163-N163 -> 11974.37032 | P163: 11974.37032 | Q163: 0 | R163: =+P163+Q163 -> 11974.37032
A164: Bayside Unit 2 | D164: =(SUMIF(JLH_MFR_DATA!$A$7:$A$410,"BAY2",JLH_MFR_DATA!$E$7:$E$410)/1000) -> 15998.89429 | F164: 15998.89429 | H164: 23 | I164: Bayside Unit 2 | J164: 929 | K164: 15998.89429 | L164: 0 | M164: 15998.89429 | N164: 0 | O164: 15998.89429 | P164: 15998.89429 | Q164: 0 | R164: 15998.89429
A165: Bayside Unit 3 | D165: =(SUMIF(JLH_MFR_DATA!$A$7:$A$410,"BAY3",JLH_MFR_DATA!$E$7:$E$410)/1000) -> 1227.942904 | F165: 1227.942904 | H165: 24 | I165: Bayside Unit 3 | J165: 56 | K165: 1227.942904 | L165: 0 | M165: 1227.942904 | N165: 0 | O165: 1227.942904 | P165: 1227.942904 | Q165: 0 | R165: 1227.942904
A166: Bayside Unit 4 | D166: =(SUMIF(JLH_MFR_DATA!$A$7:$A$410,"BAY4",JLH_MFR_DATA!$E$7:$E$410)/1000) -> 884.6823667 | F166: 884.6823667 | H166: 25 | I166: Bayside Unit 4 | J166: 56 | K166: 884.6823667 | L166: 0 | M166: 884.6823667 | N166: 0 | O166: 884.6823667 | P166: 884.6823667 | Q166: 0 | R166: 884.6823667
A167: Bayside Unit 5 | D167: =(SUMIF(JLH_MFR_DATA!$A$7:$A$410,"BAY5",JLH_MFR_DATA!$E$7:$E$410)/1000) -> 1205.4032 | F167: 1205.4032 | H167: 26 | I167: Bayside Unit 5 | J167: 56 | K167: 1205.4032 | L167: 0 | M167: 1205.4032 | N167: 0 | O167: 1205.4032 | P167: 1205.4032 | Q167: 0 | R167: 1205.4032
A168: Bayside Unit 6 | D168: =(SUMIF(JLH_MFR_DATA!$A$7:$A$410,"BAY6",JLH_MFR_DATA!$E$7:$E$410)/1000) -> 1384.625197 | F168: 1384.625197 | H168: 27 | I168: Bayside Unit 6 | J168: 56 | K168: =+F168 -> 1384.625197 | L168: 0 | M168: 1384.625197 | N168: 0 | O168: =M168-N168 -> 1384.625197 | P168: 1384.625197 | Q168: 0 | R168: =+P168+Q168 -> 1384.625197
A169: Bayside Common | D169: =+(SUMIF(JLH_MFR_DATA!$A$7:$A$410,"BAYC",JLH_MFR_DATA!$E$7:$E$410)/1000)+(SUMIF(JLH_MFR_DATA!$A$7:$A$410,"BPC",JLH_MFR_DATA!$E$7:$E$410)/1000) -> 4560.437379 | F169: 4560.437379 | H169: 28 | I169: Bayside Common | K169: 4560.437379 | L169: 0 | M169: 4560.437379 | N169: 0 | O169: 4560.437379 | P169: 4560.437379 | Q169: 0 | R169: 4560.437379
H170: 29 | P170: 0 | Q170: 0
A171: Polk 1 | C171: Recoverable Fuel | D171: =(SUMIF(JLH_MFR_DATA!$A$7:$A$410,"PK1",JLH_MFR_DATA!$E$7:$E$410)/1000) -> 18399.51116 | E171: =-SUMIF(ECRC_ADJ_GEN!$A$14:$A$22,"Polk",ECRC_ADJ_GEN!$E$14:$E$22)/1000+SUMIF(JLH_SR_SCH2_PG2!$A$21:$A$46,Generation!C171,JLH_SR_SCH2_PG2!$I$21:$I$46)/1000 -> -2999.748 | F171: =+D171+E171 -> 15399.76316 | H171: 30 | I171: Polk 1 | J171: =+J59 -> 220 | K171: =+F171 -> 15399.76316 | L171: 0 | M171: =SUM(K171:L171) -> 15399.76316 | N171: =+M171*$N$26 -> 0 | O171: =M171-N171 -> 15399.76316 | P171: =(P$59/O$59)*$O171 -> 6925.460796 | Q171: =(Q$59/O$59)*$O171 -> 8474.302365 | R171: =+P171+Q171 -> 15399.76316
A172: Polk 2 | D172: =(SUMIF(JLH_MFR_DATA!$A$7:$A$410,"PK2",JLH_MFR_DATA!$E$7:$E$410)/1000) -> 2084.712068 | F172: 2084.712068 | H172: 31 | I172: Polk 2 | J172: =+J60 -> 151 | K172: 2084.712068 | L172: 0 | M172: 2084.712068 | N172: 0 | O172: 2084.712068 | P172: 2084.712068 | Q172: 0 | R172: 2084.712068
A173: Polk 3 | D173: =(SUMIF(JLH_MFR_DATA!$A$7:$A$410,"PK3",JLH_MFR_DATA!$E$7:$E$410)/1000) -> 2551.783481 | F173: 2551.783481 | H173: 32 | I173: Polk 3 | J173: =+J61 -> 151 | K173: 2551.783481 | L173: 0 | M173: 2551.783481 | N173: 0 | O173: 2551.783481 | P173: 2551.783481 | Q173: 0 | R173: 2551.783481
A174: Polk 4 | D174: =(SUMIF(JLH_MFR_DATA!$A$7:$A$410,"PK4",JLH_MFR_DATA!$E$7:$E$410)/1000) -> 1316.25497 | F174: 1316.25497 | H174: 33 | I174: Polk 4 | J174: =+J62 -> 151 | K174: 1316.25497 | L174: 0 | M174: 1316.25497 | N174: 0 | O174: 1316.25497 | P174: 1316.25497 | Q174: 0 | R174: 1316.25497
A175: Polk 5 | D175: =(SUMIF(JLH_MFR_DATA!$A$7:$A$410,"PK5",JLH_MFR_DATA!$E$7:$E$410)/1000) -> 1207.900825 | F175: 1207.900825 | H175: 34 | I175: Polk 5 | J175: =+J63 -> 151 | K175: 1207.900825 | L175: 0 | M175: 1207.900825 | N175: 0 | O175: 1207.900825 | P175: 1207.900825 | Q175: 0 | R175: 1207.900825
A176: Polk Common | D176: =(SUMIF(JLH_MFR_DATA!$A$7:$A$410,"PKC",JLH_MFR_DATA!$E$7:$E$410)/1000)+(SUMIF(JLH_MFR_DATA!$A$7:$A$410,"PPT",JLH_MFR_DATA!$E$7:$E$410)/1000) -> 4362.16164 | F176: 4362.16164 | H176: 35 | I176: Polk Common | K176: 4362.16164 | L176: 0 | M176: 4362.16164 | N176: 0 | O176: 4362.16164 | P176: =(P$64/O$64)*$O176 -> 4066.147595 | Q176: =(Q$64/O$64)*$O176 -> 296.014045 | R176: 4362.16164
H177: 36 | P177: 0 | Q177: 0
A178: Other Prod Dismantling | D178: =(SUMIF(JLH_MFR_DATA!$A$7:$A$410,"OPD",JLH_MFR_DATA!$E$7:$E$410)/1000) -> 98.084 | F178: =+D178+E178 -> 98.084 | H178: 37 | I178: Other Prod Dismantling | K178: =+F178 -> 98.084 | L178: 0 | M178: =SUM(K178:L178) -> 98.084 | N178: =+M178*$N$26 -> 0 | O178: =M178-N178 -> 98.084 | P178: 98.084 | Q178: 0 | R178: =+P178+Q178 -> 98.084
H179: 38
C180: TOTAL DEPRE. COS | D180: =SUM(D143:D178) -> 137331.5537 | E180: =SUM(E143:E178) -> -21728.496 | F180: =SUM(F143:F178) -> 115603.0577 | H180: 39 | I180: TOTAL OTHER PROD | J180: =SUM(J159:J178) -> 2740 | K180: 66062.43763 | L180: 0 | M180: 66062.43763 | N180: 0 | O180: 66062.43763 | P180: 57292.12122 | Q180: 8770.31641 | R180: 66062.43763
C181: MFR | D181: =JLH_MFR_DATA!E13/1000+(JLH_MFR_DATA!E16+JLH_MFR_DATA!E372)/1000 -> 136145.4596 | H181: 40
C182: VARIANCE | D182: =D180-D181 -> 1186.09404 | H182: 41 | I182: Total Steam & Other Gen | J182: =+J180+J156 -> 4312 | K182: 115603.0577 | L182: 0 | M182: 115603.0577 | N182: 0 | O182: 115603.0577 | P182: 101380.2606 | Q182: 14222.79709 | R182: 115603.0577
B183: 2014 OB | C183: Dismantlement Depreciation | D183: 1186.094 | E183: responsible for variance, it is incl above, but in mfr
E184: structure, it is not incl in prod total
X257: $
X264: Provide the plant balances for each
X265: account or sub-account to which an individual
X266: depreciation rate is applied. (Include Amortization/
X267: Recovery scheudle amounts)
X275: $
X281: $
X286: $
X301: $
X306: $
X317: Provide the plant balances for each
X318: account or sub-account to which an individual
X319: depreciation rate is applied. (Include Amortization/
X320: Recovery scheudle amounts)
X335: $
X346: $
X355: $
X370: Provide the plant balances for each
X371: account or sub-account to which an individual
X372: depreciation rate is applied. (Include Amortization/
X373: Recovery scheudle amounts)
X381: $
X422: $
X428: Provide the plant balances for each
X429: account or sub-account to which an individual
X430: depreciation rate is applied. (Include Amortization/
... 17 more rows

Sheet Transmission
A1: =PERIOD -> FOR THE FORECAST PERIOD ENDING 12/31/14 | K1: GSU TOTALS (13 mo avg)
F2: Prints the Transmission Data, Col A:H | K2: =PERIOD -> FOR THE FORECAST PERIOD ENDING 12/31/14
F3: and K:Q | K3: ROLLS INTO tab: Transm Substa Detail
L4: Gross Plant/13 mo avg
F5: Prints the Transmission Summaries | K5: Big Bend | L5: 11153591.35
K6: Bayside | L6: 19288577.81
A7: REQUIRED INPUTS: | K7: Sebring | L7: 1924293.03
A8: Period | C8: 2014 Budget | F8: 2014 Budget | K8: Polk | L8: 8004811.04
A9: Desc | C9: Interconnections | F9: Transmission GSU Investment | K9: GSU TOTAL | L9: =SUM(L5:L8) -> 40371273.23
A10: Source | B10: Plant Accounting | C10: Plant | D10: Reserves | E10: Depre Exp | F10: Plant | G10: Reserves | H10: Depre Exp
A11: Input Value | B11: 13 mo avg, whole #'s | C11: 8793500 | D11: 2759392.199 | E11: 280214 | F11: 40371273 | G11: 14584068.51 | H11: 928539
A12: Cell location
A15: COMMENTS: | B15: New for 2012, we are adding the removal of the interconnections to follow the wholesale formula models.
B16: The majority of the interconnection equipment appears to be in account 353, so I will combine the
B17: interconnection with the GSU amount in account 353.
B18: In this model, these dollars are treated with a production allocator in the reports tab.
I20: TAMPA ELECTRIC COMPANY
I21: TRANSMISSION PLANT INVESTMENT ($000)
A22: TRANMISSION PLANT (13 MONTH AVERAGE) | I22: =+'TITLES & CONSTANTS'!$D$9 -> FOR THE FORECAST PERIOD ENDING 12/31/14
A23: =PERIOD -> FOR THE FORECAST PERIOD ENDING 12/31/14
C24: PLT ACCTG | M24: HI-VOLT | Q24: COMMON
C25: COMPONENTS | F25: SURV RPT | G25: TOTAL NET | L25: 13 MO | M25: TOTAL | N25: Step-Ups & | O25: High | Q25: SUBSTATION
A26: Plant | B26: Adjustments | C26: ACCT | E26: AMOUNT | F26: ADJUSTMENTS | G26: PLANT COST | I26: Line | J26: Acct | K26: Description | L26: AVG PLANT | M26: HI-VOLT | N26: Interconnects | O26: Volt | P26: Lines | Q26: & LINES
I27: 1 | J27: 2 | K27: 3 | L27: 4 | M27: 5 | N27: 6 | O27: 7 | P27: 8 | Q27: 9
I29: 1 | J29: 350 | K29: Substation Land | L29: =+'Transm Substa Detail'!O155/1000 -> 4899.39174 | M29: =+N29+P29+O29 -> 0 | N29: =+'Transm Substa Detail'!$O$152/1000 -> 0 | O29: 0 | P29: 0 | Q29: =+L29-M29 -> 4899.39174
I30: =I29+1 -> 2 | J30: 350 | K30: Line Land | L30: =+'Transm Substa Detail'!O160/1000 -> 10488.1735 | M30: =+N30+P30+O30 -> 10077.44887 | N30: 0 | O30: 0 | P30: =+'Trans Voltage Detail'!$G$28/1000 -> 10077.44887 | Q30: =+L30-M30 -> 410.72463
A31: =K31 -> Subtotal Land | C31: 35000Bal | E31: =VLOOKUP(C31,Data,ColNumber,FALSE)/1000 -> 15387.56524 | G31: =+E31+F31 -> 15387.56524 | I31: =I30+1 -> 3 | K31: Subtotal Land | L31: =+L29+L30 -> 15387.56524 | M31: 10077.44887 | N31: 0 | O31: 0 | P31: 10077.44887 | Q31: 5310.11637
I32: =I31+1 -> 4
A33: =K33 -> Line Right of Way | C33: 35001Bal | E33: =VLOOKUP(C33,Data,ColNumber,FALSE)/1000 -> 10917.60954 | G33: =+E33+F33 -> 10917.60954 | I33: 5 | J33: 350.01 | K33: Line Right of Way | L33: =+G33 -> 10917.60954 | M33: =+N33+P33+O33 -> 6250.06979 | N33: 0 | O33: 0 | P33: =+'Trans Voltage Detail'!$G$29/1000 -> 6250.06979 | Q33: =+L33-M33 -> 4667.53975
I34: 6
I35: 7 | K35: Subtotal 350 (substa) | L35: =+L29 -> 4899.39174 | M35: =+N35+P35+O35 -> 0 | N35: =+N29 -> 0 | O35: 0 | P35: =+P29 -> 0 | Q35: =+L35-M35 -> 4899.39174
I36: 8 | K36: Subtotal 350 (lines) | L36: =+L30+L33 -> 21405.78304 | M36: =+N36+P36+O36 -> 16327.51866 | N36: =+N30+N33 -> 0 | O36: 0 | P36: =+P30+P33 -> 16327.51866 | Q36: =+L36-M36 -> 5078.26438
I37: 9
I38: =I37+1 -> 10 | J38: TOTAL ACCT 350 - LAND & ROW | L38: =+L35+L36 -> 26305.17478 | M38: =+N38+P38+O38 -> 16327.51866 | N38: =+N35+N36 -> 0 | O38: 0 | P38: =+P35+P36 -> 16327.51866 | Q38: =+Q35+Q36 -> 9977.65612
I39: 11
A40: =K40 -> Struct & Improvements | C40: 352Bal | E40: =VLOOKUP(C40,Data,ColNumber,FALSE)/1000 -> 4429.256916 | G40: =+E40+F40 -> 4429.256916 | I40: 12 | J40: 352 | K40: Struct & Improvements | L40: =+G40 -> 4429.256916 | M40: =+N40+P40+O40 -> 0 | N40: =+'Transm Substa Detail'!Q152/1000 -> 0 | O40: 0 | P40: 0 | Q40: =+L40-M40 -> 4429.256916
A41: =K41 -> Station Equipment | C41: 353Bal | E41: =VLOOKUP(C41,Data,ColNumber,FALSE)/1000 -> 268558.1922 | G41: =+E41+F41 -> 268558.1922 | I41: 13 | J41: 353 | K41: Station Equipment | L41: =+G41 -> 268558.1922 | M41: =+N41+P41+O41 -> 91135.5927 | N41: =(C11+F11)/1000 -> 49164.773 | O41: ='Transm Substa Detail'!M153/1000 -> 41970.8197 | P41: 0 | Q41: =+L41-M41 -> 177422.5995
I42: 14
I43: 15 | J43: TOTAL ACCTS 352 & 353 | L43: =+L40+L41 -> 272987.4491 | M43: =+N43+P43+O43 -> 91135.5927 | N43: =+N40+N41 -> 49164.773 | O43: =+O40+O41 -> 41970.8197 | P43: =+P40+P41 -> 0 | Q43: =+Q40+Q41 -> 181851.8564
I44: 16
A45: =K45 -> Towers & Fixtures | C45: 354Bal | E45: =VLOOKUP(C45,Data,ColNumber,FALSE)/1000 -> 4497.768196 | G45: =+E45+F45 -> 4497.768196 | I45: 17 | J45: 354 | K45: Towers & Fixtures | L45: =+G45 -> 4497.768196 | M45: =+N45+P45+O45 -> 3715.11029 | N45: 0 | O45: 0 | P45: =+'Trans Voltage Detail'!G30/1000 -> 3715.11029 | Q45: =+L45-M45 -> 782.6579064
I46: 18
A47: Poles & Fixtures | C47: 355Bal | E47: =VLOOKUP(C47,Data,ColNumber,FALSE)/1000 -> 216539.0606 | G47: =+E47+F47 -> 216539.0606 | I47: 19 | J47: 355 | K47: Poles & Fixtures | L47: =+G47 -> 216539.0606 | M47: =+N47+P47+O47 -> 82082.24439 | N47: 0 | O47: 0 | P47: =+'Trans Voltage Detail'!G31/1000 -> 82082.24439 | Q47: =+L47-M47 -> 134456.8162
A48: OH Conductors | C48: 356Bal | E48: =VLOOKUP(C48,Data,ColNumber,FALSE)/1000-VLOOKUP(C49,Data,ColNumber,FALSE)/1000 -> 124466.1665 | F48: =SUMIF(JLH_SR_Sch2_PG1!$A$22:$A$31,"Acquisition Book Values",JLH_SR_Sch2_PG1!$C$22:$C$31)/1000 -> -1635.114 | G48: 122831.0525 | I48: 20 | J48: 356 | K48: OH Conductors | L48: =+G48+G62 -> 122831.0525 | M48: 56099.96578 | N48: 0 | O48: 0 | P48: =+'Trans Voltage Detail'!$G$32/1000 -> 56099.96578 | Q48: 66731.0867
A49: Clearing ROW | C49: 35601Bal | E49: =VLOOKUP(C49,Data,ColNumber,FALSE)/1000 -> 2110.61013 | G49: 2110.61013 | I49: 21 | J49: 356.01 | K49: Clearing ROW | L49: =+G49 -> 2110.61013 | M49: 1599.5868 | N49: 0 | O49: 0 | P49: =+'Trans Voltage Detail'!$G$33/1000 -> 1599.5868 | Q49: 511.02333
A50: UG Conduit | C50: 357Bal | E50: 3535.16753 | G50: 3535.16753 | I50: 22 | J50: 357 | K50: UG Conduit | L50: =+G50 -> 3535.16753 | M50: 0 | N50: 0 | O50: 0 | P50: =+'Trans Voltage Detail'!$G$34/1000 -> 0 | Q50: 3535.16753
A51: UG Cables & Fixtures | C51: 358Bal | E51: 7009.246 | G51: 7009.246 | I51: 23 | J51: 358 | K51: UG Cables & Fixtures | L51: =+G51 -> 7009.246 | M51: 0 | N51: 0 | O51: 0 | P51: =+'Trans Voltage Detail'!$G$35/1000 -> 0 | Q51: 7009.246
A52: Roads & Trails | C52: 359Bal | E52: 5327.71877 | G52: 5327.71877 | I52: 24 | J52: 359 | K52: Roads & Trails | L52: =+G52 -> 5327.71877 | M52: 4042.30558 | N52: 0 | O52: 0 | P52: =+'Trans Voltage Detail'!$G$36/1000 -> 4042.30558 | Q52: 1285.41319
I53: 25
A54: TOTAL TRANSMISSION | E54: =SUM(E29:E53) -> 662778.3616 | F54: =SUM(F29:F53) -> -1635.114 | G54: =SUM(G29:G53) -> 661143.2476 | I54: 26 | J54: TOTAL ACCTS 354-359 | L54: =SUM(L45:L52) -> 361850.6237 | M54: 147539.2128 | N54: 0 | O54: 0 | P54: 147539.2128 | Q54: 214311.4109
I55: 27
C56: G/L | F56: SURV RPT | G56: TOTAL NET | I56: 28
C57: ACCT | E57: AMOUNT | F57: ADJUSTMENTS | G57: PLANT COST | I57: 29
A58: net values, will be gross in 2012 budget | I58: 30 | J58: TOTAL TRANSMISSION | L58: =+L54+L43+L38 -> 661143.2476 | M58: 255002.3242 | N58: 49164.773 | O58: 41970.8197 | P58: 163866.7315 | Q58: 406140.9234
B59: 13 MO AVG, whole #'s | C59: 114.01 | D59: OUC | E59: =ACQ_ADJ!C16 -> 6166190 | F59: =-E59 -> -6166190 | G59: =+E59+F59 -> 0 | I59: 31
A60: 114 does not come into model w/ components | C60: 114.02 | D60: FPC | E60: =ACQ_ADJ!C17 -> 957106.71 | F60: =-E60 -> -957106.71 | G60: =+E60+F60 -> 0 | I60: 32
A61: S. rpt removes but I don't have to remove really | C61: 114.03 | D61: UNION | E61: =ACQ_ADJ!C18 -> 341971.88 | F61: =-E61 -> -341971.88 | G61: =+E61+F61 -> 0 | I61: 33 | J61: SUMMARY
A62: because I don't bring in, but it is good to keep | E62: =SUM(E59:E61) -> 7465268.59 | F62: =SUM(F59:F61) -> -7465268.59 | G62: =SUM(G59:G61) -> 0 | I62: 34 | J62: TOTAL TRANS SUBSTATION | L62: =+L35+L43 -> 277886.8409 | M62: 91135.5927 | N62: 49164.773 | O62: 41970.8197 | P62: 0 | Q62: 186751.2482
A63: tracking | I63: 35 | J63: TOTAL TRANS LINES | L63: =+L36+L54 -> 383256.4068 | M63: 163866.7315 | N63: 0 | O63: 0 | P63: 163866.7315 | Q63: 219389.6753
C65: TRANSMISSION GRAND TOTAL INCLUDING ACQ ADJ'S | I65: DERIVATION OF TRANSMISSION PLANT INTERNAL ALLOCATORS
C66: TOTAL W/ ACQ OUC & FPL & Union | E66: =E62/1000+E54 -> 670243.6302
C67: MRF TOTAL | E67: =JLH_MFR_DATA!$D$14/1000 -> 647390.7964 | N67: HI-VOLT | Q67: COMMON
C68: VARIANCE | E68: =E66-E67 -> 22852.83383 | I68: T1000 | J68: Transmission Substation Structures | M68: Total | N68: Step Ups & Interconnects | O68: Hi_Volt | P68: Lines | Q68: Substation & Lines
J69: 350 | K69: Substation Land | M69: =SUM(N69:Q69) -> 4899.39174 | Q69: =Q35 -> 4899.39174
C70: LAND= | E70: =-E31 -> -15387.56524 | J70: 352 | K70: Structures & Improvements | M70: =SUM(N70:Q70) -> 4429.256916 | N70: =N40 -> 0 | O70: =O40 -> 0 | P70: 0 | Q70: =Q40 -> 4429.256916
C71: ACQ OUC, FLP & Union | E71: =-E62/1000 -> -7465.26859 | F71: (is listed below elec plant on mfr) | J71: 353 | K71: Station Equipment | M71: =SUM(N71:Q71) -> 268558.1922 | N71: =N41 -> 49164.773 | O71: =O41 -> 41970.8197 | P71: 0 | Q71: =Q41 -> 177422.5995
C72: FINAL VARIANCE | E72: =SUM(E68:E71) -> 1.818989404e-11 | K72: Total $'s | M72: =SUM(M69:M71) -> 277886.8409 | N72: 49164.773 | O72: 41970.8197 | P72: 0 | Q72: =SUM(Q69:Q71) -> 186751.2482
K73: Total % | M73: =SUM(N73:Q73) -> 1 | N73: =N72/$M$72 -> 0.1769237178 | O73: =O72/$M$72 -> 0.1510356502 | P73: =P72/$M$72 -> 0 | Q73: =Q72/$M$72 -> 0.672040632
I76: T1001 | J76: Transmission Substation Poles, Lines & Fixtures
J77: 350 | K77: Lines (excl ROW) | M77: =SUM(N77:Q77) -> 21405.78304 | P77: =P36 -> 16327.51866 | Q77: =Q36 -> 5078.26438
J78: 354-359 | K78: Towers, Poles & Conductors | M78: =SUM(N78:Q78) -> 361850.6237 | P78: =P54 -> 147539.2128 | Q78: =Q54 -> 214311.4109
K79: Total $'s | M79: =SUM(M77:M78) -> 383256.4068 | P79: =SUM(P77:P78) -> 163866.7315 | Q79: =SUM(Q77:Q78) -> 219389.6753
K80: Total % | M80: =SUM(N80:Q80) -> 1 | P80: =P79/$M$79 -> 0.4275642328 | Q80: =Q79/$M$79 -> 0.5724357672
I87: TAMPA ELECTRIC COMPANY
A88: TRANMISSION PLANT RESERVES (13 MONTH AVERAGE) | I88: TRANSMISSION ACCUM RESERVE FOR DEPRECIATION ($000)
A89: =PERIOD -> FOR THE FORECAST PERIOD ENDING 12/31/14 | I89: =+'TITLES & CONSTANTS'!$D$9 -> FOR THE FORECAST PERIOD ENDING 12/31/14
C91: PLT ACCTG | M91: HI-VOLT | Q91: COMMON
C92: COMPONENTS | F92: SURV RPT | G92: TOTAL NET | L92: 13 MO | M92: Total | N92: GSU | O92: High | Q92: SUBSTATION
A93: Plant | B93: Adjustments | C93: ACCT | E93: AMOUNT | F93: ADJUSTMENTS | G93: PLANT COST | I93: Line | J93: Acct | K93: Description | L93: AVG PLANT | M93: Hi-Volt | N93: Transformer | O93: Volt | P93: Lines | Q93: & LINES
I94: 1 | J94: 2 | K94: 3 | L94: 4 | M94: 5 | N94: 6 | O94: 7 | P94: 8 | Q94: 9
I96: 1 | J96: 350 | K96: Substation Land | L96: =G98 -> 0 | M96: =SUM(N96:P96) -> 0 | N96: =+$L$96*N29/$L$29 -> 0 | O96: =+$L$96*O29/$L$29 -> 0 | P96: =+$L$96*P29/$L$29 -> 0 | Q96: =+$L$96*Q29/$L$29 -> 0
I97: =I96+1 -> 2 | J97: 350 | K97: Line Land | L97: 0 | M97: =SUM(N97:P97) -> 0 | N97: =+$L97*N30/$L$30 -> 0 | O97: =+$L97*O30/$L$30 -> 0 | P97: =+$L97*P30/$L$30 -> 0 | Q97: =+$L97*Q30/$L$30 -> 0
A98: =K98 -> Subtotal Land | B98: =-15*0 -> 0 | C98: 35000Res | E98: =VLOOKUP(C98,Data,ColNumber,FALSE)/1000+B98 -> 0 | G98: =+E98+F98 -> 0 | I98: =I97+1 -> 3 | K98: Subtotal Land | L98: =SUM(L96:L97) -> 0 | M98: =+M96+M97 -> 0 | N98: =+N96+N97 -> 0 | O98: =+O96+O97 -> 0 | P98: =+P96+P97 -> 0 | Q98: =+Q96+Q97 -> 0
I99: =I98+1 -> 4
A100: =K100 -> Line Right of Way | C100: 35001Res | E100: =VLOOKUP(C100,Data,ColNumber,FALSE)/1000 -> 3430.604906 | G100: =+E100+F100 -> 3430.604906 | I100: 5 | J100: 350.01 | K100: Line Right of Way | L100: =+G100 -> 3430.604906 | M100: =SUM(N100:P100) -> 1963.939084 | N100: =+$L$100*N33/$L$33 -> 0 | O100: =+$L$100*O33/$L$33 -> 0 | P100: =+$L$100*P33/$L$33 -> 1963.939084 | Q100: =+$L$100*Q33/$L$33 -> 1466.665822
I101: 6
I102: 7 | K102: Subtotal 350 (substa) | L102: =+L96 -> 0 | M102: =SUM(N102:P102) -> 0 | N102: =+N96 -> 0 | O102: =+O96 -> 0 | P102: =+P96 -> 0 | Q102: =+Q96 -> 0
I103: 8 | K103: Subtotal 350 (lines) | L103: =+L97+L100 -> 3430.604906 | M103: =SUM(N103:P103) -> 1963.939084 | N103: =+N97+N100 -> 0 | O103: =+O97+O100 -> 0 | P103: =+P97+P100 -> 1963.939084 | Q103: =+Q97+Q100 -> 1466.665822
I104: 9
I105: =I104+1 -> 10 | J105: TOTAL ACCT 350 - LAND & ROW | L105: =+L102+L103 -> 3430.604906 | M105: 1963.939084 | N105: 0 | O105: 0 | P105: 1963.939084 | Q105: 1466.665822
I106: 11
A107: =K107 -> Struct & Improvements | C107: 352Res | E107: =VLOOKUP(C107,Data,ColNumber,FALSE)/1000 -> 952.3574842 | G107: =+E107+F107 -> 952.3574842 | I107: 12 | J107: 352 | K107: Struct & Improvements | L107: =+G107 -> 952.3574842 | M107: =SUM(N107:P107) -> 0 | N107: =+$L$107*N40/$L$40 -> 0 | O107: =+$L$107*O40/$L$40 -> 0 | P107: =+$L$107*P40/$L$40 -> 0 | Q107: =+$L$107*Q40/$L$40 -> 952.3574842
A108: =K108 -> Station Equipment | C108: 353Res | E108: =VLOOKUP(C108,Data,ColNumber,FALSE)/1000 -> 70515.01784 | G108: =+E108+F108 -> 70515.01784 | I108: 13 | J108: 353 | K108: Station Equipment | L108: =+G108 -> 70515.01784 | M108: =SUM(N108:P108) -> 28363.69091 | N108: =(D11+G11)/1000 -> 17343.46071 | O108: =+$L$108*O41/$L$41 -> 11020.2302 | P108: =+$L$108*P41/$L$41 -> 0 | Q108: =L108-M108 -> 42151.32693
I109: 14
I110: 15 | J110: TOTAL ACCTS 352 & 353 | L110: =+L107+L108 -> 71467.37532 | M110: =SUM(N110:P110) -> 28363.69091 | N110: =+N107+N108 -> 17343.46071 | O110: =+O107+O108 -> 11020.2302 | P110: =+P107+P108 -> 0 | Q110: =+Q107+Q108 -> 43103.68441
I111: 16
A112: =K112 -> Towers & Fixtures | C112: 354Res | E112: =VLOOKUP(C112,Data,ColNumber,FALSE)/1000 -> 3920.652343 | G112: =+E112+F112 -> 3920.652343 | I112: 17 | J112: 354 | K112: Towers & Fixtures | L112: =+G112 -> 3920.652343 | M112: =SUM(N112:P112) -> 3238.418528 | N112: =+$L$112*N45/$L$45 -> 0 | O112: =+$L$112*O45/$L$45 -> 0 | P112: =+$L$112*P45/$L$45 -> 3238.418528 | Q112: =+$L$112*Q45/$L$45 -> 682.2338147
I113: =I112+1 -> 18
A114: Poles & Fixtures | C114: 355Res | E114: =VLOOKUP(C114,Data,ColNumber,FALSE)/1000 -> 67220.95721 | G114: =+E114+F114 -> 67220.95721 | I114: 19 | J114: 355 | K114: Poles & Fixtures | L114: =+G114 -> 67220.95721 | M114: =SUM(N114:P114) -> 25481.07035 | N114: =+$L$114*N47/$L$47 -> 0 | O114: =+$L$114*O47/$L$47 -> 0 | P114: =+$L$114*P47/$L$47 -> 25481.07035 | Q114: =+$L$114*Q47/$L$47 -> 41739.88685
A115: OH Conductors | C115: 356Res | E115: =VLOOKUP(C115,Data,ColNumber,FALSE)/1000-VLOOKUP(C116,Data,ColNumber,FALSE)/1000 -> 43033.30295 | F115: =-SUMIF(JLH_SR_Sch2_PG1!$A$22:$A$31,"Acquisition Accumulated Amortizations",JLH_SR_Sch2_PG1!$E$22:$E$31)/1000 -> -1461.384 | G115: 41571.91895 | I115: 20 | J115: 356 | K115: OH Conductors | L115: 41571.91895 | M115: 18986.91889 | N115: =+$L$115*N48/$L$48 -> 0 | O115: =+$L$115*O48/$L$48 -> 0 | P115: =+$L$115*P48/$L$48 -> 18986.91889 | Q115: =+$L$115*Q48/$L$48 -> 22585.00006
A116: Clearing ROW | C116: 35601Res | E116: =VLOOKUP(C116,Data,ColNumber,FALSE)/1000 -> 1379.232554 | G116: 1379.232554 | I116: 21 | J116: 356.01 | K116: Clearing ROW | L116: 1379.232554 | M116: 1045.291196 | N116: =+$L$116*N49/$L$49 -> 0 | O116: =+$L$116*O49/$L$49 -> 0 | P116: =+$L$116*P49/$L$49 -> 1045.291196 | Q116: =+$L$116*Q49/$L$49 -> 333.9413578
A117: UG Conduit | C117: 357Res | E117: 1202.321413 | G117: 1202.321413 | I117: 22 | J117: 357 | K117: UG Conduit | L117: 1202.321413 | M117: 0 | N117: =+$L$117*N50/$L$50 -> 0 | O117: =+$L$117*O50/$L$50 -> 0 | P117: =+$L$117*P50/$L$50 -> 0 | Q117: =+$L$117*Q50/$L$50 -> 1202.321413
A118: UG Cables & Fixtures | C118: 358Res | E118: 3167.052267 | G118: 3167.052267 | I118: 23 | J118: 358 | K118: UG Cables & Fixtures | L118: 3167.052267 | M118: 0 | N118: =+$L$118*N51/$L$51 -> 0 | O118: =+$L$118*O51/$L$51 -> 0 | P118: =+$L$118*P51/$L$51 -> 0 | Q118: =+$L$118*Q51/$L$51 -> 3167.052267
A119: Roads & Trails | C119: 359Res | E119: 1521.745162 | G119: 1521.745162 | I119: 24 | J119: 359 | K119: Roads & Trails | L119: 1521.745162 | M119: 1154.595283 | N119: =+$L$119*N52/$L$52 -> 0 | O119: =+$L$119*O52/$L$52 -> 0 | P119: =+$L$119*P52/$L$52 -> 1154.595283 | Q119: =+$L$119*Q52/$L$52 -> 367.1498793
I120: 25
C121: Total Accum Reserve | E121: =SUM(E96:E120) -> 196343.2441 | F121: =SUM(F96:F120) -> -1461.384 | G121: =SUM(G96:G120) -> 194881.8601 | I121: =I120+1 -> 26 | J121: TOTAL ACCTS 354-359 | L121: =SUM(L112:L119) -> 119983.8799 | M121: 49906.29425 | N121: 0 | O121: 0 | P121: 49906.29425 | Q121: 70077.58565
C122: MFR Total | E122: =JLH_MFR_DATA!$F$14/1000+JLH_MFR_DATA!F351/1000 -> 196343.2441 | I122: 27
C123: Variance | E123: =E121-E122 -> 0 | I123: 28
I124: 29
I125: 30 | J125: TOTAL TRANSMISSION | L125: =+L121+L110+L105 -> 194881.8601 | M125: 80233.92424 | N125: 17343.46071 | O125: 11020.2302 | P125: 51870.23334 | Q125: 114647.9359
I126: 31
I127: 32
I128: =I127+1 -> 33 | J128: SUMMARY
I129: =I128+1 -> 34 | J129: TOTAL TRANS SUBSTATION | L129: =+L102+L110 -> 71467.37532 | M129: 28363.69091 | N129: 17343.46071 | O129: 11020.2302 | P129: 0 | Q129: 43103.68441
I130: =I129+1 -> 35 | J130: TOTAL TRANS LINES | L130: =+L103+L121 -> 123414.4848 | M130: 51870.23334 | N130: 0 | O130: 0 | P130: 51870.23334 | Q130: 71544.25147
K132: out of balance | M132: =+M125-M129-M130 -> 0 | N132: =+N125-N129-N130 -> 0 | O132: =+O125-O129-O130 -> 0 | P132: =+P125-P129-P130 -> 0 | Q132: =+Q125-Q129-Q130 -> 0
I144: TAMPA ELECTRIC COMPANY
A145: TRANMSSION PLANT DEPRECIATION EXPENSE (ANNUAL EXPENSE) | I145: TRANSMISSION DEPRECIATION EXPENSE ($000)
A146: =PERIOD -> FOR THE FORECAST PERIOD ENDING 12/31/14 | I146: =+'TITLES & CONSTANTS'!$D$9 -> FOR THE FORECAST PERIOD ENDING 12/31/14
C148: PLT ACCTG | M148: HI-VOLT | Q148: COMMON
C149: COMPONENTS | F149: SURV RPT | G149: TOTAL NET | L149: 13 MO | M149: Total | N149: GSU | O149: High | Q149: SUBSTATION
A150: Plant | B150: Adjustments | C150: ACCT | E150: AMOUNT | F150: ADJUSTMENTS | G150: PLANT COST | I150: Line | J150: Acct | K150: Description | L150: AVG PLANT | M150: Hi-Volt | N150: Transformer | O150: Volt | P150: Lines | Q150: & LINES
I151: 1 | J151: 2 | K151: 3 | L151: 4 | M151: 5 | N151: 6 | O151: 7 | P151: 8 | Q151: 9
I153: 1 | J153: 350 | K153: Substation Land | L153: 0 | M153: =SUM(N153:P153) -> 0 | N153: =+$L153*N29/$L$29 -> 0 | O153: =+$L153*O29/$L$29 -> 0 | P153: =+$L153*P29/$L$29 -> 0 | Q153: =+$L153*Q29/$L$29 -> 0
I154: =I153+1 -> 2 | J154: 350 | K154: Line Land | L154: 0 | M154: =SUM(N154:P154) -> 0 | N154: =+$L154*N30/$L$30 -> 0 | O154: =+$L154*O30/$L$30 -> 0 | P154: =+$L154*P30/$L$30 -> 0 | Q154: =+$L154*Q30/$L$30 -> 0
A155: =K155 -> Subtotal Land | C155: 35000Exp | E155: =VLOOKUP(C155,Data,ColNumber,FALSE)/1000 -> 0 | G155: =+E155+F155 -> 0 | I155: =I154+1 -> 3 | K155: Subtotal Land | L155: =+L153+L154 -> 0 | M155: 0 | N155: 0 | O155: 0 | P155: 0 | Q155: 0
I156: =I155+1 -> 4
A157: =K157 -> Line Right of Way | C157: 35001Exp | E157: =VLOOKUP(C157,Data,ColNumber,FALSE)/1000 -> 141.928924 | G157: =+E157+F157 -> 141.928924 | I157: 5 | J157: 350.01 | K157: Line Right of Way | L157: =+G157 -> 141.928924 | M157: =SUM(N157:P157) -> 81.25090727 | N157: =+$L$157*N33/$L$33 -> 0 | O157: =+$L$157*O33/$L$33 -> 0 | P157: =+$L$157*P33/$L$33 -> 81.25090727 | Q157: =+$L$157*Q33/$L$33 -> 60.67801675
I158: 6
I159: 7 | K159: Subtotal 350 (substa) | L159: =+L153 -> 0 | M159: =SUM(N159:P159) -> 0 | N159: =+N153 -> 0 | O159: =+O153 -> 0 | P159: =+P153 -> 0 | Q159: =+Q153 -> 0
I160: 8 | K160: Subtotal 350 (lines) | L160: =+L154+L157 -> 141.928924 | M160: =SUM(N160:P160) -> 81.25090727 | N160: =+N154+N157 -> 0 | O160: =+O154+O157 -> 0 | P160: =+P154+P157 -> 81.25090727 | Q160: =+Q154+Q157 -> 60.67801675
I161: 9
I162: =I161+1 -> 10 | J162: TOTAL ACCT 350 - LAND & ROW | L162: =+L159+L160 -> 141.928924 | M162: 81.25090727 | N162: 0 | O162: 0 | P162: 81.25090727 | Q162: 60.67801675
I163: 11
A164: =K164 -> Struct & Improvements | C164: 352Exp | E164: =VLOOKUP(C164,Data,ColNumber,FALSE)/1000 -> 75.06983674 | G164: =+E164+F164 -> 75.06983674 | I164: 12 | J164: 352 | K164: Struct & Improvements | L164: =+G164 -> 75.06983674 | M164: =SUM(N164:P164) -> 0 | N164: =+$L$164*N40/$L$40 -> 0 | O164: =+$L$164*O40/$L$40 -> 0 | P164: =+$L$164*P40/$L$40 -> 0 | Q164: =+$L$164*Q40/$L$40 -> 75.06983674
A165: =K165 -> Station Equipment | C165: 353Exp | E165: =VLOOKUP(C165,Data,ColNumber,FALSE)/1000 -> 6165.75633 | G165: =+E165+F165 -> 6165.75633 | I165: 13 | J165: 353 | K165: Station Equipment | L165: =+G165+$G$183 -> 6165.75633 | M165: =SUM(N165:P165) -> 2172.349922 | N165: =(E11+H11)/1000 -> 1208.753 | O165: =+$L$165*O41/$L$41 -> 963.5969216 | P165: =+$L$165*P41/$L$41 -> 0 | Q165: =L165-M165 -> 3993.406409
I166: 14
I167: 15 | J167: TOTAL ACCTS 352 & 353 | L167: =+L164+L165 -> 6240.826167 | M167: =SUM(N167:P167) -> 2172.349922 | N167: =+N164+N165 -> 1208.753 | O167: =+O164+O165 -> 963.5969216 | P167: =+P164+P165 -> 0 | Q167: =+Q164+Q165 -> 4068.476246
I168: 16
A169: =K169 -> Towers & Fixtures | C169: 354Exp | E169: =VLOOKUP(C169,Data,ColNumber,FALSE)/1000 -> 103.1408327 | G169: =+E169+F169 -> 103.1408327 | I169: 17 | J169: 354 | K169: Towers & Fixtures | L169: =+G169 -> 103.1408327 | M169: =SUM(N169:P169) -> 85.19326743 | N169: =+$L$169*N45/$L$45 -> 0 | O169: =+$L$169*O45/$L$45 -> 0 | P169: =+$L$169*P45/$L$45 -> 85.19326743 | Q169: =+$L$169*Q45/$L$45 -> 17.94756525
I170: =I169+1 -> 18
A171: Poles & Fixtures | C171: 355Exp | E171: =VLOOKUP(C171,Data,ColNumber,FALSE)/1000 -> 7773.723832 | G171: =+E171+F171 -> 7773.723832 | I171: 19 | J171: 355 | K171: Poles & Fixtures | L171: =+G171 -> 7773.723832 | M171: =SUM(N171:P171) -> 2946.741791 | N171: =+$L$171*N47/$L$47 -> 0 | O171: =+$L$171*O47/$L$47 -> 0 | P171: =+$L$171*P47/$L$47 -> 2946.741791 | Q171: =+$L$171*Q47/$L$47 -> 4826.98204
A172: OH Conductors | B172: =JLH_MFR_DATA!E20/1000*1 -> 185.74932 | C172: 356Exp | E172: =VLOOKUP(C172,Data,ColNumber,FALSE)/1000-VLOOKUP(C173,Data,ColNumber,FALSE)/1000+B172 -> 3664.431118 | F172: =SUMIF(JLH_SR_SCH2_PG2!$A$28:$A$40,"Acquisition Amortizations",JLH_SR_SCH2_PG2!$I$28:$I$40)/1000 -> -244.597 | G172: 3419.834118 | I172: 20 | J172: 356 | K172: OH Conductors | L172: =+G172+G180 -> 3419.834118 | M172: 1561.922438 | N172: =+$L$172*N48/$L$48 -> 0 | O172: =+$L$172*O48/$L$48 -> 0 | P172: =+$L$172*P48/$L$48 -> 1561.922438 | Q172: =+$L$172*Q48/$L$48 -> 1857.91168
A173: Clearing ROW | C173: 35601Exp | E173: =VLOOKUP(C173,Data,ColNumber,FALSE)/1000 -> 42.2122026 | G173: 42.2122026 | I173: 21 | J173: 356.01 | K173: Clearing ROW | L173: =+G173 -> 42.2122026 | M173: 31.991736 | N173: =+$L$173*N49/$L$49 -> 0 | O173: =+$L$173*O49/$L$49 -> 0 | P173: =+$L$173*P49/$L$49 -> 31.991736 | Q173: =+$L$173*Q49/$L$49 -> 10.2204666
A174: UG Conduit | C174: 357Exp | E174: 63.63301554 | G174: 63.63301554 | I174: 22 | J174: 357 | K174: UG Conduit | L174: =+G174 -> 63.63301554 | M174: 0 | N174: =+$L$174*N50/$L$50 -> 0 | O174: =+$L$174*O50/$L$50 -> 0 | P174: =+$L$174*P50/$L$50 -> 0 | Q174: =+$L$174*Q50/$L$50 -> 63.63301554
A175: UG Cables & Fixtures | C175: 358Exp | E175: 161.212658 | G175: 161.212658 | I175: 23 | J175: 358 | K175: UG Cables & Fixtures | L175: =+G175 -> 161.212658 | M175: 0 | N175: =+$L$175*N51/$L$51 -> 0 | O175: =+$L$175*O51/$L$51 -> 0 | P175: =+$L$175*P51/$L$51 -> 0 | Q175: =+$L$175*Q51/$L$51 -> 161.212658
A176: Roads & Trails | C176: 359Exp | E176: 79.91578155 | G176: 79.91578155 | I176: 24 | J176: 359 | K176: Roads & Trails | L176: =+G176 -> 79.91578155 | M176: 60.6345837 | N176: =+$L$176*N52/$L$52 -> 0 | O176: =+$L$176*O52/$L$52 -> 0 | P176: =+$L$176*P52/$L$52 -> 60.6345837 | Q176: =+$L$176*Q52/$L$52 -> 19.28119785
I177: 25
E178: =SUM(E153:E177) -> 18271.02453 | F178: =SUM(F153:F177) -> -244.597 | G178: =SUM(G153:G177) -> 18026.42753 | I178: =I177+1 -> 26 | J178: TOTAL ACCTS 354-359 | L178: =SUM(L169:L176) -> 11643.67244 | M178: 4686.483817 | N178: 0 | O178: 0 | P178: 4686.483817 | Q178: 6957.188623
I179: 27
C180: 403 | D180: OUC | F180: =-E180*1 -> 0 | G180: =+E180+F180 -> 0 | I180: 28
C181: 40601 | D181: OUC | E181: =ACQ_ADJ!C24/1000 -> -185.7492 | F181: =-E181 -> 185.7492 | G181: =+E181+F181 -> 0 | I181: 29 | J181: TOTAL TRANSMISSION | L181: =+L178+L167+L162 -> 18026.42753 | M181: 6940.084646 | N181: 1208.753 | O181: 963.5969216 | P181: 4767.734724 | Q181: 11086.34289
I182: 30
I183: 31
C184: TOTAL DEPRE ADJ | E184: =SUM(E180:E183) -> -185.7492 | F184: =SUM(F180:F183) -> 185.7492 | G184: =SUM(G180:G183) -> 0 | I184: 32 | J184: SUMMARY
I185: =I184+1 -> 33 | J185: TOTAL TRANS SUBSTATION | L185: =+L159+L167 -> 6240.826167 | M185: 2172.349922 | N185: 1208.753 | O185: 963.5969216 | P185: 0 | Q185: 4068.476246
I186: =I185+1 -> 34 | J186: TOTAL TRANS LINES | L186: =+L160+L178 -> 11785.60136 | M186: 4767.734724 | N186: 0 | O186: 0 | P186: 4767.734724 | Q186: 7017.86664
C188: TOTAL DEPRE EXPENSE | E188: =+E178+E184 -> 18085.27533 | F188: =+F184 -> 185.7492 | G188: =+G178+G184 -> 18026.42753 | K188: out of balance | M188: =+M181-M185-M186 -> 0 | N188: =+N181-N185-N186 -> 0 | O188: =+O181-O185-O186 -> 0 | P188: =+P181-P185-P186 -> 0 | Q188: =+Q181-Q185-Q186 -> 0
C189: MFR Total | E189: =JLH_MFR_DATA!$E$14/1000 -> 18085.27521
C190: VARIANCE | E190: =E188-E189 -> 0.0001200000006
C193: PIS $'s | E193: rsrv amt | F193: depr exp
B194: MFR | C194: =JLH_MFR_DATA!D14/1000 -> 647390.7964 | E194: =JLH_MFR_DATA!F14/1000+JLH_MFR_DATA!F351/1000 -> 196343.2441 | F194: =JLH_MFR_DATA!E14/1000 -> 18085.27521
B195: COS | C195: =E66 -> 670243.6302 | E195: =E121 -> 196343.2441 | F195: =E188 -> 18085.27533
B196: VARIANCES | C196: =C194-C195 -> -22852.83383 | E196: =E194-E195 -> 0 | F196: =F194-F195 -> -0.0001200000006
C197: Land & ACQ expense (see above PIS)

Sheet Transm Substa Detail
A1: =PERIOD -> FOR THE FORECAST PERIOD ENDING 12/31/14 | F1: Acct 353 | G1: Acct 350 | H1: Acct 352 | I1: TOTAL
C2: Prints data only | E2: VARIANCE CK | F2: Structure | G2: Land | H2: Station
E3: DOWNLOAD SS | F3: =VLOOKUP("Grand Total",sub_data,4,FALSE) -> 4090901.75 | G3: =VLOOKUP("Grand Total",sub_data,3,FALSE) -> 4899391.74 | H3: =VLOOKUP("Grand Total",sub_data,5,FALSE) -> 256570838 | I3: =SUM(F3:H3) -> 265561131.5
C4: Prints summaries only | I4: =SUM(F4:H4) -> 0
E5: Acct Detail Support total | F5: =SUM(F3:F4) -> 4090901.75 | G5: =SUM(G3:G4) -> 4899391.74 | H5: =SUM(H3:H4) -> 256570838 | I5: =SUM(F5:H5) -> 265561131.5
E6: COS Summary Total | F6: =P126 -> 4090901.75 | G6: =N126 -> 4899391.74 | H6: =L126 -> 256570838 | I6: =SUM(F6:H6) -> 265561131.5
E8: Variance s/b zero | F8: =F5-F6 -> 0 | G8: =G5-G6 -> 0 | H8: =H5-H6 -> 0 | I8: =SUM(F8:H8) -> 0
A10: REQUIRED INPUTS:
A11: Period | B11: 2012 Act
A12: Desc | B12: Substation Detail
A13: Source | B13: Accounting (LS/AT)
A14: Input Value | B14: dump into A200
A15: Summary Column | B15: Col A
B16: updated 2/11/2013
A18: COMMENTS: | B18: Dump worksheet from accounting into approximate area of A200, summary will populate.
B19: This sheet is still important to identify the types of substations, between step-up, hi-volt & common GUS IN ROW 285
B20: Reviewed Steven Hurner substation list 11/5/12, all is updated for 2012 forward (as of 7/2012)
A23: DO NOT INSERT OR DELETE ROWS IN THIS AREA, IT WILL IMPACT SCHEDULE ON RIGHT
H26: "trans_summary_header"
H28: TAMPA ELECTRIC COMPANY
H29: TRANSMISSION SUBSTATION INVESTMENT
H30: =+'TITLES & CONSTANTS'!$D$9 -> FOR THE FORECAST PERIOD ENDING 12/31/14
M32: Adjust Acct 353 | O32: Adjust Acct 350 | Q32: Adjust Acct 352 | R32: TOTAL ACCTS
H33: LINE | I33: REF | J33: CO. | K33: SUBSTATION | L33: ACCT 353 | M33: PIS and 13-Mo | N33: ACCT 350 | O33: PIS and 13-Mo | P33: ACCT 352 | Q33: PIS and 13-Mo | R33: 353+350+352
H34: NO. | I34: NO. | J34: ID. | K34: DESCRIPTION | L34: TOTAL $ | M34: Avg Factors (*) | N34: LAND $ | O34: Avg Factors (*) | P34: STRUCTURE | Q34: Avg Factors (*) | R34: INVESTMENT $
H35: 1 | I35: 2 | J35: 3 | K35: 4 | L35: 5 | M35: 6 | N35: 7 | O35: 8 | P35: 9 | Q35: 10 | R35: 11
H36: 1
H37: =+H36+1 -> 2 | I37: 7 | J37: 002T | K37: =VLOOKUP(J37, $A$180:$B$345,2,FALSE) -> 002T-HOOKER'S POINT | L37: =SUMIF(sub_id,$J37,sub_station) -> 2835164.34 | M37: =+L37*$L$136*$M$148 -> 2967627.247 | N37: =SUMIF(sub_id,$J37,sub_land) -> 64008.85 | O37: =+N37*$N$136*$O$148 -> 64008.85 | P37: =SUMIF(sub_id,$J37,sub_structure) -> 2944.38 | Q37: =+P37*$P$136*$Q$148 -> 3187.907282 | R37: =+M37+O37+Q37 -> 3034824.004
H38: =+H37+1 -> 3 | I38: 1 | J38: 003T | K38: 003T-ELEVENTH AVENUE | L38: 5683548.51 | M38: 5949091.973 | N38: 43899.45 | O38: 43899.45 | P38: 151264.65 | Q38: 163775.6265 | R38: 6156767.049
H39: 4 | I39: 1 | J39: 004T | K39: 004T-HAMPTON | L39: 3898618.67 | M39: 4080767.674 | N39: 61416.31 | O39: 61416.31 | P39: 16133.99 | Q39: 17468.41923 | R39: 4159652.404
H40: 5 | I40: 1 | J40: 007T | K40: 007T-LAKE SILVER (W.H) | L40: 1774183.05 | M40: 1857075.403 | N40: 3788.26 | O40: 3788.26 | P40: 4376.09 | Q40: 4738.032855 | R40: 1865601.696
H41: 6 | I41: 1 | J41: 008T | K41: 008T-DADE CITY | L41: 3449034.4 | M41: 3610178.188 | N41: 8365.76 | O41: 8365.76 | P41: 176344.34 | Q41: 190929.6374 | R41: 3809473.586
H42: 7 | I42: 1 | J42: 032T | K42: 032T-CENTRAL PHOS CAP BNK | L42: 117976.15 | M42: 123488.1634 | N42: 0 | O42: 0 | P42: 0 | Q42: 0 | R42: 123488.1634
H43: 8 | I43: 7 | J43: 034T | K43: 034T-BIG BEND | L43: 9563794.7 | M43: 10010628.78 | N43: 253745.82 | O43: 253745.82 | P43: 103402.17 | Q43: 111954.4796 | R43: 10376329.08
H44: 9 | I44: 1 | J44: 036T | K44: 036T-RIDGEWOOD METERING | L44: 182936.51 | M44: 191483.5637 | N44: 0 | O44: 0 | P44: 0 | Q44: 0 | R44: 191483.5637
H45: 10 | I45: 1 | J45: 039T | K45: 039T-MILLPOINT | L45: 762862.22 | M45: 798504.227 | N45: 2571 | O45: 2571 | P45: 13869.51 | Q45: 15016.64593 | R45: 816091.8729
H46: 11 | I46: 1 | J46: 047T | K46: 047T-NICHOLS PREP PLT MTR | L46: 142568.46 | M46: 149229.461 | N46: 0 | O46: 0 | P46: 0 | Q46: 0 | R46: 149229.461
H47: 12 | I47: 1 | J47: 048T | K47: 048T-CONSERV COGEN INTERC | L47: 78158.68 | M47: 81810.3646 | N47: 0 | O47: 0 | P47: 0 | Q47: 0 | R47: 81810.3646
H48: 13 | I48: 1 | J48: 055T | K48: 055T-USS AGRI-CHEM MTR | L48: 110542.08 | M48: 115706.7631 | N48: 0 | O48: 0 | P48: 0 | Q48: 0 | R48: 115706.7631
H49: 14 | I49: 1 | J49: 066T | K49: 066T-CLEARVIEW | L49: 3933812.61 | M49: 4117605.925 | N49: 159119.82 | O49: 159119.82 | P49: 43034.77 | Q49: 46594.14093 | R49: 4323319.886
H50: 15 | I50: 1 | J50: 070D | K50: 070D-CYPRESS GARDENS | L50: 21668.97 | M50: 22681.37507 | N50: 0 | O50: 0 | P50: 0 | Q50: 0 | R50: =+M50+O50+Q50 -> 22681.37507
H51: 16 | I51: 1 | J51: 080T | K51: 080T-JACKSON ROAD SUBSTA | L51: 4165344.87 | M51: 4359955.701 | N51: 106035.72 | O51: 106035.72 | P51: 72754.92 | Q51: 78772.42044 | R51: 4544763.842
H52: 17 | I52: 1 | J52: 083T | K52: 083T-JUNEAU | L52: 11161386.64 | M52: 11682862.48 | N52: 3886.5 | O52: 3886.5 | P52: 147165.56 | Q52: 159337.5041 | R52: 11846086.49
H53: 18 | I53: 1 | J53: 084T | K53: 084T-HIMES | L53: 3932980.76 | M53: 4116735.21 | N53: 3075.4 | O53: 3075.4 | P53: 29950.69 | Q53: 32427.88728 | R53: 4152238.497
H54: 19 | I54: 1 | J54: 085T | K54: 085T-ARIANA | L54: 4693735.94 | M54: 4913033.953 | N54: 17038.1 | O54: 17038.1 | P54: 20460.21 | Q54: 22152.45738 | R54: 4952224.51
H55: 20 | I55: 1 | J55: 088T | K55: 088T-BONNIE METERING IMC | L55: 142242.08 | M55: 148887.8321 | N55: 0 | O55: 0 | P55: 0 | Q55: 0 | R55: 148887.8321
H56: 21 | I56: 1 | J56: 089T | K56: 089T-RIVER | L56: 6296961.28 | M56: 6591164.259 | N56: 72044.62 | O56: 72044.62 | P56: 167284.49 | Q56: 181120.4545 | R56: 6844329.334
H57: 22 | I57: 1 | J57: 093T | K57: 093T-PEBBLEDALE TRANSMISSION | L57: 5730332.05 | M57: 5998061.306 | N57: 7316.9 | O57: 7316.9 | P57: 57116.46 | Q57: 61840.51609 | R57: 6067218.722
H58: 23 | I58: 1 | J58: 103T | K58: 103T-RUSKIN | L58: 4377757.67 | M58: 4582292.729 | N58: 24027.02 | O58: 24027.02 | P58: 45676.81 | Q58: 49454.70192 | R58: 4655774.451
H59: 24 | I59: 1 | J59: 112T | K59: 112T-SOUTH GIBSONTON | L59: 4449346.81 | M59: 4657226.616 | N59: 12080.7 | O59: 12080.7 | P59: 69179.7 | Q59: 74901.49689 | R59: 4744208.813
H60: =+H59+1 -> 25 | I60: 7 | J60: 128T | K60: 128T-SANDHILL | L60: 1392718.55 | M60: 1457788.34 | N60: 3377.19 | O60: 3377.19 | P60: 53230.05 | Q60: 57632.66427 | R60: 1518798.194
H61: 26 | I61: 7 | J61: 129T | K61: 129T-GANNON | L61: 18793597.35 | M61: 19671660.92 | N61: 19093.6 | O61: 19093.6 | P61: 455526.7 | Q61: 493202.944 | R61: 20183957.47
H62: 27 | I62: 1 | J62: 130T | K62: 130T-DOUBLE BRANCH | L62: 7936.76 | M62: 8307.576706 | N62: 0 | O62: 0 | P62: 0 | Q62: 0 | R62: =+M62+O62+Q62 -> 8307.576706
H63: 28 | I63: 1 | J63: 134T | K63: 134T-PAYNE CREEK METERING | L63: 25110.34 | M63: 26283.53077 | N63: 0 | O63: 0 | P63: 0 | Q63: 0 | R63: =+M63+O63+Q63 -> 26283.53077
H64: 29 | I64: 1 | J64: 135T | K64: 135T-NICHOLS WSH/MINE MTR | L64: 0 | M64: 0 | N64: 0 | O64: 0 | P64: 0 | Q64: 0 | R64: 0
H65: 30 | I65: 1 | J65: 144T | K65: 144T-SOUTH ELOISE | L65: 7179734.82 | M65: 7515182.233 | N65: 22089.89 | O65: 22089.89 | P65: 119454.46 | Q65: 129334.4415 | R65: 7666606.565
H66: 31 | I66: 1 | J66: 145T | K66: 145T-STATE ROAD 60 | L66: 5604679.17 | M66: 5866537.745 | N66: 61808.79 | O66: 61808.79 | P66: 88672.3 | Q66: 96006.31403 | R66: 6024352.849
H67: 32 | I67: 1 | J67: 150T | K67: 150T-SHELDON ROAD | L67: 7476967.47 | M67: 7826302.015 | N67: 17027.65 | O67: 17027.65 | P67: 77185.3 | Q67: 83569.23357 | R67: 7926898.899
H68: 33 | I68: 1 | J68: 163T | K68: 163T-CONSERVE METERING | L68: 126238.88 | M68: 132136.9399 | N68: 0 | O68: 0 | P68: 0 | Q68: 0 | R68: 132136.9399
H69: 34 | I69: 1 | J69: 171T | K69: =VLOOKUP(J69, $A$180:$B$345,2,FALSE) -> 171T-FOUR CORNERS MTR | L69: 138184.35 | M69: =+L69*$L$136*$M$148 -> 144640.5192 | N69: 0 | O69: =+N69*$N$136*$O$148 -> 0 | P69: 0 | Q69: =+P69*$P$136*$Q$148 -> 0 | R69: 144640.5192
H70: 35 | I70: 1 | J70: 173T | K70: 173T-OHIO | L70: 4425637.02 | M70: 4632409.071 | N70: 368835.85 | O70: 368835.85 | P70: 45670.48 | Q70: 49447.84837 | R70: 5050692.769
H71: 36 | I71: 1 | J71: 183T | K71: 183T-HOOKER'S PRAIRIE MTR | L71: 140874.51 | M71: 147456.3673 | N71: =SUMIF(sub_id,$J71,sub_land) -> 0 | O71: 0 | P71: =SUMIF(sub_id,$J71,sub_structure) -> 0 | Q71: 0 | R71: 147456.3673
H72: 37 | I72: 1 | J72: 187T | K72: 187T-FORT LONESOME MTR | L72: 0 | M72: 0 | N72: 0 | O72: 0 | P72: 2308.11 | Q72: 2499.011906 | R72: =+M72+O72+Q72 -> 2499.011906
H73: 38 | I73: 1 | J73: 195T | K73: 195T-BRADLEY | L73: 23599.25 | M73: 24701.8405 | N73: 40710.85 | O73: 40710.85 | P73: 0 | Q73: 0 | R73: =+M73+O73+Q73 -> 65412.6905
H74: 39 | I74: 1 | J74: 196T | K74: 196T-FORT GREEN METERING | L74: =SUMIF(sub_id,$J74,sub_station) -> 49337.95 | M74: 51643.08913 | N74: 0 | O74: 0 | P74: 0 | Q74: 0 | R74: =+M74+O74+Q74 -> 51643.08913
H75: 40 | I75: 1 | J75: 203T | K75: 203T-KINGSFORD 1 & 2 MTR | L75: 23684 | M75: 24790.55014 | N75: 0 | O75: 0 | P75: 0 | Q75: 0 | R75: 24790.55014
H76: 41 | I76: 1 | J76: 204T | K76: 204T-KINGSFORD CAP BANK | L76: 4758.06 | M76: 4980.363325 | N76: 0 | O76: 0 | P76: 0 | Q76: 0 | R76: =+M76+O76+Q76 -> 4980.363325
H77: 42 | I77: 1 | J77: 208T | K77: 208T-NEW WALES CAP BANK | L77: 188685.16 | M77: 197500.7988 | N77: 0 | O77: 0 | P77: 0 | Q77: 0 | R77: 197500.7988
H78: 43 | I78: 1 | J78: 209T | K78: 209T-NEW WALES METERING | L78: 178247.25 | M78: 186575.2148 | N78: 0 | O78: 0 | P78: 0 | Q78: 0 | R78: 186575.2148
H79: 44 | I79: 1 | J79: 224T | K79: 224T-DALE MABRY | L79: 8882064.56 | M79: 9297047.238 | N79: 36542.45 | O79: 36542.45 | P79: 48154.6 | Q79: 52137.42792 | R79: 9385727.116
H80: 45 | I80: 1 | J80: 225T | K80: 225T-DAVIS ROAD SUBSTATION | L80: 6330123.1 | M80: 6625875.447 | N80: 0 | O80: 0 | P80: 204504.44 | Q80: 221418.8364 | R80: 6847294.283
H81: 46 | I81: 1 | J81: 227T | K81: 227T-GAPWAY SUB | L81: 1252604.89 | M81: 1311128.37 | N81: 11771.42 | O81: 11771.42 | P81: 83454.37 | Q81: 90356.81327 | R81: 1413256.604
H82: 47 | I82: 1 | J82: 266T | K82: 266T-MINES | L82: 5493561.09 | M82: 5750228.071 | N82: 44682.94 | O82: 44682.94 | P82: 103063.62 | Q82: 111587.9284 | R82: 5906498.939
H83: 48 | I83: 1 | J83: 268D | K83: 268D-HARBOUR ISLAND | L83: 4890.6 | M83: 5119.095782 | N83: 0 | O83: 0 | P83: 0 | Q83: 0 | R83: =+M83+O83+Q83 -> 5119.095782
H84: 49 | I84: 1 | J84: 274T | K84: 274T-FOUR CORNERS PLT CAP | L84: 82658.96 | M84: 86520.90407 | N84: 0 | O84: 0 | P84: 0 | Q84: 0 | R84: 86520.90407
H85: 50 | I85: 1 | J85: 286T | K85: 286T-FOUR CORNERS MINE ME | L85: 50187.04 | M85: 52531.84983 | N85: 0 | O85: 0 | P85: 0 | Q85: 0 | R85: 52531.84983
H86: 51 | I86: 1 | J86: 303T | K86: 303T-CHAPMAN SUBSTATION | L86: 4020309.91 | M86: 4208144.502 | N86: 131010.61 | O86: 131010.61 | P86: 108283.58 | Q86: 117239.6271 | R86: 4456394.739
H87: 52 | I87: 1 | J87: 304T | K87: 304T-FOUR CORNERS M/CAP B | L87: 124459.09 | M87: 130273.9955 | N87: 0 | O87: 0 | P87: 0 | Q87: 0 | R87: 130273.9955
H88: 53 | I88: 1 | J88: 311T | K88: 311T-MCKAY BAY CO-GEN | L88: 14692.73 | M88: 15379.19522 | N88: 0 | O88: 0 | P88: 0 | Q88: 0 | R88: 15379.19522
H89: 54 | I89: 1 | J89: 313T | K89: 313T-CABBAGE HILL | L89: 798831.09 | M89: 836153.6137 | N89: 12100.68 | O89: 12100.68 | P89: 42544.86 | Q89: 46063.71087 | R89: 894318.0046
H90: 55 | I90: 1 | J90: 318T | K90: 318T-BELL CREEK | L90: 3042553.59 | M90: 3184706.017 | N90: 117325.52 | O90: 117325.52 | P90: 50853.89 | Q90: 55059.974 | R90: 3357091.511
H91: 56 | I91: 1 | J91: 319T | K91: 319T-WHEELER ROAD | L91: 1049254.12 | M91: 1098276.764 | N91: 139827.17 | O91: 139827.17 | P91: 10275.41 | Q91: 11125.28083 | R91: 1249229.214
H92: 57 | I92: 1 | J92: 331T | K92: 331T-GANNON 69KV SUB STA | L92: 4897592.84 | M92: 5126415.337 | N92: 0 | O92: 0 | P92: 199516.5 | Q92: 216018.3479 | R92: 5342433.685
H93: 58 | I93: 1 | J93: 343T | K93: 343T-CF INDUSTRIES CO-GEN | L93: 53981.96 | M93: 56504.07388 | N93: 0 | O93: 0 | P93: 0 | Q93: 0 | R93: 56504.07388
H94: 59 | I94: 1 | J94: 360T | K94: 360T-FARMLAND CO GEN | L94: 45048.02 | M94: 47152.72751 | N94: 0 | O94: 0 | P94: 0 | Q94: 0 | R94: 47152.72751
H95: 60 | I95: 7 | J95: 365T | K95: 365T-POLK POWER SUB | L95: 7431939.99 | M95: 7779170.787 | N95: 45695.17 | O95: 45695.17 | P95: 148304.69 | Q95: 160570.8506 | R95: 7985436.808
H96: 61 | I96: 1 | J96: 370T | K96: 370T-AGRICO COMPLEX COGEN | L96: 20114.89 | M96: 21054.68624 | N96: 0 | O96: 0 | P96: 0 | Q96: 0 | R96: 21054.68624
H97: 62 | I97: 1 | J97: 371T | K97: 371T-ROYSTER SUB | L97: 47270.23 | M97: 49478.76232 | N97: 0 | O97: 0 | P97: 0 | Q97: 0 | R97: =+M97+O97+Q97 -> 49478.76232
H98: 63 | I98: 7 | J98: 376T | K98: 376T-FOUR CORNERS PRECO # 0376T | L98: 80196.72 | M98: 83943.62472 | N98: 0 | O98: 0 | P98: 0 | Q98: 0 | R98: 83943.62472
H99: 64 | I99: 1 | J99: 380T | K99: 380T-RECKER | L99: 5488515.4 | M99: 5744946.639 | N99: 454703.23 | O99: 454703.23 | P99: 61254.17 | Q99: 66320.45273 | R99: 6265970.322
H100: 65 | I100: 1 | J100: 381T | K100: 381T-LAKE AGNES SUB | L100: 3613458.95 | M100: 3782284.887 | N100: 241211.55 | O100: 241211.55 | P100: 58920.55 | Q100: 63793.82091 | R100: 4087290.258
H101: 66 | I101: 1 | J101: 386T | K101: =VLOOKUP(J101, $A$180:$B$345,2,FALSE) -> 386T-OSCEOLA SUBSTATION 0386T | L101: 4603247.4 | M101: =+L101*$L$136*$M$148 -> 4818317.66 | N101: 0 | O101: =+N101*$N$136*$O$148 -> 0 | P101: 252661.93 | Q101: =+P101*$P$136*$Q$148 -> 273559.3933 | R101: 5091877.053
H102: 67 | I102: 1 | J102: 387T | K102: 387T-STUDIO SUBSTATION | L102: 221441.84 | M102: 231787.9174 | N102: =SUMIF(sub_id,$J102,sub_land) -> 0 | O102: 0 | P102: =SUMIF(sub_id,$J102,sub_structure) -> 0 | Q102: 0 | R102: 231787.9174
H103: 68 | I103: 1 | J103: 408T | K103: 408T-Wilderness Substation | L103: 5145999.86 | M103: 5386428.286 | N103: 540838.94 | O103: 540838.94 | P103: 0 | Q103: 0 | R103: 5927267.226
H104: 69 | I104: 1 | J104: 410T | K104: 410T-4 CORNERS W METERSTA | L104: 176580.75 | M104: 184830.8536 | N104: 0 | O104: 0 | P104: 0 | Q104: 0 | R104: 184830.8536
H105: 70 | I105: 1 | J105: 412T | K105: 412T-FISHHAWK SUB | L105: 10672088.88 | M105: 11170704.04 | N105: 0 | O105: 0 | P105: 246494.75 | Q105: 266882.1309 | R105: 11437586.17
H106: 71 | I106: 1 | J106: 434T | K106: 434T-FORT LONESOME PREWSH | L106: 97219.72 | M106: 101761.9635 | N106: 0 | O106: 0 | P106: 0 | Q106: 0 | R106: 101761.9635
H107: 72 | I107: 1 | J107: 435T | K107: 435T-Willow Oak Substation | L107: 0 | M107: 0 | N107: 0 | O107: 0 | P107: 32571.43 | Q107: 35265.38656 | R107: 35265.38656
H108: 73 | I108: 1 | J108: 436T | K108: 436T-Handcart Road | L108: 2431336.3 | M108: 2544931.787 | N108: 647313.68 | O108: 647313.68 | P108: 154149.21 | Q108: 166898.7662 | R108: 3359144.233
H109: 74 | I109: 1 | J109: 437T | K109: 437T-Whitehurst Substation | L109: =SUMIF(sub_id,$J109,sub_station) -> 2204374.77 | M109: 2307366.292 | N109: 450296.5 | O109: 450296.5 | P109: 175992.8 | Q109: 190549.0218 | R109: =+M109+O109+Q109 -> 2948211.814
H110: 75 | I110: 1 | J110: 444T | K110: 444T-Union Substation | L110: 1381799.89 | M110: 1446359.544 | N110: 650010.45 | O110: 650010.45 | P110: 0 | Q110: 0 | R110: 2096369.994
H111: 76 | I111: 1 | J111: 446T | K111: 446T-Thonotosassa Sub | L111: 2598895.95 | M111: 2720320.062 | N111: 0 | O111: 0 | P111: 146894.81 | Q111: 159044.3606 | R111: 2879364.423
H112: =+H111+1 -> 77 | I112: 1 | J112: 916T | K112: 916T-HARDEE SUB | L112: 27277.7 | M112: 28552.15291 | N112: 0 | O112: 0 | P112: 0 | Q112: 0 | R112: 28552.15291
H113: 78 | I113: 1 | J113: 992T | K113: 992T-MOBILE SUBSTATION | L113: 234802.51 | M113: 245772.8169 | N113: 0 | O113: 0 | P113: 0 | Q113: 0 | R113: 245772.8169
H114: 79 | I114: 1 | J114: HAND | K114: Handcard Transmission Sub | L114: 0 | M114: 0 | N114: 697.38 | O114: 697.38 | P114: 0 | Q114: 0 | R114: 697.38
H115: 80 | I115: 1 | J115: SPAR | K115: SPARE SUB EQT | L115: 10172964.01 | M115: 10648259.34 | N115: 0 | O115: 0 | P115: 0 | Q115: 0 | R115: 10648259.34
H116: 81 | I116: 1 | J116: BAYC | K116: =VLOOKUP(J116, $A$180:$B$345,2,FALSE) -> BAYSIDE POWER COMMON | L116: 5621.59 | M116: 5884.238673 | N116: 0 | O116: 0 | P116: 0 | Q116: 0 | R116: 5884.238673
H117: 82 | I117: 1 | J117: POLC | K117: =VLOOKUP(J117, $A$180:$B$345,2,FALSE) -> POLK STATION COMMON | L117: 116655.54 | M117: 122105.8526 | N117: 0 | O117: 0 | P117: 0 | Q117: 0 | R117: =+M117+O117+Q117 -> 122105.8526
H118: 83 | I118: 5 | J118: GSU | K118: BIG BEND | L118: =SUMIF(Transmission!$K$5:$K$9,K118,Transmission!$L$5:$L$9) -> 11153591.35 | M118: 11674702.99 | N118: 0 | O118: 0 | P118: 0 | Q118: 0 | R118: 11674702.99
H119: 84 | I119: 5 | J119: GSU | K119: BAYSIDE | L119: =SUMIF(Transmission!$K$5:$K$9,K119,Transmission!$L$5:$L$9) -> 19288577.81 | M119: 20189767.57 | N119: 0 | O119: 0 | P119: 0 | Q119: 0 | R119: 20189767.57
H120: 85 | I120: 5 | J120: GSU | K120: SEBRING | L120: =SUMIF(Transmission!$K$5:$K$9,K120,Transmission!$L$5:$L$9) -> 1924293.03 | M120: 2014198.735 | N120: 0 | O120: 0 | P120: 0 | Q120: 0 | R120: 2014198.735
H121: 86 | I121: 5 | J121: GSU | K121: POLK | L121: =SUMIF(Transmission!$K$5:$K$9,K121,Transmission!$L$5:$L$9) -> 8004811.04 | M121: 8378807.187 | N121: 0 | O121: 0 | P121: 0 | Q121: 0 | R121: 8378807.187
H122: 87
H123: 88
H124: 89
H125: 90 | M125: =+L125*$L$136*$M$148 -> 0 | N125: 0 | O125: =+N125*$N$136*$O$148 -> 0 | P125: =IF(ISNA(VLOOKUP($J125,sub_data,4,FALSE)),0,(VLOOKUP($J125,sub_data,4,FALSE))) -> 0 | Q125: =+P125*$P$136*$Q$148 -> 0 | R125: =+M125+O125+Q125 -> 0
H126: 91 | K126: TOTAL | L126: =SUM(L36:L125) -> 256570838 | M126: 268558192.2 | N126: 4899391.74 | O126: 4899391.74 | P126: 4090901.75 | Q126: 4429256.916 | R126: 277886840.9
H127: 92
H128: 93
H129: 94 | K129: SUMMARIZE BY TYPE
H130: 95 | K130: OF SUBSTATION (REF NO.)
H131: 96 | K131: 1 COMMON (GENERAL) | L131: =SUM(IF($I$36:$I$125=1,L36:L125,0)) -> 176102153.2 | N131: =SUM(IF($I$36:$I$125=1,N36:N125,0)) -> 4513471.11 | P131: =SUM(IF($I$36:$I$125=1,P36:P125,0)) -> 3327493.76 | R131: =SUM(L131:P131) -> 183943118
H132: 97 | K132: 5 STEP UP | L132: =SUMIF(I37:I125,"5",L37:L125) -> 40371273.23 | N132: =SUM(IF($I$36:$I$125=5,N$36:N$125,0)) -> 0 | P132: =SUM(IF($I$36:$I$125=5,P$36:P$125,0)) -> 0 | R132: =SUM(L132:P132) -> 40371273.23
H133: 98 | K133: 7 HI VOLT | L133: =SUM(IF($I$36:$I$125=7,L$36:L$125,0)) -> 40097411.65 | N133: =SUM(IF($I$36:$I$125=7,N$36:N$125,0)) -> 385920.63 | P133: =SUM(IF($I$36:$I$125=7,P$36:P$125,0)) -> 763407.99 | R133: =SUM(L133:P133) -> 41246740.27
H134: 99
H135: 100 | K135: TOTAL IN SVC (ACCT 101) | L135: =SUM(L131:L133) -> 256570838 | N135: =SUM(N131:N133) -> 4899391.74 | P135: =SUM(P131:P133) -> 4090901.75 | R135: =SUM(R131:R133) -> 265561131.5
H136: 101 | K136: CWIP FACTOR | L136: =+(L135+L137)/L135 -> 1 | N136: =+(N135+N137)/N135 -> 1 | P136: =+(P135+P137)/P135 -> 1
H137: 102
H138: 103 | K138: TOTAL (101) PLUS CWIP (106): | L138: Station Equipment | N138: Substa Land | P138: Station Structure
H139: 104 | K139: =+$K$131 -> 1 COMMON (GENERAL) | L139: =+L131*$L$136 -> 176102153.2 | N139: =+N131*N$136 -> 4513471.11 | P139: =+P131*P$136 -> 3327493.76 | R139: =+L139+N139+P139 -> 183943118
H140: 105 | K140: =+$K$132 -> 5 STEP UP | L140: =+L132*L$136 -> 40371273.23 | N140: =+N132*$N$136 -> 0 | P140: =+P132*P$136 -> 0 | R140: =+L140+N140+P140 -> 40371273.23
H141: 106 | K141: =+$K$133 -> 7 HI VOLT | L141: =+L133*L$136 -> 40097411.65 | N141: =+N133*$N$136 -> 385920.63 | P141: =+P133*P$136 -> 763407.99 | R141: =+L141+N141+P141 -> 41246740.27
H142: 107
H143: 108 | K143: TOTAL IN SVC (w/ cwip adj) | L143: =SUM(L139:L141) -> 256570838 | N143: =SUM(N139:N141) -> 4899391.74 | P143: =SUM(P139:P141) -> 4090901.75 | R143: =SUM(R139:R141) -> 265561131.5
H144: 109
H145: 110 | M145: Station Equipment | O145: Substa Land | Q145: Station Structure
H146: 111 | K146: EOY PLANT ($000) | M146: =+L143/1000 -> 256570.838 | O146: =O165/1000 -> 15387.56524 | Q146: =+P143/1000 -> 4090.90175
H147: 112 | K147: AVG PLANT ($000) | L147: FROM DATA DNLOAD | M147: =+Transmission!E41 -> 268558.1922 | O147: =+Transmission!E31 -> 15387.56524 | Q147: =VLOOKUP("352Bal",Data,ColNumber,FALSE)/1000 -> 4429.256916
H148: 113 | K148: AVG PLANT FACTOR | M148: =+M147/M146 -> 1.046721421 | O148: =+O147/O146 -> 1 | Q148: =+Q147/Q146 -> 1.082709189
H149: 114
H150: 115 | K150: TOTAL (101) PLUS CWIP (106) AT AVERAGE PLANT:
H151: 116 | K151: =+$K$131 -> 1 COMMON (GENERAL) | M151: =+L139*$M$148 -> 184329896 | O151: =+O155-SUM(O152:O153) -> 4513471.11 | Q151: =+Q155-SUM(Q152:Q153) -> 3602708.071 | R151: =+Q151+O151+M151 -> 192446075.2
H152: 117 | K152: =+$K$132 -> 5 STEP UP | M152: =+L140*$M$148 -> 42257476.48 | O152: =+N140*$O$148 -> 0 | Q152: =+P140*$Q$148 -> 0 | R152: =+Q152+O152+M152 -> 42257476.48
H153: 118 | K153: =+$K$133 -> 7 HI VOLT | M153: =+L141*$M$148 -> 41970819.7 | O153: =+N141*$O$148 -> 385920.63 | Q153: =+P141*$Q$148 -> 826548.8458 | R153: =+Q153+O153+M153 -> 43183289.18
H154: 119
H155: 120 | K155: TOTAL IN SVC (adj for plant factor) | L155: TIES TO PLT | M155: =SUM(M151:M153) -> 268558192.2 | O155: =ROUND(+N143*O148,2) -> 4899391.74 | Q155: =+P143*Q148 -> 4429256.916 | R155: =SUM(R151:R153) -> 277886840.9
H156: 121
H157: 122
H158: 123 | K158: TOTAL TRANSM LAND (FERC 350) 13 MO AVG | O158: =+O147*1000 -> 15387565.24
H159: 124 | K159: LESS SUBSTATION LAND (DEFINED ABOVE) | O159: =O155 -> 4899391.74
H160: 125 | K160: DIFFERENTIAL = SUBSTATION LINE LAND (FEEDS TRANSM TAB) | O160: =O158-O159 -> 10488173.5
H161: 126
H162: 127
H163: 128 | K163: TRANSM LINE LAND (EOY) FROM TRANS VOLTAGE DETAIL | O163: =+'Trans Voltage Detail'!H28 -> 10488173.5
H164: 129 | K164: PLUS EOY SUBSTATION LAND (KIM'S SCH = COL N ABOVE) | O164: =N126 -> 4899391.74
H165: =+H164+1 -> 130 | K165: EOY LAND, FERC ACCT 350 | O165: =SUM(O163:O164) -> 15387565.24
A173: updated 2/11/13
A174: "sub_data" | B174: range name:"trans_sub_header" rows 172:176
A175: Tampa Electric Company | F175: =PERIOD -> FOR THE FORECAST PERIOD ENDING 12/31/14
A176: Transmission Substation Investment
A177: As of December 2012 | C177: "sub_land" | D177: "sub_structure" | E177: "sub_station"
A178: "sub_id" | C178: Land | D178: Structure | E178: Station
A179: COMP_ID | B179: Substation | C179: 350 | D179: 352 | E179: 353 | F179: Grand Total
A180: =MID(B180,1,4) -> 002T | B180: 002T-HOOKER'S POINT | C180: 64008.85 | D180: 2944.38 | E180: 2835164.34 | F180: =SUM(C180:E180) -> 2902117.57
A181: =MID(B181,1,4) -> 003T | B181: 003T-ELEVENTH AVENUE | C181: 43899.45 | D181: 151264.65 | E181: 5683548.51 | F181: =SUM(C181:E181) -> 5878712.61
A182: 004T | B182: 004T-HAMPTON | C182: 61416.31 | D182: 16133.99 | E182: 3898618.67 | F182: 3976168.97
A183: 005D | B183: 005D-HOPEWELL | E183: 0 | F183: 0
A184: 007T | B184: 007T-LAKE SILVER (W.H) | C184: 3788.26 | D184: 4376.09 | E184: 1774183.05 | F184: 1782347.4
A185: 008T | B185: 008T-DADE CITY | C185: 8365.76 | D185: 176344.34 | E185: 3449034.4 | F185: 3633744.5
A186: 012D | B186: 012D-WASHINGTON STREET | E186: 0 | F186: 0
A187: 017D | B187: 017D-FOURTEENTH STREET | E187: 0 | F187: 0
A188: 021D | B188: 021D-IVY STREET | E188: 0 | F188: 0
A189: 024D | B189: 024D-LOIS AVENUE | E189: 0 | F189: 0
A190: 026D | B190: 026D-YUKON | E190: 0 | F190: 0
A191: 032T | B191: 032T-CENTRAL PHOS CAP BNK | E191: 117976.15 | F191: 117976.15
A192: 034T | B192: 034T-BIG BEND | C192: 253745.82 | D192: 103402.17 | E192: 9563794.7 | F192: 9920942.69
A193: 036T | B193: 036T-RIDGEWOOD METERING | E193: 182936.51 | F193: 182936.51
A194: 039T | B194: 039T-MILLPOINT | C194: 2571 | D194: 13869.51 | E194: 762862.22 | F194: 779302.73
A195: 047T | B195: 047T-NICHOLS PREP PLT MTR | E195: 142568.46 | F195: 142568.46
A196: 048T | B196: 048T-CONSERV COGEN INTERC | E196: 78158.68 | F196: 78158.68
A197: 052D | B197: 052D-BRANDON | E197: 0 | F197: 0
A198: 053D | B198: 053D-FIFTY SIXTH STREET | E198: 0 | F198: 0
A199: 054D | B199: 054D-SEVENTY EIGHTH ST | E199: 0 | F199: 0
A200: 055T | B200: 055T-USS AGRI-CHEM MTR | E200: 110542.08 | F200: 110542.08
A201: 058D | B201: 058D-CLARKWILD | E201: 0 | F201: 0
A202: 066T | B202: 066T-CLEARVIEW | C202: 159119.82 | D202: 43034.77 | E202: 3933812.61 | F202: 4135967.2
A203: 070D | B203: 070D-CYPRESS GARDENS | E203: 21668.97 | F203: 21668.97 | G203: NEW 2012
A204: 077D | B204: 077D-KEYSTONE | E204: 0 | F204: 0
A205: 080T | B205: 080T-JACKSON ROAD SUBSTA | C205: 106035.72 | D205: 72754.92 | E205: 4165344.87 | F205: 4344135.51
A206: 081D | B206: 081D-MANHATTAN | E206: 0 | F206: 0
A207: 083T | B207: 083T-JUNEAU | C207: 3886.5 | D207: 147165.56 | E207: 11161386.64 | F207: 11312438.7
A208: 084T | B208: 084T-HIMES | C208: 3075.4 | D208: 29950.69 | E208: 3932980.76 | F208: 3966006.85
A209: 085T | B209: 085T-ARIANA | C209: 17038.1 | D209: 20460.21 | E209: 4693735.94 | F209: 4731234.25
A210: 088T | B210: 088T-BONNIE METERING IMC | E210: 142242.08 | F210: 142242.08
A211: 089T | B211: 089T-RIVER | C211: 72044.62 | D211: 167284.49 | E211: 6296961.28 | F211: 6536290.39
A212: 093T | B212: 093T-PEBBLEDALE TRANSMISSION | C212: 7316.9 | D212: 57116.46 | E212: 5730332.05 | F212: 5794765.41
A213: 094D | B213: 094D-JAN PHYL | E213: 0 | F213: 0
A214: 102D | B214: 102D-POLK CITY | E214: 0 | F214: 0
A215: 103T | B215: 103T-RUSKIN | C215: 24027.02 | D215: 45676.81 | E215: 4377757.67 | F215: 4447461.5
A216: 112T | B216: 112T-SOUTH GIBSONTON | C216: 12080.7 | D216: 69179.7 | E216: 4449346.81 | F216: 4530607.21
... 98 more rows

Sheet Trans Voltage Detail
A1: =PERIOD -> FOR THE FORECAST PERIOD ENDING 12/31/14
C2: Prints entire tab
A7: REQUIRED INPUTS:
A8: Period | B8: 2012 Act | C8: 2012 Act
A9: Desc | B9: Investment | C9: Accum Reserve
A10: Source | B10: Acct SS | C10: Acct SS
A11: Input Value | B11: paste value | C11: paste value
A12: Cell | B12: D29 | C12: D47
B13: UPDATED 2/8/2013 | C13: UPDATED 2/8/2013
A15: COMMENTS:
B17: THERE IS ONE DEPENDENT IN THIS FILE, CELL H28
B20: TAMPA ELECTRIC COMPANY
B21: TRANSMISSION VOLTAGE LEVEL DETAIL
B22: =+'TITLES & CONSTANTS'!$D$9 -> FOR THE FORECAST PERIOD ENDING 12/31/14
B23: 1 | C23: 2 | D23: 3 | E23: 4 | F23: 5 | G23: 6 | H23: 7 | I23: 8
B24: 1 | C24: (1) TRANSMISSION LINE INVESTMENT BY VOLTAGE LEVEL
B25: =B24+1 -> 2 | I25: HI-
B26: =B25+1 -> 3 | F26: VOLTAGE | I26: VOLT
B27: 4 | C27: ACCT | D27: DESCRIPTION | E27: 69KV | F27: 138KV | G27: 230KV | H27: EOY TOTAL | I27: %
B28: 5 | C28: 35000 | D28: LAND | E28: 293256.94 | F28: 117467.69 | G28: 10077448.87 | H28: =SUM(E28:G28) -> 10488173.5 | I28: =ROUND(G28/H28,2) -> 0.96
B29: 6 | C29: 35001 | D29: LAND RIGHTS | E29: 3519387.84 | F29: 879872.06 | G29: 6250069.79 | H29: 10649329.69 | I29: 0.59
B30: 7 | C30: 354 | D30: TOWERS AND FIXTURES | E30: 11387.31 | F30: 439341.61 | G30: 3715110.29 | H30: 4165839.21 | I30: 0.89
B31: 8 | C31: 355 | D31: POLES AND FIXTURES | E31: 111112690.8 | F31: 8397563.66 | G31: 82082244.39 | H31: 201592498.9 | I31: 0.41
B32: 9 | C32: 35600 | D32: CONDUCTOR AND DEVICES | E32: 57030937.59 | F32: 5545435.53 | G32: 56099965.78 | H32: 118676338.9 | I32: 0.47
B33: 10 | C33: 35601 | D33: CLEARING R/W | E33: 408387.52 | F33: 102635.81 | G33: 1599586.8 | H33: 2110610.13 | I33: 0.76
B34: 11 | C34: 357 | D34: CONDUIT | E34: 3532715.18 | H34: 3532715.18 | I34: 0
B35: 12 | C35: 358 | D35: UNDG. CONDUCTOR | E35: 6886952.35 | F35: 122293.65 | H35: 7009246 | I35: 0
B36: 13 | C36: 359 | D36: ROADS AND TRAILS | E36: 1064467.97 | F36: 140471.96 | G36: 4042305.58 | H36: 5247245.51 | I36: 0.77
B37: 14 | D37: TOTAL TRANSMISSION LINE | E37: =SUM(E28:E36) -> 183860183.5 | F37: =SUM(F28:F36) -> 15745081.97 | G37: =SUM(G28:G36) -> 163866731.5 | H37: =SUM(H28:H36) -> 363471997
B38: 15
B39: 16
B40: 17
B41: 18 | C41: (2) TRANSMISSION LINE ACCUM RESERVE BY VOLTAGE LEVEL
B42: 19
B43: 20 | I43: HI-
B44: 21 | F44: VOLTAGE | I44: VOLT
B45: 22 | C45: ACCT | D45: DESCRIPTION | E45: 69KV | F45: 138KV | G45: 230KV | H45: EOY TOTAL | I45: %
B46: 23 | C46: 35000 | D46: LAND | E46: 0 | F46: 0 | G46: 0 | H46: =SUM(E46:G46) -> 0 | I46: =IF(H46=0,0,ROUND(G46/H46,2)) -> 0
B47: 24 | C47: 35001 | D47: LAND RIGHTS | E47: 764875.5917 | F47: 384895.5716 | G47: 2051880.217 | H47: =SUM(E47:G47) -> 3201651.38 | I47: =ROUND(G47/H47,2) -> 0.64
B48: 25 | C48: 354 | D48: TOWERS AND FIXTURES | E48: 7436.596099 | F48: 428542.0177 | G48: 3468824.601 | H48: 3904803.215 | I48: 0.89
B49: 26 | C49: 355 | D49: POLES AND FIXTURES | E49: 30878908.38 | F49: 3687526.863 | G49: 28541096.22 | H49: 63107531.46 | I49: 0.45
B50: 27 | C50: 35600 | D50: CONDUCTOR AND DEVICES | E50: 21063258.37 | F50: 3801044.114 | G50: 14726485.19 | H50: 39590787.68 | I50: 0.37
B51: 28 | C51: 35601 | D51: CLEARING R/W | E51: 237609.443 | F51: 81444.22443 | G51: 996860.583 | H51: 1315914.25 | I51: 0.76
B52: 29 | C52: 357 | D52: CONDUIT | E52: 1106850.16 | H52: 1106850.16 | I52: 0
B53: 30 | C53: 358 | D53: UNDG. CONDUCTOR | E53: 2834951.166 | F53: 90282.11379 | H53: 2925233.28 | I53: 0
B54: 31 | C54: 359 | D54: ROADS AND TRAILS | E54: 248906.6192 | F54: 85998.80241 | G54: 1046430.891 | H54: 1381336.313 | I54: 0.76
B55: 32 | D55: TOTAL TRANSMISSION LINE | E55: =SUM(E46:E54) -> 57142796.33 | F55: =SUM(F46:F54) -> 8559733.707 | G55: =SUM(G46:G54) -> 50831577.7 | H55: =SUM(H46:H54) -> 116534107.7
B56: 33
B57: 34 | C57: (3) RATIO FOR ALLOCATION OF TRANSMISSION ACCOUNTS BASED ON VOLTAGE LEVEL DETAIL
B58: 35
B59: 36 | C59: ACCT | D59: DESCRIPTION | E59: HI-VOLT | F59: SUBTRANSM | G59: Total
B60: 37 | C60: 350 | D60: Line Land | E60: =+I28 -> 0.96 | F60: =+G60-E60 -> 0.04 | G60: 1
B61: 38 | C61: 350.01 | D61: Right of Way | E61: =+I29 -> 0.59 | F61: =+G61-E61 -> 0.41 | G61: 1
B62: 39 | C62: 354 | D62: Towers & Fixtures | E62: =+I30 -> 0.89 | F62: =+G62-E62 -> 0.11 | G62: 1
B63: 40 | C63: 355 | D63: Poles & Fixtures | E63: =+I31 -> 0.41 | F63: =+G63-E63 -> 0.59 | G63: 1
B64: 41 | C64: 355.9 | D64: Poles & Fixtures - CIAC | E64: =+E63 -> 0.41 | F64: =+F63 -> 0.59 | G64: 1
B65: 42 | C65: 356 | D65: OH Conductors | E65: =+I32 -> 0.47 | F65: =+G65-E65 -> 0.53 | G65: 1
B66: 43 | C66: 356.9 | D66: OH Conductors - CIAC | E66: =+E65 -> 0.47 | F66: =+F65 -> 0.53 | G66: 1
B67: 44 | C67: 356.01 | D67: Clearing & ROW | E67: =+I33 -> 0.76 | F67: =+G67-E67 -> 0.24 | G67: 1
B68: 45 | C68: 357 | D68: UG Conduit | E68: =+I34 -> 0 | F68: =+G68-E68 -> 1 | G68: 1
B69: 46 | C69: 358 | D69: UG Cables & Fixtures | E69: =+I35 -> 0 | F69: =+G69-E69 -> 1 | G69: 1
B70: 47 | C70: 359 | D70: Roads & Trails | E70: =+I36 -> 0.77 | F70: =+G70-E70 -> 0.23 | G70: 1

Sheet Distribution
A1: =PERIOD -> FOR THE FORECAST PERIOD ENDING 12/31/14 | F1: name: "mds_on" | L1: distri_mds_calcs | AC1: Distribution Workpaper MDS Calculation | AD1: Investment $'s (000's) | AE1: Service Level | AF1: Internal Ratio's | AG1: Total Investment Internal Ratio | AH1: Direct Assign. [Cust] | AI1: Subtotal | AJ1: MDS Ratio's | AK1: MDS [Cust] | AL1: [Demand] | AM1: Total (000's)
D2: Prints Data only, Col a:e | F2: 1 | H2: MDS TABLE | J2: Ratio inputs | K2: CUST. | L2: DEMAND | AC2: 1 | AD2: 2 | AE2: 3 | AF2: 4 | AG2: 5 | AH2: 6 | AI2: 7 | AJ2: 8 | AK2: 9 | AL2: 10 | AM2: 11
F3: mds switch | H3: POLES | I3: Acct 364 | J3: 0.64 | K3: =IF(mds_on=1,J3*1,IF(mds_on=2,J3*0,0)) -> 0.64 | L3: =1-K3 -> 0.36 | AG3: col. (2) * (4) | AI3: col. (5) - (6) | AK3: col. (7) * (8) | AL3: col. (7) - (9) | AM3: cols. (6) + (9) + (10)
D4: Prints summaries only | F4: 1 = mds calc | H4: OH LINES | I4: Acct 365 | J4: 0.09 | K4: =IF(mds_on=1,J4*1,IF(mds_on=2,J4*0,0)) -> 0.09 | L4: =1-K4 -> 0.91
F5: 0 = no mds calc | H5: UG LINES | I5: Acct 366/367 | J5: 0.09 | K5: =IF(mds_on=1,J5*1,IF(mds_on=2,J5*0,0)) -> 0.09 | L5: =1-K5 -> 0.91 | AC5: OVERHEAD LINES | AD5: =SUMIF($C$27:$C$38,"365Bal",$F$27:$F$38) -> 234714.7155 | AE5: Secondary | AF5: =Secondary_wires_ratio -> 0.1667519082 | AG5: =AD5*AF5 -> 39139.12668 | AH5: =DirPoles_ConductorCost!K50 -> 5804.042277 | AI5: =AG5-AH5 -> 33335.08441 | AJ5: =IF(mds_on=0,0,K4) -> 0.09 | AK5: =AI5*AJ5 -> 3000.157597 | AL5: =AI5-AK5 -> 30334.92681 | AM5: =AL5+AK5+AH5 -> 39139.12668
F6: 2=transf mds | H6: TRANSFORMERS | I6: Acct 368 | J6: 0.24 | K6: =IF(mds_on=1,J6*1,IF(mds_on=2,J6*1,0)) -> 0.24 | L6: =1-K6 -> 0.76 | AC6: Account 365 | AE6: Primary | AF6: =1-AF5 -> 0.8332480918 | AG6: =AD5*AF6 -> 195575.5888 | AH6: =Q65 -> 677.66188 | AI6: =AG6-AH6 -> 194897.9269 | AJ6: =AJ5 -> 0.09 | AK6: =AI6*AJ6 -> 17540.81342 | AL6: =AI6-AK6 -> 177357.1135 | AM6: =AL6+AK6+AH6 -> 195575.5888
A7: REQUIRED INPUTS: | AF7: =SUM(AF5:AF6) -> 1 | AG7: =SUM(AG5:AG6) -> 234714.7155 | AH7: =SUM(AH5:AH6) -> 6481.704157 | AI7: 228233.0113 | AK7: 20540.97102 | AL7: 207692.0403 | AM7: =SUM(AM5:AM6) -> 234714.7155
A8: Period | C8: 2008RateCase | D8: 2008RateCase
A9: Desc | C9: Interruptible Equip Substations | D9: Interruptible Equip Lines | H9: Inputs are from Distribution Engineering | K9: Upd. 10/30/12 | AC9: UNDERGROUND LINES | AD9: =SUMIF($C$27:$C$38,"366Bal",$F$27:$F$38)+SUMIF($C$27:$C$38,"367Bal",$F$27:$F$38) -> 407300.6383 | AE9: Secondary | AF9: =K12 -> 0.3047643708 | AG9: =AD9*AF9 -> 124130.7228 | AH9: 0 | AI9: =AG9-AH9 -> 124130.7228 | AJ9: =IF(mds_on=0,0,K5) -> 0.09 | AK9: =AI9*AJ9 -> 11171.76505 | AL9: =AI9-AK9 -> 112958.9577 | AM9: =AK9+AL9 -> 124130.7228
H10: 2012 High Density | J10: Inputs from Table | K10: Ratio Calc'd | AC10: Accounts 366 & 367 | AE10: Primary | AF10: =1-AF9 -> 0.6952356292 | AG10: =AD9*AF10 -> 283169.9155 | AH10: 0 | AI10: =AG10-AH10 -> 283169.9155 | AJ10: =AJ9 -> 0.09 | AK10: =AI10*AJ10 -> 25485.2924 | AL10: =AI10-AK10 -> 257684.6231 | AM10: =AK10+AL10 -> 283169.9155
A11: Quantity of IS Customers | C11: 14 | D11: 28 | H11: Primary Cost UG Conduit % | J11: 26.85 | K11: =J11/$J$13 -> 0.6952356292 | AF11: =SUM(AF9:AF10) -> 1 | AG11: =SUM(AG9:AG10) -> 407300.6383 | AH11: =SUM(AH9:AH10) -> 0 | AI11: =SUM(AI9:AI10) -> 407300.6383 | AK11: =SUM(AK9:AK10) -> 36657.05745 | AL11: =SUM(AL9:AL10) -> 370643.5808 | AM11: =SUM(AM9:AM10) -> 407300.6383
A12: Installed IS Equip. $'s* | C12: 68985.51 | D12: 24202.21 | H12: Secondary Cost UG Cable % | J12: 11.77 | K12: =J12/$J$13 -> 0.3047643708
A13: Calc'd Value | C13: =C11*C12 -> 965797.14 | D13: =D11*D12 -> 677661.88 | H13: Combined Total % | J13: =SUM(J11:J12) -> 38.62 | K13: =SUM(K11:K12) -> 1
A14: Cell | C14: O65 | D14: Q65
C15: updated cust cnt 12/12/12 | AC15: POLES | AD15: =SUMIF($C$27:$C$38,"364Bal",$F$27:$F$38) -> 249726.2721 | AE15: Secondary | AF15: =Secondary_poles_ratio -> 0.1308467947 | AG15: =AD15*AF15 -> 32675.88225 | AH15: =DirPoles_ConductorCost!J35 -> 23228.37178 | AI15: =AG15-AH15 -> 9447.510471 | AJ15: =IF(mds_on=0,0,K3) -> 0.64 | AK15: =AI15*AJ15 -> 6046.406702 | AL15: =AI15-AK15 -> 3401.10377 | AM15: =AL15+AK15+AH15 -> 32675.88225
AC16: Account 364 | AE16: Primary | AF16: =1-AF15 -> 0.8691532053 | AG16: =AD15*AF16 -> 217050.3898 | AH16: 0 | AI16: =AG16-AH16 -> 217050.3898 | AJ16: =AJ15 -> 0.64 | AK16: =AI16*AJ16 -> 138912.2495 | AL16: =AI16-AK16 -> 78138.14034 | AM16: =AL16+AK16+AH16 -> 217050.3898
A17: COMMENTS: | AF17: =SUM(AF15:AF16) -> 1 | AG17: =SUM(AG15:AG16) -> 249726.2721 | AH17: =SUM(AH15:AH16) -> 23228.37178 | AI17: =SUM(AI15:AI16) -> 226497.9003 | AK17: =SUM(AK15:AK16) -> 144958.6562 | AL17: =SUM(AL15:AL16) -> 81539.24411 | AM17: =SUM(AM15:AM16) -> 249726.2721
A20: DISTRIBUTION PLANT (13 MO AVG) | AC20: TRANSFORMERS | AD20: =SUMIF($C$27:$C$38,"368Bal",$F$27:$F$38) -> 497335.2953 | AE20: Secondary | AF20: 1 | AG20: =AD20*AF20 -> 497335.2953 | AH20: 0 | AI20: =AD20 -> 497335.2953 | AJ20: =IF(mds_on=0,0,K6) -> 0.24 | AK20: =AI20*AJ20 -> 119360.4709 | AL20: =AI20-AK20 -> 377974.8245 | AM20: =AL20+AK20 -> 497335.2953
A21: =PERIOD -> FOR THE FORECAST PERIOD ENDING 12/31/14 | H21: TAMPA ELECTRIC COMPANY | AC21: Account 368
H22: DISTRIBUTION PLANT COST (000's)
C23: PLT ACCTG | H23: =+'TITLES & CONSTANTS'!$D$9 -> FOR THE FORECAST PERIOD ENDING 12/31/14
C24: COMPONENTS | E24: SURV RPT | F24: TOTAL NET
A25: DESC. | B25: ADJ. | C25: ACCT | D25: AMOUNT | E25: ADJUSTMENTS | F25: PLANT COST | L25: ACCOUNT | M25: ACCOUNT | N25: ACCOUNT | O25: ACCOUNT | P25: ACCOUNT | Q25: ACCOUNT | R25: ACCOUNT | S25: ACCOUNT | T25: ACCOUNT | U25: ACCOUNT | V25: ACCOUNT | W25: ACCOUNT
L26: 360 | M26: 360 | N26: 361 | O26: 362 | P26: 364 | Q26: 365 | R26: 366 | S26: 368 | T26: 369.01 | U26: 369.02 | V26: 370 | W26: 373
A27: LAND | C27: 360Bal | D27: =VLOOKUP(C27,Data,ColNumber,FALSE)/1000+B27 -> 8772.07238 | F27: =+D27+E27 -> 8772.07238 | L27: Line | M27: Sub | N27: Structures | O27: Station | P27: Poles | Q27: OH | R27: 367 | S27: Line | T27: OH | U27: UG | V27: Meters | W27: Street
A28: STRUCTURES | C28: 361Bal | D28: =VLOOKUP(C28,Data,ColNumber,FALSE)/1000 -> 3861.944945 | F28: =+D28+E28 -> 3861.944945 | H28: LINE | I28: DESCRIPTION | J28: FUNCTION | K28: TOTAL | L28: Land | M28: Land | O28: Equipment | Q28: Conductors | R28: UG Lines | S28: Xformers | T28: Services | U28: Services | W28: Lighting
A29: STATION | C29: 362Bal | D29: 208830.207 | F29: =+D29+E29 -> 208830.207 | H29: 1 | I29: 2 | J29: 3 | K29: 4 | L29: 5 | M29: 6 | N29: 7 | O29: 8 | P29: 9 | Q29: 10 | R29: 11 | S29: 12 | T29: 13 | U29: 14 | V29: 15 | W29: 16
A30: POLES | C30: 364Bal | D30: =VLOOKUP(C30,Data,ColNumber,FALSE)/1000 -> 249726.2721 | F30: 249726.2721
A31: OH CONDUCTORS | C31: 365Bal | D31: 234714.7155 | F31: 234714.7155 | H31: 1 | I31: DISTRIBUTION PLANT
A32: UNDERGROUND | C32: 366Bal | D32: 172525.6636 | F32: 172525.6636 | H32: =+H31+1 -> 2 | I32: SUBSTATIONS DIRECT | J32: DEM | K32: =+'Dist Substa Detail'!S243 -> 0 | M32: =+M$34*($K32/$K$34) -> 0 | N32: =+N$34*($K32/$K$34) -> 0 | O32: =+O$34*($K32/$K$34) -> 0
A33: UNDERGROUND | C33: 367Bal | D33: 234774.9747 | F33: 234774.9747 | H33: =+H32+1 -> 3 | I33: SUBSTATIONS COMMON | J33: DEM | K33: =SUM(M33:O33) -> 220498.4272 | M33: =F27 -> 8772.07238 | N33: =F28 -> 3861.944945 | O33: =+F29-O65 -> 207864.4099
A34: TRANSFORMERS | C34: 368Bal | D34: 497335.2953 | F34: 497335.2953 | H34: 4 | I34: SUBSTATIONS | J34: TOTAL | K34: =SUM(K32:K33) -> 220498.4272 | M34: =M33+M32 -> 8772.07238 | N34: =N33+N32 -> 3861.944945 | O34: =O33+O32 -> 207864.4099
A35: OH SERVICES | C35: 36900Bal | D35: 78857.50048 | F35: =+D35+E35 -> 78857.50048 | H35: 5
A36: UG SERVICES | C36: 36902Bal | D36: =VLOOKUP(C36,Data,ColNumber,FALSE)/1000 -> 115527.1486 | F36: =+D36+E36 -> 115527.1486 | H36: 6
A37: METERS | C37: 370Bal | D37: =VLOOKUP(C37,Data,ColNumber,FALSE)/1000 -> 80375.19821 | F37: =+D37+E37 -> 80375.19821 | H37: 7 | I37: POLES DIRECT (SL) | J37: CUST | K37: =P37 -> 23228.37178 | P37: =DirPoles_ConductorCost!J35 -> 23228.37178
A38: STREET LIGHTING | C38: 373Bal | D38: =VLOOKUP(C38,Data,ColNumber,FALSE)/1000 -> 176898.3796 | F38: =+D38+E38 -> 176898.3796 | H38: 8 | I38: POLES PRIMARY | J38: DEM | K38: =P38 -> 78138.14034 | P38: =AL16 -> 78138.14034
H39: =+H38+1 -> 9 | I39: POLES PRIMARY (MDS) | J39: CUST | K39: =P39 -> 138912.2495 | P39: =AK16 -> 138912.2495
C40: TOTAL PLANT | D40: =SUM(D27:D39) -> 2062199.372 | F40: =SUM(F27:F39) -> 2062199.372 | H40: 10 | I40: POLES SECONDARY | J40: DEM | K40: =P40 -> 3401.10377 | P40: =AL15 -> 3401.10377
C41: MFR | D41: =JLH_MFR_DATA!D15/1000 -> 2053427.3 | H41: 11 | I41: POLES SECONDARY (MDS) | J41: CUST | K41: =P41 -> 6046.406702 | P41: =AK15 -> 6046.406702
C42: VARIANCE | D42: =D40-D41 -> 8772.07238 | H42: 12 | I42: POLES | J42: TOTAL | K42: =+F30 -> 249726.2721 | P42: =SUM(P37:P41) -> 249726.2721
C43: LAND | D43: =-D27 -> -8772.07238 | H43: 13
C44: FINAL VARIANCE | D44: =D42+D43 -> 2.728484105e-11 | H44: 14 | I44: OH LINES DIRECT (SL) | J44: CUST | K44: =Q44 -> 5804.042277 | Q44: =AH5 -> 5804.042277
H45: =+H44+1 -> 15 | I45: OH LINES PRIMARY | J45: DEM | K45: =Q45 -> 177357.1135 | Q45: =AL6 -> 177357.1135
H46: 16 | I46: OH LINES PRIMARY (MDS) | J46: CUST | K46: =Q46 -> 17540.81342 | Q46: =AK6 -> 17540.81342
H47: 17 | I47: OH LINES SECONDARY | J47: DEM | K47: =Q47 -> 30334.92681 | Q47: =AL5 -> 30334.92681
H48: 18 | I48: OH LINES SECONDARY (MDS) | J48: CUST | K48: =Q48 -> 3000.157597 | Q48: =AK5 -> 3000.157597
H49: 19 | I49: OH LINES | J49: TOTAL | K49: =SUM(K44:K48) -> 234037.0536 | Q49: =SUM(Q44:Q48) -> 234037.0536
H50: 20
H51: 21 | I51: UG LINES DIRECT | J51: CUST | K51: =R51 -> 0 | R51: =AH9 -> 0
H52: =+H51+1 -> 22 | I52: UG LINES PRIMARY | J52: DEM | K52: =R52 -> 257684.6231 | R52: =AL10 -> 257684.6231
H53: 23 | I53: UG LINES PRIMARY (MDS) | J53: CUST | K53: =R53 -> 25485.2924 | R53: =AK10 -> 25485.2924
H54: 24 | I54: UG LINES SECONDARY | J54: DEM | K54: =R54 -> 112958.9577 | R54: =AL9 -> 112958.9577
H55: 25 | I55: UG LINES SECONDARY (MDS) | J55: CUST | K55: =R55 -> 11171.76505 | R55: =AK9 -> 11171.76505
H56: 26 | I56: UG LINES | J56: TOTAL | K56: =+F32+F33 -> 407300.6383 | R56: =SUM(R51:R55) -> 407300.6383
H57: 27
H58: =+H57+1 -> 28 | I58: TRANSFORMERS DIRECT | J58: CUST | K58: =SUM(L58:W58) -> 0 | S58: =AH20 -> 0
H59: 29 | I59: TRANSFORMERS | J59: DEM | K59: =SUM(L59:W59) -> 377974.8245 | S59: =AL20 -> 377974.8245
H60: 30 | I60: TRANSFORMERS (MDS) | J60: CUST | K60: =SUM(L60:W60) -> 119360.4709 | S60: =AK20 -> 119360.4709
H61: 31 | I61: TRANSFORMERS | J61: TOTAL | K61: =SUM(L61:W61) -> 497335.2953 | S61: =+$F$34 -> 497335.2953
H62: 32
H63: 33 | I63: SERVICES | J63: CUST | K63: =SUM(L63:W63) -> 194384.6491 | T63: =SUMIF($C$27:$C$38,"36900Bal",$F$27:$F$38) -> 78857.50048 | U63: =SUMIF($C$27:$C$38,"36902Bal",$F$27:$F$38) -> 115527.1486
H64: 34 | I64: METERS | J64: CUST | K64: =SUM(L64:W64) -> 80375.19821 | V64: =+$F$37 -> 80375.19821
H65: =+H64+1 -> 35 | I65: INTERRUPTIBLE EQUIPMENT | J65: CUST | K65: =SUM(L65:W65) -> 1643.45902 | O65: =$C$13/1000 -> 965.79714 | Q65: =$D$13/1000 -> 677.66188
H66: 36 | I66: STREET LIGHTING | J66: CUST | K66: =SUM(L66:W66) -> 176898.3796 | W66: =+$F$38 -> 176898.3796
H67: 37
H68: 38 | I68: DISTRIBUTION PLANT | J68: DEM | K68: =SUMIF($J$32:$J$66,$J68,K$32:K$66) -> 1258348.117 | L68: 0 | M68: 8772.07238 | N68: 3861.944945 | O68: 207864.4099 | P68: 81539.24411 | Q68: 207692.0403 | R68: 370643.5808 | S68: 377974.8245 | T68: 0 | U68: 0 | V68: 0 | W68: 0
H69: 39 | I69: DISTRIBUTION PLANT | J69: CUST | K69: 803851.2555 | L69: 0 | M69: 0 | N69: 0 | O69: 965.79714 | P69: 168187.028 | Q69: 27022.67517 | R69: 36657.05745 | S69: 119360.4709 | T69: 78857.50048 | U69: 115527.1486 | V69: 80375.19821 | W69: 176898.3796
H70: 40
H71: 41 | I71: DISTRIBUTION PLANT | J71: TOTAL | K71: =+K68+K69 -> 2062199.372 | L71: 0 | M71: 8772.07238 | N71: 3861.944945 | O71: 208830.207 | P71: 249726.2721 | Q71: 234714.7155 | R71: 407300.6383 | S71: 497335.2953 | T71: 78857.50048 | U71: 115527.1486 | V71: 80375.19821 | W71: 176898.3796
F76: "distri_plt_allocators" | H76: DERIVATION OF DISTRIBUTION PLANT INTERNAL ALLOCATORS
K77: Poles & Conductors (Accts 364,365,366,367) | O77: Services (Acct 369)
H78: D1000 | I78: Services (Prorata to OH & UG) | K78: Investment $'s | L78: OH Prorata | M78: UG Prorata | O78: Investment $'s | P78: OH Srvcs Prorata | Q78: UG Srvcs Prorata
J79: Poles | K79: =total_poles -> 249726.2721 | L79: =K79 -> 249726.2721 | M79: 0
J80: Overhead Lines | K80: =oh_lines_total -> 234037.0536 | L80: =K80 -> 234037.0536 | M80: 0
J81: Underground Lines | K81: =total_ug_lines -> 407300.6383 | L81: 0 | M81: =K81 -> 407300.6383
K82: =SUM(K79:K81) -> 891063.964 | L82: =SUM(L79:L81) -> 483763.3257 | M82: =SUM(M79:M81) -> 407300.6383 | O82: =K63 -> 194384.6491 | P82: =L83*O82 -> 105532.4512 | Q82: =M83*O82 -> 88852.19787
I83: Poles & Conductions Prorata % to Services | L83: =L82/K82 -> 0.5429052742 | M83: =M82/K82 -> 0.4570947258 | O83: Prorata % | P83: =P82/$O$82 -> 0.5429052742 | Q83: =Q82/$O$82 -> 0.4570947258
H87: D1001 | I87: Poles, Overhead Lines & Services | K87: Investment $'s | L87: Direct | M87: Primary | N87: Primary MDS | O87: Secondary | P87: Secondary MDS | Q87: Services OH | R87: IS Equipment
J88: Poles | K88: =SUM(L88:R88) -> 249726.2721 | L88: =K37 -> 23228.37178 | M88: =K38 -> 78138.14034 | N88: =K39 -> 138912.2495 | O88: =K40 -> 3401.10377 | P88: =K41 -> 6046.406702 | R88: 0
J89: OH Lines | K89: =SUM(L89:R89) -> 234714.7155 | L89: =K44 -> 5804.042277 | M89: =K45 -> 177357.1135 | N89: =K46 -> 17540.81342 | O89: =K47 -> 30334.92681 | P89: =K48 -> 3000.157597 | R89: =Q65 -> 677.66188
J90: OH Services Prorata | K90: =SUM(L90:R90) -> 105532.4512 | Q90: =P82 -> 105532.4512
J91: Total $ | K91: =SUM(K88:K90) -> 589973.4388 | L91: =SUM(L88:L90) -> 29032.41406 | M91: =SUM(M88:M90) -> 255495.2538 | N91: 156453.0629 | O91: 33736.03058 | P91: 9046.564298 | Q91: 105532.4512 | R91: 677.66188
J92: Total % | K92: =SUM(L92:R92) -> 1 | L92: =L91/$K$91 -> 0.04920969682 | M92: 0.4330622991 | N92: 0.2651866214 | O92: 0.05718228714 | P92: 0.01533385014 | Q92: 0.1788766142 | R92: 0.001148631168
H96: D1002 | I96: Underground Lines & Services | K96: Investment $'s | L96: Direct | M96: Primary | N96: Primary MDS | O96: Secondary | P96: Secondary MDS | Q96: Services OH
J97: UG Lines | K97: =SUM(L97:Q97) -> 407300.6383 | L97: =R51 -> 0 | M97: =$K52 -> 257684.6231 | N97: =$K53 -> 25485.2924 | O97: =$K54 -> 112958.9577 | P97: =$K55 -> 11171.76505
J98: UG Services Prorata | K98: =SUM(L98:Q98) -> 88852.19787 | Q98: =Q82 -> 88852.19787
J99: Total $'s | K99: =SUM(K97:K98) -> 496152.8362 | L99: =SUM(L97:L98) -> 0 | M99: 257684.6231 | N99: 25485.2924 | O99: 112958.9577 | P99: 11171.76505 | Q99: 88852.19787
J100: Total % | K100: =SUM(L100:Q100) -> 1 | L100: =L99/$K$99 -> 0 | M100: =M99/$K$99 -> 0.519365414 | N100: 0.05136581017 | O100: 0.2276696805 | P100: 0.02251678159 | Q100: 0.1790823137
H104: D1003 | I104: Station Equipment | K104: Investment $'s | L104: Direct IS | M104: Demand
J105: Total $ | K105: =K34+O65 -> 221464.2244 | L105: =O65 -> 965.79714 | M105: =K105-L105 -> 220498.4272
J106: Total % | L106: =L105/$K$105 -> 0.00436096233 | M106: =M105/$K$105 -> 0.9956390377
A111: DISTRIBUTION PLANT RESERVES (13 MO AVG) | H111: TAMPA ELECTRIC COMPANY
A112: =PERIOD -> FOR THE FORECAST PERIOD ENDING 12/31/14 | H112: DISTRIBUTION ACCUM RESERVE FOR DEPRECIATION (000'S)
H113: =+'TITLES & CONSTANTS'!$D$9 -> FOR THE FORECAST PERIOD ENDING 12/31/14
C114: PLT ACCTG
C115: COMPONENTS | E115: SURV RPT | F115: TOTAL NET | L115: ACCOUNT | M115: ACCOUNT | N115: ACCOUNT | O115: ACCOUNT | P115: ACCOUNT | Q115: ACCOUNT | R115: ACCOUNT | S115: ACCOUNT | T115: ACCOUNT | U115: ACCOUNT | V115: ACCOUNT | W115: ACCOUNT
A116: DESC. | B116: ADJ. | C116: ACCT | D116: AMOUNT | E116: ADJUSTMENTS | F116: PLANT COST | L116: 360 | M116: 360 | N116: 361 | O116: 362 | P116: 364 | Q116: 365 | R116: 366 | S116: 368 | T116: 369.01 | U116: 369.02 | V116: 370 | W116: 373
L117: Line | M117: Sub | N117: Structures | O117: Station | P117: Poles | Q117: OH | R117: 367 | S117: Line | T117: OH | U117: UG | V117: Meters | W117: Street
A118: LAND | C118: 360Res | D118: =VLOOKUP(C118,Data,ColNumber,FALSE)/1000 -> 0 | F118: =+D118+E118 -> 0 | H118: LINE | I118: DESCRIPTION | J118: FUNCTION | K118: TOTAL | L118: Land | M118: Land | O118: Equipment | Q118: Conductors | R118: UG | S118: Xformers | T118: Services | U118: Services | W118: Lighting
A119: STRUCTURES | C119: 361Res | D119: 105.0978155 | F119: 105.0978155 | H119: 1 | I119: 2 | J119: 3 | K119: 4 | L119: 5 | M119: 6 | N119: 7 | O119: 8 | P119: 9 | Q119: 10 | R119: 11 | S119: 12 | T119: 13 | U119: 14 | V119: 15 | W119: 16
A120: STATION | C120: 362Res | D120: 51699.32348 | F120: 51699.32348
A121: POLES | C121: 364Res | D121: =VLOOKUP(C121,Data,ColNumber,FALSE)/1000 -> 143997.1979 | F121: 143997.1979 | H121: 1 | I121: DISTRIBUTION DEPREC RESERVE
A122: OH CONDUCTORS | C122: 365Res | D122: 115835.9209 | F122: 115835.9209 | H122: =+H121+1 -> 2 | I122: SUBSTATIONS DIRECT | J122: DEM | K122: =SUM(L122:W122) -> 0 | M122: =IF($M$124=0,0,+$M$124*M32/$M$34) -> 0 | N122: =IF($N$34=0,0,+$N$124*N32/$N$34) -> 0 | O122: =IF($O$34=0,0,+$O$124*O32/$O$34) -> 0
A123: UNDERGROUND | C123: 366Res | D123: 45459.02841 | F123: 45459.02841 | H123: =+H122+1 -> 3 | I123: SUBSTATIONS COMMON | J123: DEM | K123: =SUM(L123:W123) -> 51565.32246 | M123: =F118 -> 0 | N123: =F119 -> 105.0978155 | O123: =$O$34/$O$71*$F$120 -> 51460.22465
A124: UNDERGROUND | C124: 367Res | D124: 59446.17836 | F124: 59446.17836 | H124: 4 | I124: SUBSTATIONS | J124: TOTAL | K124: =SUM(K122:K123) -> 51565.32246 | M124: =SUM(M122:M123) -> 0 | N124: =SUM(N122:N123) -> 105.0978155 | O124: =SUM(O122:O123) -> 51460.22465
A125: TRANSFORMERS | C125: 368Res | D125: 213341.5181 | F125: 213341.5181 | H125: 5
A126: OH SERVICES | C126: 36900Res | D126: 45641.7789 | F126: =+D126+E126 -> 45641.7789 | H126: 6
A127: UG SERVICES | C127: 36902Res | D127: =VLOOKUP(C127,Data,ColNumber,FALSE)/1000 -> 45159.01695 | F127: =+D127+E127 -> 45159.01695 | H127: 7 | I127: POLES DIRECT | J127: CUST | K127: =SUM(L127:W127) -> 13393.94698 | P127: =IF($P$42=0,0,+$P$132*P37/$P$42) -> 13393.94698
A128: METERS | C128: 370Res | D128: =VLOOKUP(C128,Data,ColNumber,FALSE)/1000 -> 26497.28798 | F128: =+D128+E128 -> 26497.28798 | H128: 8 | I128: POLES PRIMARY | J128: DEM | K128: =SUM(L128:W128) -> 45056.0254 | P128: =IF($P$42=0,0,+$P$132*P38/$P$42) -> 45056.0254
A129: STREET LIGHTING | C129: 373Res | D129: =VLOOKUP(C129,Data,ColNumber,FALSE)/1000 -> 84458.38292 | F129: =+D129+E129 -> 84458.38292 | H129: 9 | I129: POLES PRIMARY (MDS) | J129: CUST | K129: =SUM(L129:W129) -> 80099.6007 | P129: =IF($P$42=0,0,+$P$132*P39/$P$42) -> 80099.6007
H130: 10 | I130: POLES SECONDARY | J130: DEM | K130: =SUM(L130:W130) -> 1961.144931 | P130: =IF($P$42=0,0,+$P$132*P40/$P$42) -> 1961.144931
H131: 11 | I131: POLES SECONDARY (MDS) | J131: CUST | K131: =SUM(L131:W131) -> 3486.479877 | P131: =IF($P$42=0,0,+$P$132*P41/$P$42) -> 3486.479877
B132: TOTAL ACCUM RESERVE | D132: =SUM(D118:D131) -> 831640.7317 | F132: =SUM(F118:F131) -> 831640.7317 | H132: 12 | I132: POLES | J132: TOTAL | K132: =SUM(K127:K131) -> 143997.1979 | P132: =+F121 -> 143997.1979
B133: MFR | D133: =JLH_MFR_DATA!F15/1000 -> 831640.7317 | H133: 13
B134: VARIANCE | D134: =D132-D133 -> 0 | H134: 14 | I134: OH LINES DIRECT | J134: CUST | K134: =SUM(L134:W134) -> 2864.398939 | Q134: =Q44/$Q$71*$F$122 -> 2864.398939
H135: 15 | I135: OH LINES PRIMARY | J135: DEM | K135: =SUM(L135:W135) -> 87528.91579 | Q135: =Q45/$Q$71*$F$122 -> 87528.91579
H136: 16 | I136: OH LINES PRIMARY (MDS) | J136: CUST | K136: =SUM(L136:W136) -> 8656.705958 | Q136: =Q46/$Q$71*$F$122 -> 8656.705958
H137: 17 | I137: OH LINES SECONDARY | J137: DEM | K137: =SUM(L137:W137) -> 14970.83033 | Q137: =Q47/$Q$71*$F$122 -> 14970.83033
H138: 18 | I138: OH LINES SECONDARY (MDS) | J138: CUST | K138: =SUM(L138:W138) -> 1480.631571 | Q138: =Q48/$Q$71*$F$122 -> 1480.631571
H139: 19 | I139: OH LINES | J139: TOTAL | K139: =SUM(K134:K138) -> 115501.4826 | Q139: =SUM(Q134:Q138) -> 115501.4826
H140: 20
H141: 21 | I141: UG LINES DIRECT | J141: CUST | K141: =SUM(L141:W141) -> 0 | R141: =IF($R$56=0,0,+$R$146*R51/$R$56) -> 0
H142: 22 | I142: UG LINES PRIMARY | J142: DEM | K142: =SUM(L142:W142) -> 66369.79207 | R142: =IF($R$56=0,0,+$R$146*R52/$R$56) -> 66369.79207
H143: 23 | I143: UG LINES PRIMARY (MDS) | J143: CUST | K143: =SUM(L143:W143) -> 6564.045369 | R143: =IF($R$56=0,0,+$R$146*R53/$R$56) -> 6564.045369
H144: 24 | I144: UG LINES SECONDARY | J144: DEM | K144: =SUM(L144:W144) -> 29093.94609 | R144: =IF($R$56=0,0,+$R$146*R54/$R$56) -> 29093.94609
H145: 25 | I145: UG LINES SECONDARY (MDS) | J145: CUST | K145: =SUM(L145:W145) -> 2877.42324 | R145: =IF($R$56=0,0,+$R$146*R55/$R$56) -> 2877.42324
H146: 26 | I146: UG LINES | J146: TOTAL | K146: =SUM(K141:K145) -> 104905.2068 | R146: =+F123+F124 -> 104905.2068
H147: 27
H148: 28 | I148: TRANSFORMERS DIRECT | J148: CUST | K148: =SUM(L148:W148) -> 0 | S148: =IF($S$61=0,0,+$S$151*S58/$S$61) -> 0
H149: 29 | I149: TRANSFORMERS | J149: DEM | K149: =SUM(L149:W149) -> 162139.5537 | S149: =IF($S$61=0,0,+$S$151*S59/$S$61) -> 162139.5537
H150: 30 | I150: TRANSFORMERS (MDS) | J150: CUST | K150: =SUM(L150:W150) -> 51201.96434 | S150: =IF($S$61=0,0,+$S$151*S60/$S$61) -> 51201.96434
H151: 31 | I151: TRANSFORMERS | J151: TOTAL | K151: =SUM(K148:K150) -> 213341.5181 | S151: =+F125 -> 213341.5181
H152: 32
H153: 33 | I153: SERVICES | J153: CUST | K153: =SUM(L153:W153) -> 90800.79585 | T153: =IF(T63=0,0,(T63/$T$71)*$F$126) -> 45641.7789 | U153: =IF(U63=0,0,(U63/$U$71)*$F$127) -> 45159.01695
H154: 34 | I154: METERS | J154: CUST | K154: =SUM(L154:W154) -> 26497.28798 | V154: =+F128 -> 26497.28798
H155: 35 | I155: INTERRUPTIBLE EQUIPMENT | J155: CUST | K155: =SUM(L155:W155) -> 573.5371221 | O155: =O65/$O$71*$F$120 -> 239.0988328 | Q155: =Q65/$Q$71*$F$122 -> 334.4382893
H156: 36 | I156: STREET LIGHTING | J156: CUST | K156: =SUM(L156:W156) -> 84458.38292 | W156: =+F129 -> 84458.38292
H157: 37
H158: 38 | I158: DISTRIBUTION DEPREC RESERVE | J158: DEM | K158: =SUMIF($J$122:$J$156,$J158,K$122:K$156) -> 458685.5308 | L158: 0 | M158: 0 | N158: 105.0978155 | O158: 51460.22465 | P158: 47017.17033 | Q158: 102499.7461 | R158: 95463.73816 | S158: 162139.5537 | T158: 0 | U158: 0 | V158: 0 | W158: 0
H159: 39 | I159: DISTRIBUTION DEPREC RESERVE | J159: CUST | K159: 372955.2008 | L159: 0 | M159: 0 | N159: 0 | O159: 239.0988328 | P159: 96980.02756 | Q159: 13336.17476 | R159: 9441.468609 | S159: 51201.96434 | T159: 45641.7789 | U159: 45159.01695 | V159: 26497.28798 | W159: 84458.38292
H160: 40
H161: 41 | I161: DISTRIBUTION DEPREC RESERVE | J161: TOTAL | K161: =+K158+K159 -> 831640.7317 | L161: =+L158+L159 -> 0 | M161: 0 | N161: 105.0978155 | O161: 51699.32348 | P161: 143997.1979 | Q161: 115835.9209 | R161: 104905.2068 | S161: 213341.5181 | T161: 45641.7789 | U161: 45159.01695 | V161: 26497.28798 | W161: 84458.38292
A168: DISTRIBUTION PLANT DEPRECIATION (ANNUAL EXPENSE)
A169: =PERIOD -> FOR THE FORECAST PERIOD ENDING 12/31/14 | H169: TAMPA ELECTRIC COMPANY
H170: DISTRIBUTION DEPRECIATION EXPENSE (000'S)
C171: PLT ACCTG | H171: =+'TITLES & CONSTANTS'!$D$9 -> FOR THE FORECAST PERIOD ENDING 12/31/14
C172: COMPONENTS | E172: SURV RPT | F172: TOTAL NET
A173: DESC. | B173: ADJ. | C173: ACCT | D173: AMOUNT | E173: ADJUSTMENTS | F173: PLANT COST | L173: ACCOUNT | M173: ACCOUNT | N173: ACCOUNT | O173: ACCOUNT | P173: ACCOUNT | Q173: ACCOUNT | R173: ACCOUNT | S173: ACCOUNT | T173: ACCOUNT | U173: ACCOUNT | V173: ACCOUNT | W173: ACCOUNT
L174: 360 | M174: 360 | N174: 361 | O174: 362 | P174: 364 | Q174: 365 | R174: 366 | S174: 368 | T174: 369.01 | U174: 369.02 | V174: 370 | W174: 373
A175: LAND | C175: 360Exp | D175: =VLOOKUP(C175,Data,ColNumber,FALSE)/1000 -> 0 | F175: =+D175+E175 -> 0 | L175: Line | M175: Sub | N175: Structures | O175: Station | P175: Poles | Q175: OH | R175: 367 | S175: Line | T175: OH | U175: UG | V175: Meters | W175: Street
A176: STRUCTURES | C176: 361Exp | D176: 68.97112942 | F176: 68.97112942 | H176: LINE | I176: DESCRIPTION | J176: FUNCTION | K176: TOTAL | L176: Land | M176: Land | O176: Equipment | Q176: Conductors | R176: UG | S176: Xformers | T176: Services | U176: Services | W176: Lighting
A177: STATION | C177: 362Exp | D177: 5004.673241 | F177: 5004.673241 | H177: 1 | I177: 2 | J177: 3 | K177: 4 | L177: 5 | M177: 6 | N177: 7 | O177: 8 | P177: 9 | Q177: 10 | R177: 11 | S177: 12 | T177: 13 | U177: 14 | V177: 15 | W177: 16
A178: POLES | C178: 364Exp | D178: =VLOOKUP(C178,Data,ColNumber,FALSE)/1000 -> 10972.00217 | F178: 10972.00217
A179: OH CONDUCTORS | C179: 365Exp | D179: 7271.472772 | F179: 7271.472772 | H179: 1 | I179: DISTRIBUTION DEPREC EXPENSE
A180: UNDERGROUND | C180: 366Exp | D180: 3104.374185 | F180: 3104.374185 | H180: =+H179+1 -> 2 | I180: SUBSTATIONS DIRECT | J180: DEM | K180: =SUM(L180:W180) -> 0 | N180: =IF(F$176=0,0,+$F$176*N32/N$34) -> 0 | O180: =IF(F$177=0,0,+$F$176*O32/O$34) -> 0
A181: UNDERGROUND | C181: 367Exp | D181: 7031.465184 | F181: 7031.465184 | H181: =+H180+1 -> 3 | I181: SUBSTATIONS COMMON | J181: DEM | K181: =SUM(L181:W181) -> 5050.498777 | N181: =IF(F$176=0,0,+$F$176*N33/N$34) -> 68.97112942 | O181: =IF(F$177=0,0,+$F$177*O33/O$34)-O213 -> 4981.527647
A182: TRANSFORMERS | C182: 368Exp | D182: 21834.89159 | F182: 21834.89159 | H182: 4 | I182: SUBSTATIONS | J182: TOTAL | K182: =SUM(K180:K181) -> 5050.498777 | N182: =+F176 -> 68.97112942 | O182: =SUM(O180:O181) -> 4981.527647
A183: OH SERVICES | C183: 36900Exp | D183: 2679.10036 | F183: =+D183+E183 -> 2679.10036 | H183: 5
A184: UG SERVICES | C184: 36902Exp | D184: =VLOOKUP(C184,Data,ColNumber,FALSE)/1000 -> 3232.222056 | F184: =+D184+E184 -> 3232.222056 | H184: 6
A185: METERS | C185: 370Exp | D185: =VLOOKUP(C185,Data,ColNumber,FALSE)/1000 -> 5767.434605 | F185: =+D185+E185 -> 5767.434605 | H185: 7 | I185: POLES DIRECT | J185: CUST | K185: =SUM(L185:W185) -> 1020.56441 | P185: =IF(P$190=0,0,+P$190*P37/P$42) -> 1020.56441
A186: STREET LIGHTING | C186: 373Exp | D186: =VLOOKUP(C186,Data,ColNumber,FALSE)/1000 -> 9541.091029 | F186: =+D186+E186 -> 9541.091029 | H186: 8 | I186: POLES PRIMARY | J186: DEM | K186: =SUM(L186:W186) -> 3433.086308 | P186: =IF(P$190=0,0,+P$190*P38/P$42) -> 3433.086308
H187: 9 | I187: POLES PRIMARY (MDS) | J187: CUST | K187: =SUM(L187:W187) -> 6103.264547 | P187: =IF(P$190=0,0,+P$190*P39/P$42) -> 6103.264547
H188: 10 | I188: POLES SECONDARY | J188: DEM | K188: =SUM(L188:W188) -> 149.4312858 | P188: =IF(P$190=0,0,+P$190*P40/P$42) -> 149.4312858
H189: 11 | I189: POLES SECONDARY (MDS) | J189: CUST | K189: =SUM(L189:W189) -> 265.6556193 | P189: =IF(P$190=0,0,+P$190*P41/P$42) -> 265.6556193
C190: TOTAL DEPRE | D190: =SUM(D175:D188) -> 76507.69832 | F190: =SUM(F175:F188) -> 76507.69832 | H190: 12 | I190: POLES | J190: TOTAL | K190: =SUM(K185:K189) -> 10972.00217 | P190: =+F178 -> 10972.00217
C191: MFR | D191: =JLH_MFR_DATA!E15/1000 -> 76507.69832 | H191: 13
C192: VARIANCE | D192: =D190-D191 -> 0 | H192: 14 | I192: OH LINES DIRECT | J192: CUST | K192: =SUM(L192:W192) -> 179.809499 | Q192: =Q44/$Q$71*$F$179 -> 179.809499
H193: 15 | I193: OH LINES PRIMARY | J193: DEM | K193: =SUM(L193:W193) -> 5494.531602 | Q193: =Q45/$Q$71*$F$179 -> 5494.531602
H194: 16 | I194: OH LINES PRIMARY (MDS) | J194: CUST | K194: =SUM(L194:W194) -> 543.4152134 | Q194: =Q46/$Q$71*$F$179 -> 543.4152134
H195: 17 | I195: OH LINES SECONDARY | J195: DEM | K195: =SUM(L195:W195) -> 939.7774396 | Q195: =Q47/$Q$71*$F$179 -> 939.7774396
H196: 18 | I196: OH LINES SECONDARY (MDS) | J196: CUST | K196: =SUM(L196:W196) -> 92.9450215 | Q196: =Q48/$Q$71*$F$179 -> 92.9450215
H197: 19 | I197: OH LINES | J197: TOTAL | K197: =SUM(K192:K196) -> 7250.478775 | Q197: =SUM(Q192:Q196) -> 7250.478775
H198: 20
H199: 21 | I199: UG LINES DIRECT | J199: CUST | K199: =SUM(L199:W199) -> 0 | R199: =IF(R$204=0,0,+R$204*R51/R$56) -> 0
H200: 22 | I200: UG LINES PRIMARY | J200: DEM | K200: =SUM(L200:W200) -> 6412.584962 | R200: =IF(R$204=0,0,+R$204*R52/R$56) -> 6412.584962
H201: 23 | I201: UG LINES PRIMARY (MDS) | J201: CUST | K201: =SUM(L201:W201) -> 634.2116995 | R201: =IF(R$204=0,0,+R$204*R53/R$56) -> 634.2116995
H202: 24 | I202: UG LINES SECONDARY | J202: DEM | K202: =SUM(L202:W202) -> 2811.028864 | R202: =IF(R$204=0,0,+R$204*R54/R$56) -> 2811.028864
H203: 25 | I203: UG LINES SECONDARY (MDS) | J203: CUST | K203: =SUM(L203:W203) -> 278.0138437 | R203: =IF(R$204=0,0,+R$204*R55/R$56) -> 278.0138437
H204: 26 | I204: UG LINES | J204: TOTAL | K204: =SUM(K199:K203) -> 10135.83937 | R204: =+F180+F181 -> 10135.83937
H205: 27
H206: 28 | I206: TRANSFORMERS DIRECT | J206: CUST | K206: =SUM(L206:W206) -> 0 | S206: =IF($S$209=0,0,+$S$209*S58/$S$61) -> 0
H207: 29 | I207: TRANSFORMERS | J207: DEM | K207: =SUM(L207:W207) -> 16594.51761 | S207: =IF($S$209=0,0,+$S$209*S59/$S$61) -> 16594.51761
H208: 30 | I208: TRANSFORMERS (MDS) | J208: CUST | K208: =SUM(L208:W208) -> 5240.373982 | S208: =IF($S$209=0,0,+$S$209*S60/$S$61) -> 5240.373982
H209: 31 | I209: TRANSFORMERS | J209: TOTAL | K209: =SUM(K206:K208) -> 21834.89159 | S209: =+F182 -> 21834.89159
H210: 32
H211: 33 | I211: SERVICES | J211: CUST | K211: =SUM(L211:W211) -> 5911.322416 | T211: =SUM(T63/$T$71)*$F$183 -> 2679.10036 | U211: =SUM(U63/$U$71)*$F$184 -> 3232.222056
H212: 34 | I212: METERS | J212: CUST | K212: =SUM(L212:W212) -> 5767.434605 | V212: =+F185 -> 5767.434605
H213: 35 | I213: INTERRUPTIBLE EQUIPMENT | J213: CUST | K213: =SUM(L213:W213) -> 44.13959007 | O213: =$O$65/$O$71*$F$177 -> 23.1455936 | Q213: =Q65/$Q$71*$F$179 -> 20.99399647
H214: 36 | I214: STREET LIGHTING | J214: CUST | K214: =SUM(L214:W214) -> 9541.091029 | W214: =+F186 -> 9541.091029
H215: 37
H216: 38 | I216: DISTRIBUTION DEPREC EXPENSE | J216: DEM | K216: =SUMIF($J$180:$J$214,$J216,K$180:K$214) -> 40885.45685 | L216: 0 | M216: 0 | N216: 68.97112942 | O216: 4981.527647 | P216: 3582.517594 | Q216: 6434.309042 | R216: 9223.613826 | S216: 16594.51761 | T216: 0 | U216: 0 | V216: 0 | W216: 0
H217: 39 | I217: DISTRIBUTION DEPREC EXPENSE | J217: CUST | K217: 35622.24148 | L217: 0 | M217: 0 | N217: 0 | O217: 23.1455936 | P217: 7389.484577 | Q217: 837.1637303 | R217: 912.2255432 | S217: 5240.373982 | T217: 2679.10036 | U217: 3232.222056 | V217: 5767.434605 | W217: 9541.091029
H218: 40
H219: 41 | I219: DISTRIBUTION DEPREC EXPENSE | J219: TOTAL | K219: =+K216+K217 -> 76507.69832 | L219: =+L216+L217 -> 0 | M219: 0 | N219: 68.97112942 | O219: 5004.673241 | P219: 10972.00217 | Q219: 7271.472772 | R219: 10135.83937 | S219: 21834.89159 | T219: 2679.10036 | U219: 3232.222056 | V219: 5767.434605 | W219: 9541.091029

Sheet Dist OH Conductors
C2: Prints Data only, Col A:F
C4: Prints summaries only
A7: REQUIRED INPUTS:
A8: Period | B8: Automated after you drop in accounting source document
A9: Desc | B9: OH Conductor & Devices
A10: Source | B10: Accounting
A11: Input Value | B11: Ferc Code 365
A12: Cell | B12: dump into approximate cell area a100
B13: UPDATED WITH 2012, 2/7/13
A15: COMMENTS:
G26: TAMPA ELECTRIC COMPANY
G27: ANALYSIS OF OVERHEAD CONDUCTOR (ACCOUNT 365)
G28: =+'TITLES & CONSTANTS'!D9 -> FOR THE FORECAST PERIOD ENDING 12/31/14
L30: NET
G31: LINE | J31: CONDUCTOR | K31: Ratio Calc of | L31: EMBEDDED | M31: Ratio Calc of
G32: NO. | H32: PAC | I32: DESCRIPTION | J32: FEET | K32: Secondary Poles | L32: COST | M32: Secondary Wires
G33: 1 | H33: 2 | I33: 3 | J33: 4 | K33: 5 | L33: 6 | M33: 7
H34: PRIMARY
G35: 1 | H35: B29 | I35: WIRE CU 4 1/C | J35: =IF(ISNA(VLOOKUP($H35,$B$123:$E$215,2,FALSE)),0,(VLOOKUP($H35,$B$123:$E$215,2,FALSE))) -> 3033540 | L35: =IF(ISNA(VLOOKUP($H35,$B$123:$E$215,3,FALSE)),0,(VLOOKUP($H35,$B$123:$E$215,3,FALSE))) -> 315478.63
G36: =+G35+1 -> 2 | H36: B30 | I36: WIRE CU 6 1/C | J36: 14338086 | L36: 1774142.33
G37: =+G36+1 -> 3 | H37: B31 | I37: WIRE CU 2 1/C | J37: 10554170 | L37: 3378172.34
G38: 4 | H38: B32 | I38: WIRE CU 1/0 1/C | J38: 973464 | L38: 170098.11
G39: 5 | H39: B33 | I39: WIRE CU 2/0 1/C | J39: 2669188 | L39: 3295989.88
G40: 6 | H40: B35 | I40: WIRE CU 4/0 1/C | J40: 2688578 | L40: 3608557.67
G41: 7 | H41: B37 | I41: WIRE CU 350M 1/C | J41: 0 | L41: 0
G42: 8 | H42: B38 | I42: WIRE CU 350M 1/C | J42: -1289 | L42: -40332.34
G43: 9 | H43: B39 | I43: WIRE CU 400M 1/C | J43: 1454 | L43: 2141
G44: 10 | H44: B40 | I44: WIRE CU 500M 1/C | J44: 159911 | L44: 942613.68
G45: 11 | H45: B41 | I45: WIRE CU 600M 1/C | J45: 0 | L45: 0
G46: 12 | H46: B42 | I46: WIRE CU 750M 1/C | J46: 776 | L46: 11476.81
G47: 13 | H47: B50 | I47: WIRE ACSR 2 1/C | J47: 12347385 | L47: 2243161.99
G48: 14 | H48: B51 | I48: WIRE ACSR 4/0 1/C | J48: 3130699 | L48: 1047281.27
G49: 15 | H49: B52 | I49: WIRE ACSR 336M 1/C | J49: 26518558.2 | L49: 45436100.55
G50: 16 | H50: B53 | I50: WIRE ASCR 636M 1/C | J50: 16560 | L50: 13443.83
G51: 17 | H51: B54 | I51: WIRE ACSR 954 M 1/C | J51: 0 | L51: 0
G52: 18 | H52: B57 | I52: WIRE AL 7957 1/C | J52: 17927 | L52: 91046.05
G53: 19 | H53: B65 | I53: WIRE AL 2 1/C | J53: 36163670.75 | L53: 66108876.01
G54: 20 | H54: B66 | I54: WIRE AL 1/0 1/C | J54: 5305732 | L54: 1242475.96
G55: 21 | H55: B67 | I55: WIRE AL 2/0 1/C | J55: 14518985.85 | L55: 18061153.35
G56: 22 | H56: B68 | I56: WIRE AL 4/0 1/C | J56: 2471019.15 | L56: 2838998.22
G57: 23 | H57: B70 | I57: WIRE AL 1/C 395 & 397M | J57: 51721 | L57: 28065.1
G58: 24 | H58: B71 | I58: WIRE AL 636 1/C | J58: 751 | L58: 4991.36
G59: 25 | H59: B72 | I59: Wire AL 1/C 740 & 795M: B72 | J59: 1324698 | L59: 1314439.95
G60: 26 | H60: F46 | I60: Cable AL 500M 3/C: F46 | J60: 800 | L60: 8645.88
G61: 27 | H61: F48 | I61: Cable AL 1000M 3C: F48 | J61: 2883 | L61: 7893.03
G62: 28 | H62: B73 | I62: WIRE AL 954M 1/CC | J62: 3263 | L62: 172223.24
G63: 29 | H63: B75 | I63: WIRE AL 1590 1/C | J63: 2324 | L63: 4833.92
G64: 30 | I64: SUB TOTAL WIRE | J64: =SUM(J35:J63) -> 136294854.9 | K64: =J64/$J$84 -> 0.8691532053 | L64: =SUM(L35:L63) -> 152081967.8 | M64: =L64/$L$84 -> 0.8332480918
G65: 31
G66: 32 | H66: SECONDARY | J66: CABLE FEET | L66: COST
G67: 33 | H67: B77 | I67: WIRE AL 4 2/C | J67: =IF(ISNA(VLOOKUP($H67,$B$123:$E$215,2,FALSE)),0,(VLOOKUP($H67,$B$123:$E$215,2,FALSE))) -> 11676100 | L67: =IF(ISNA(VLOOKUP($H67,$B$123:$E$215,3,FALSE)),0,(VLOOKUP($H67,$B$123:$E$215,3,FALSE))) -> 11568798.93
G68: 34 | H68: B78 | I68: WIRE AL 2/0 3/C | J68: 7207556.5 | L68: 14048927.33
G69: 35 | H69: B79 | I69: WIRE AL 2/0 4/C | J69: 494239 | L69: 1377942.79
G70: 36 | H70: B80 | I70: WIRE AL 4/0 3/C | J70: 884695.75 | L70: 2388099.95
G71: 37 | H71: B81 | I71: WIRE AL 4/0 4/C | J71: 204877.35 | L71: 731961.49
G72: 38 | H72: F40 | I72: CABLE AL 1/0 1C DB | J72: 1054 | L72: 2288.19
G73: 39 | H73: F44 | I73: CABLE AL 4/0 3C | J73: 5446 | L73: 66492.97
G74: 40 | H74: H01 | I74: CABLE AL 2 3/C OVHD SERV | J74: 10320 | L74: 205989.45
G75: 41 | H75: H02 | I75: CABLE AL 2 4/C OVHD SERV | J75: 8570 | L75: 3997.82
G76: 42 | H76: H04 | I76: CABLE AL 2/0 3/C OVHD SERVFT | J76: 2449 | L76: 5885.04
G77: 43 | H77: H05 | I77: Cable AL 2/0 4/C OVHD SERVFT | J77: 0 | L77: 0
G78: 44 | H78: H06 | I78: CABLE AL 4/0 3/C OVHD SER | J78: 3342 | L78: 28370.19
G79: 45 | H79: H07 | I79: CABLE AL 4/0 4/C OVHD SERVFT | J79: 0 | L79: 0
G80: 46 | H80: H95 | I80: CABLE AL 4 3/C OVHD SER | J80: 19081 | L80: 5722.39
G81: 47 | H81: H97 | I81: CABLE AL 1/0 4/C OVHD SER | J81: 798 | L81: 586.66
G82: 48 | I82: SUB TOTAL CABLE | J82: =SUM(J67:J81) -> 20518528.6 | K82: =J82/$J$84 -> 0.1308467947 | L82: =SUM(L67:L81) -> 30435063.2 | M82: =L82/L84 -> 0.1667519082
G83: 49
G84: 50 | I84: SUBTOTAL WIRE & CABLE | J84: =J82+J64 -> 156813383.5 | K84: =SUM(K64:K82) -> 1 | L84: =L82+L64 -> 182517031 | M84: =SUM(M64:M82) -> 1
G85: 51
G86: 52 | I86: OTHER | J86: =VLOOKUP("Total Other",$A$175:$E$209,4,FALSE) -> 39052456.24 | L86: =VLOOKUP("Total Other",$A$175:$E$209,5,FALSE) -> 0
G87: 53
G88: 54 | I88: TOTAL WIRE,CABLE & OTHER | J88: =+J86+J82+J64 -> 195865839.8 | L88: =+L86+L82+L64 -> 182517031
A113: UPDATED FOR 2014 OB, these are 2012 actuals below (UPDATED 2/7/13)
A115: TAMPA ELECTRIC COMPANY
A116: ACCOUNT 365 - OVERHEAD CONDUCTOR & DEVICES
A118: ACCOUNT 101 ONLY
A121: WIRE
A122: PAN_ FERC | B122: PAC_ CODE2 | C122: SumOf ASST_QTY | D122: SumOf ASST_COST | E122: ASST_DESC_ GENERAL
A123: 365 | B123: B29 | C123: 3033540 | D123: 315478.63 | E123: Wire CU 4 1/C: B29
A124: 365 | B124: B30 | C124: 14338086 | D124: 1774142.33 | E124: Wire CU 6 1/C: B30
A125: 365 | B125: B31 | C125: 10554170 | D125: 3378172.34 | E125: Wire CU 2 1/C: B31
A126: 365 | B126: B32 | C126: 973464 | D126: 170098.11 | E126: Wire CU 1/0 1/C: B32
A127: 365 | B127: B33 | C127: 2669188 | D127: 3295989.88 | E127: Wire CU 2/0 1/C: B33
A128: 365 | B128: B35 | C128: 2688578 | D128: 3608557.67 | E128: Wire CU 4/0 1/C: B35
A129: 365 | B129: B38 | C129: -1289 | D129: -40332.34 | E129: Wire CU 350M 1/C: B38
A130: 365 | B130: B39 | C130: 1454 | D130: 2141 | E130: Wire CU 400M 1/C: B39
A131: 365 | B131: B40 | C131: 159911 | D131: 942613.68 | E131: Wire CU 500M 1/C: B40
A132: 365 | B132: B42 | C132: 776 | D132: 11476.81 | E132: Wire CU 500M 1/C: B42
A133: 365 | B133: B50 | C133: 12347385 | D133: 2243161.99 | E133: Wire ACSR 2 1/C: B50
A134: 365 | B134: B51 | C134: 3130699 | D134: 1047281.27 | E134: Wire ACSR 4/0 1/C: B51
A135: 365 | B135: B52 | C135: 26518558.2 | D135: 45436100.55 | E135: Wire ACSR 336M 1/C: B52
A136: 365 | B136: B53 | C136: 16560 | D136: 13443.83 | E136: Wire ASCR 636M 1/C: B53
A137: 365 | B137: B57 | C137: 17927 | D137: 91046.05 | E137: Wire AL 7957 1/C: B57
A138: 365 | B138: B65 | C138: 36163670.75 | D138: 66108876.01 | E138: Wire AL 2 1/C: B65
A139: 365 | B139: B66 | C139: 5305732 | D139: 1242475.96 | E139: Wire AL 1/0 1/C: B66
A140: 365 | B140: B67 | C140: 14518985.85 | D140: 18061153.35 | E140: Wire AL 2/0 1/C: B67
A141: 365 | B141: B68 | C141: 2471019.15 | D141: 2838998.22 | E141: Wire AL 4/0 1/C: B68
A142: 365 | B142: B70 | C142: 51721 | D142: 28065.1 | E142: Wire AL 1/C 395 & 397M: B70
A143: 365 | B143: B71 | C143: 751 | D143: 4991.36 | E143: Wire AL 636 1/C: B71
A144: 365 | B144: B72 | C144: 1324698 | D144: 1314439.95 | E144: Wire AL 1/C 740 & 795M: B72
A145: 365 | B145: B73 | C145: 3263 | D145: 172223.24 | E145: Wire AL 954M 1/CC: B73
A146: 365 | B146: B75 | C146: 2324 | D146: 4833.92 | E146: Wire AL 1590 1/C: B75
A147: 365 | B147: B77 | C147: 11676100 | D147: 11568798.93 | E147: Wire AL 4 2/C: B77
A148: 365 | B148: B78 | C148: 7207556.5 | D148: 14048927.33 | E148: Wire AL 2/0 3/C: B78
A149: 365 | B149: B79 | C149: 494239 | D149: 1377942.79 | E149: Wire AL 2/0 4/C: B79
A150: 365 | B150: B80 | C150: 884695.75 | D150: 2388099.95 | E150: Wire AL 4/0 3/C: B80
A151: 365 | B151: B81 | C151: 204877.35 | D151: 731961.49 | E151: Wire AL 4/0 4/C: B81
A152: TOTAL WIRE | C152: =SUM(C123:C151) -> 156758640.5 | D152: =SUM(D123:D151) -> 182181159.4 | E152: Grand Total
A158: CABLE
A159: PAN_ FERC | B159: PAC_ CODE2 | C159: SumOf ASST_QTY | D159: SumOf ASST_COST | E159: ASST_DESC_ GENERAL
A160: 365 | B160: F40 | C160: 1054 | D160: 2288.19 | E160: Cable AL 1/0 1C DB: F40
A161: 365 | B161: F44 | C161: 5446 | D161: 66492.97 | E161: Cable AL 4/0 3C: F44
A162: 365 | B162: F46 | C162: 800 | D162: 8645.88 | E162: Cable AL 500M 3/C: F46 | F162: new 2010 act
A163: 365 | B163: F48 | C163: 2883 | D163: 7893.03 | E163: Cable AL 1000M 3C: F48 | F163: new 2010 act
A164: 365 | B164: H01 | C164: 10320 | D164: 205989.45 | E164: Cable AL 2 3/C OVHD SERV: H01
A165: 365 | B165: H02 | C165: 8570 | D165: 3997.82 | E165: Cable AL 2 4/C OVHD SERV: H02
A166: 365 | B166: H04 | C166: 2449 | D166: 5885.04 | E166: Cable AL 2/0 3/C OVHD SERVFT: H04
A167: 365 | B167: H05 | C167: 0 | D167: 0 | E167: Cable AL 2/0 4/C OVHD SERVFT: H05 | F167: new 2011 act
A168: 365 | B168: H06 | C168: 3342 | D168: 28370.19 | E168: Cable AL 4/0 3/C OVHD SER: H06
A169: 365 | B169: H07 | C169: 0 | D169: 0 | E169: Cable AL 4/0 4/C OVHD SERVFT: H07
A170: 365 | B170: H95 | C170: 19081 | D170: 5722.39 | E170: Cable AL 4 3/C OVHD SER: H95
A171: 365 | B171: H97 | C171: 798 | D171: 586.66 | E171: Cable AL 1/0 4/C OVHD SER: H97
A172: Total Cable | B172: Total Cable | C172: =SUM(C160:C171) -> 54743 | D172: =SUM(D160:D171) -> 335871.62
A174: OTHER
A175: PAN_ FERC | B175: PAC_ CODE2 | C175: SumOf ASST_QTY | D175: SumOf ASST_COST | E175: ASST_DESC_ GENERAL
A176: 365 | B176: B03 | C176: 16 | D176: 42326.66 | E176: SW OIL 15KV SPST: B03
A177: 365 | B177: B04 | C177: 48 | D177: 123324.6 | E177: SW OIL 15KV SPDT: B04
A178: 365 | B178: B06 | C178: 1 | D178: 10912.45 | E178: SW OIL Auto Transfer: B06
A179: 365 | B179: B10 | C179: 152 | D179: 8671.85 | E179: SW AIR 5KV SPST: B10
A180: 365 | B180: B11 | C180: 2 | D180: 405.09 | E180: SW AIR 5KV 3PST: B11
A181: 365 | B181: B12 | C181: 124 | D181: 7918.88 | E181: SW AIR 7. 5KV SPST: B12
A182: 365 | B182: B14 | C182: 15919 | D182: 23983956.11 | E182: SW AIR 15KV SPST: B14
A183: 365 | B183: B15 | C183: 1194 | D183: 476083.38 | E183: SW AIR 15KV 2PST: B15
A184: 365 | B184: B16 | C184: 23 | D184: 7699.98 | E184: SW AIR 15KV 2PDT: B16
A185: 365 | B185: B17 | C185: 28 | D185: 513087.4 | E185: SW AIR 15KV 3PST: B17
A186: 365 | B186: B26 | C186: 1431 | D186: 7168784.5 | E186: Remote Terminal Unit: B26
A187: 365 | B187: B83 | C187: 88 | D187: 30173.05 | E187: Sectionilizer 70A DRY: B83
A188: 365 | B188: B85 | C188: 6 | D188: 23932.8 | E188: Sectionilizer GN3: B85
A189: 365 | B189: B86 | C189: 10 | D189: 735.55 | E189: Sectionilizer GS: B86
A190: 365 | B190: B87 | C190: 2 | D190: 2408.81 | E190: Sectionilizer KGN: B87
A191: 365 | B191: B88 | C191: 126 | D191: 479717.12 | E191: Recloser H 1P: B88
A192: 365 | B192: B89 | C192: 48 | D192: 52274.62 | E192: Recloser 4H 1P: B89
A193: 365 | B193: B90 | C193: 155 | D193: 99332.84 | E193: Recloser L 1P: B90
A194: 365 | B194: B91 | C194: 30 | D194: 599030.63 | E194: Recloser E 1P: B91
A195: 365 | B195: B93 | C195: 15 | D195: 149106.36 | E195: Recloser 3H 3P: B93
A196: 365 | B196: B94 | C196: 46 | D196: 326112.98 | E196: Recloser 6H 3P: B94
A197: 365 | B197: B95 | C197: 47108 | D197: 3670876.26 | E197: Recloser R 3P: B95
A198: 365 | B198: B96 | C198: 4 | D198: 13622.68 | E198: Recloser KWB 3P: B96
A199: 365 | B199: B97 | C199: 31 | D199: 286049.41 | E199: Recloser D 1PH: B97
A200: 365 | B200: B98 | C200: 501 | D200: 1043.65 | E200: Phase Converter: B98
A201: 365 | B201: E06 | C201: 622 | D201: 21105.05 | E201: Conduit STL 2IN: E06
A202: 365 | B202: E08 | C202: 30 | D202: 1849.08 | E202: Conduit STL 3IN: E08
A203: 365 | B203: E09 | C203: 234 | D203: 17678.72 | E203: Conduit STL 4IN: E09
A204: 365 | B204: E11 | C204: 116 | D204: 18868.2 | E204: Conduit STL 6IN: E11
A205: 365 | B205: E33 | C205: 184713 | D205: 500829.73 | E205: Conduit PVC 2IN: E33
A206: 365 | B206: E34 | C206: 55284 | D206: 266072.35 | E206: Conduit PVC 3IN: E34
A207: 365 | B207: E35 | C207: 12263 | D207: 93631.11 | E207: Conduit PVC 4IN: E35
A208: 365 | B208: E37 | C208: 840 | D208: 54834.34 | E208: Conduit PVC 6IN: E37
A209: TOTAL OTHER | C209: =SUM(C176:C208) -> 321210 | D209: =SUM(D176:D208) -> 39052456.24
C211: WIRE TOTAL | D211: =D152 -> 182181159.4
C212: CABLE TOTAL | D212: =D172 -> 335871.62
C213: OTHER TOTAL | D213: =D209 -> 39052456.24
C214: TOTAL | D214: =SUM(D211:D213) -> 221569487.3

Sheet DirPoles_ConductorCost
A1: =PERIOD -> FOR THE FORECAST PERIOD ENDING 12/31/14
C2: Prints Data only, Col A:E
C4: Prints summary only
A7: REQUIRED INPUTS:
A8: Period | B8: 2012 YE ACTUAL | C8: 2012 YE ACTUAL | D8: YE Balance "Actual"
A9: Desc | B9: Lighting Wire | C9: Lighting Span | D9: SL POLE, Pac Code A02
A10: Source | B10: Power Plan, B77, #4 2/c | C10: (ED) | D10: Power Plan, 364 Poles, Acct 101
A11: Input Value | B11: ='Dist OH Conductors'!J67 -> 11676100 | C11: 127 | D11: =VLOOKUP("A02",$B$29:$E$58,4,FALSE) -> 39691936.66 | E11: Total cost of A02 Poles
A12: Input Value | B12: ='Dist OH Conductors'!L67 -> 11568798.93 | D12: =VLOOKUP("A02",$B$29:$E$58,3,FALSE) -> 78817 | E12: Total qty of A02 Poles
A13: Cell | B13: =B12/B11 -> 0.990810196 | D13: =D11/D12 -> 503.5961361 | E13: Avg Cost of A02 Poles
B14: Autocalc, feeds cell K48 | C14: rec'd update 12/21/12 | D14: Autocalc, feeds cell M45
A16: COMMENTS: | B16: Majority of Data from this sheet is automated, drop in accountings recap of Acct 364 Poles
B17: Outdoor Lights, is a December year ending pole count.
A21: UPDATED FOR 2012 OB, these are 2011 actuals below (2/10/12) | H21: TAMPA ELECTRIC COMPANY
H22: DERIVATION OF DIRECT PLANT ASSIGNMENTS FOR STREET LIGHTING POLES AND CONDUCTOR ($000)
A23: TAMPA ELECTRIC COMPANY | H23: =+'TITLES & CONSTANTS'!D9 -> FOR THE FORECAST PERIOD ENDING 12/31/14
A24: ACCT. 364 - QUANTITY OF POLES
A25: FOR THE PERIOD ENDED 12/31/2012 (provided by AT 2/6/13) | J25: DIRECT | K25: DIRECT
A26: ACCOUNT 101 ONLY | H26: LINE | I26: DESCRIPTION | J26: ST LTG Poles | K26: ST LTG Wires
H27: 1 | I27: 2 | J27: 3 | K27: 4
A28: PAN_FERC | B28: PAC_CODE2 | C28: ASST_DESC_ GENERAL | D28: SumOf ASST_QTY | E28: SumOf ASST_COST
A29: 364 | B29: A01 | C29: Pole Wood 25 FT: A01 | D29: 3366 | E29: 459086.54 | H29: 1 | I29: LIGHTING - TOTAL AVG MO. BILLED WOOD POLES (1) | J29: 46125
B30: A02 | C30: Pole Wood 30 FT: A02 | D30: 78817 | E30: 39691936.66 | H30: =H29+1 -> 2
A31: 364 | B31: A03 | C31: Pole Wood 35 FT: A03 | D31: 71847.48 | E31: 42656389.48 | H31: =H30+1 -> 3
A32: 364 | B32: A04 | C32: Pole Wood 40 FT: A04 | D32: 109565 | E32: 70654380.84 | H32: =H31+1 -> 4 | I32: AVG. COST OF EMBEDDED WOOD LGT POLE (2) | J32: =D13 -> 503.5961361
A33: 364 | B33: A05 | C33: Pole Wood 45 FT: A05 | D33: 52679 | E33: 53436902.43 | H33: =H32+1 -> 5 | J33: =Poles_Acct373*J32 -> 23228371.78
A34: 364 | B34: A06 | C34: Pole Wood 50 FT: A06 | D34: 5703 | E34: 11154073.67 | H34: 6
A35: 364 | B35: A07 | C35: Pole Wood 55 FT: A07 | D35: 1036 | E35: 2082914.54 | H35: 7 | I35: DIRECT COST FOR BILLED LGT. POLES (000's) | J35: =+J29*J32/1000+J37/1000 -> 23228.37178
A36: 364 | B36: A08 | C36: Pole Wood 60 FT: A08 | D36: 265 | E36: 343064.19 | H36: 8
A37: 364 | B37: A09 | C37: Pole Wood 65 FT: A09 | D37: -8 | E37: -19137.96 | H37: 9
A38: 364 | B38: A10 | C38: Pole Wood 70 FT: A10 | D38: 0 | E38: -0.01 | H38: 10
A39: 364 | B39: A12 | C39: Pole Wood 80 FT: A12 | D39: 10 | E39: 53322.62 | H39: 11
A40: 364 | B40: A17 | C40: CONC/Wood Poles: A17 | D40: 5 | E40: 7504.09 | H40: 12
A41: 364 | B41: A18 | C41: Steel Reinforce-Wood Poles: A18 | D41: 3833 | E41: 508247.46 | H41: 13
A42: 364 | B42: A19 | C42: Monolighting-Wood Poles: A19 | D42: 842 | E42: 205189.57 | H42: =H41+1 -> 14 | I42: NUMBER OF STREET LIGHTING POLES | K42: =Poles_Acct373 -> 46125
A43: 364 | B43: A24 | C43: Pole Concrete 25 FT: A24 | D43: 10 | E43: 1971.82 | H43: 15
A44: 364 | B44: A25 | C44: Pole Concrete 30 FT: A25 | D44: 156 | E44: 34846.18 | H44: 16 | I44: LIGHTING SPAN (# OF FEET) (3) | K44: =C11 -> 127
A45: 364 | B45: A26 | C45: Pole Concrete 35 FT: A26 | D45: 27 | E45: 60675.45 | H45: 17
A46: 364 | B46: A27 | C46: Pole Concrete 40 FT: A27 | D46: 1202 | E46: 1229691.48 | H46: 18 | I46: CALC: LIGHTING WIRE FEET = [# of POLES times FT/span] | K46: =K42*K44 -> 5857875
A47: 364 | B47: A28 | C47: Pole Concrete 45 FT: A28 | D47: 4732 | E47: 6627506.96 | H47: 19
A48: 364 | B48: A29 | C48: Pole Concrete 50 FT: A29 | D48: 96 | E48: 468334.28 | H48: 20 | I48: AVG COST OF EMBEDDED STREET LIGHTING WIRE ($/FT) (4) | K48: =B13 -> 0.990810196
A49: 364 | B49: A30 | C49: Pole Concrete 55 FT: A30 | D49: 42 | E49: 605955.31 | H49: 21
A50: 364 | B50: A31 | C50: Pole Concrete 60 FT: A31 | D50: 13 | E50: 248234.49 | H50: 22 | I50: TOTAL DIRECT COST WIRE FOR STREET LIGHTING BILLED POLES (000's) | K50: =+K46*K48/1000 -> 5804.042277
A51: 364 | B51: A32 | C51: Pole Concrete 65 FT: A32 | D51: 5 | E51: 178739.14 | H51: 23
A52: 364 | B52: A33 | C52: Pole Concrete 70 FT: A33 | D52: 5 | E52: 80561.56 | H52: 24 | I52: Notes:
A53: 364 | B53: A34 | C53: Pole Concrete 75 FT: A34 | D53: 0 | E53: 0 | H53: 25 | I53: (1) Source: Customer Svcs Database
A54: 364 | B54: A40 | C54: Pole Fiberglass 30 FT TO 80 FT: A40 | D54: 43 | E54: 144471.49 | H54: 26 | I54: (2) Street lighting pole is pac code A02 [30 foot wood pole]
A55: 364 | B55: A52 | C55: Pole Steel 40FT THRU 49FT: A52 | D55: 18 | E55: 438.58 | H55: 27 | I55: (3) Estimated wire span provided by Lighting Engineering
A56: 364 | B56: A53 | C56: Pole Steel 60 FT: A53 | D56: 3 | E56: 18433.88 | H56: 28 | I56: (4) Street lighting wire is pac code B77 [#4- s/c AL]
A57: 364 | B57: A55 | C57: Pole Steel 70 FT: A55 | D57: 3 | E57: 42479.82
A58: 364 | B58: A56 | C58: Pole Steel 75 FT: A56 | D58: 4 | E58: 119113.72
A59: TOTAL POLES | D59: =SUM(D29:D58) -> 334319.48 | E59: =SUM(E29:E58) -> 231095328.3

Sheet Dist Substa Detail
A1: =PERIOD -> FOR THE FORECAST PERIOD ENDING 12/31/14 | F1: Acct 360 | G1: Acct 361 | H1: Acct 362 | I1: TOTAL
C2: Print Data, Col A:F | E2: VARIANCE CK | F2: Land | G2: Structure | H2: Substation
E3: DOWNLOAD SS | F3: =VLOOKUP("Grand Total",$A$269:$F$451,3,FALSE) -> 8772072.38 | G3: =VLOOKUP("Grand Total",$A$269:$F$451,4,FALSE) -> 2725689.94 | H3: =VLOOKUP("Grand Total",$A$269:$F$451,5,FALSE) -> 197467657 | I3: =SUM(F3:H3) -> 208965419.3
E4: Summary Below | F4: =N200 -> 8772072.38 | G4: =P200 -> 2725689.94 | H4: =L200 -> 197467657 | I4: =SUM(F4:H4) -> 208965419.3
C5: Print Summaries Only | E5: Variance s/b zero | F5: =F3-F4 -> 0 | G5: =G3-G4 -> 0 | H5: =H3-H4 -> 0 | I5: =SUM(F5:H5) -> 0
A7: REQUIRED INPUTS:
A8: Period | B8: 2012 Act
A9: Desc | B9: Substation Detail
A10: Source | B10: Accounting (LS/AT)
A11: Input Value | B11: dump into A270
A12: Summary Column | B12: Col A
B13: updated 2/11/2013
A15: COMMENTS: | B15: Dump worksheet from accounting into cell A280, summary will populate.
B16: we no longer have direct or transfers of distribution sub, it all goes to common
B17: this schedule basically brings in year-end data and bumps it up to 13 mo avg amount, but the detail itself isn't used
H26: TAMPA ELECTRIC COMPANY
H27: DISTRIBUTION SUBSTATION INVESTMENT
H28: =+'TITLES & CONSTANTS'!D9 -> FOR THE FORECAST PERIOD ENDING 12/31/14
I29: always 1 | M29: Adjust Acct 362 | O29: Adjust Acct 360 | Q29: Adjust Acct 361 | R29: TOTAL
H30: LINE | I30: REF | L30: ACCT 362 | M30: CWIPIS and 13-Mo | N30: ACCT 360 | O30: CWIPIS and 13-Mo | P30: ACCT 361 | Q30: CWIPIS and 13-Mo | R30: SUBSTA
H31: NO. | I31: NO. | J31: CO. ID | K31: SUBSTATION | L31: TOTAL $ | M31: Avg Factors (*) | N31: LAND $ | O31: Avg Factors (*) | P31: STRUCTURE $ | Q31: Avg Factors (*) | R31: INVESTMENT $
H32: 1 | I32: 2 | J32: 3 | K32: 4 | L32: 5 | M32: 6 | N32: 7 | O32: 8 | P32: 9 | Q32: 10 | R32: 11
H34: 1
H35: =+H34+1 -> 2 | I35: 1 | J35: 005D | K35: =IF(ISNA(VLOOKUP(J35,$A$275:$B$454,2,FALSE)),0,(VLOOKUP(J35,$A$275:$B$454,2,FALSE))) -> 005D-HOPEWELL | L35: =IF(ISNA(VLOOKUP($J35,$A$269:$E$452,5,FALSE)),0,(VLOOKUP($J35,$A$269:$E$452,5,FALSE))) -> 819468.13 | M35: =+L35*$L$218*$L$229 -> 866621.4096 | N35: =IF(ISNA(VLOOKUP($J35,$A$269:$E$448,3,FALSE)),0,(VLOOKUP($J35,$A$269:$E$448,3,FALSE))) -> 0 | O35: =+N35*$N$218*$N$229 -> 0 | P35: =IF(ISNA(VLOOKUP($J35,$A$268:$E$438,4,FALSE)),0,(VLOOKUP($J35,$A$268:$E$438,4,FALSE))) -> 0 | Q35: =+P35*$P$218*$P$229 -> 0 | R35: =+M35+O35+Q35 -> 866621.4096
H36: =+H35+1 -> 3 | I36: 1 | J36: 006D | K36: 006D-MULBERRY | L36: 3094991.81 | M36: 3273081.731 | N36: 88561.42 | O36: 88561.42 | P36: 109760.37 | Q36: 155516.0401 | R36: =+M36+O36+Q36 -> 3517159.191
H37: 4 | I37: 1 | J37: 009D | K37: 009D-MATANZAS | L37: 962096.59 | M37: 1017456.9 | N37: 14244.44 | O37: 14244.44 | P37: 22822.77 | Q37: 32336.86999 | R37: 1064038.21
H38: 5 | I38: 1 | J38: 012D | K38: 012D-WASHINGTON STREET | L38: 1488830.51 | M38: 1574499.786 | N38: 110183.29 | O38: 110183.29 | P38: 21020.49 | Q38: 29783.27575 | R38: 1714466.352
H39: 6 | I39: 1 | J39: 013D | K39: 013D-HYDE PARK | L39: 2586629.33 | M39: 2735467.401 | N39: 5209.01 | O39: 5209.01 | P39: 11521.03 | Q39: 16323.78757 | R39: 2757000.199
H40: 7 | I40: 1 | J40: 015D | K40: 015D-PLYMOUTH ST | L40: 1259805.07 | M40: 1332295.919 | N40: 17529.7 | O40: 17529.7 | P40: 1831.12 | Q40: 2594.456737 | R40: 1352420.076
H41: 8 | I41: 1 | J41: 016D | K41: 016D-FERN STREET | L41: 424895.02 | M41: 449344.0412 | N41: 13909.55 | O41: 13909.55 | P41: 1232 | Q41: 1745.582321 | R41: 464999.1735
H42: 9 | I42: 1 | J42: 017D | K42: 017D-FOURTEENTH STREET | L42: 412538.1 | M42: 436276.0877 | N42: 1806.01 | O42: 1806.01 | P42: 16504.11 | Q42: 23384.15799 | R42: 461466.2557
H43: 10 | I43: 1 | J43: 018D | K43: 018D-BELMONT HEIGHTS | L43: 502821.5 | M43: 531754.5139 | N43: 3991.61 | O43: 3991.61 | P43: 0 | Q43: 0 | R43: 535746.1239
H44: 11 | I44: 1 | J44: 020D | K44: 020D-HABANA AVE | L44: 1463031.27 | M44: 1547216.024 | N44: 13646.18 | O44: 13646.18 | P44: 6963.46 | Q44: 9866.308986 | R44: 1570728.512
H45: 12 | I45: 1 | J45: 021D | K45: 021D-IVY STREET | L45: 535744.39 | M45: 566571.8305 | N45: 2733.65 | O45: 2733.65 | P45: 12457.52 | Q45: 17650.671 | R45: 586956.1515
H46: 13 | I46: 1 | J46: 022D | K46: 022D-BAYCOURT | L46: 471282.17 | M46: 498400.3691 | N46: 2673.57 | O46: 2673.57 | P46: 0 | Q46: 0 | R46: 501073.9391
H47: 14 | I47: 1 | J47: 023D | K47: 023D-MACDILL | L47: 4185562.86 | M47: 4426405.681 | N47: 2794.98 | O47: 2794.98 | P47: 195647.61 | Q47: 277206.988 | R47: 4706407.649
H48: 15 | I48: 1 | J48: 024D | K48: 024D-LOIS AVENUE | L48: 1124001.55 | M48: 1188678.085 | N48: 31339.6 | O48: 31339.6 | P48: 13540.14 | Q48: 19184.60147 | R48: 1239202.287
H49: 16 | I49: 1 | J49: 026D | K49: 026D-YUKON | L49: 1045427.26 | M49: 1105582.527 | N49: 3248 | O49: 3248 | P49: 41757.14 | Q49: 59164.38747 | R49: 1167994.914
H50: 17 | I50: 1 | J50: 027D | K50: 027D-FLORIDA AVENUE | L50: 1505660.37 | M50: 1592298.058 | N50: 68450.37 | O50: 68450.37 | P50: 0 | Q50: 0 | R50: 1660748.428
H51: 18 | I51: 1 | J51: 028D | K51: 028D-ORIENT PARK | L51: 1487770.1 | M51: 1573378.358 | N51: 29476.43 | O51: 29476.43 | P51: 8235.76 | Q51: 11668.99112 | R51: 1614523.78
H52: 19 | I52: 1 | J52: 037D | K52: 037D-TEMPLE TERRACE | L52: 959927.13 | M52: 1015162.606 | N52: 3972.76 | O52: 3972.76 | P52: 11886.2 | Q52: 16841.18554 | R52: 1035976.552
H53: 20 | I53: 1 | J53: 039D | K53: 039D-MILLPOINT | L53: 3740.02 | M53: 3955.225695 | N53: 0 | O53: 0 | P53: 0 | Q53: 0 | R53: 3955.225695
H54: 21 | I54: 1 | J54: 043D | K54: =IF(ISNA(VLOOKUP(J54,$A$275:$B$454,2,FALSE)),0,(VLOOKUP(J54,$A$275:$B$454,2,FALSE))) -> 043D-UCETA | L54: 43541.94 | M54: 46047.40079 | N54: 0 | O54: 0 | P54: 0 | Q54: 0 | R54: 46047.40079
H55: 22 | I55: 1 | J55: 044D | K55: 044D-EL PRADO | L55: 504355.78 | M55: 533377.0784 | N55: 20797.84 | O55: 20797.84 | P55: 14122.98 | Q55: 20010.40926 | R55: 574185.3276
H56: 23 | I56: 1 | J56: 051D | K56: 051D-GIBSONTON | L56: 1767202.24 | M56: 1868889.393 | N56: 0 | O56: 0 | P56: 0 | Q56: 0 | R56: 1868889.393
H57: 24 | I57: 1 | J57: 052D | K57: 052D-BRANDON | L57: 1331570.27 | M57: 1408190.584 | N57: 12383.98 | O57: 12383.98 | P57: 0 | Q57: 0 | R57: 1420574.564
H58: 25 | I58: 1 | J58: 053D | K58: 053D-FIFTY SIXTH STREET | L58: 998733.91 | M58: 1056202.38 | N58: 8474.68 | O58: 8474.68 | P58: 14902.35 | Q58: 21114.67427 | R58: 1085791.734
H59: 26 | I59: 1 | J59: 054D | K59: 054D-SEVENTY EIGHTH ST | L59: 580035.79 | M59: 613411.8162 | N59: 16076.55 | O59: 16076.55 | P59: 0 | Q59: 0 | R59: 629488.3662
H60: 27 | I60: 1 | J60: 056D | K60: 056D-USS AGRI-CHEM | L60: 150619.91 | M60: 159286.7788 | N60: 0 | O60: 0 | P60: 0 | Q60: 0 | R60: 159286.7788
H61: 28 | I61: 1 | J61: 057D | K61: 057D-PINE LAKE | L61: 1340888.99 | M61: 1418045.515 | N61: 0 | O61: 0 | P61: 9151.67 | Q61: 12966.71539 | R61: 1431012.231
H62: 29 | I62: 1 | J62: 058D | K62: 058D-CLARKWILD | L62: 497819.33 | M62: 526464.5124 | N62: 5279.42 | O62: 5279.42 | P62: 6565.02 | Q62: 9301.771794 | R62: 541045.7042
H63: 30 | I63: 1 | J63: 068D | K63: 068D-WILSON | L63: 493496.11 | M63: 521892.5286 | N63: 7177.66 | O63: 7177.66 | P63: 3700.55 | Q63: 5243.193716 | R63: 534313.3823
H64: 31 | I64: 1 | J64: 069D | K64: 069D-MCFARLAND | L64: 750414.23 | M64: 793594.0569 | N64: 4385.9 | O64: 4385.9 | P64: 0 | Q64: 0 | R64: 797979.9569
H65: 32 | I65: 1 | J65: 070D | K65: 070D-CYPRESS GARDENS | L65: 540001.18 | M65: 571073.5618 | N65: 3419.37 | O65: 3419.37 | P65: 18730.62 | Q65: 26538.83047 | R65: 601031.7623
H66: 33 | I66: 1 | J66: 071D | K66: 071D-GRAY STREET | L66: 2240919.83 | M66: 2369865.32 | N66: 17187.31 | O66: 17187.31 | P66: 23802.27 | Q66: 33724.69295 | R66: 2420777.323
H67: 34 | I67: 1 | J67: 075D | K67: 075D-PORT SUTTON | L67: =IF(ISNA(VLOOKUP($J67,$A$269:$E$452,5,FALSE)),0,(VLOOKUP($J67,$A$269:$E$452,5,FALSE))) -> 1097201.77 | M67: =+L67*$L$218*$L$229 -> 1160336.21 | N67: =IF(ISNA(VLOOKUP($J67,$A$269:$E$448,3,FALSE)),0,(VLOOKUP($J67,$A$269:$E$448,3,FALSE))) -> 1164.24 | O67: =+N67*$N$218*$N$229 -> 1164.24 | P67: =IF(ISNA(VLOOKUP($J67,$A$268:$E$438,4,FALSE)),0,(VLOOKUP($J67,$A$268:$E$438,4,FALSE))) -> 973.76 | Q67: =+P67*$P$218*$P$229 -> 1379.690131 | R67: 1162880.141
H68: 35 | I68: 1 | J68: 077D | K68: 077D-KEYSTONE | L68: 2495515.36 | M68: 2639110.613 | N68: 0 | O68: 0 | P68: 166758.8 | Q68: 236275.3354 | R68: 2875385.948
H69: 36 | I69: 1 | J69: 078D | K69: 078D-THIRD AVENUE | L69: 480786.57 | M69: 508451.6649 | N69: 37222.9 | O69: 37222.9 | P69: 19802.5 | Q69: 28057.54376 | R69: 573732.1086
H70: 37 | I70: 1 | J70: 079D | K70: 079D-KIRKLAND ROAD | L70: 601585.24 | M70: 636201.25 | N70: 11173.99 | O70: 11173.99 | P70: 48482.95 | Q70: 68693.9776 | R70: 716069.2176
H71: 38 | I71: 1 | J71: 080D | K71: 080D-JACKSON ROAD | L71: 0 | M71: 0 | N71: 376410.04 | O71: 376410.04 | P71: 0 | Q71: 0 | R71: 376410.04
H72: 39 | I72: 1 | J72: 081D | K72: =IF(ISNA(VLOOKUP(J72,$A$275:$B$454,2,FALSE)),0,(VLOOKUP(J72,$A$275:$B$454,2,FALSE))) -> 081D-MANHATTAN | L72: 1108966.17 | M72: 1172777.55 | N72: 17303.11 | O72: 17303.11 | P72: 20187.53 | Q72: 28603.08074 | R72: 1218683.74
H73: 40 | I73: 1 | J73: 091D | K73: =IF(ISNA(VLOOKUP(J73,$A$275:$B$454,2,FALSE)),0,(VLOOKUP(J73,$A$275:$B$454,2,FALSE))) -> 091D-ESTUARY | L73: 484992.51 | M73: 512899.6202 | N73: 6842.35 | O73: 6842.35 | P73: 12390.06 | Q73: 17555.08904 | R73: 537297.0593
H74: 41 | I74: 1 | J74: 094D | K74: =IF(ISNA(VLOOKUP(J74,$A$275:$B$454,2,FALSE)),0,(VLOOKUP(J74,$A$275:$B$454,2,FALSE))) -> 094D-JAN PHYL | L74: 1228148.4 | M74: 1298817.683 | N74: 3091.75 | O74: 3091.75 | P74: 0 | Q74: 0 | R74: 1301909.433
H75: 42 | I75: 1 | J75: 095D | K75: =IF(ISNA(VLOOKUP(J75,$A$275:$B$454,2,FALSE)),0,(VLOOKUP(J75,$A$275:$B$454,2,FALSE))) -> 095D-DAIRY ROAD | L75: 787047.02 | M75: 832334.7461 | N75: 3517.53 | O75: 3517.53 | P75: 9829.02 | Q75: 13926.43145 | R75: 849778.7075
H76: 43 | I76: 1 | J76: 097D | K76: 097D-BONNIE NO. 5 | L76: 0 | M76: 0 | N76: 9897.07 | O76: 9897.07 | P76: 0 | Q76: 0 | R76: 9897.07
H77: 44 | I77: 1 | J77: 099D | K77: =IF(ISNA(VLOOKUP(J77,$A$275:$B$454,2,FALSE)),0,(VLOOKUP(J77,$A$275:$B$454,2,FALSE))) -> 099D-COOLIDGE | L77: 2023256.57 | M77: 2139677.428 | N77: 6165.36 | O77: 6165.36 | P77: 0 | Q77: 0 | R77: 2145842.788
H78: 45 | I78: 1 | J78: 100D | K78: 100D-SUN CITY | L78: 3280841.59 | M78: 3469625.553 | N78: 7831.35 | O78: 7831.35 | P78: 172874.61 | Q78: 244940.6355 | R78: 3722397.538
H79: 46 | I79: 1 | J79: 101D | K79: 101D-PLANT CITY | L79: 1019775.06 | M79: 1078454.265 | N79: 39563.57 | O79: 39563.57 | P79: 9815.36 | Q79: 13907.07702 | R79: 1131924.912
H80: 47 | I80: 1 | J80: 102D | K80: 102D-POLK CITY | L80: 358258.03 | M80: 378872.6707 | N80: 4533.93 | O80: 4533.93 | P80: 0 | Q80: 0 | R80: 383406.6007
H81: 48 | I81: 1 | J81: 110D | K81: 110D-SOUTH SEFFNER | L81: 795112.63 | M81: 840864.4619 | N81: 2244.84 | O81: 2244.84 | P81: 0 | Q81: 0 | R81: 843109.3019
H82: 49 | I82: 1 | J82: 113D | K82: 113D-FORT KING HWY. | L82: 1446704.09 | M82: 1529949.356 | N82: 35732.08 | O82: 35732.08 | P82: 24985.32 | Q82: 35400.91955 | R82: 1601082.356
H83: 50 | I83: 1 | J83: 114D | K83: 114D-BLOOMINGDALE | L83: 2042915.6 | M83: 2160467.665 | N83: 151788.73 | O83: 151788.73 | P83: 0 | Q83: 0 | R83: 2312256.395
H84: 51 | I84: 1 | J84: 115D | K84: 115D-FORTH SIXTH STREET | L84: 2320934.51 | M84: 2454484.15 | N84: 0 | O84: 0 | P84: 0 | Q84: 0 | R84: 2454484.15
H85: 52 | I85: 1 | J85: 117D | K85: 117D-ALEXANDER ROAD | L85: 2857962.12 | M85: 3022413.039 | N85: 10295.33 | O85: 10295.33 | P85: 11564.45 | Q85: 16385.30801 | R85: 3049093.677
H86: 53 | I86: 1 | J86: 120D | K86: 120D-GORDONVILLE | L86: 249848.5 | M86: 264225.113 | N86: 1339.58 | O86: 1339.58 | P86: 3084.18 | Q86: 4369.878314 | R86: 269934.5713
H87: 54 | I87: 1 | J87: 121D | K87: 121D-EAST WINTER HAVEN | L87: 1080458.94 | M87: 1142629.976 | N87: 23377.82 | O87: 23377.82 | P87: 50184.95 | Q87: 71105.48824 | R87: 1237113.284
H88: 55 | I88: 1 | J88: 122D | K88: 122D-PASCO PACKING CO. | L88: 24085.85 | M88: 25471.78165 | N88: 0 | O88: 0 | P88: 0 | Q88: 0 | R88: 25471.78165
H89: 56 | I89: 1 | J89: 123D | K89: 123D-UNIV. SO. FLA. | L89: 2924770.26 | M89: 3093065.408 | N89: 2.2 | O89: 2.2 | P89: 103785.85 | Q89: 147050.9293 | R89: 3240118.537
H90: 57 | I90: 1 | J90: 124D | K90: 124D-SUNSET LANE | L90: 1631500.98 | M90: 1725379.703 | N90: 5172.03 | O90: 5172.03 | P90: 2069.08 | Q90: 2931.614829 | R90: 1733483.348
H91: 58 | I91: 1 | J91: 125D | K91: 125D-PLANT AVENUE | L91: 3305372.72 | M91: 3495568.236 | N91: 124807.4 | O91: 124807.4 | P91: 24350.97 | Q91: 34502.12884 | R91: 3654877.765
H92: 59 | I92: 1 | J92: 126D | K92: 126D-THIRTIETH STREET | L92: 745838.15 | M92: 788754.6632 | N92: 3942 | O92: 3942 | P92: 12944.12 | Q92: 18340.11935 | R92: 811036.7826
H93: 60 | I93: 1 | J93: 130D | K93: 130D-DOUBLE BRANCH | L93: 1566293.41 | M93: 1656420.004 | N93: 10161.43 | O93: 10161.43 | P93: 0 | Q93: 0 | R93: 1666581.434
H94: 61 | I94: 1 | J94: 131D | K94: 131D-LAKE ALFRED | L94: 551215.31 | M94: 582932.9677 | N94: 5916.17 | O94: 5916.17 | P94: 0 | Q94: 0 | R94: 588849.1377
H95: 62 | I95: 1 | J95: 133D | K95: 133D-BIRDSEYE | L95: 124876.62 | M95: 132062.1858 | N95: 3919.13 | O95: 3919.13 | P95: 0 | Q95: 0 | R95: 135981.3158
H96: 63 | I96: 1 | J96: 136D | K96: 136D-MADISON | L96: 2611979.43 | M96: 2762276.18 | N96: 5730.4 | O96: 5730.4 | P96: 3963.67 | Q96: 5616.000226 | R96: 2773622.58
H97: 64 | I97: 1 | J97: 140D | K97: 140D-SKYWAY | L97: 2829391.84 | M97: 2992198.787 | N97: 8290.54 | O97: 8290.54 | P97: 164556.4 | Q97: 233154.8236 | R97: 3233644.151
H98: 65 | I98: 1 | J98: 141D | K98: 141D-GEORGE ROAD | L98: 1454955.58 | M98: 1538675.648 | N98: 2626 | O98: 2626 | P98: 56014.21 | Q98: 79364.78467 | R98: 1620666.432
